Workbook

Sheet Formulaire
D1: Bienvenue dans l'outil de dimensionnement de magasin de la grande distribution alimentaire Suivez les étapes pas à pas et obtenez votre devis ! Cliquez sur les images pour accéder à la saisie
A2: validé
A3: non terminé
A5: Étape 1 : Saisissez les informations concernant votre futur magasin | G5: Étape 4 : Établissez votre sélection de chambre(s) froide positive
A15: Étape 2 : Établissez votre sélection de meuble(s) frigorifiques positifs | G15: Étape 5 : Établissez votre sélection de chambre(s) froide négative
A26: Étape 3 : Établissez votre sélection de meuble(s) frigorifiques Négatifs | G26: Étape 6 : Renseignez vos climatisations existantes
E37: Étape 7 : Établissez votre sélection de compresseurs POSITIF
E49: Étape 8 : Établissez votre sélection de compresseurs NÉGATIF

Sheet Informations (hidden)
C2: 1 : INFORMATIONS GÉNÉRALE
I3: Case à remplir
C5: RENSEIGNEMENTS
C6: Adresse du site (N°, rue) | L6: 1
C7: Ville
C8: Code postal
C9: Pays | L9: Suisse
C10: Département | G10: =VALUE(LEFT(G8,2)) ->  | L10: France
C11: Superficie SDV (en m2) | L11: Russie
C12: Hauteur Sous Plafond (m) | L12: Angleterre
C13: Volume SDV (m3) | G13: =G11*G12 -> 0 | L13: Allemagne
C14: Activité du magasin | L14: Espagne
C15: Superficie Réserve (en m2)
C16: Batiment
C17: Année de construction
C18: Année de rénovation
C19: ENVELOPPE THERMIQUE
C20: Orientation façade principale (entrée)
C21: Isolation du bâtiment
C22: Zone climatique | G22: =VLOOKUP(G10,'Zones climatique'!BB2:BC97,2,FALSE) ->  | J22: =IF(AND(G22="H1",G22="H2",G22="H3"),"H1","H2") -> 
B23: HIVER | C23: Température de base | G23: =VLOOKUP(G22,'Zones climatique'!C60:E62,2,FALSE) -> 
C24: Température de base ajustée | G24: =IF(G28>200,G23-0.01*G28,G23) -> 
B25: ÉTÉ | C25: Température de base ajustée | G25: =VLOOKUP(G22,'Zones climatique'!C60:E62,3,FALSE) -> 
C27: CONTRAINTES
C28: Altitude (en m)
C29: Distance mer / océan (en km)
C30: Distance SDV / tiers voisinage (en m)
C31: Bruit ambiant
C32: CLIMATISATION
C33: Avez-vous un(des) groupe(s) de climatisation que vous voulez récupérer ?
C34: Si oui, combien de clim récupéré ?
C35: Si oui, quelle est la puissance froide totale de ce(s) groupe(s) ? (kW)
C36: SALLE DES MACHINES
C37: Y aura-t'il une salle des machines ?
C38: Si oui, sera-t-elle équipée de grilles de ventilation ?
C39: CENTRALE POSITIVE
C40: Nombre de compresseurs minimum souhaité ?
C41: CENTRALE NEGATIVE
C42: Nombre de compresseurs minimum souhaité ?
C43: Chambre froide positive
C44: nombre de chambre froide positive souhaité ? | G44: 5
C45: Chambre froide négative
C46: nombre de chambre froide négative souhaité ?

Sheet Chambres positives (hidden)
A3: Chambre | E3: 1 | F3: 2 | G3: 3 | H3: 4 | I3: 5 | J3: 6 | K3: 7 | L3: 8
A4: Existera t'elle ? (Réfection ou création)
A5: Utilisation de la chambre
A7: DIMENSIONS
A8: Largeur
A9: Longueur
A10: Hauteur sous plafond
A11: Température extérieure | E11: =Informations!$G$25 ->  | F11: =Informations!$G$25 ->  | G11: =Informations!$G$25 ->  | H11: =Informations!$G$25 ->  | I11: =Informations!$G$25 ->  | J11: =Informations!$G$25 ->  | K11: =Informations!$G$25 ->  | L11: =Informations!$G$25 -> 
A14: Possibilité de récupérer l'ÉVAPORATEUR d'une chambre existante (si en bon état)
A15: Évaporateur existant
A16: Action
A18: Puissance | E18: =IF(E4="oui",'Table CFP 1'!$K$82,"") ->  | F18: =IF(F4="oui",'Table CFP 2'!$K$82,"") ->  | G18: =IF(G4="oui",'Table CFP 3'!$K$82,"") ->  | H18: =IF(H4="oui",'Table CFP 4'!$K$82,"") ->  | I18: =IF(I4="oui",'Table CFP 5'!$K$82,"") ->  | J18: =IF(J4="oui",'Table CFP 6'!$K$82,"") ->  | K18: =IF(K4="oui",'Table CFP 7'!$K$82,"") ->  | L18: =IF(L4="oui",'Table CFP 8'!$K$82,"") -> 
A19: Valeur la + proche à masquer | E19: =MIN(IF('Table évap'!$D$5:$D$16>'Chambres positives'!E18,'Table évap'!$D$5:$D$16)) -> 0 | F19: =MIN(IF('Table évap'!$D$5:$D$16>'Chambres positives'!F18,'Table évap'!$D$5:$D$16)) -> 0 | G19: =MIN(IF('Table évap'!D5:D16>'Chambres positives'!G18,'Table évap'!$D$5:$D$16)) -> 0 | H19: =MIN(IF('Table évap'!$D$5:$D$16>'Chambres positives'!H18,'Table évap'!$D$5:$D$16)) -> 0 | I19: =MIN(IF('Table évap'!$D$5:$D$16>'Chambres positives'!I18,'Table évap'!$D$5:$D$16)) -> 0 | J19: =MIN(IF('Table évap'!$D$5:$D$16>'Chambres positives'!J18,'Table évap'!$D$5:$D$16)) -> 0 | K19: =MIN(IF('Table évap'!$D$5:$D$16>'Chambres positives'!K18,'Table évap'!$D$5:$D$16)) -> 0 | L19: =MIN(IF('Table évap'!$D$5:$D$16>'Chambres positives'!L18,'Table évap'!$D$5:$D$16)) -> 0
A20: Type | E20: =IF(E4="oui",'Table CFP 1'!$Q$82,"") ->  | F20: =IF(F4="oui",'Table CFP 2'!Q82,"") ->  | G20: =IF(G4="oui",'Table CFP 3'!Q82,"") ->  | H20: =IF(H4="oui",'Table CFP 4'!Q82,"") ->  | I20: =IF(I4="oui",'Table CFP 5'!Q82,"") ->  | J20: =IF(J4="oui",'Table CFP 6'!Q82,"") ->  | K20: =IF(K4="oui",'Table CFP 7'!Q82,"") ->  | L20: =IF(L4="oui",'Table CFP 8'!Q82,"") -> 
A21: Modèle | E21: =IF(E4="oui",IF(E16="récupéré","Vérifiez que votre évaporateur fait bien cette puissance",INDEX('Table évap'!$B$5:$B$16,MATCH(E19,'Table évap'!$D$5:$D$16,0))),"") ->  | F21: =IF(F4="oui",IF(F16="récupéré","Vérifiez que votre évaporateur fait bien cette puissance",INDEX('Table évap'!$B$5:$B$16,MATCH(F19,'Table évap'!$D$5:$D$16,0))),"") ->  | G21: =IF(G4="oui",IF(G16="récupéré","Vérifiez que votre évaporateur fait bien cette puissance",INDEX('Table évap'!$B$5:$B$16,MATCH(G19,'Table évap'!$D$5:$D$16,0))),"") ->  | H21: =IF(H4="oui",IF(H16="récupéré","Vérifiez que votre évaporateur fait bien cette puissance",INDEX('Table évap'!$B$5:$B$16,MATCH(H19,'Table évap'!$D$5:$D$16,0))),"") ->  | I21: =IF(I4="oui",IF(I16="récupéré","Vérifiez que votre évaporateur fait bien cette puissance",INDEX('Table évap'!$B$5:$B$16,MATCH(I19,'Table évap'!$D$5:$D$16,0))),"") ->  | J21: =IF(J4="oui",IF(J16="récupéré","Vérifiez que votre évaporateur fait bien cette puissance",INDEX('Table évap'!$B$5:$B$16,MATCH(J19,'Table évap'!$D$5:$D$16,0))),"") ->  | K21: =IF(K4="oui",IF(K16="récupéré","Vérifiez que votre évaporateur fait bien cette puissance",INDEX('Table évap'!$B$5:$B$16,MATCH(K19,'Table évap'!$D$5:$D$16,0))),"") ->  | L21: =IF(L4="oui",IF(L16="récupéré","Vérifiez que votre évaporateur fait bien cette puissance",INDEX('Table évap'!$B$5:$B$16,MATCH(L19,'Table évap'!$D$5:$D$16,0))),"") -> 
A23: Budget | E23: =IF(E4="oui",IF(E16="récupéré","",VLOOKUP(E21,'Table évap'!$H$5:$I$16,2,FALSE)),"") ->  | F23: =IF(F4="oui",IF(F16="récupéré","",VLOOKUP(F21,'Table évap'!$H$5:$I$16,2,FALSE)),"") ->  | G23: =IF(G4="oui",IF(G16="récupéré","",VLOOKUP(G21,'Table évap'!$H$5:$I$16,2,FALSE)),"") ->  | H23: =IF(H4="oui",IF(H16="récupéré","",VLOOKUP(H21,'Table évap'!$H$5:$I$16,2,FALSE)),"") ->  | I23: =IF(I4="oui",IF(I16="récupéré","",VLOOKUP(I21,'Table évap'!$H$5:$I$16,2,FALSE)),"") ->  | J23: =IF(J4="oui",IF(J16="récupéré","",VLOOKUP(J21,'Table évap'!$H$5:$I$16,2,FALSE)),"") ->  | K23: =IF(K4="oui",IF(K16="récupéré","",VLOOKUP(K21,'Table évap'!$H$5:$I$16,2,FALSE)),"") ->  | L23: =IF(L4="oui",IF(L16="récupéré","",VLOOKUP(L21,'Table évap'!$H$5:$I$16,2,FALSE)),"") -> 
A25: Nombre d'évaporateurs conseillés

Sheet Chambres négative (hidden)
A3: Chambre | E3: 1 | F3: 2 | G3: 3 | H3: 4 | I3: 5 | J3: 6 | K3: 7 | L3: 8
A4: Existera t'elle ? (Réfection ou création)
A5: Utilisation de la chambre
A7: DIMENSIONS
A8: Largeur
A9: Longueur
A10: Hauteur sous plafond
A11: Température extérieure | E11: =Informations!$G$25 ->  | F11: =Informations!$G$25 ->  | G11: =Informations!$G$25 ->  | H11: =Informations!$G$25 ->  | I11: =Informations!$G$25 ->  | J11: =Informations!$G$25 ->  | K11: =Informations!$G$25 ->  | L11: =Informations!$G$25 -> 
A14: Possibilité de récupérer l'ÉVAPORATEUR d'une chambre existante (si en bon état)
A15: Évaporateur existant
A16: Action
A18: Puissance | E18: =IF(E4="oui",'Table CFN 1'!$K$82,"") ->  | F18: =IF(F4="oui",'Table CFN 2'!$K$82,"") ->  | G18: =IF(G4="oui",'Table CFN 3'!$K$82,"") ->  | H18: =IF(H4="oui",'Table CFN 4'!$K$82,"") ->  | I18: =IF(I4="oui",'Table CFN 5'!$K$82,"") ->  | J18: =IF(J4="oui",'Table CFN 6'!$K$82,"") ->  | K18: =IF(K4="oui",'Table CFN 7'!$K$82,"") ->  | L18: =IF(L4="oui",'Table CFN 8'!$K$82,"") -> 
A19: Valeur la + proche à masquer | E19: =MIN(IF('Table évap'!$D$5:$D$16>'Chambres négative'!E18,'Table évap'!$D$5:$D$16)) -> 0 | F19: =MIN(IF('Table évap'!$D$5:$D$16>'Chambres négative'!F18,'Table évap'!$D$5:$D$16)) -> 0 | G19: =MIN(IF('Table évap'!D5:D16>'Chambres négative'!G18,'Table évap'!$D$5:$D$16)) -> 0 | H19: =MIN(IF('Table évap'!$D$5:$D$16>'Chambres négative'!H18,'Table évap'!$D$5:$D$16)) -> 0 | I19: =MIN(IF('Table évap'!$D$5:$D$16>'Chambres négative'!I18,'Table évap'!$D$5:$D$16)) -> 0 | J19: =MIN(IF('Table évap'!$D$5:$D$16>'Chambres négative'!J18,'Table évap'!$D$5:$D$16)) -> 0 | K19: =MIN(IF('Table évap'!$D$5:$D$16>'Chambres négative'!K18,'Table évap'!$D$5:$D$16)) -> 0 | L19: =MIN(IF('Table évap'!$D$5:$D$16>'Chambres négative'!L18,'Table évap'!$D$5:$D$16)) -> 0
A20: Type | E20: =IF(E4="oui",'Table CFN 1'!$Q$82,"") ->  | F20: =IF(F4="oui",'Table CFN 2'!Q82,"") ->  | G20: =IF(G4="oui",'Table CFN 3'!Q82,"") ->  | H20: =IF(H4="oui",'Table CFN 4'!Q82,"") ->  | I20: =IF(I4="oui",'Table CFN 5'!Q82,"") ->  | J20: =IF(J4="oui",'Table CFN 6'!Q82,"") ->  | K20: =IF(K4="oui",'Table CFN 7'!Q82,"") ->  | L20: =IF(L4="oui",'Table CFN 8'!Q82,"") -> 
A21: Modèle | E21: =IF(E4="oui",IF(E16="récupéré","Vérifiez que votre évaporateur fait bien cette puissance",INDEX('Table évap'!$B$5:$B$16,MATCH(E19,'Table évap'!$D$5:$D$16,0))),"") ->  | F21: =IF(F4="oui",IF(F16="récupéré","Vérifiez que votre évaporateur fait bien cette puissance",INDEX('Table évap'!$B$5:$B$16,MATCH(F19,'Table évap'!$D$5:$D$16,0))),"") ->  | G21: =IF(G4="oui",IF(G16="récupéré","Vérifiez que votre évaporateur fait bien cette puissance",INDEX('Table évap'!$B$5:$B$16,MATCH(G19,'Table évap'!$D$5:$D$16,0))),"") ->  | H21: =IF(H4="oui",IF(H16="récupéré","Vérifiez que votre évaporateur fait bien cette puissance",INDEX('Table évap'!$B$5:$B$16,MATCH(H19,'Table évap'!$D$5:$D$16,0))),"") ->  | I21: =IF(I4="oui",IF(I16="récupéré","Vérifiez que votre évaporateur fait bien cette puissance",INDEX('Table évap'!$B$5:$B$16,MATCH(I19,'Table évap'!$D$5:$D$16,0))),"") ->  | J21: =IF(J4="oui",IF(J16="récupéré","Vérifiez que votre évaporateur fait bien cette puissance",INDEX('Table évap'!$B$5:$B$16,MATCH(J19,'Table évap'!$D$5:$D$16,0))),"") ->  | K21: =IF(K4="oui",IF(K16="récupéré","Vérifiez que votre évaporateur fait bien cette puissance",INDEX('Table évap'!$B$5:$B$16,MATCH(K19,'Table évap'!$D$5:$D$16,0))),"") ->  | L21: =IF(L4="oui",IF(L16="récupéré","Vérifiez que votre évaporateur fait bien cette puissance",INDEX('Table évap'!$B$5:$B$16,MATCH(L19,'Table évap'!$D$5:$D$16,0))),"") -> 
A23: Budget | E23: =IF(E4="oui",IF(E16="récupéré","",VLOOKUP(E21,'Table évap'!$H$5:$I$16,2,FALSE)),"") ->  | F23: =IF(F4="oui",IF(F16="récupéré","",VLOOKUP(F21,'Table évap'!$H$5:$I$16,2,FALSE)),"") ->  | G23: =IF(G4="oui",IF(G16="récupéré","",VLOOKUP(G21,'Table évap'!$H$5:$I$16,2,FALSE)),"") ->  | H23: =IF(H4="oui",IF(H16="récupéré","",VLOOKUP(H21,'Table évap'!$H$5:$I$16,2,FALSE)),"") ->  | I23: =IF(I4="oui",IF(I16="récupéré","",VLOOKUP(I21,'Table évap'!$H$5:$I$16,2,FALSE)),"") ->  | J23: =IF(J4="oui",IF(J16="récupéré","",VLOOKUP(J21,'Table évap'!$H$5:$I$16,2,FALSE)),"") ->  | K23: =IF(K4="oui",IF(K16="récupéré","",VLOOKUP(K21,'Table évap'!$H$5:$I$16,2,FALSE)),"") ->  | L23: =IF(L4="oui",IF(L16="récupéré","",VLOOKUP(L21,'Table évap'!$H$5:$I$16,2,FALSE)),"") -> 
A25: Nombre d'évaporateurs conseillés

Sheet Clim existante (hidden)
A1: UNITÉ 1
A2: Fluide utilisé
A3: Puissance frigorifique [kW]
A6: UNITÉ 2 | M6: TOTAL
A7: Fluide utilisé
A8: Puissance frigorifique [kW] | M8: =E3+E8+E12+E16+E20+E25+E29+E33+E37+E41 -> 0
A10: UNITÉ 3
A11: Fluide utilisé
A12: Puissance frigorifique [kW]
A14: UNITÉ 4
A15: Fluide utilisé
A16: Puissance frigorifique [kW]
A18: UNITÉ 5
A19: Fluide utilisé
A20: Puissance frigorifique [kW]
A23: UNITÉ 6
A24: Fluide utilisé
A25: Puissance frigorifique [kW]
A27: UNITÉ 7
A28: Fluide utilisé
A29: Puissance frigorifique [kW]
A31: UNITÉ 8
A32: Fluide utilisé
A33: Puissance frigorifique [kW]
A35: UNITÉ 9
A36: Fluide utilisé
A37: Puissance frigorifique [kW]
A39: UNITÉ 10
A40: Fluide utilisé
A41: Puissance frigorifique [kW]

Sheet Production positive (hidden)
A2: CENTRALE POSITIVE
A3: Appel de puissance nominal | B3: Principe | C3: Variateur | D3: Fluide | E3: Marque | F3: Régime T°C | G3: Fréquence de variation | H3: P Frigo compresseur sélectionné (KW) | I3: P abs compresseur sélectionné (KW) | J3: Modèle | K3: Prix | L3: Rejet de Chaleur (KW) | M3: COP
A4: ='Besoins frigo'!E19/1000 -> 0 | B4: =INDEX('Selection compresseurs'!C71:C297,MATCH(H4,'Selection compresseurs'!I72:I297,0)) -> Principe | C4: =INDEX('Selection compresseurs'!D72:D297,MATCH(H4,'Selection compresseurs'!I72:I297,0)) -> Non | D4: =INDEX('Selection compresseurs'!E72:E297,MATCH(H4,'Selection compresseurs'!I72:I297,0)) -> R134A | E4: =INDEX('Selection compresseurs'!F72:F297,MATCH(H4,'Selection compresseurs'!I72:I297,0)) -> BITZER | F4: =INDEX('Selection compresseurs'!G72:G297,MATCH(H4,'Selection compresseurs'!I72:I297,0)) -> -10/+45°C | G4: =INDEX('Selection compresseurs'!H72:H297,MATCH(H4,'Selection compresseurs'!I72:I297,0)) -> Pas de variation | H4: =MIN(IF('Selection compresseurs'!I72:I297>A4,'Selection compresseurs'!I72:I297)) -> 1 | I4: =INDEX('Selection compresseurs'!J72:J269,MATCH(H4,'Selection compresseurs'!I72:I297,0)) -> 0.53 | J4: =DGET('Selection compresseurs'!C72:L297,'Selection compresseurs'!K72,'Production positive'!B3:I4) ->  | K4: =DGET('Selection compresseurs'!C72:L297,'Selection compresseurs'!L72,'Production positive'!B3:J4) ->  | L4: =INDEX('Selection compresseurs'!M72:M297,MATCH(H4,'Selection compresseurs'!I72:I297,0)) -> 1.53 | M4: =H4/I4 -> 1.886792453
A6: CENTRALE POSITIVE RÉSUMÉ | F6: Salle des machines | G6: CONDENSEUR POSITIF
A7: Marque compresseur | D7: =E4 -> BITZER | F7: =Informations!G37 -> 0 | G7: Distance > Emplacement condenseur / tiers | I7: =Informations!G30 -> 0
A8: Modèle | D8: =J4 ->  | G8: Puissance sonore brut | I8: 60
A9: Principe de fonctionnement | D9: =B4 -> Principe | G9: Puissance sonore atténuée | I9: =IF(I7<50,(I8-20*LOG(I7/1))*66%,(I8-23*LOG(I7/1))*66%) -> 
A10: Prix | D10: =K4 ->  | G10: Bruit ambiant (environnement extérieur) | I10: =Informations!G31 -> 0
A11: Appel de puissance nominal | D11: ='Besoins frigo'!E19/1000 -> 0 | G11: Bruit résiduel | I11: =IF(I10="Faible",10,IF(I10="Moyen",12,20)) -> 20
A12: Température d'évaporation | D12: ='Selection compresseurs'!V17 -> -10 | G12: Émergence (3 dB(A) en période nocturne) > décret n°2006-1009 du 31 août 2006 | I12: =IF(I9-I11<0,0,I9-I11) -> 
A13: Température sèche extérieur | D13: =Informations!G25 ->  | G13: Nuisance sonore | I13: =IF(I12>3,"OUI","NON") -> 
A14: Température de condensation | D14: =D12+D13 ->  | G14: Emplacement prévu | I14: Extérieur
A15: Compresseurs | I15: =CONCATENATE(I13, I14) -> 
A16: Nombre de compresseurs minimum souhaités ? (Renvoi vers tableur de sélection) | D16: =Informations!G40 -> 0 | G16: Grilles à ventelles (non intégrées au bordereau de prix) | I16: =IF(I14="Intérieur","Prévoir grilles à ventelles","Pas de grille à ventelles") -> Pas de grille à ventelles
A17: Fluide | D17: =D4 -> R134A | G17: Équipement retenu | I17: =IF(I15="NONIntérieur","Centrifuge base",IF(I15="OUIIntérieur","Centrifuge optimisé",IF(I15="NONExtérieur","Hélicoïde base","Hélicoïde optimisé"))) -> 
A18: Sous refroidissement | D18: ='Selection compresseurs'!V19 -> 3 | I18: =IF(I17="Hélicoïde optimisé","Hélicoïde",IF(I17="Centrifuge optimisé","Centrifuge",IF(I17="Centrifuge base","centrifuge","Hélicoïde"))) -> 
A19: Température des gaz à l'aspiration | D19: 4 | G19: Spécificité | I19: =IF(I17="Centrifuge optimisé", "Piège à son + Variateur avec horloge",IF(I17="Centrifuge base", "Piège à son",IF(I17="Hélicoïde optimisé", "Moteurs EC + horloge","Moteurs EC"))) -> 
A20: Température d'évaporation (y compris perte de charge) | D20: =D12 -> -10 | G20: Puissance de sélection | I20: =L4 -> 1.53 | J20: DT 10
A21: Puissance froid évaporateur | D21: =H4 -> 1 | G21: Modèle | I21: =IF(I18="Hélicoïde",I23,J23) -> 
A22: Puissance absorbée compresseur | D22: =I4 -> 0.53 | G22: BUDGET (hors pose) | I22: =IF(I18="Hélicoïde",I24,J24) -> 
A23: Coefficient de performance | D23: =M4 -> 1.886792453 | G23: Modèle | I23: =IF(P48<'Table condenseur'!D3,'Table condenseur'!B3,IF(P48<'Table condenseur'!D4,'Table condenseur'!B4,IF(P48<'Table condenseur'!D5,'Table condenseur'!B5,IF(P48<'Table condenseur'!D6,'Table condenseur'!B6,IF(P48<'Table condenseur'!D7,'Table condenseur'!B7,IF(P48<'Table condenseur'!D8,'Table condenseur'!B8,IF(P48<'Table condenseur'!D9,'Table condenseur'!B9,IF(P48<'Table condenseur'!D10,'Table condenseur'!B10,IF(P48<'Table condenseur'!D11,'Table condenseur'!B11,IF(P48<'Table condenseur'!D12,'Table condenseur'!B12,IF(P48<'Table condenseur'!D13,'Table condenseur'!B13,IF(P48<'Table condenseur'!D14,'Table condenseur'!B14,IF(P48<'Table condenseur'!D15,'Table condenseur'!B15,IF(P48<'Table condenseur'!D16,'Table condenseur'!B16,IF(P48<'Table condenseur'!D17,'Table condenseur'!B17,IF(P48<'Table condenseur'!D18,'Table condenseur'!B18,IF(P48<'Table condenseur'!D19,'Table condenseur'!B19,IF(P48<'Table condenseur'!D20,'Table condenseur'!B20,IF(P48<'Table condenseur'!D21,'Table condenseur'!B21,IF(P48<'Table condenseur'!D22,'Table condenseur'!B22,IF(P48<'Table condenseur'!D23,'Table condenseur'!B23,IF(P48<'Table condenseur'!D24,'Table condenseur'!B24,IF(P48<'Table condenseur'!D25,'Table condenseur'!B25,IF(P48<'Table condenseur'!D26,'Table condenseur'!B26,IF(P48<'Table condenseur'!D27,'Table condenseur'!B27,IF(P48<'Table condenseur'!D28,'Table condenseur'!B28,IF(P48<'Table condenseur'!D29,'Table condenseur'!B29,IF(P48<'Table condenseur'!D30,'Table condenseur'!B30,IF($D$21<'Table condenseur'!D31,'Table condenseur'!B31,IF(P48<'Table condenseur'!D32,'Table condenseur'!B32,IF(P48<'Table condenseur'!D33,'Table condenseur'!B33,IF(P48<'Table condenseur'!D34,'Table condenseur'!B34,IF(P48<'Table condenseur'!D35,'Table condenseur'!B35,IF(P48<'Table condenseur'!D36,'Table condenseur'!B36,IF(P48<'Table condenseur'!D37,'Table condenseur'!BSI37*(P48<'Table condenseur'!D38,'Table condenseur'!B38,IF(P48<'Table condenseur'!D39,'Table condenseur'!B39,IF(P48<'Table condenseur'!D40,'Table condenseur'!B40,IF(P48<'Table condenseur'!D41,'Table condenseur'!B41,IF(P48<'Table condenseur'!D42,'Table condenseur'!B42,IF(P48<'Table condenseur'!D43,'Table condenseur'!B43,IF(P48<'Table condenseur'!D44,'Table condenseur'!B44,IF(P48<'Table condenseur'!D45,'Table condenseur'!B45,IF(P48<'Table condenseur'!D46,'Table condenseur'!B46,IF(P48<'Table condenseur'!D47,'Table condenseur'!B47,IF(P48<'Table condenseur'!D48,'Table condenseur'!B48,IF(P48<'Table condenseur'!D49,'Table condenseur'!B49,IF(P48<'Table condenseur'!D50,'Table condenseur'!B50,IF(P48<'Table condenseur'!D51,'Table condenseur'!B51,IF(P48<'Table condenseur'!D52,'Table condenseur'!B52,IF(P48<'Table condenseur'!D53,'Table condenseur'!B53,IF(P48<'Table condenseur'!D54,'Table condenseur'!B54,IF(P48<'Table condenseur'!D55,'Table condenseur'!B55,IF(P48<'Table condenseur'!D56,'Table condenseur'!B56,IF(P48<'Table condenseur'!D57,'Table condenseur'!B57,IF(P48<'Table condenseur'!D58,'Table condenseur'!B58,IF(P48<'Table condenseur'!D59,'Table condenseur'!B59,IF(P48<'Table condenseur'!D60,'Table condenseur'!B60,IF(P48<'Table condenseur'!D61,'Table condenseur'!B61,IF(P48<'Table condenseur'!D62,'Table condenseur'!B62,IF(P48<'Table condenseur'!D63,'Table condenseur'!B63,IF(P48<'Table condenseur'!D64,'Table condenseur'!B64)))))))))))))))))))))))))))))))))))))))))))))))))))))))))))))) -> SAV5R 4510 H 230V | J23: =IF(P48<'Table condenseur'!O51,'Table condenseur'!N51,IF(P48<'Table condenseur'!O52,'Table condenseur'!N52,IF(P48<'Table condenseur'!O53,'Table condenseur'!N53,IF(P48<'Table condenseur'!O54,'Table condenseur'!N54,IF(P48<'Table condenseur'!O55,'Table condenseur'!N55,IF(P48<'Table condenseur'!O56,'Table condenseur'!N56,IF(P48<'Table condenseur'!O57,'Table condenseur'!N57,IF(P48<'Table condenseur'!O58,'Table condenseur'!N58,IF(P48<'Table condenseur'!O59,'Table condenseur'!N59,IF(P48<'Table condenseur'!O60,'Table condenseur'!N60,IF(P48<'Table condenseur'!O61,'Table condenseur'!N61,IF(P48<'Table condenseur'!O62,'Table condenseur'!N62,IF(P48<'Table condenseur'!O63,'Table condenseur'!N63,IF(P48<'Table condenseur'!O64,'Table condenseur'!N64,IF(P48<'Table condenseur'!O65,'Table condenseur'!N65,IF(P48<'Table condenseur'!O66,'Table condenseur'!N66)))))))))))))))) -> CAC 143-8P-2
A24: Puissance rejetée condenseur | D24: =L4 -> 1.53 | G24: BUGDET (hors pose) | I24: =VLOOKUP(I23,'Table condenseur'!$B$3:O141,9,FALSE) -> 1678 | J24: =VLOOKUP(J23,'Table condenseur'!G22:O37,9,FALSE) -> 
A25: Sur puissance | C25: 0.03690616712 | D25: =D21/D11 -> 
A27: Altitude | C27: =Informations!G28 -> 0 | D27: =1-0.000075*C27 -> 1
A28: Fluide | C28: =D4 -> R134A | D28: 0.93
A29: Température ambiante | C29: 35 | D29: 0.96
A30: Delta T | C30: =IF(Informations!N26=37,8,10) -> 10 | D30: =C30/10 -> 1
C31: coeff. DT 10 | D31: =D27*D28*D29*D30 -> 0.8928
C32: Puissance de sélection à DT 10 | D32: =D24/D31 -> 1.713709677
C33: Nombre d'appareil | D33: 1
C34: Puissance de sélection unitaire DT 10 | D34: =D32/D33 -> 1.713709677

Sheet Production négative (hidden)
A1: CENTRALE NÉGATIVE
A2: Appel de puissance nominal | B2: Principe | C2: Variateur | D2: Fluide | E2: Marque | F2: Régime T°C | G2: Fréquence de variation | H2: P Frigo compresseur sélectionné (KW) | I2: P abs compresseur sélectionné (KW) | J2: Modèle | K2: Prix | L2: Rejet de Chaleur (KW) | M2: COP
A3: ='Besoins frigo'!E35/1000 -> 0 | B3: =INDEX('Selection compresseurs'!C27:C71,MATCH(H3,'Selection compresseurs'!I27:I71,0)) -> Scroll | C3: =INDEX('Selection compresseurs'!D27:D71,MATCH(H3,'Selection compresseurs'!I27:I71,0)) -> Non | D3: =INDEX('Selection compresseurs'!E27:E71,MATCH(H3,'Selection compresseurs'!I27:I71,0)) -> R134A | E3: =INDEX('Selection compresseurs'!F27:F71,MATCH(H3,'Selection compresseurs'!I27:I71,0)) -> COPELAND | F3: =INDEX('Selection compresseurs'!G27:G71,MATCH(H3,'Selection compresseurs'!I27:I71,0)) -> -5/-36°C | G3: =INDEX('Selection compresseurs'!H27:H71,MATCH(H3,'Selection compresseurs'!I27:I71,0)) -> Pas de variation | H3: =MIN(IF('Selection compresseurs'!I27:I71>A3,'Selection compresseurs'!I27:I71)) -> 2.5 | I3: =INDEX('Selection compresseurs'!J27:J71,MATCH(H3,'Selection compresseurs'!I27:I71,0)) -> 1 | J3: =INDEX('Selection compresseurs'!K27:K71,MATCH(H3,'Selection compresseurs'!I27:I71,0)) -> ZR18 K3E PFJ 522 | K3: =INDEX('Selection compresseurs'!L27:L71,MATCH(H3,'Selection compresseurs'!I27:I71,0)) -> 1418 | L3: =INDEX('Selection compresseurs'!M27:M71,MATCH(H3,'Selection compresseurs'!I27:I71,0)) -> 3.5 | M3: =H3/I3 -> 2.5
A6: CENTRALE NÉGATIVE RÉSUMÉ | E6: Salle des machines | F6: CONDENSEUR NÉGATIF
A7: Marque compresseur | C7: =E3 -> COPELAND | E7: =Informations!G37 -> 0 | F7: Distance > Emplacement condenseur / tiers | H7: =Informations!G30 -> 0
A8: Modèle | C8: =J3 -> ZR18 K3E PFJ 522 | F8: Puissance sonore brut | H8: 60
A9: Principe de fonctionnement | C9: =B3 -> Scroll | F9: Puissance sonore atténuée | H9: =IF(H7<50,(H8-20*LOG(H7/1))*66%,(H8-23*LOG(H7/1))*66%) -> 
A10: Prix | C10: =K3 -> 1418 | F10: Bruit ambiant (environnement extérieur) | H10: =Informations!G31 -> 0
A11: Appel de puissance nominal | C11: ='Besoins frigo'!E35/1000 -> 0 | F11: Bruit résiduel | H11: =IF(H10="Faible",10,IF(H10="Moyen",12,20)) -> 20
A12: Température d'évaporation | C12: ='Selection compresseurs'!AA17 -> -5 | F12: Émergence (3 dB(A) en période nocturne) > décret n°2006-1009 du 31 août 2006 | H12: =IF(H9-H11<0,0,H9-H11) -> 
A13: Température sèche extérieur | C13: =Informations!G25 ->  | F13: Nuisance sonore | H13: =IF(H12>3,"OUI","NON") -> 
A14: Température de condensation | C14: =C12+C13 ->  | F14: Emplacement prévu | H14: Extérieur
A15: Compresseurs | H15: =CONCATENATE(H13, H14) -> 
A16: Nombre de compresseurs minimum souhaités (Renvoi vers tableur de sélection) | C16: =Informations!G42 -> 0 | F16: Grilles à ventelles (non intégrées au bordereau de prix) | H16: =IF(H14="Intérieur","Prévoir grilles à ventelles","Pas de grille à ventelles") -> Pas de grille à ventelles
A17: Fluide | C17: =D3 -> R134A | F17: Équipement retenu | H17: =IF(H15="NONIntérieur","Centrifuge base",IF(H15="OUIIntérieur","Centrifuge optimisé",IF(H15="NONExtérieur","Hélicoïde base","Hélicoïde optimisé"))) -> 
A18: Sous refroidissement | C18: ='Selection compresseurs'!AA19 -> 0 | H18: =IF(H17="Hélicoïde optimisé","Hélicoïde",IF(H17="Centrifuge optimisé","Centrifuge",IF(H17="Centrifuge base","centrifuge","Hélicoïde"))) -> 
A19: Température des gaz à l'aspiration | C19: 0 | F19: Spécificité | H19: =IF(H17="Centrifuge optimisé", "Piège à son + Variateur avec horloge",IF(H17="Centrifuge base", "Piège à son",IF(H17="Hélicoïde optimisé", "Moteurs EC + horloge","Moteurs EC"))) -> 
A20: Température d'évaporation (y compris perte de charge) | C20: =C12 -> -5 | F20: Puissance de sélection | H20: =L3 -> 3.5 | I20: DT 10
A21: Puissance froid évaporateur | C21: =H3 -> 2.5 | F21: Modèle | H21: =IF(H18="Hélicoïde",H23,I23) -> 
A22: Puissance absorbée compresseur | C22: =I3 -> 1 | F22: BUGDET (hors pose) | H22: =IF(H18="Hélicoïde",H24,I24) -> 
A23: Coefficient de performance | C23: =M3 -> 2.5 | F23: Modèle | H23: =IF(O90<'Table condenseur'!D3,'Table condenseur'!B3,IF(O90<'Table condenseur'!D4,'Table condenseur'!B4,IF(O90<'Table condenseur'!D5,'Table condenseur'!B5,IF(O90<'Table condenseur'!D6,'Table condenseur'!B6,IF(O90<'Table condenseur'!D7,'Table condenseur'!B7,IF(O90<'Table condenseur'!D8,'Table condenseur'!B8,IF(O90<'Table condenseur'!D9,'Table condenseur'!B9,IF(O90<'Table condenseur'!D10,'Table condenseur'!B10,IF(O90<'Table condenseur'!D11,'Table condenseur'!B11,IF(O90<'Table condenseur'!D12,'Table condenseur'!B12,IF(O90<'Table condenseur'!D13,'Table condenseur'!B13,IF(O90<'Table condenseur'!D14,'Table condenseur'!B14,IF(O90<'Table condenseur'!D15,'Table condenseur'!B15,IF(O90<'Table condenseur'!D16,'Table condenseur'!B16,IF(O90<'Table condenseur'!D17,'Table condenseur'!B17,IF(O90<'Table condenseur'!D18,'Table condenseur'!B18,IF(O90<'Table condenseur'!D19,'Table condenseur'!B19,IF(O90<'Table condenseur'!D20,'Table condenseur'!B20,IF(O90<'Table condenseur'!D21,'Table condenseur'!B21,IF(O90<'Table condenseur'!D22,'Table condenseur'!B22,IF(O90<'Table condenseur'!D23,'Table condenseur'!B23,IF(O90<'Table condenseur'!D24,'Table condenseur'!B24,IF(O90<'Table condenseur'!D25,'Table condenseur'!B25,IF(O90<'Table condenseur'!D26,'Table condenseur'!B26,IF(O90<'Table condenseur'!D27,'Table condenseur'!B27,IF(O90<'Table condenseur'!D28,'Table condenseur'!B28,IF(O90<'Table condenseur'!D29,'Table condenseur'!B29,IF(O90<'Table condenseur'!D30,'Table condenseur'!B30,IF(O90<'Table condenseur'!D31,'Table condenseur'!B31,IF(O90<'Table condenseur'!D32,'Table condenseur'!B32,IF(O90<'Table condenseur'!D33,'Table condenseur'!B33,IF(O90<'Table condenseur'!D34,'Table condenseur'!B34,IF(O90<'Table condenseur'!D35,'Table condenseur'!B35,IF(O90<'Table condenseur'!D36,'Table condenseur'!B36,IF(O90<'Table condenseur'!D37,'Table condenseur'!BSI37*(O90<'Table condenseur'!D38,'Table condenseur'!B38,IF(O90<'Table condenseur'!D39,'Table condenseur'!B39,IF(O90<'Table condenseur'!D40,'Table condenseur'!B40,IF(O90<'Table condenseur'!D41,'Table condenseur'!B41,IF(O90<'Table condenseur'!D42,'Table condenseur'!B42,IF(O90<'Table condenseur'!D43,'Table condenseur'!B43,IF(O90<'Table condenseur'!D44,'Table condenseur'!B44,IF(O90<'Table condenseur'!D45,'Table condenseur'!B45,IF(O90<'Table condenseur'!D46,'Table condenseur'!B46,IF(O90<'Table condenseur'!D47,'Table condenseur'!B47,IF(O90<'Table condenseur'!D48,'Table condenseur'!B48,IF(O90<'Table condenseur'!D49,'Table condenseur'!B49,IF(O90<'Table condenseur'!D50,'Table condenseur'!B50,IF(O90<'Table condenseur'!D51,'Table condenseur'!B51,IF(O90<'Table condenseur'!D52,'Table condenseur'!B52,IF(O90<'Table condenseur'!D53,'Table condenseur'!B53,IF(O90<'Table condenseur'!D54,'Table condenseur'!B54,IF(O90<'Table condenseur'!D55,'Table condenseur'!B55,IF(O90<'Table condenseur'!D56,'Table condenseur'!B56,IF(O90<'Table condenseur'!D57,'Table condenseur'!B57,IF(O90<'Table condenseur'!D58,'Table condenseur'!B58,IF(O90<'Table condenseur'!D59,'Table condenseur'!B59,IF(O90<'Table condenseur'!D60,'Table condenseur'!B60,IF(O90<'Table condenseur'!D61,'Table condenseur'!B61,IF(O90<'Table condenseur'!D62,'Table condenseur'!B62,IF(O90<'Table condenseur'!D63,'Table condenseur'!B63,IF(O90<'Table condenseur'!D64,'Table condenseur'!B64)))))))))))))))))))))))))))))))))))))))))))))))))))))))))))))) -> SAV5R 4510 H 230V | I23: =IF(O90<'Table condenseur'!O51,'Table condenseur'!N51,IF(O90<'Table condenseur'!O52,'Table condenseur'!N52,IF(O90<'Table condenseur'!O53,'Table condenseur'!N53,IF(O90<'Table condenseur'!O54,'Table condenseur'!N54,IF(O90<'Table condenseur'!O55,'Table condenseur'!N55,IF(O90<'Table condenseur'!O56,'Table condenseur'!N56,IF(O90<'Table condenseur'!O57,'Table condenseur'!N57,IF(O90<'Table condenseur'!O58,'Table condenseur'!N58,IF(O90<'Table condenseur'!O59,'Table condenseur'!N59,IF(O90<'Table condenseur'!O60,'Table condenseur'!N60,IF(O90<'Table condenseur'!O61,'Table condenseur'!N61,IF(O90<'Table condenseur'!O62,'Table condenseur'!N62,IF(O90<'Table condenseur'!O63,'Table condenseur'!N63,IF(O90<'Table condenseur'!O64,'Table condenseur'!N64,IF(O90<'Table condenseur'!O65,'Table condenseur'!N65,IF(O90<'Table condenseur'!O66,'Table condenseur'!N66)))))))))))))))) -> CAC 143-8P-2
A24: Puissance rejetée condenseur | C24: =L3 -> 3.5 | F24: BUGDET (hors pose) | H24: =VLOOKUP(H23,'Table condenseur'!$B$3:O141,9,FALSE) -> 1678 | I24: =VLOOKUP(I23,'Table condenseur'!N50:V65,9,FALSE) -> 2396.592144
A25: Sur puissance | B25: 0.03690616712 | C25: =C21/C11 -> 
A27: Altitude | B27: =Informations!G28 -> 0 | C27: =1-0.000075*B27 -> 1
A28: Fluide | B28: =D3 -> R134A | C28: 0.93
A29: Température ambiante | B29: 35 | C29: 0.96
A30: Delta T | B30: =IF(Informations!N26=37,8,10) -> 10 | C30: =B30/10 -> 1
B31: coeff. DT 10 | C31: =C27*C28*C29*C30 -> 0.8928
B32: Puissance de sélection à DT 10 | C32: =C24/C31 -> 3.920250896
B33: Nombre d'appareil | C33: 1
B34: Puissance de sélection unitaire DT 10 | C34: =C32/C33 -> 3.920250896

Sheet Zones climatique (hidden)
B1: ZONES CLIMATIQUES & RT2012 (informations)
BB2: 1 | BC2: H1
BB3: 2 | BC3: H1
BB4: 3 | BC4: H1
Y5: ALL | Z5: Zones | AC5: ALL | AD5: Bbio | AF5: ALL | AG5: CEP | AI5: Zone | AJ5: Mcgéo | AL5: altiture | AM5: Mcbalt | AO5: H1A | AP5: H1B | AQ5: H1C | AR5: H2A | AS5: H2B | AT5: H2C | AU5: H2D | AV5: H3 | BB5: 4 | BC5: H2
Y6: 1 | Z6: H1C | AC6: 1 | AD6: 72 | AF6: 1 | AG6: 60 | AI6: H1C | AJ6: 1.2 | AL6: 0 à 400m | AM6: 0 | AO6: 1 | AP6: 1.1 | AQ6: 1 | AR6: 1 | AS6: 1 | AT6: 0.9 | AU6: 0.9 | AV6: 0.9 | AW6: CE1 | BB6: 5 | BC6: H1
J7: Département ? | L7: =Informations!G10 ->  | Y7: 2 | Z7: H1A | AC7: 2 | AD7: 72 | AF7: 2 | AG7: 60 | AI7: H1A | AJ7: 1.2 | AL7: 401 à 800m | AM7: 0.2 | AO7: 0.9 | AP7: 1 | AQ7: 1 | AR7: 1 | AS7: 1 | AT7: 1 | AU7: 1.1 | AV7: 1.1 | AW7: CE2 | BB7: 6 | BC7: H3
B8: Départements en zone H1 : | Y8: 3 | Z8: H1C | AC8: 3 | AD8: 72 | AF8: 3 | AG8: 60 | AI8: H2D | AJ8: 0.8 | AL8: 801 m et plus | AM8: 0.4 | BB8: 7 | BC8: H2
J9: Zone climatique | L9: =VLOOKUP(L7,Y6:Z107,2) ->  | Y9: 4 | Z9: H2D | AC9: 4 | AD9: 48 | AF9: 4 | AG9: 45 | AI9: H1B | AJ9: 1.4 | BB9: 8 | BC9: H1
B10: 1 | C10: Ain | D10: 43 | E10: Haute Loire | F10: 71 | G10: Saône et Loire | Y10: 5 | Z10: H1C | AC10: 5 | AD10: 72 | AF10: 5 | AG10: 60 | AI10: H2C | AJ10: 0.9 | BB10: 9 | BC10: H2
B11: 2 | C11: Aisne | D11: 45 | E11: Loiret | F11: 73 | G11: Savoie | L11: =IF(AND(L9="H1C"),"H1",IF(AND(L9="H1B"),"H1",IF(AND(L9="H1A"),"H1",IF(AND(L9="H2A"),"H2",IF(AND(L9="H2B"),"H2",IF(AND(L9="H2C"),"H2",IF(AND(L9="H2D"),"H2",IF(AND(L9="H3"),"H3")))))))) ->  | BB11: 10 | BC11: H1
B12: 3 | C12: Allier | D12: 51 | E12: Marne | F12: 74 | G12: Haute Savoie | BB12: 11 | BC12: H3
B13: 5 | C13: Hautes Alpes | D13: 52 | E13: Haute Marne | F13: 75 | G13: Paris | J13: CEP max moyen (maison individuelle) | L13: =VLOOKUP(L7,AF5:AG107,2) ->  | Y13: 6 | Z13: H3 | AC13: 6 | AD13: 42 | AF13: 6 | AG13: 40 | AI13: H3 | AJ13: 0.7 | BB13: 12 | BC13: H2
B14: 8 | C14: Ardennes | D14: 54 | E14: Meurthe et Moselle | F14: 76 | G14: Seine Maritime | Y14: 7 | Z14: H2D | AC14: 7 | AD14: 48 | AF14: 7 | AG14: 45 | AI14: H2A | AJ14: 1.1 | BB14: 13 | BC14: H3
B15: 10 | C15: Aube | D15: 55 | E15: Meuse | F15: 77 | G15: Seine et Marne | Y15: 8 | Z15: H1B | AC15: 8 | AD15: 84 | AF15: 8 | AG15: 65 | AI15: H2B | AJ15: 1 | BB15: 14 | BC15: H1
B16: 14 | C16: Calvados | D16: 57 | E16: Moselle | F16: 78 | G16: Yvelines | K16: Case à remplir | Y16: 9 | Z16: H2C | AC16: 9 | AD16: 54 | AF16: 9 | AG16: 45 | BB16: 15 | BC16: H1
B17: 15 | C17: Cantal | D17: 58 | E17: Nièvre | F17: 80 | G17: Somme | Y17: 10 | Z17: H1B | AC17: 10 | AD17: 84 | AF17: 10 | AG17: 65 | BB17: 16 | BC17: H2
B18: 19 | C18: Corrèze | D18: 59 | E18: Nord | F18: 87 | G18: Haute Vienne | Y18: 11 | Z18: H3 | AC18: 11 | AD18: 42 | AF18: 11 | AG18: 40 | BB18: 17 | BC18: H2
B19: 21 | C19: Cote d'or | D19: 60 | E19: Oise | F19: 88 | G19: Vosges | J19: Bâtiment tertiaire (commerce) | Y19: 12 | Z19: H2C | AC19: 12 | AD19: 54 | AF19: 12 | AG19: 45 | BB19: 18 | BC19: H2
B20: 23 | C20: Creuse | D20: 61 | E20: Orne | F20: 89 | G20: Yonne | Y20: 13 | Z20: H3 | AC20: 13 | AD20: 42 | AF20: 13 | AG20: 40 | BB20: 19 | BC20: H1
B21: 25 | C21: Doubs | D21: 62 | E21: Pas de Calais | F21: 90 | G21: Territoire de Belfort | J21: Chauffage seul ? | P21: 1 | Y21: 14 | Z21: H1A | AC21: 14 | AD21: 72 | AF21: 14 | AG21: 60 | BB21: 21 | BC21: H1
B22: 27 | C22: Eure | D22: 63 | E22: Puy de Dôme | F22: 91 | G22: Essonne | Y22: 15 | Z22: H1C | AC22: 15 | AD22: 72 | AF22: 15 | AG22: 60 | BB22: 22 | BC22: H2
B23: 28 | C23: Eure et Loir | D23: 67 | E23: Bas Rhin | F23: 92 | G23: Hauts de Seine | J23: Chauffage & refroidissement | P23: 0 | Y23: 16 | Z23: H2B | AC23: 16 | AD23: 60 | AF23: 16 | AG23: 50 | AI23: 0 à 400m | BB23: 23 | BC23: H1
B24: 38 | C24: Isère | D24: 68 | E24: Haut Rhin | F24: 93 | G24: Seine Saint Denis | Y24: 17 | Z24: H2B | AC24: 17 | AD24: 60 | AF24: 17 | AG24: 50 | AI24: 401 à 800m | BB24: 24 | BC24: H2
B25: 39 | C25: Jura | D25: 69 | E25: Rhône | F25: 94 | G25: Val de Marne | J25: Catégorie | P25: =IF(AND(P21=1,P23=0),"CE1","CE2") -> CE1 | Y25: 18 | Z25: H2B | AC25: 18 | AD25: 60 | AF25: 18 | AG25: 50 | AI25: 801 et plus | BB25: 25 | BC25: H1
B26: 42 | C26: Loire | D26: 70 | E26: Haute Saône | F26: 95 | G26: Val d'Oise | Y26: 19 | Z26: H1C | AC26: 19 | AD26: 72 | AF26: 19 | AG26: 60 | BB26: 26 | BC26: H2
Y27: 21 | Z27: H1C | AC27: 21 | AD27: 72 | AF27: 21 | AG27: 60 | BB27: 27 | BC27: H1
J28: Calcul du Bbio max | O28: Calcul du CEP max | BB28: 28 | BC28: H1
B29: Départements en zone H2 : | J29: Bbio maxmoyen | L29: =IF(AND(P21=1,P23=0),"140","250") -> 140 | O29: Mctype | Q29: =IF(AND(P25="CE1"),"6,4",IF(AND(P25="CE2"),"10,4")) -> 6,4 | Y29: 22 | Z29: H2A | AC29: 22 | AD29: 66 | AF29: 22 | AG29: 55 | BB29: 29 | BC29: H2
Y30: 23 | Z30: H1C | AC30: 23 | AD30: 72 | AF30: 23 | AG30: 60 | AI30: < 50 | BB30: 30 | BC30: H3
B31: 4 | C31: Alpes Haute Provence | D31: 32 | E31: Gers | F31: 50 | G31: Manche | Y31: 24 | Z31: H2C | AC31: 24 | AD31: 54 | AF31: 24 | AG31: 45 | AI31: 50 < 100 | BB31: 31 | BC31: H2
B32: 7 | C32: Ardèche | D32: 33 | E32: Gironde | F32: 53 | G32: Mayenne | J32: MBgéo | L32: =IF(AND(L9="H1A",P25="CE1"),"1",IF(AND(L9="H1B",P25="CE1"),"1,1",IF(AND(L9="H1C",P25="CE1"),"1",IF(AND(L9="H2A",P25="CE1"),"1",IF(AND(L9="H2B",P25="CE1"),"1",IF(AND(L9="H2C",P25="CE1"),"0,9",IF(AND(L9="H2D",P25="CE1"),"0,9",IF(AND(L9="H3",P25="CE1"),"0,9",IF(AND(L9="H1A",P25="CE2"),"0,9",IF(AND(L9="H1B",P25="CE2"),"1",IF(AND(L9="H1C",P25="CE2"),"1",IF(AND(L9="H2A",P25="CE2"),"1",IF(AND(L9="H2B",P25="CE2"),"1",IF(AND(L9="H2C",P25="CE2"),"1",IF(AND(L9="H2D",P25="CE2"),"1,1",IF(AND(L9="H3",P25="CE2"),"1,1",)))))))))))))))) ->  | O32: MCgéo | Q32: =IF(AND(L9="H1A",P25="CE1"),"1",IF(AND(L9="H1B",P25="CE1"),"1",IF(AND(L9="H1C",P25="CE1"),"1",IF(AND(L9="H2A",P25="CE1"),"1",IF(AND(L9="H2B",P25="CE1"),"1",IF(AND(L9="H2C",P25="CE1"),"1",IF(AND(L9="H2D",P25="CE1"),"1",IF(AND(L9="H3",P25="CE1"),"1",IF(AND(L9="H1A",P25="CE2"),"1",IF(AND(L9="H1B",P25="CE2"),"1",IF(AND(L9="H1C",P25="CE2"),"1",IF(AND(L9="H2A",P25="CE2"),"1",IF(AND(L9="H2B",P25="CE2"),"1",IF(AND(L9="H2C",P25="CE2"),"1",IF(AND(L9="H2D",P25="CE2"),"1,1",IF(AND(L9="H3",P25="CE2"),"1,1",)))))))))))))))) ->  | Y32: 25 | Z32: H1C | AC32: 25 | AD32: 72 | AF32: 25 | AG32: 60 | AI32: 100 < 150 | BB32: 32 | BC32: H2
B33: 9 | C33: Ariège | D33: 35 | E33: Ile et Vilaine | F33: 56 | G33: Morbihan | Y33: 26 | Z33: H2D | AC33: 26 | AD33: 48 | AF33: 26 | AG33: 45 | AI33: > 150 | BB33: 33 | BC33: H2
B34: 12 | C34: Aveyron | D34: 36 | E34: Indre | F34: 64 | G34: Pyrénées Atlantiques | Y34: 27 | Z34: H1A | AC34: 27 | AD34: 72 | AF34: 27 | AG34: 60 | BB34: 34 | BC34: H3
B35: 16 | C35: Charente | D35: 37 | E35: Indre et Loire | F35: 65 | G35: Hautes Pyrénées | J35: Altitude | L35: 0 à 400m | O35: Altitude | Q35: 401 à 800m | Y35: 28 | Z35: H1A | AC35: 28 | AD35: 72 | AF35: 28 | AG35: 60 | BB35: 35 | BC35: H2
B36: 17 | C36: Charente Maritime | D36: 40 | E36: Landes | F36: 72 | G36: Sarthe | Y36: 29 | Z36: H2A | AC36: 29 | AD36: 66 | AF36: 29 | AG36: 55 | BB36: 36 | BC36: H2
B37: 18 | C37: Cher | D37: 41 | E37: Loir et Cher | F37: 79 | G37: Deux Sèvres | J37: MBalt | L37: =IF(AND(P25="CE2"),"0",IF(AND(P25="CE1",L35="0 à 400m"),"0",IF(AND(P25="CE1",L35="401 à 800m"),"0,1",IF(AND(P25="CE1",L35="801 et plus"),"0,2")))) -> 0 | O37: MCalt | Q37: =IF(AND(P25="CE2"),"0",IF(AND(P25="CE1",Q35="0 à 400m"),"0",IF(AND(P25="CE1",Q35="401 à 800m"),"0",IF(AND(P25="CE1",Q35="801 et plus"),"0")))) -> 0 | Y37: 30 | Z37: H3 | AC37: 30 | AD37: 42 | AF37: 30 | AG37: 40 | BB37: 37 | BC37: H2
B38: 22 | C38: Cotes d'Armor | D38: 44 | E38: Loire Atlantique | F38: 81 | G38: Tarn | Y38: 31 | Z38: H2C | AC38: 31 | AD38: 54 | AF38: 31 | AG38: 45 | BB38: 38 | BC38: H1
B39: 24 | C39: Dordogne | D39: 46 | E39: Lot | F39: 82 | G39: Tarn et Garonne | Y39: 32 | Z39: H2C | AC39: 32 | AD39: 54 | AF39: 32 | AG39: 45 | BB39: 39 | BC39: H1
B40: 26 | C40: Drome | D40: 47 | E40: Lot et Garonne | F40: 84 | G40: Vaucluse | J40: MBsurf | L40: 0 | O40: Surface | Q40: 5000 | Y40: 33 | Z40: H2C | AC40: 33 | AD40: 54 | AF40: 33 | AG40: 45 | BB40: 40 | BC40: H2
B41: 29 | C41: Finistère | D41: 48 | E41: Lozère | F41: 85 | G41: Vendée | O41: Mcsurf | Q41: =IF(AND(Q40<=1000,P25="CE1"),((Q40-1000)/6270),IF(AND(Q40>1000,P25="CE1"),"0",IF(AND(Q40<=500,P25="CE2"),((500-Q40)/2400),IF(AND(Q40>500,P25="CE2"),"0",)))) -> 0 | Y41: 34 | Z41: H3 | AC41: 34 | AD41: 42 | AF41: 34 | AG41: 40 | BB41: 41 | BC41: H2
B42: 31 | C42: Haute Garonne | D42: 49 | E42: Maine et Loire | F42: 86 | G42: Vienne | Y42: 35 | Z42: H2A | AC42: 35 | AD42: 66 | AF42: 35 | AG42: 55 | BB42: 42 | BC42: H1
J43: Bbio MAX (tertiaire) | L43: =(L29)*(L32+L37+L40) ->  | Y43: 36 | Z43: H2B | AC43: 36 | AD43: 60 | AF43: 36 | AG43: 50 | BB43: 43 | BC43: H1
O44: Raccordement à un réseau de FROID ? | Q44: 1 | Y44: 37 | Z44: H2B | AC44: 37 | AD44: 60 | AF44: 37 | AG44: 50 | BB44: 44 | BC44: H2
B45: Départements en zone H3 : | Y45: 38 | Z45: H1C | AC45: 38 | AD45: 72 | AF45: 38 | AG45: 60 | BB45: 45 | BC45: H1
O46: Raccordement à un réseau de CHAUD ? | Q46: 0 | Y46: 39 | Z46: H1C | AC46: 39 | AD46: 72 | AF46: 39 | AG46: 60 | BB46: 46 | BC46: H2
B47: 6 | C47: Alpes Maritimes | D47: 30 | E47: Gard | K47: Valeur à choisir dans la liste déroulante | L47: ( renseigner 0 = non et 1= oui) | Y47: 40 | Z47: H2C | AC47: 40 | AD47: 54 | AF47: 40 | AG47: 45 | BB47: 47 | BC47: H2
B48: 11 | C48: Aude | D48: 34 | E48: Hérault | O48: Présence de GES ? | Q48: =IF(AND(Q44=1,Q46=0),"OUI","NON") -> OUI | Y48: 41 | Z48: H2B | AC48: 41 | AD48: 60 | AF48: 41 | AG48: 50 | BB48: 48 | BC48: H2
B49: 13 | C49: Bouches Du Rhône | D49: 66 | E49: Pyrénées Orientales | K49: Saisir manuellement | Y49: 42 | Z49: H1C | AC49: 42 | AD49: 72 | AF49: 42 | AG49: 60 | BB49: 49 | BC49: H2
B50: 20 | C50: Corse (1) | D50: 83 | E50: Var | Y50: 43 | Z50: H1C | AC50: 43 | AD50: 72 | AF50: 43 | AG50: 60 | BB50: 50 | BC50: H2
BB51: 51 | BC51: H1
O52: Contenu de CO2 des réseaux de froid (g/KWh) | Q52: 50 < 100 | BB52: 52 | BC52: H1
B53: DOM-TOM | Y53: 44 | Z53: H2B | AC53: 44 | AD53: 60 | AF53: 44 | AG53: 50 | BB53: 53 | BC53: H2
O54: McGES | Q54: =IF(AND(Q48="OUI",Q52="< 50"),"0,15",IF(AND(Q48="OUI",Q52="50 < 100"),"0,1",IF(AND(Q48="OUI",Q52="100 < 150"),"0,05",IF(AND(Q48="OUI",Q52="> 150"),"0")))) -> 0,1 | Y54: 45 | Z54: H1B | AC54: 45 | AD54: 84 | AF54: 45 | AG54: 65 | BB54: 54 | BC54: H1
B55: 971 | D55: Guadeloupe | E55: 974 | F55: Réunion | Y55: 46 | Z55: H2C | AC55: 46 | AD55: 54 | AF55: 46 | AG55: 45 | BB55: 55 | BC55: H1
B56: 972 | D56: Martinique | E56: 976 | F56: Mayotte | Y56: 47 | Z56: H2C | AC56: 47 | AD56: 54 | AF56: 47 | AG56: 45 | BB56: 56 | BC56: H2
B57: 973 | D57: Guyane | E57: 975 | F57: Saint-Pierre et-Miquelon | O57: CEP MAX (tertiaire) | Q57: =(L13)*Q29*(Q32+Q37+Q41+Q54) ->  | Y57: 48 | Z57: H2D | AC57: 48 | AD57: 48 | AF57: 48 | AG57: 45 | BB57: 57 | BC57: H1
Y58: 49 | Z58: H2B | AC58: 49 | AD58: 60 | AF58: 49 | AG58: 50 | BB58: 58 | BC58: H1
C59: Zone climatique | D59: Température extérieure Hiver | E59: Température extérieure Été | Y59: 50 | Z59: H2A | AC59: 50 | AD59: 66 | AF59: 50 | AG59: 55 | BB59: 59 | BC59: H1
C60: H1 | D60: -9 | E60: 32 | J60: Informations | Y60: 51 | Z60: H1B | AC60: 51 | AD60: 84 | AF60: 51 | AG60: 65 | BB60: 60 | BC60: H1
C61: H2 | D61: -6 | E61: 35 | Y61: 52 | Z61: H1B | AC61: 52 | AD61: 84 | AF61: 52 | AG61: 65 | BB61: 61 | BC61: H1
C62: H3 | D62: -3 | E62: 37 | Y62: 53 | Z62: H2B | AC62: 53 | AD62: 60 | AF62: 53 | AG62: 50 | BB62: 62 | BC62: H1
J63: Mctype : Coefficient de modulation selon le type de bâtiment et sa catégorie CE1 / CE2 | Y63: 54 | Z63: H1B | AC63: 54 | AD63: 84 | AF63: 54 | AG63: 65 | BB63: 63 | BC63: H1
J64: Mcgéo : Coefficient de modulation selon la zone géographique | Y64: 55 | Z64: H1B | AC64: 55 | AD64: 84 | AF64: 55 | AG64: 65 | BB64: 64 | BC64: H2
J65: Mcalt : Coefficient de modulation selon l'altitude | Y65: 56 | Z65: H2A | AC65: 56 | AD65: 66 | AF65: 56 | AG65: 55 | BB65: 65 | BC65: H2
J66: Mcsurf : Coefficient de modulation selon la surface moyenne des bâtiments | Y66: 57 | Z66: H1B | AC66: 57 | AD66: 84 | AF66: 57 | AG66: 65 | BB66: 66 | BC66: H3
J67: McGES : Coefficient de modulation selon les émissions de gaz à effet de serre des énergies utilisées | Y67: 58 | Z67: H1B | AC67: 58 | AD67: 84 | AF67: 58 | AG67: 65 | BB67: 67 | BC67: H1
BB68: 68 | BC68: H1
J69: Le valeur du Bbio final devra être inférieure ou égal à la valeur du BbioMAX. Idem pour le CEPmax. | BB69: 69 | BC69: H1
BB70: 70 | BC70: H1
J71: Les valeurs fournis dans ce tableur sont purements indicatives et permettent de donner un aperçu des valeurs maximales pouvant atteindre le bâtiment étudié afin de respecter la RT2012. Elles ne peuvent en aucun cas ce substituer à une vrai étude thermique RT2012. | BB71: 71 | BC71: H1
BB72: 72 | BC72: H2
Y73: 59 | Z73: H1A | AC73: 59 | AD73: 72 | AF73: 59 | AG73: 60 | BB73: 73 | BC73: H1
J74: Pour plus d'informations sur ces coefficients : | Y74: 60 | Z74: H1A | AC74: 60 | AD74: 72 | AF74: 60 | AG74: 60 | BB74: 74 | BC74: H1
N75: C'est par ICI ! | Y75: 61 | Z75: H1A | AC75: 61 | AD75: 72 | AF75: 61 | AG75: 60 | BB75: 75 | BC75: H1
Y76: 62 | Z76: H1A | AC76: 62 | AD76: 72 | AF76: 62 | AG76: 60 | BB76: 76 | BC76: H1
Y77: 63 | Z77: H1C | AC77: 63 | AD77: 72 | AF77: 63 | AG77: 60 | BB77: 77 | BC77: H1
Y78: 64 | Z78: H2C | AC78: 64 | AD78: 54 | AF78: 64 | AG78: 45 | BB78: 78 | BC78: H1
Y79: 65 | Z79: H2C | AC79: 65 | AD79: 54 | AF79: 65 | AG79: 45 | BB79: 79 | BC79: H2
Y80: 66 | Z80: H3 | AC80: 66 | AD80: 42 | AF80: 66 | AG80: 40 | BB80: 80 | BC80: H1
Y81: 67 | Z81: H1B | AC81: 67 | AD81: 84 | AF81: 67 | AG81: 65 | BB81: 81 | BC81: H2
Y82: 68 | Z82: H1B | AC82: 68 | AD82: 84 | AF82: 68 | AG82: 65 | BB82: 82 | BC82: H2
Y83: 69 | Z83: H1C | AC83: 69 | AD83: 72 | AF83: 69 | AG83: 60 | BB83: 83 | BC83: H3
Y84: 70 | Z84: H1B | AC84: 70 | AD84: 84 | AF84: 70 | AG84: 65 | BB84: 84 | BC84: H2
Y85: 71 | Z85: H1C | AC85: 71 | AD85: 72 | AF85: 71 | AG85: 60 | BB85: 85 | BC85: H2
Y86: 72 | Z86: H2B | AC86: 72 | AD86: 60 | AF86: 72 | AG86: 50 | BB86: 86 | BC86: H2
Y87: 73 | Z87: H1C | AC87: 73 | AD87: 72 | AF87: 73 | AG87: 60 | BB87: 87 | BC87: H1
Y88: 74 | Z88: H1C | AC88: 74 | AD88: 72 | AF88: 74 | AG88: 60 | BB88: 88 | BC88: H1
Y89: 76 | Z89: H1A | AC89: 76 | AD89: 72 | AF89: 76 | AG89: 60 | BB89: 89 | BC89: H1
Y90: 77 | Z90: H1A | AC90: 77 | AD90: 72 | AF90: 77 | AG90: 60 | BB90: 90 | BC90: H1
Y91: 78 | Z91: H1A | AC91: 78 | AD91: 72 | AF91: 78 | AG91: 60 | BB91: 91 | BC91: H1
Y92: 79 | Z92: H2B | AC92: 79 | AD92: 60 | AF92: 79 | AG92: 50 | BB92: 92 | BC92: H1
Y93: 80 | Z93: H1A | AC93: 80 | AD93: 72 | AF93: 80 | AG93: 60 | BB93: 93 | BC93: H1
Y94: 81 | Z94: H2C | AC94: 81 | AD94: 54 | AF94: 81 | AG94: 45 | BB94: 94 | BC94: H1
Y95: 82 | Z95: H2C | AC95: 82 | AD95: 54 | AF95: 82 | AG95: 45 | BB95: 95 | BC95: H1
Y96: 83 | Z96: H3 | AC96: 83 | AD96: 42 | AF96: 83 | AG96: 40 | BB96: 2A | BC96: H3
Y97: 84 | Z97: H2D | AC97: 84 | AD97: 48 | AF97: 84 | AG97: 45 | BB97: 2B | BC97: H3
Y98: 85 | Z98: H2B | AC98: 85 | AD98: 60 | AF98: 85 | AG98: 50
Y99: 86 | Z99: H2B | AC99: 86 | AD99: 60 | AF99: 86 | AG99: 50
Y100: 87 | Z100: H1C | AC100: 87 | AD100: 72 | AF100: 87 | AG100: 60
Y101: 88 | Z101: H1B | AC101: 88 | AD101: 84 | AF101: 88 | AG101: 65
Y102: 89 | Z102: H1B | AC102: 89 | AD102: 84 | AF102: 89 | AG102: 65
Y103: 90 | Z103: H1B | AC103: 90 | AD103: 84 | AF103: 90 | AG103: 65
Y104: 91 | Z104: H1A | AC104: 91 | AD104: 72 | AF104: 91 | AG104: 60
Y105: 95 | Z105: H1A | AC105: 95 | AD105: 72 | AF105: 95 | AG105: 60
Y106: 2A | Z106: H3 | AC106: 2A | AD106: 42 | AF106: 2A | AG106: 40
Y107: 2B | Z107: H3 | AC107: 2B | AD107: 42 | AF107: 2B | AG107: 40

Sheet Puissances MFV (hidden)
A2: 11 | B2: AERIA
A3: 12 | B3: AGATE
A4: 36 | B4: AGORA
A5: 46 | B5: AGORAII
A6: 85 | B6: AGORAPOS
A7: 86 | B7: AIS
A8: 800 | B8: AMARANTE
A9: B 09 DR | B9: AMPHI
A10: B 09 RF | B10: AMPLEO
A11: B 10 DR | B11: ARCADE
A12: B 10 RF | B12: ARCHE
A13: B 11 DR | B13: ARN
A14: B 11 RF | B14: ATR
A15: BAC | B15: AZURII
A16: BR | B16: BERLINO
A17: CM446 | B17: COLISEUM
A18: CVA | B18: COLISEUM-R
A19: EFFICIA | B19: CORALIS
A20: EU | B20: COSMOS
A21: EUS | B21: COSMOSPOS
A22: F | B22: DAFNE
A23: GH74 | B23: DOME
A24: II | B24: DUO
A25: III | B25: ELLIPSE
A26: L | B26: EMERAUDE
A27: LC2 | B27: ENVERGURE
A28: LDCLS | B28: FORUM
A29: LMS | B29: GRENAT
A30: LS | B30: KOXKA bacpos
A31: M 09 DR | B31: KOXKA SURGELE MIXTE
A32: M 09 RF | B32: KOXKA SURGELEE BAC DOUBLE
A33: M 10 DR | B33: KOXKA SV LS
A34: M 10 RF | B34: KOXKA Vertical LS
A35: M 11 DR | B35: KOXKA Vertical LS
A36: M 11 RF | B36: KOXKA Vertical LS
A37: MCD216 | B37: LOGIA
A38: MCD226 | B38: MAXIMA
A39: MCP226 | B39: NACRE
A40: MMT | B40: ONYX-F
A41: MODULAR | B41: PATARA
A42: MODULARLS | B42: PATNOS
A43: MODULARSV | B43: PERLE
A44: MPN | B44: PROXIMA
A45: MT | B45: TG ROTTONDE
A46: MUS | B46: TOPAZE
A47: NEG | B47: TRADEO
A48: NEGECO | B48: TRIBUNE
A49: NEGECOR | B49: TURQUOISE
A50: NEGR | B50: VELANDO
A51: PLACARD | B51: VISEO
A52: PORTE | B52: VISEOL
A53: POS
A54: POSECO
A55: POSECOR
A56: POSR
A57: PROXI
A58: R
A59: RD
A60: RD5
A61: S
A62: SG
A63: SL
A64: SVS724
A65: TPP
A66: VE
A67: VOLUM
A68: VOLUMLS
A69: VSS726
A70: XU.GD
A72: MEUBLES FRIGORIFIQUES DE VENTE
A73: REPERE | B73: POSITIF | C73: Réseaux | D73: TOTAL NOMBRE DE MODULES | E73: Température produits | F73: Température d'évaporation | G73: Coefficient THACCP | H73: Température d'évaporation corrigée THACCP | I73: Longueur linéaire | J73: Type de dégivrage | K73: Type de meuble | L73: Modèle | M73: Concaténer | N73: W/ml | O73: Puissance frigorifique | P73: Coefficient HACCP | Q73: Puissance corrigée
A74: ='Décompo Projet'!B7 -> MFVP 01 | B74: ='Décompo Projet'!C7 -> 0 | D74: ='Décompo Projet'!AM7 ->  | E74: 0 / +2 °C | F74: =VLOOKUP(M74,'Puissance unitaire'!$D$2:$H$128,5,FALSE) ->  | G74: =VLOOKUP(M74,'Puissance unitaire'!$D$2:$L$128,4,FALSE) ->  | H74: =F74+G74 ->  | I74: ='Décompo Projet'!F7 -> 0 | J74: Naturel | M74: ='Décompo Projet'!M7 -> 0 | N74: =O74/I74 ->  | O74: =VLOOKUP(M74,'Puissance unitaire'!$D$2:$L$128,2,FALSE)*I74 ->  | P74: =VLOOKUP(M74,'Puissance unitaire'!$D$2:$L$128,3,FALSE) ->  | Q74: =P74*O74 -> 
A75: ='Décompo Projet'!B8 -> MFVP 02 | B75: ='Décompo Projet'!C8 -> 0 | D75: ='Décompo Projet'!AM8 ->  | E75: 0 / +2 °C | F75: =VLOOKUP(M75,'Puissance unitaire'!$D$2:$H$128,5,FALSE) ->  | G75: =VLOOKUP(M75,'Puissance unitaire'!$D$2:$L$128,4,FALSE) ->  | I75: ='Décompo Projet'!F8 -> 0 | J75: Naturel | M75: ='Décompo Projet'!M8 -> 0 | O75: =VLOOKUP(M75,'Puissance unitaire'!$D$2:$L$128,2,FALSE)*I75 ->  | P75: =VLOOKUP(M75,'Puissance unitaire'!$D$2:$L$128,3,FALSE) ->  | Q75: =P75*O75 -> 
A76: ='Décompo Projet'!B9 -> MFVP 03 | B76: ='Décompo Projet'!C9 -> 0 | D76: ='Décompo Projet'!AM9 ->  | E76: 0 / +2 °C | F76: =VLOOKUP(M76,'Puissance unitaire'!$D$2:$H$128,5,FALSE) ->  | G76: =VLOOKUP(M76,'Puissance unitaire'!$D$2:$L$128,4,FALSE) ->  | I76: ='Décompo Projet'!F9 -> 0 | J76: Naturel | M76: ='Décompo Projet'!M9 -> 0 | O76: =VLOOKUP(M76,'Puissance unitaire'!$D$2:$L$128,2,FALSE)*I76 ->  | P76: =VLOOKUP(M76,'Puissance unitaire'!$D$2:$L$128,3,FALSE) -> 
A77: ='Décompo Projet'!B10 -> MFVP 04 | B77: ='Décompo Projet'!C10 -> 0 | D77: ='Décompo Projet'!AM10 ->  | E77: 0 / +2 °C | F77: =VLOOKUP(M77,'Puissance unitaire'!$D$2:$H$128,5,FALSE) ->  | G77: =VLOOKUP(M77,'Puissance unitaire'!$D$2:$L$128,4,FALSE) ->  | I77: ='Décompo Projet'!F10 -> 0 | J77: Naturel | M77: ='Décompo Projet'!M10 -> 0 | O77: =VLOOKUP(M77,'Puissance unitaire'!$D$2:$L$128,2,FALSE)*I77 ->  | P77: =VLOOKUP(M77,'Puissance unitaire'!$D$2:$L$128,3,FALSE) -> 
A78: ='Décompo Projet'!B11 -> MFVP 05 | B78: ='Décompo Projet'!C11 -> 0 | D78: ='Décompo Projet'!AM11 ->  | E78: 0 / +2 °C | F78: =VLOOKUP(M78,'Puissance unitaire'!$D$2:$H$128,5,FALSE) ->  | G78: =VLOOKUP(M78,'Puissance unitaire'!$D$2:$L$128,4,FALSE) ->  | I78: ='Décompo Projet'!F11 -> 0 | J78: Naturel | M78: ='Décompo Projet'!M11 -> 0 | O78: =VLOOKUP(M78,'Puissance unitaire'!$D$2:$L$128,2,FALSE)*I78 ->  | P78: =VLOOKUP(M78,'Puissance unitaire'!$D$2:$L$128,3,FALSE) -> 
A79: ='Décompo Projet'!B12 -> MFVP 06 | B79: ='Décompo Projet'!C12 -> 0 | D79: ='Décompo Projet'!AM12 ->  | E79: 0 / +2 °C | F79: =VLOOKUP(M79,'Puissance unitaire'!$D$2:$H$128,5,FALSE) ->  | G79: =VLOOKUP(M79,'Puissance unitaire'!$D$2:$L$128,4,FALSE) ->  | I79: ='Décompo Projet'!F12 -> 0 | J79: Naturel | M79: ='Décompo Projet'!M12 -> 0 | O79: =VLOOKUP(M79,'Puissance unitaire'!$D$2:$L$128,2,FALSE)*I79 ->  | P79: =VLOOKUP(M79,'Puissance unitaire'!$D$2:$L$128,3,FALSE) -> 
A80: ='Décompo Projet'!B13 -> MFVP 07 | B80: ='Décompo Projet'!C13 -> 0 | D80: ='Décompo Projet'!AM13 ->  | E80: 0 / +2 °C | F80: =VLOOKUP(M80,'Puissance unitaire'!$D$2:$H$128,5,FALSE) ->  | G80: =VLOOKUP(M80,'Puissance unitaire'!$D$2:$L$128,4,FALSE) ->  | I80: ='Décompo Projet'!F13 -> 0 | J80: Naturel | M80: ='Décompo Projet'!M13 -> 0 | O80: =VLOOKUP(M80,'Puissance unitaire'!$D$2:$L$128,2,FALSE)*I80 ->  | P80: =VLOOKUP(M80,'Puissance unitaire'!$D$2:$L$128,3,FALSE) -> 
A81: ='Décompo Projet'!B14 -> MFVP 08 | B81: ='Décompo Projet'!C14 -> 0 | D81: ='Décompo Projet'!AM14 ->  | E81: 0 / +2 °C | F81: =VLOOKUP(M81,'Puissance unitaire'!$D$2:$H$128,5,FALSE) ->  | G81: =VLOOKUP(M81,'Puissance unitaire'!$D$2:$L$128,4,FALSE) ->  | H81: =F81+G81 ->  | I81: ='Décompo Projet'!F14 -> 0 | J81: Naturel | M81: ='Décompo Projet'!M14 -> 0 | O81: =VLOOKUP(M81,'Puissance unitaire'!$D$2:$L$128,2,FALSE)*I81 ->  | P81: =VLOOKUP(M81,'Puissance unitaire'!$D$2:$L$128,3,FALSE) -> 
A82: ='Décompo Projet'!B15 -> MFVP 09 | B82: ='Décompo Projet'!C15 -> 0 | D82: ='Décompo Projet'!AM15 ->  | E82: 0 / +2 °C | F82: =VLOOKUP(M82,'Puissance unitaire'!$D$2:$H$128,5,FALSE) ->  | G82: =VLOOKUP(M82,'Puissance unitaire'!$D$2:$L$128,4,FALSE) ->  | I82: ='Décompo Projet'!F15 -> 0 | J82: Naturel | M82: ='Décompo Projet'!M15 -> 0 | O82: =VLOOKUP(M82,'Puissance unitaire'!$D$2:$L$128,2,FALSE)*I82 ->  | P82: =VLOOKUP(M82,'Puissance unitaire'!$D$2:$L$128,3,FALSE) -> 
A83: ='Décompo Projet'!B16 -> MFVP 10 | B83: ='Décompo Projet'!C16 -> 0 | D83: ='Décompo Projet'!AM16 ->  | E83: 0 / +2 °C | F83: =VLOOKUP(M83,'Puissance unitaire'!$D$2:$H$128,5,FALSE) ->  | G83: =VLOOKUP(M83,'Puissance unitaire'!$D$2:$L$128,4,FALSE) ->  | I83: ='Décompo Projet'!F16 -> 0 | J83: Naturel | M83: ='Décompo Projet'!M16 -> 0 | O83: =VLOOKUP(M83,'Puissance unitaire'!$D$2:$L$128,2,FALSE)*I83 ->  | P83: =VLOOKUP(M83,'Puissance unitaire'!$D$2:$L$128,3,FALSE) -> 
A84: ='Décompo Projet'!B17 -> MFVP 11 | B84: ='Décompo Projet'!C17 -> 0 | D84: ='Décompo Projet'!AM17 ->  | E84: 0 / +2 °C | F84: =VLOOKUP(M84,'Puissance unitaire'!$D$2:$H$128,5,FALSE) ->  | G84: =VLOOKUP(M84,'Puissance unitaire'!$D$2:$L$128,4,FALSE) ->  | I84: ='Décompo Projet'!F17 -> 0 | J84: Naturel | M84: ='Décompo Projet'!M17 -> 0 | O84: =VLOOKUP(M84,'Puissance unitaire'!$D$2:$L$128,2,FALSE)*I84 ->  | P84: =VLOOKUP(M84,'Puissance unitaire'!$D$2:$L$128,3,FALSE) -> 
A85: ='Décompo Projet'!B18 -> MFVP 12 | B85: ='Décompo Projet'!C18 -> 0 | D85: ='Décompo Projet'!AM18 ->  | E85: 0 / +2 °C | F85: =VLOOKUP(M85,'Puissance unitaire'!$D$2:$H$128,5,FALSE) ->  | G85: =VLOOKUP(M85,'Puissance unitaire'!$D$2:$L$128,4,FALSE) ->  | I85: ='Décompo Projet'!F18 -> 0 | J85: Naturel | M85: ='Décompo Projet'!M18 -> 0 | O85: =VLOOKUP(M85,'Puissance unitaire'!$D$2:$L$128,2,FALSE)*I85 ->  | P85: =VLOOKUP(M85,'Puissance unitaire'!$D$2:$L$128,3,FALSE) -> 
A86: ='Décompo Projet'!B19 -> MFVP 13 | B86: ='Décompo Projet'!C19 -> 0 | D86: ='Décompo Projet'!AM19 ->  | E86: 0 / +2 °C | F86: =VLOOKUP(M86,'Puissance unitaire'!$D$2:$H$128,5,FALSE) ->  | G86: =VLOOKUP(M86,'Puissance unitaire'!$D$2:$L$128,4,FALSE) ->  | I86: ='Décompo Projet'!F19 -> 0 | J86: Naturel | M86: ='Décompo Projet'!M19 -> 0 | O86: =VLOOKUP(M86,'Puissance unitaire'!$D$2:$L$128,2,FALSE)*I86 ->  | P86: =VLOOKUP(M86,'Puissance unitaire'!$D$2:$L$128,3,FALSE) -> 
A87: ='Décompo Projet'!B20 -> MFVP 14 | B87: ='Décompo Projet'!C20 -> 0 | D87: ='Décompo Projet'!AM20 ->  | E87: 0 / +2 °C | F87: =VLOOKUP(M87,'Puissance unitaire'!$D$2:$H$128,5,FALSE) ->  | G87: =VLOOKUP(M87,'Puissance unitaire'!$D$2:$L$128,4,FALSE) ->  | I87: ='Décompo Projet'!F20 -> 0 | J87: Naturel | M87: ='Décompo Projet'!M20 -> 0 | O87: =VLOOKUP(M87,'Puissance unitaire'!$D$2:$L$128,2,FALSE)*I87 ->  | P87: =VLOOKUP(M87,'Puissance unitaire'!$D$2:$L$128,3,FALSE) -> 
A88: ='Décompo Projet'!B21 -> MFVP 15 | B88: ='Décompo Projet'!C21 -> 0 | D88: ='Décompo Projet'!AM21 ->  | E88: 0 / +2 °C | F88: =VLOOKUP(M88,'Puissance unitaire'!$D$2:$H$128,5,FALSE) ->  | G88: =VLOOKUP(M88,'Puissance unitaire'!$D$2:$L$128,4,FALSE) ->  | I88: ='Décompo Projet'!F21 -> 0 | J88: Naturel | M88: ='Décompo Projet'!M21 -> 0 | O88: =VLOOKUP(M88,'Puissance unitaire'!$D$2:$L$128,2,FALSE)*I88 ->  | P88: =VLOOKUP(M88,'Puissance unitaire'!$D$2:$L$128,3,FALSE) -> 
A89: ='Décompo Projet'!B22 -> MFVP 16 | B89: ='Décompo Projet'!C22 -> 0 | D89: ='Décompo Projet'!AM22 ->  | E89: 0 / +2 °C | F89: =VLOOKUP(M89,'Puissance unitaire'!$D$2:$H$128,5,FALSE) ->  | G89: =VLOOKUP(M89,'Puissance unitaire'!$D$2:$L$128,4,FALSE) ->  | I89: ='Décompo Projet'!F22 -> 0 | J89: Naturel | M89: ='Décompo Projet'!M22 -> 0 | O89: =VLOOKUP(M89,'Puissance unitaire'!$D$2:$L$128,2,FALSE)*I89 ->  | P89: =VLOOKUP(M89,'Puissance unitaire'!$D$2:$L$128,3,FALSE) -> 
A90: ='Décompo Projet'!B23 -> MFVP 17 | B90: ='Décompo Projet'!C23 -> 0 | D90: ='Décompo Projet'!AM23 ->  | E90: 0 / +2 °C | F90: =VLOOKUP(M90,'Puissance unitaire'!$D$2:$H$128,5,FALSE) ->  | G90: =VLOOKUP(M90,'Puissance unitaire'!$D$2:$L$128,4,FALSE) ->  | I90: ='Décompo Projet'!F23 -> 0 | J90: Naturel | M90: ='Décompo Projet'!M23 -> 0 | O90: =VLOOKUP(M90,'Puissance unitaire'!$D$2:$L$128,2,FALSE)*I90 ->  | P90: =VLOOKUP(M90,'Puissance unitaire'!$D$2:$L$128,3,FALSE) -> 
A91: ='Décompo Projet'!B24 -> MFVP 18 | B91: ='Décompo Projet'!C24 -> 0 | D91: ='Décompo Projet'!AM24 ->  | E91: 0 / +2 °C | F91: =VLOOKUP(M91,'Puissance unitaire'!$D$2:$H$128,5,FALSE) ->  | G91: =VLOOKUP(M91,'Puissance unitaire'!$D$2:$L$128,4,FALSE) ->  | I91: ='Décompo Projet'!F24 -> 0 | J91: Naturel | M91: ='Décompo Projet'!M24 -> 0 | O91: =VLOOKUP(M91,'Puissance unitaire'!$D$2:$L$128,2,FALSE)*I91 ->  | P91: =VLOOKUP(M91,'Puissance unitaire'!$D$2:$L$128,3,FALSE) -> 
A92: ='Décompo Projet'!B25 -> MFVP 19 | B92: ='Décompo Projet'!C25 -> 0 | D92: ='Décompo Projet'!AM25 ->  | E92: 0 / +2 °C | F92: =VLOOKUP(M92,'Puissance unitaire'!$D$2:$H$128,5,FALSE) ->  | G92: =VLOOKUP(M92,'Puissance unitaire'!$D$2:$L$128,4,FALSE) ->  | H92: =F92+G92 ->  | I92: ='Décompo Projet'!F25 -> 0 | J92: Naturel | M92: ='Décompo Projet'!M25 -> 0 | N92: =O92/I92 ->  | O92: =VLOOKUP(M92,'Puissance unitaire'!$D$2:$L$128,2,FALSE)*I92 ->  | P92: =VLOOKUP(M92,'Puissance unitaire'!$D$2:$L$128,3,FALSE) -> 
A93: ='Décompo Projet'!B26 -> MFVP 20 | B93: ='Décompo Projet'!C26 -> 0 | D93: ='Décompo Projet'!AM26 ->  | E93: 0 / +2 °C | F93: =VLOOKUP(M93,'Puissance unitaire'!$D$2:$H$128,5,FALSE) ->  | G93: =VLOOKUP(M93,'Puissance unitaire'!$D$2:$L$128,4,FALSE) ->  | H93: =F93+G93 ->  | I93: ='Décompo Projet'!F26 -> 0 | J93: Naturel | M93: ='Décompo Projet'!M26 -> 0 | N93: =O93/I93 ->  | O93: =VLOOKUP(M93,'Puissance unitaire'!$D$2:$L$128,2,FALSE)*I93 ->  | P93: =VLOOKUP(M93,'Puissance unitaire'!$D$2:$L$128,3,FALSE) -> 
B94: TOTAUX LINÉAIRE POSITIF | D94: =SUM(D74:D93) ->  | F94: =MIN(F74:F93) ->  | H94: =MIN(H74:H93) ->  | I94: =SUM(I74:I93) -> 0 | N94: =AVERAGE(N74:N93) ->  | O94: =SUMIF(O74:O93,"<>#N/A",O74:O93) -> 0 | Q94: =SUMIF(Q74:Q93,"<>#N/A",Q74:Q93) -> 0
B95: NÉGATIF
A96: ='Décompo Projet'!B29 -> MFVN 01 | B96: ='Décompo Projet'!C29 -> 0 | D96: ='Décompo Projet'!AM29 ->  | E96: -25/-23°C | F96: =VLOOKUP(M96,'Puissance unitaire'!$D$2:$H$128,5,FALSE) ->  | G96: =VLOOKUP(M96,'Puissance unitaire'!$D$2:$L$128,4,FALSE) ->  | H96: =+F96+G96 ->  | I96: ='Décompo Projet'!G29 -> 0.14 | J96: Electrique | M96: ='Décompo Projet'!M29 -> 0 | N96: =O96/I96 ->  | O96: =VLOOKUP(M96,'Puissance unitaire'!$D$2:$L$128,2,FALSE)*I96 ->  | P96: =VLOOKUP(M96,'Puissance unitaire'!$D$2:$L$128,3,FALSE) ->  | Q96: =P96*O96 -> 
A97: ='Décompo Projet'!B30 -> MFVN 02 | B97: ='Décompo Projet'!C30 -> 0 | D97: ='Décompo Projet'!AM30 ->  | E97: -25/-23°C | F97: =VLOOKUP(M97,'Puissance unitaire'!$D$2:$H$128,5,FALSE) ->  | G97: =VLOOKUP(M97,'Puissance unitaire'!$D$2:$L$128,4,FALSE) ->  | I97: ='Décompo Projet'!G30 -> 0.14 | J97: Electrique | M97: ='Décompo Projet'!M30 -> 0 | O97: =VLOOKUP(M97,'Puissance unitaire'!$D$2:$L$128,2,FALSE)*I97 ->  | P97: =VLOOKUP(M97,'Puissance unitaire'!$D$2:$L$128,3,FALSE) -> 
A98: ='Décompo Projet'!B31 -> MFVN 03 | B98: ='Décompo Projet'!C31 -> 0 | D98: ='Décompo Projet'!AM31 ->  | E98: -25/-23°C | F98: =VLOOKUP(M98,'Puissance unitaire'!$D$2:$H$128,5,FALSE) ->  | G98: =VLOOKUP(M98,'Puissance unitaire'!$D$2:$L$128,4,FALSE) ->  | I98: ='Décompo Projet'!G31 -> 0.14 | J98: Electrique | M98: ='Décompo Projet'!M31 -> 0 | O98: =VLOOKUP(M98,'Puissance unitaire'!$D$2:$L$128,2,FALSE)*I98 ->  | P98: =VLOOKUP(M98,'Puissance unitaire'!$D$2:$L$128,3,FALSE) -> 
A99: ='Décompo Projet'!B32 -> MFVN 04 | B99: ='Décompo Projet'!C32 -> 0 | D99: ='Décompo Projet'!AM32 ->  | E99: -25/-23°C | F99: =VLOOKUP(M99,'Puissance unitaire'!$D$2:$H$128,5,FALSE) ->  | G99: =VLOOKUP(M99,'Puissance unitaire'!$D$2:$L$128,4,FALSE) ->  | I99: ='Décompo Projet'!G32 -> 0.14 | J99: Electrique | M99: ='Décompo Projet'!M32 -> 0 | O99: =VLOOKUP(M99,'Puissance unitaire'!$D$2:$L$128,2,FALSE)*I99 ->  | P99: =VLOOKUP(M99,'Puissance unitaire'!$D$2:$L$128,3,FALSE) -> 
A100: ='Décompo Projet'!B33 -> MFVN 05 | B100: ='Décompo Projet'!C33 -> 0 | D100: ='Décompo Projet'!AM33 ->  | E100: -25/-23°C | F100: =VLOOKUP(M100,'Puissance unitaire'!$D$2:$H$128,5,FALSE) ->  | G100: =VLOOKUP(M100,'Puissance unitaire'!$D$2:$L$128,4,FALSE) ->  | I100: ='Décompo Projet'!G33 -> 0.14 | J100: Electrique | M100: ='Décompo Projet'!M33 -> 0 | O100: =VLOOKUP(M100,'Puissance unitaire'!$D$2:$L$128,2,FALSE)*I100 ->  | P100: =VLOOKUP(M100,'Puissance unitaire'!$D$2:$L$128,3,FALSE) -> 
A101: ='Décompo Projet'!B34 -> MFVN 06 | B101: ='Décompo Projet'!C34 -> 0 | D101: ='Décompo Projet'!AM34 ->  | E101: -25/-23°C | F101: =VLOOKUP(M101,'Puissance unitaire'!$D$2:$H$128,5,FALSE) ->  | G101: =VLOOKUP(M101,'Puissance unitaire'!$D$2:$L$128,4,FALSE) ->  | I101: ='Décompo Projet'!G34 -> 0.14 | J101: Electrique | M101: ='Décompo Projet'!M34 -> 0 | O101: =VLOOKUP(M101,'Puissance unitaire'!$D$2:$L$128,2,FALSE)*I101 ->  | P101: =VLOOKUP(M101,'Puissance unitaire'!$D$2:$L$128,3,FALSE) -> 
A102: ='Décompo Projet'!B35 -> MFVN 07 | B102: ='Décompo Projet'!C35 -> 0 | D102: ='Décompo Projet'!AM35 ->  | E102: -25/-23°C | F102: =VLOOKUP(M102,'Puissance unitaire'!$D$2:$H$128,5,FALSE) ->  | G102: =VLOOKUP(M102,'Puissance unitaire'!$D$2:$L$128,4,FALSE) ->  | I102: ='Décompo Projet'!G35 -> 0.14 | J102: Electrique | M102: ='Décompo Projet'!M35 -> 0 | O102: =VLOOKUP(M102,'Puissance unitaire'!$D$2:$L$128,2,FALSE)*I102 ->  | P102: =VLOOKUP(M102,'Puissance unitaire'!$D$2:$L$128,3,FALSE) -> 
A103: ='Décompo Projet'!B36 -> MFVN 08 | B103: ='Décompo Projet'!C36 -> 0 | D103: ='Décompo Projet'!AM36 ->  | E103: -25/-23°C | F103: =VLOOKUP(M103,'Puissance unitaire'!$D$2:$H$128,5,FALSE) ->  | G103: =VLOOKUP(M103,'Puissance unitaire'!$D$2:$L$128,4,FALSE) ->  | I103: ='Décompo Projet'!G36 -> 0.14 | J103: Electrique | M103: ='Décompo Projet'!M36 -> 0 | O103: =VLOOKUP(M103,'Puissance unitaire'!$D$2:$L$128,2,FALSE)*I103 ->  | P103: =VLOOKUP(M103,'Puissance unitaire'!$D$2:$L$128,3,FALSE) -> 
A104: ='Décompo Projet'!B37 -> MFVN 09 | B104: ='Décompo Projet'!C37 -> 0 | D104: ='Décompo Projet'!AM37 ->  | E104: -25/-23°C | F104: =VLOOKUP(M104,'Puissance unitaire'!$D$2:$H$128,5,FALSE) ->  | G104: =VLOOKUP(M104,'Puissance unitaire'!$D$2:$L$128,4,FALSE) ->  | I104: ='Décompo Projet'!G37 -> 0.14 | J104: Electrique | M104: ='Décompo Projet'!M37 -> 0 | O104: =VLOOKUP(M104,'Puissance unitaire'!$D$2:$L$128,2,FALSE)*I104 ->  | P104: =VLOOKUP(M104,'Puissance unitaire'!$D$2:$L$128,3,FALSE) -> 
A105: ='Décompo Projet'!B38 -> MFVN 10 | B105: ='Décompo Projet'!C38 -> 0 | D105: ='Décompo Projet'!AM38 ->  | E105: -25/-23°C | F105: =VLOOKUP(M105,'Puissance unitaire'!$D$2:$H$128,5,FALSE) ->  | G105: =VLOOKUP(M105,'Puissance unitaire'!$D$2:$L$128,4,FALSE) ->  | I105: ='Décompo Projet'!G38 -> 0.14 | J105: Electrique | M105: ='Décompo Projet'!M38 -> 0 | O105: =VLOOKUP(M105,'Puissance unitaire'!$D$2:$L$128,2,FALSE)*I105 ->  | P105: =VLOOKUP(M105,'Puissance unitaire'!$D$2:$L$128,3,FALSE) -> 
A106: ='Décompo Projet'!B39 -> MFVN 11 | B106: ='Décompo Projet'!C39 -> 0 | D106: ='Décompo Projet'!AM39 ->  | E106: -25/-23°C | F106: =VLOOKUP(M106,'Puissance unitaire'!$D$2:$H$128,5,FALSE) ->  | G106: =VLOOKUP(M106,'Puissance unitaire'!$D$2:$L$128,4,FALSE) ->  | I106: ='Décompo Projet'!G39 -> 0.14 | J106: Electrique | M106: ='Décompo Projet'!M39 -> 0 | O106: =VLOOKUP(M106,'Puissance unitaire'!$D$2:$L$128,2,FALSE)*I106 ->  | P106: =VLOOKUP(M106,'Puissance unitaire'!$D$2:$L$128,3,FALSE) -> 
A107: ='Décompo Projet'!B40 -> MFVN 12 | B107: ='Décompo Projet'!C40 -> 0 | D107: ='Décompo Projet'!AM40 ->  | E107: -25/-23°C | F107: =VLOOKUP(M107,'Puissance unitaire'!$D$2:$H$128,5,FALSE) ->  | G107: =VLOOKUP(M107,'Puissance unitaire'!$D$2:$L$128,4,FALSE) ->  | I107: ='Décompo Projet'!G40 -> 0.14 | J107: Electrique | M107: ='Décompo Projet'!M40 -> 0 | O107: =VLOOKUP(M107,'Puissance unitaire'!$D$2:$L$128,2,FALSE)*I107 ->  | P107: =VLOOKUP(M107,'Puissance unitaire'!$D$2:$L$128,3,FALSE) -> 
A108: ='Décompo Projet'!B41 -> MFVN 13 | B108: ='Décompo Projet'!C41 -> 0 | D108: ='Décompo Projet'!AM41 ->  | E108: -25/-23°C | F108: =VLOOKUP(M108,'Puissance unitaire'!$D$2:$H$128,5,FALSE) ->  | G108: =VLOOKUP(M108,'Puissance unitaire'!$D$2:$L$128,4,FALSE) ->  | I108: ='Décompo Projet'!G41 -> 0.14 | J108: Electrique | M108: ='Décompo Projet'!M41 -> 0 | O108: =VLOOKUP(M108,'Puissance unitaire'!$D$2:$L$128,2,FALSE)*I108 ->  | P108: =VLOOKUP(M108,'Puissance unitaire'!$D$2:$L$128,3,FALSE) -> 
A109: ='Décompo Projet'!B42 -> MFVN 14 | B109: ='Décompo Projet'!C42 -> 0 | D109: ='Décompo Projet'!AM42 ->  | E109: -25/-23°C | F109: =VLOOKUP(M109,'Puissance unitaire'!$D$2:$H$128,5,FALSE) ->  | G109: =VLOOKUP(M109,'Puissance unitaire'!$D$2:$L$128,4,FALSE) ->  | I109: ='Décompo Projet'!G42 -> 0.14 | J109: Electrique | M109: ='Décompo Projet'!M42 -> 0 | O109: =VLOOKUP(M109,'Puissance unitaire'!$D$2:$L$128,2,FALSE)*I109 ->  | P109: =VLOOKUP(M109,'Puissance unitaire'!$D$2:$L$128,3,FALSE) -> 
A110: ='Décompo Projet'!B43 -> MFVN 15 | B110: ='Décompo Projet'!C43 -> 0 | D110: ='Décompo Projet'!AM43 ->  | E110: -25/-23°C | F110: =VLOOKUP(M110,'Puissance unitaire'!$D$2:$H$128,5,FALSE) ->  | G110: =VLOOKUP(M110,'Puissance unitaire'!$D$2:$L$128,4,FALSE) ->  | I110: ='Décompo Projet'!G43 -> 0.14 | J110: Electrique | M110: ='Décompo Projet'!M43 -> 0 | O110: =VLOOKUP(M110,'Puissance unitaire'!$D$2:$L$128,2,FALSE)*I110 ->  | P110: =VLOOKUP(M110,'Puissance unitaire'!$D$2:$L$128,3,FALSE) -> 
A111: ='Décompo Projet'!B44 -> MFVN 16 | B111: ='Décompo Projet'!C44 -> 0 | D111: ='Décompo Projet'!AM44 ->  | E111: -25/-23°C | F111: =VLOOKUP(M111,'Puissance unitaire'!$D$2:$H$128,5,FALSE) ->  | G111: =VLOOKUP(M111,'Puissance unitaire'!$D$2:$L$128,4,FALSE) ->  | I111: ='Décompo Projet'!G44 -> 0.14 | J111: Electrique | M111: ='Décompo Projet'!M44 -> 0 | O111: =VLOOKUP(M111,'Puissance unitaire'!$D$2:$L$128,2,FALSE)*I111 ->  | P111: =VLOOKUP(M111,'Puissance unitaire'!$D$2:$L$128,3,FALSE) -> 
A112: ='Décompo Projet'!B45 -> MFVN 17 | B112: ='Décompo Projet'!C45 -> 0 | D112: ='Décompo Projet'!AM45 ->  | E112: -25/-23°C | F112: =VLOOKUP(M112,'Puissance unitaire'!$D$2:$H$128,5,FALSE) ->  | G112: =VLOOKUP(M112,'Puissance unitaire'!$D$2:$L$128,4,FALSE) ->  | H112: =+F112+G112 ->  | I112: ='Décompo Projet'!G45 -> 0.14 | J112: Electrique | M112: ='Décompo Projet'!M45 -> 0 | O112: =VLOOKUP(M112,'Puissance unitaire'!$D$2:$L$128,2,FALSE)*I112 ->  | P112: =VLOOKUP(M112,'Puissance unitaire'!$D$2:$L$128,3,FALSE) -> 
A113: ='Décompo Projet'!B46 -> MFVN 18 | B113: ='Décompo Projet'!C46 -> 0 | D113: ='Décompo Projet'!AM46 ->  | E113: -25/-23°C | F113: =VLOOKUP(M113,'Puissance unitaire'!$D$2:$H$128,5,FALSE) ->  | G113: =VLOOKUP(M113,'Puissance unitaire'!$D$2:$L$128,4,FALSE) ->  | H113: =+F113+G113 ->  | I113: ='Décompo Projet'!G46 -> 0.14 | J113: Electrique | M113: ='Décompo Projet'!M46 -> 0 | O113: =VLOOKUP(M113,'Puissance unitaire'!$D$2:$L$128,2,FALSE)*I113 ->  | P113: =VLOOKUP(M113,'Puissance unitaire'!$D$2:$L$128,3,FALSE) -> 
A114: ='Décompo Projet'!B47 -> MFVN 19 | B114: ='Décompo Projet'!C47 -> 0 | D114: ='Décompo Projet'!AM47 ->  | E114: -25/-23°C | F114: =VLOOKUP(M114,'Puissance unitaire'!$D$2:$H$128,5,FALSE) ->  | G114: =VLOOKUP(M114,'Puissance unitaire'!$D$2:$L$128,4,FALSE) ->  | H114: =+F114+G114 ->  | I114: ='Décompo Projet'!G47 -> 0.14 | J114: Electrique | M114: ='Décompo Projet'!M47 -> 0 | O114: =VLOOKUP(M114,'Puissance unitaire'!$D$2:$L$128,2,FALSE)*I114 ->  | P114: =VLOOKUP(M114,'Puissance unitaire'!$D$2:$L$128,3,FALSE) -> 
A115: ='Décompo Projet'!B48 -> MFVN 20 | B115: ='Décompo Projet'!C48 -> 0 | D115: ='Décompo Projet'!AM48 ->  | E115: -25/-23°C | F115: =VLOOKUP(M115,'Puissance unitaire'!$D$2:$H$128,5,FALSE) ->  | G115: =VLOOKUP(M115,'Puissance unitaire'!$D$2:$L$128,4,FALSE) ->  | H115: =+F115+G115 ->  | I115: ='Décompo Projet'!G48 -> 0.14 | J115: Electrique | M115: ='Décompo Projet'!M48 -> 0 | N115: =O115/I115 ->  | O115: =VLOOKUP(M115,'Puissance unitaire'!$D$2:$L$128,2,FALSE)*I115 ->  | P115: =VLOOKUP(M115,'Puissance unitaire'!$D$2:$L$128,3,FALSE) -> 
B116: TOTAUX LINEAIRE NÉGATIF | D116: =SUM(D112:D115) ->  | F116: =MIN(F112:F115) ->  | H116: =MIN(H112:H115) ->  | I116: =SUM(I112:I115) -> 0.56 | N116: =AVERAGE(N112:N115) ->  | O116: =SUMIF(O96:O115,"<>#N/A",O96:O115) -> 0 | P116: =AVERAGE(P112:P115) ->  | Q116: =SUM(Q112:Q115) -> 
E117: Ce total de sonde ne tient pas compte des sondes de régulation au soufflage des meuble
O147: 1.2 | P147: 305
O148: 4.8 | P148: =P147*O148/O147 -> 1220

Sheet Décompo Projet (hidden)
E2: OUI
E3: NON
E4: PARTIEL
B5: REPERE | C5: MEUBLES FRIGORIFIQUES DE VENTE CONFIGURATION FUTURE | D5: MEUBLES NEUFS | E5: MEUBLES RÉCUPÈRÉS | F5: Longueur intérieure linéaire | G5: Longueur hors tout du linéaire | H5: Largeur au sol de meuble | I5: Hauteur de meuble | J5: Cuve | K5: Hauteur de façade | L5: Étagères | M5: Modèle meuble | N5: Nombre de plans de chargement (bac inclus) | O5: Longueur développée | P5: 63 | Q5: 94 | R5: 125 | S5: 187.5 | T5: 200 | U5: 234 | V5: 250 | W5: 312 | X5: 375 | Y5: 390 | Z5: AO 45 | AA5: A0 90 | AB5: AF 90 | AC5: TG 125 | AD5: TG 140 | AE5: TG 156 | AF5: TG 187.5 | AG5: TG 200 | AH5: TG 220 | AI5: TG 230 | AJ5: Séparation | AK5: Joue Gauche Miroir / Vitrée | AL5: Joue Droite Miroir / Vitrée | AM5: TOTAL NOMBRE DE MODULES | AN5: MODULES NEUFS | AO5: MODULES RECUPERES | AP5: SORTIE DE TUBES | AQ5: DÉGIVRAGE | AR5: SUPPORT PORTE ETIQUETTE+ PORTE ETIQUETTE | AS5: ARRET PRODUITS / CLAYETTES DE CUVE | AT5: PLATEAUX D'EXPOSITION | AU5: SOUBASSEMENT PLEIN | AV5: SOUBASSEMENT A PIED
C6: POSITIF | D6: =SUM(P6:X6)+SUM(Y6:AA6) -> 0
B7: MFVP 01 | E7: NON | G7: =F7+0.14 -> 0.14 | H7: 0.9 | I7: 2.05 | N7: 2 | O7: =F7*N7 -> 0 | R7: =VLOOKUP($F7,'Decompo DB'!$A$3:$G$70,4,FALSE) ->  | S7: =VLOOKUP($F7,'Decompo DB'!$A$3:$G$70,5,FALSE) ->  | V7: =VLOOKUP($F7,'Decompo DB'!$A$3:$G$70,6,FALSE) ->  | X7: =VLOOKUP($F7,'Decompo DB'!$A$3:$G$70,7,FALSE) ->  | AM7: =SUM(P7:AI7) ->  | AN7: =IF(D7="OUI",AM7,0.000001) -> 1e-06 | AO7: =IF(D7="OUI",0.0000001,AM7-AN7) -> 
B8: MFVP 02 | E8: NON | G8: =F8+0.14 -> 0.14 | H8: 0.9 | I8: 2.05 | N8: 2 | O8: =F8*N8 -> 0 | R8: =VLOOKUP($F8,'Decompo DB'!$A$3:$G$70,4,FALSE) ->  | S8: =VLOOKUP($F8,'Decompo DB'!$A$3:$G$70,5,FALSE) ->  | V8: =VLOOKUP($F8,'Decompo DB'!$A$3:$G$70,6,FALSE) ->  | X8: =VLOOKUP($F8,'Decompo DB'!$A$3:$G$70,7,FALSE) ->  | AM8: =SUM(P8:AI8) ->  | AN8: =IF(D8="OUI",AM8,0.000001) -> 1e-06 | AO8: =IF(D8="OUI",0.0000001,AM8-AN8) -> 
B9: MFVP 03 | G9: =F9+0.14 -> 0.14 | H9: 0.9 | I9: 2.05 | N9: 2 | O9: 0 | R9: =VLOOKUP($F9,'Decompo DB'!$A$3:$G$70,4,FALSE) ->  | S9: =VLOOKUP($F9,'Decompo DB'!$A$3:$G$70,5,FALSE) ->  | V9: =VLOOKUP($F9,'Decompo DB'!$A$3:$G$70,6,FALSE) ->  | X9: =VLOOKUP($F9,'Decompo DB'!$A$3:$G$70,7,FALSE) ->  | AN9: 1e-06
B10: MFVP 04 | G10: 0.14 | H10: 0.9 | I10: 2.05 | N10: 2 | O10: 0 | R10: =VLOOKUP($F10,'Decompo DB'!$A$3:$G$70,4,FALSE) ->  | S10: =VLOOKUP($F10,'Decompo DB'!$A$3:$G$70,5,FALSE) ->  | V10: =VLOOKUP($F10,'Decompo DB'!$A$3:$G$70,6,FALSE) ->  | X10: =VLOOKUP($F10,'Decompo DB'!$A$3:$G$70,7,FALSE) ->  | AN10: 1e-06
B11: MFVP 05 | G11: 0.14 | H11: 0.9 | I11: 2.05 | N11: 2 | O11: 0 | R11: =VLOOKUP($F11,'Decompo DB'!$A$3:$G$70,4,FALSE) ->  | S11: =VLOOKUP($F11,'Decompo DB'!$A$3:$G$70,5,FALSE) ->  | V11: =VLOOKUP($F11,'Decompo DB'!$A$3:$G$70,6,FALSE) ->  | X11: =VLOOKUP($F11,'Decompo DB'!$A$3:$G$70,7,FALSE) ->  | AN11: 1e-06
B12: MFVP 06 | G12: 0.14 | H12: 0.9 | I12: 2.05 | N12: 2 | O12: 0 | R12: =VLOOKUP($F12,'Decompo DB'!$A$3:$G$70,4,FALSE) ->  | S12: =VLOOKUP($F12,'Decompo DB'!$A$3:$G$70,5,FALSE) ->  | V12: =VLOOKUP($F12,'Decompo DB'!$A$3:$G$70,6,FALSE) ->  | X12: =VLOOKUP($F12,'Decompo DB'!$A$3:$G$70,7,FALSE) ->  | AN12: 1e-06
B13: MFVP 07 | G13: 0.14 | H13: 0.9 | I13: 2.05 | N13: 2 | O13: 0 | R13: =VLOOKUP($F13,'Decompo DB'!$A$3:$G$70,4,FALSE) ->  | S13: =VLOOKUP($F13,'Decompo DB'!$A$3:$G$70,5,FALSE) ->  | V13: =VLOOKUP($F13,'Decompo DB'!$A$3:$G$70,6,FALSE) ->  | X13: =VLOOKUP($F13,'Decompo DB'!$A$3:$G$70,7,FALSE) ->  | AN13: 1e-06
B14: MFVP 08 | G14: 0.14 | H14: 0.9 | I14: 2.05 | N14: 2 | O14: 0 | R14: =VLOOKUP($F14,'Decompo DB'!$A$3:$G$70,4,FALSE) ->  | S14: =VLOOKUP($F14,'Decompo DB'!$A$3:$G$70,5,FALSE) ->  | V14: =VLOOKUP($F14,'Decompo DB'!$A$3:$G$70,6,FALSE) ->  | X14: =VLOOKUP($F14,'Decompo DB'!$A$3:$G$70,7,FALSE) ->  | AN14: 1e-06
B15: MFVP 09 | G15: 0.14 | H15: 0.9 | I15: 2.05 | N15: 2 | O15: 0 | R15: =VLOOKUP($F15,'Decompo DB'!$A$3:$G$70,4,FALSE) ->  | S15: =VLOOKUP($F15,'Decompo DB'!$A$3:$G$70,5,FALSE) ->  | V15: =VLOOKUP($F15,'Decompo DB'!$A$3:$G$70,6,FALSE) ->  | X15: =VLOOKUP($F15,'Decompo DB'!$A$3:$G$70,7,FALSE) ->  | AN15: 1e-06
B16: MFVP 10 | G16: 0.14 | H16: 0.9 | I16: 2.05 | N16: 2 | O16: 0 | R16: =VLOOKUP($F16,'Decompo DB'!$A$3:$G$70,4,FALSE) ->  | S16: =VLOOKUP($F16,'Decompo DB'!$A$3:$G$70,5,FALSE) ->  | V16: =VLOOKUP($F16,'Decompo DB'!$A$3:$G$70,6,FALSE) ->  | X16: =VLOOKUP($F16,'Decompo DB'!$A$3:$G$70,7,FALSE) ->  | AN16: 1e-06
B17: MFVP 11 | G17: 0.14 | H17: 0.9 | I17: 2.05 | N17: 2 | O17: 0 | R17: =VLOOKUP($F17,'Decompo DB'!$A$3:$G$70,4,FALSE) ->  | S17: =VLOOKUP($F17,'Decompo DB'!$A$3:$G$70,5,FALSE) ->  | V17: =VLOOKUP($F17,'Decompo DB'!$A$3:$G$70,6,FALSE) ->  | X17: =VLOOKUP($F17,'Decompo DB'!$A$3:$G$70,7,FALSE) ->  | AN17: 1e-06
B18: MFVP 12 | G18: 0.14 | H18: 0.9 | I18: 2.05 | N18: 2 | O18: 0 | R18: =VLOOKUP($F18,'Decompo DB'!$A$3:$G$70,4,FALSE) ->  | S18: =VLOOKUP($F18,'Decompo DB'!$A$3:$G$70,5,FALSE) ->  | V18: =VLOOKUP($F18,'Decompo DB'!$A$3:$G$70,6,FALSE) ->  | X18: =VLOOKUP($F18,'Decompo DB'!$A$3:$G$70,7,FALSE) ->  | AN18: 1e-06
B19: MFVP 13 | G19: 0.14 | H19: 0.9 | I19: 2.05 | N19: 2 | O19: 0 | R19: =VLOOKUP($F19,'Decompo DB'!$A$3:$G$70,4,FALSE) ->  | S19: =VLOOKUP($F19,'Decompo DB'!$A$3:$G$70,5,FALSE) ->  | V19: =VLOOKUP($F19,'Decompo DB'!$A$3:$G$70,6,FALSE) ->  | X19: =VLOOKUP($F19,'Decompo DB'!$A$3:$G$70,7,FALSE) ->  | AN19: 1e-06
B20: MFVP 14 | G20: 0.14 | H20: 0.9 | I20: 2.05 | N20: 2 | O20: 0 | R20: =VLOOKUP($F20,'Decompo DB'!$A$3:$G$70,4,FALSE) ->  | S20: =VLOOKUP($F20,'Decompo DB'!$A$3:$G$70,5,FALSE) ->  | V20: =VLOOKUP($F20,'Decompo DB'!$A$3:$G$70,6,FALSE) ->  | X20: =VLOOKUP($F20,'Decompo DB'!$A$3:$G$70,7,FALSE) ->  | AN20: 1e-06
B21: MFVP 15 | G21: 0.14 | H21: 0.9 | I21: 2.05 | N21: 2 | O21: 0 | R21: =VLOOKUP($F21,'Decompo DB'!$A$3:$G$70,4,FALSE) ->  | S21: =VLOOKUP($F21,'Decompo DB'!$A$3:$G$70,5,FALSE) ->  | V21: =VLOOKUP($F21,'Decompo DB'!$A$3:$G$70,6,FALSE) ->  | X21: =VLOOKUP($F21,'Decompo DB'!$A$3:$G$70,7,FALSE) ->  | AN21: 1e-06
B22: MFVP 16 | G22: 0.14 | H22: 0.9 | I22: 2.05 | N22: 2 | O22: 0 | R22: =VLOOKUP($F22,'Decompo DB'!$A$3:$G$70,4,FALSE) ->  | S22: =VLOOKUP($F22,'Decompo DB'!$A$3:$G$70,5,FALSE) ->  | V22: =VLOOKUP($F22,'Decompo DB'!$A$3:$G$70,6,FALSE) ->  | X22: =VLOOKUP($F22,'Decompo DB'!$A$3:$G$70,7,FALSE) ->  | AN22: 1e-06
B23: MFVP 17 | G23: 0.14 | H23: 0.9 | I23: 2.05 | N23: 2 | O23: 0 | R23: =VLOOKUP($F23,'Decompo DB'!$A$3:$G$70,4,FALSE) ->  | S23: =VLOOKUP($F23,'Decompo DB'!$A$3:$G$70,5,FALSE) ->  | V23: =VLOOKUP($F23,'Decompo DB'!$A$3:$G$70,6,FALSE) ->  | X23: =VLOOKUP($F23,'Decompo DB'!$A$3:$G$70,7,FALSE) ->  | AN23: 1e-06
B24: MFVP 18 | G24: 0.14 | H24: 0.9 | I24: 2.05 | N24: 2 | O24: 0 | R24: =VLOOKUP($F24,'Decompo DB'!$A$3:$G$70,4,FALSE) ->  | S24: =VLOOKUP($F24,'Decompo DB'!$A$3:$G$70,5,FALSE) ->  | V24: =VLOOKUP($F24,'Decompo DB'!$A$3:$G$70,6,FALSE) ->  | X24: =VLOOKUP($F24,'Decompo DB'!$A$3:$G$70,7,FALSE) ->  | AN24: 1e-06
B25: MFVP 19 | E25: NON | G25: 0.14 | H25: 0.9 | I25: 2.05 | N25: 2 | O25: 0 | R25: =VLOOKUP($F25,'Decompo DB'!$A$3:$G$70,4,FALSE) ->  | S25: =VLOOKUP($F25,'Decompo DB'!$A$3:$G$70,5,FALSE) ->  | V25: =VLOOKUP($F25,'Decompo DB'!$A$3:$G$70,6,FALSE) ->  | X25: =VLOOKUP($F25,'Decompo DB'!$A$3:$G$70,7,FALSE) ->  | AN25: 1e-06
B26: MFVP 20 | E26: NON | G26: 0.14 | H26: 0.9 | I26: 2.05 | N26: 2 | O26: 0 | R26: =VLOOKUP($F26,'Decompo DB'!$A$3:$G$70,4,FALSE) ->  | S26: =VLOOKUP($F26,'Decompo DB'!$A$3:$G$70,5,FALSE) ->  | V26: =VLOOKUP($F26,'Decompo DB'!$A$3:$G$70,6,FALSE) ->  | X26: =VLOOKUP($F26,'Decompo DB'!$A$3:$G$70,7,FALSE) ->  | AN26: 1e-06
C27: TOTAUX LINÉAIRE POSITIF | F27: =SUM(F7:F26) -> 0 | G27: =SUM(G7:G26) -> 2.8 | I27: =SUM(I7:I26) -> 41 | O27: =SUM(O7:O26) -> 0 | P27: 0 | Q27: 0 | T27: 0 | V27: =SUM(V7:V26) ->  | W27: 0 | Y27: 0 | Z27: 0 | AA27: 0 | AB27: 0 | AC27: 0 | AD27: 0 | AE27: 0 | AF27: 0 | AG27: 0 | AH27: 0 | AI27: 0 | AJ27: 0 | AK27: 0 | AL27: 0 | AN27: 2e-05
C28: NÉGATIF
B29: MFVN 01 | E29: NON | G29: =F29+0.14 -> 0.14 | H29: 1.1 | I29: 2.1 | N29: 2 | O29: =F29*N29 -> 0 | S29: =VLOOKUP($F29,'Decompo DB'!$A$3:$G$70,5,FALSE) ->  | V29: =VLOOKUP($F29,'Decompo DB'!$A$3:$G$70,6,FALSE) ->  | X29: =VLOOKUP($F29,'Decompo DB'!$A$3:$G$70,7,FALSE) ->  | AM29: =+SUM(P29:AI29) ->  | AN29: =IF(D29="OUI",AM29,0.000001) -> 1e-06 | AO29: =IF(D29="OUI",0.0000001,AM29-AN29) -> 
B30: MFVN 02 | E30: NON | G30: =F30+0.14 -> 0.14 | H30: 1.1 | I30: 2.1 | N30: 2 | O30: =F30*N30 -> 0 | S30: =VLOOKUP($F30,'Decompo DB'!$A$3:$G$70,5,FALSE) ->  | V30: =VLOOKUP($F30,'Decompo DB'!$A$3:$G$70,6,FALSE) ->  | X30: =VLOOKUP($F30,'Decompo DB'!$A$3:$G$70,7,FALSE) ->  | AN30: 1e-06
B31: MFVN 03 | E31: NON | G31: 0.14 | H31: 1.1 | I31: 2.1 | N31: 2 | O31: 0 | S31: =VLOOKUP($F31,'Decompo DB'!$A$3:$G$70,5,FALSE) ->  | V31: =VLOOKUP($F31,'Decompo DB'!$A$3:$G$70,6,FALSE) ->  | X31: =VLOOKUP($F31,'Decompo DB'!$A$3:$G$70,7,FALSE) ->  | AN31: 1e-06
B32: MFVN 04 | E32: NON | G32: 0.14 | H32: 1.1 | I32: 2.1 | N32: 2 | O32: 0 | S32: =VLOOKUP($F32,'Decompo DB'!$A$3:$G$70,5,FALSE) ->  | V32: =VLOOKUP($F32,'Decompo DB'!$A$3:$G$70,6,FALSE) ->  | X32: =VLOOKUP($F32,'Decompo DB'!$A$3:$G$70,7,FALSE) ->  | AN32: 1e-06
B33: MFVN 05 | E33: NON | G33: 0.14 | H33: 1.1 | I33: 2.1 | N33: 2 | O33: 0 | S33: =VLOOKUP($F33,'Decompo DB'!$A$3:$G$70,5,FALSE) ->  | V33: =VLOOKUP($F33,'Decompo DB'!$A$3:$G$70,6,FALSE) ->  | X33: =VLOOKUP($F33,'Decompo DB'!$A$3:$G$70,7,FALSE) ->  | AN33: 1e-06
B34: MFVN 06 | E34: NON | G34: 0.14 | H34: 1.1 | I34: 2.1 | N34: 2 | O34: 0 | S34: =VLOOKUP($F34,'Decompo DB'!$A$3:$G$70,5,FALSE) ->  | V34: =VLOOKUP($F34,'Decompo DB'!$A$3:$G$70,6,FALSE) ->  | X34: =VLOOKUP($F34,'Decompo DB'!$A$3:$G$70,7,FALSE) ->  | AN34: 1e-06
B35: MFVN 07 | E35: NON | G35: 0.14 | H35: 1.1 | I35: 2.1 | N35: 2 | O35: 0 | S35: =VLOOKUP($F35,'Decompo DB'!$A$3:$G$70,5,FALSE) ->  | V35: =VLOOKUP($F35,'Decompo DB'!$A$3:$G$70,6,FALSE) ->  | X35: =VLOOKUP($F35,'Decompo DB'!$A$3:$G$70,7,FALSE) ->  | AN35: 1e-06
B36: MFVN 08 | E36: NON | G36: 0.14 | H36: 1.1 | I36: 2.1 | N36: 2 | O36: 0 | S36: =VLOOKUP($F36,'Decompo DB'!$A$3:$G$70,5,FALSE) ->  | V36: =VLOOKUP($F36,'Decompo DB'!$A$3:$G$70,6,FALSE) ->  | X36: =VLOOKUP($F36,'Decompo DB'!$A$3:$G$70,7,FALSE) ->  | AN36: 1e-06
B37: MFVN 09 | E37: NON | G37: 0.14 | H37: 1.1 | I37: 2.1 | N37: 2 | O37: 0 | S37: =VLOOKUP($F37,'Decompo DB'!$A$3:$G$70,5,FALSE) ->  | V37: =VLOOKUP($F37,'Decompo DB'!$A$3:$G$70,6,FALSE) ->  | X37: =VLOOKUP($F37,'Decompo DB'!$A$3:$G$70,7,FALSE) ->  | AN37: 1e-06
B38: MFVN 10 | E38: NON | G38: 0.14 | H38: 1.1 | I38: 2.1 | N38: 2 | O38: 0 | S38: =VLOOKUP($F38,'Decompo DB'!$A$3:$G$70,5,FALSE) ->  | V38: =VLOOKUP($F38,'Decompo DB'!$A$3:$G$70,6,FALSE) ->  | X38: =VLOOKUP($F38,'Decompo DB'!$A$3:$G$70,7,FALSE) ->  | AN38: 1e-06
B39: MFVN 11 | E39: NON | G39: 0.14 | H39: 1.1 | I39: 2.1 | N39: 2 | O39: 0 | S39: =VLOOKUP($F39,'Decompo DB'!$A$3:$G$70,5,FALSE) ->  | V39: =VLOOKUP($F39,'Decompo DB'!$A$3:$G$70,6,FALSE) ->  | X39: =VLOOKUP($F39,'Decompo DB'!$A$3:$G$70,7,FALSE) ->  | AN39: 1e-06
B40: MFVN 12 | E40: NON | G40: 0.14 | H40: 1.1 | I40: 2.1 | N40: 2 | O40: 0 | S40: =VLOOKUP($F40,'Decompo DB'!$A$3:$G$70,5,FALSE) ->  | V40: =VLOOKUP($F40,'Decompo DB'!$A$3:$G$70,6,FALSE) ->  | X40: =VLOOKUP($F40,'Decompo DB'!$A$3:$G$70,7,FALSE) ->  | AN40: 1e-06
B41: MFVN 13 | E41: NON | G41: 0.14 | H41: 1.1 | I41: 2.1 | N41: 2 | O41: 0 | S41: =VLOOKUP($F41,'Decompo DB'!$A$3:$G$70,5,FALSE) ->  | V41: =VLOOKUP($F41,'Decompo DB'!$A$3:$G$70,6,FALSE) ->  | X41: =VLOOKUP($F41,'Decompo DB'!$A$3:$G$70,7,FALSE) ->  | AN41: 1e-06
B42: MFVN 14 | E42: NON | G42: 0.14 | H42: 1.1 | I42: 2.1 | N42: 2 | O42: 0 | S42: =VLOOKUP($F42,'Decompo DB'!$A$3:$G$70,5,FALSE) ->  | V42: =VLOOKUP($F42,'Decompo DB'!$A$3:$G$70,6,FALSE) ->  | X42: =VLOOKUP($F42,'Decompo DB'!$A$3:$G$70,7,FALSE) ->  | AN42: 1e-06
B43: MFVN 15 | E43: NON | G43: 0.14 | H43: 1.1 | I43: 2.1 | N43: 2 | O43: 0 | S43: =VLOOKUP($F43,'Decompo DB'!$A$3:$G$70,5,FALSE) ->  | V43: =VLOOKUP($F43,'Decompo DB'!$A$3:$G$70,6,FALSE) ->  | X43: =VLOOKUP($F43,'Decompo DB'!$A$3:$G$70,7,FALSE) ->  | AN43: 1e-06
B44: MFVN 16 | E44: NON | G44: 0.14 | H44: 1.1 | I44: 2.1 | N44: 2 | O44: 0 | S44: =VLOOKUP($F44,'Decompo DB'!$A$3:$G$70,5,FALSE) ->  | V44: =VLOOKUP($F44,'Decompo DB'!$A$3:$G$70,6,FALSE) ->  | X44: =VLOOKUP($F44,'Decompo DB'!$A$3:$G$70,7,FALSE) ->  | AN44: 1e-06
B45: MFVN 17 | E45: NON | G45: 0.14 | H45: 1.1 | I45: 2.1 | N45: 2 | O45: 0 | S45: =VLOOKUP($F45,'Decompo DB'!$A$3:$G$70,5,FALSE) ->  | V45: =VLOOKUP($F45,'Decompo DB'!$A$3:$G$70,6,FALSE) ->  | X45: =VLOOKUP($F45,'Decompo DB'!$A$3:$G$70,7,FALSE) ->  | AJ45: 0 | AM45: =+SUM(P45:AI45) ->  | AN45: 1e-06 | AO45: =IF(D45="OUI",0.0000001,AM45-AN45) -> 
B46: MFVN 18 | E46: NON | G46: 0.14 | H46: 1.1 | I46: 2.1 | N46: 2 | O46: 0 | S46: =VLOOKUP($F46,'Decompo DB'!$A$3:$G$70,5,FALSE) ->  | V46: =VLOOKUP($F46,'Decompo DB'!$A$3:$G$70,6,FALSE) ->  | X46: =VLOOKUP($F46,'Decompo DB'!$A$3:$G$70,7,FALSE) ->  | AJ46: 0 | AM46: =+SUM(P46:AI46) ->  | AN46: 1e-06 | AO46: =IF(D46="OUI",0.0000001,AM46-AN46) -> 
B47: MFVN 19 | D47: oui | E47: NON | G47: 0.14 | H47: 1.1 | I47: 2.1 | N47: 2 | O47: 0 | S47: =VLOOKUP($F47,'Decompo DB'!$A$3:$G$70,5,FALSE) ->  | V47: =VLOOKUP($F47,'Decompo DB'!$A$3:$G$70,6,FALSE) ->  | X47: =VLOOKUP($F47,'Decompo DB'!$A$3:$G$70,7,FALSE) ->  | AJ47: 0 | AM47: =+SUM(P47:AI47) ->  | AO47: =IF(D47="OUI",0.0000001,AM47-AN47) -> 1e-07
B48: MFVN 20 | E48: NON | G48: 0.14 | H48: 1.1 | I48: 2.1 | N48: 2 | O48: 0 | S48: =VLOOKUP($F48,'Decompo DB'!$A$3:$G$70,5,FALSE) ->  | V48: =VLOOKUP($F48,'Decompo DB'!$A$3:$G$70,6,FALSE) ->  | X48: =VLOOKUP($F48,'Decompo DB'!$A$3:$G$70,7,FALSE) ->  | AJ48: 0 | AM48: =+SUM(P48:AI48) ->  | AN48: 1e-06 | AO48: =IF(D48="OUI",0.0000001,AM48-AN48) -> 
C49: TOTAUX LINEAIRE NÉGATIF | F49: =SUM(F45:F48) -> 0 | G49: =SUM(G45:G48) -> 0.56 | I49: =SUM(I45:I48) -> 8.4 | O49: =SUM(O45:O48) -> 0 | P49: 0 | Q49: 0 | R49: 0 | T49: 0 | V49: =SUM(V45:V48) ->  | W49: 0 | Y49: 0 | Z49: 0 | AA49: 0 | AB49: 0 | AC49: 0 | AD49: 0 | AE49: 0 | AF49: 0 | AG49: 0 | AH49: 0 | AI49: 0 | AJ49: 0 | AK49: 0 | AL49: 0
C50: TOTAUX LINÉAIRES POSITIF ET NEGATIF | F50: =F27+F49 -> 0 | G50: =G27+G49 -> 3.36 | I50: =I27+I49 -> 49.4 | O50: =O27+O49 -> 0 | P50: 0 | Q50: 0 | T50: 0 | V50: =V27+V49 ->  | W50: 0 | Y50: 0 | Z50: 0 | AA50: 0 | AB50: 0 | AC50: 0 | AD50: 0 | AE50: 0 | AF50: 0 | AG50: 0 | AH50: 0 | AI50: 0 | AJ50: 0 | AK50: 0 | AL50: 0
F54: =+F65 -> 0
AX60: =AM60+AX59 -> 0
AX61: =AM61+AX60 -> 0
AX62: 0
AS63: 0.3 | AX63: 0
AX64: 0
AX65: 0
AX66: 0
AX67: 0
AX68: 0
AX69: 0
AX70: 0
AX71: 0
AX72: 0
AX73: 0
AX74: 0
AX75: 0
AX76: 0
Z80: 8 | AX80: =AM80+AX79 -> 0
AN81: 4 | AX81: =AM81+AX80 -> 0
AN82: 4 | AX82: =AM82+AX81 -> 0
D83: =SUM(D79:D82) -> 0

Sheet Table condenseur (hidden)
A2: Marque | B2: R134a Hélicoïde | C2: Tension | D2: P | E2: Débit | F2: Vitesse | G2: dB à 10m | H2: dB | I2: Ventilateur | J2: Prix | K2: LUVE | L2: EC
A3: LUVE | B3: SAV5R 4510 H 230V | C3: 230 | D3: 10 | E3: 3720 | F3: 760 | G3: 32 | H3: 63 | I3: 1 | J3: 1678 | K3: =1040 -> 1040 | L3: 263 | M3: =K3+L3 -> 1303 | N3: =B3 -> SAV5R 4510 H 230V | O3: =K3+L3 -> 1303 | P3: 0.55
A4: LUVE | B4: SAV6R 6610 H 380V | C4: 380 | D4: =D3+5 -> 15 | E4: 5200 | F4: 640 | G4: 32 | H4: 63 | I4: 1 | J4: 1996.2 | K4: =J4*$P$3 -> 1097.91 | L4: 310 | M4: =K4+L4 -> 1407.91 | N4: =B4 -> SAV6R 6610 H 380V | O4: =K4+L4 -> 1407.91
A5: LUVE | B5: SAV7S 8511 H 380V | C5: 380 | D5: =D4+5 -> 20 | E5: 5610 | F5: 490 | G5: 32 | H5: 63 | I5: 1 | J5: 2597 | K5: =J5*$P$3 -> 1428.35 | L5: 464 | M5: 1892.35 | N5: SAV7S 8511 H 380V | O5: 1892.35
A6: LUVE | B6: SAV6R 6620 H 380V | C6: 380 | D6: 25 | E6: 6200 | F6: 570 | G6: 32 | H6: 63 | I6: 2 | J6: 3186 | K6: 1752.3 | L6: 620 | M6: 2372.3 | N6: SAV6R 6620 H 380V | O6: 2372.3
A7: LUVE | B7: EAV8T 8110 H 380V | C7: 380 | D7: 30 | E7: 10040 | F7: 500 | G7: 32 | H7: 63 | I7: 1 | J7: 3695 | K7: 1980 | L7: 393 | M7: 2373 | N7: EAV8T 8110 H 380V | O7: 2373
A8: LUVE | B8: EAV9U 5110 H 230V | C8: 230 | D8: 35 | E8: 11400 | F8: 460 | G8: 32 | H8: 63 | I8: 1 | J8: 3811 | K8: 2096.05 | L8: 418 | M8: 2514.05 | N8: EAV9U 5110 H 230V | O8: 2514.05
A9: LUVE | B9: XAV9X 8911 H 380V | C9: 380 | D9: 40 | E9: 11190 | F9: 460 | G9: 32 | H9: 63 | I9: 1 | J9: 4835 | K9: 2659.25 | L9: 418 | M9: 3077.25 | N9: XAV9X 8911 H 380V | O9: 3077.25
A10: LUVE | B10: EAV6R 7630 H 380V | C10: 380 | D10: 45 | E10: 14100 | F10: 550 | G10: 32 | H10: 64 | I10: 3 | J10: 5173 | K10: 2845.15 | L10: 930 | M10: 3775.15 | N10: EAV6R 7630 H 380V | O10: 3775.15
A11: LUVE | B11: SAV8T 3120 H 230V | C11: 230 | D11: 50 | E11: 16930 | F11: 350 | G11: 32 | H11: 64 | I11: 2 | J11: 5906 | K11: 3248.3 | L11: 786 | M11: 4034.3 | N11: SAV8T 3120 H 230V | O11: 4034.3
A12: LUVE | B12: EAV8T 8120 H 380V | C12: 380 | D12: 55 | E12: 18430 | F12: 470 | G12: 32 | H12: 64 | I12: 2 | J12: 6549 | K12: 3601.95 | L12: 786 | M12: 4387.95 | N12: EAV8T 8120 H 380V | O12: 4387.95
A13: LUVE | B13: EAV8T 8120 H 380V | C13: 380 | D13: 60 | E13: 18430 | F13: 470 | G13: 32 | H13: 64 | I13: 2 | J13: 6549 | K13: 3601.95 | L13: 786 | M13: 4387.95 | N13: EAV8T 8120 H 380V | O13: 4387.95
A14: LUVE | B14: EAV9U 5120 H 230V | C14: 230 | D14: 65 | E14: 20960 | F14: 430 | G14: 32 | H14: 64 | I14: 2 | J14: 6782 | K14: 3730.1 | L14: 836 | M14: 4566.1 | N14: EAV9U 5120 H 230V | O14: 4566.1
A15: LUVE | B15: XAV9X 7912 H 380V | C15: 380 | D15: 70 | E15: 21990 | F15: 430 | G15: 32 | H15: 64 | I15: 2 | J15: 7592 | K15: 4100 | L15: 836 | M15: 4936 | N15: XAV9X 7912 H 380V | O15: 4936
A16: LUVE | B16: XAV9X 8912 H 230V | C16: 230 | D16: 75 | E16: 20560 | F16: 430 | G16: 32 | H16: 64 | I16: 2 | J16: 8792 | K16: 4835.6 | L16: 836 | M16: 5671.6 | N16: XAV9X 8912 H 230V | O16: 5671.6
A17: LUVE | B17: EAV8T 8130 H 380V | C17: 380 | D17: 80 | E17: 25230 | F17: 430 | G17: 32 | H17: 64 | I17: 3 | J17: 9426 | K17: 5184.3 | L17: 1179 | M17: 6363.3 | N17: EAV8T 8130 H 380V | O17: 6363.3
A18: LUVE | B18: EAV9U 5130 H 230V | C18: 230 | D18: 85 | E18: 28750 | F18: 400 | G18: 32 | H18: 64 | I18: 3 | J18: 9775 | K18: 5376.25 | L18: 1254 | M18: 6630.25 | N18: EAV9U 5130 H 230V | O18: 6630.25
A19: LUVE | B19: EAV9U 5130 H 230V | C19: 230 | D19: 90 | E19: 28750 | F19: 450 | G19: 32 | H19: 64 | I19: 3 | J19: 9775 | K19: 5376.25 | L19: 1254 | M19: 6630.25 | N19: EAV9U 5130 H 230V | O19: 6630.25
A20: LUVE | B20: XAV9X 7913 H 380V | C20: 380 | D20: =D19+5 -> 95 | E20: 30260 | F20: 400 | G20: 32 | H20: 64 | I20: 3 | J20: 11054 | K20: 6000 | L20: 1254 | M20: 7254 | N20: XAV9X 7913 H 380V | O20: 7254
A21: LUVE | B21: XAV9X 7913 H 380V | C21: 380 | D21: =D20+5 -> 100 | E21: 30260 | F21: 1000 | G21: 32 | H21: 64 | I21: 3 | J21: 11054 | K21: 6079.7 | L21: 1254 | M21: 7333.7 | N21: =B21 -> XAV9X 7913 H 380V | O21: 7333.7
A22: LUVE | B22: LMC3N1510 | C22: 230 | D22: 9.3 | E22: 2700 | G22: 41 | H22: 67 | I22: 1 | J22: A estimer
A23: LUVE | B23: LMC3N1511 | C23: 230 | D23: 11 | E23: 2500 | G23: 41 | H23: 67 | I23: 1 | J23: A estimer
A24: LUVE | B24: LMC3N1520 | C24: 230 | D24: 18.6 | E24: 5400 | G24: 44 | H24: 69 | I24: 2 | J24: A estimer
A25: LUVE | B25: LMC6R3518 | C25: 230 | D25: 24.8 | E25: 6200 | G25: 35 | H25: 65 | I25: 1 | J25: A estimer
A26: LUVE | B26: LMC6R3519 | C26: 230 | D26: 27.8 | E26: 5700 | G26: 35 | H26: 65 | I26: 1 | J26: A estimer
A27: LUVE | B27: LMC3N1531 | C27: 230 | D27: 33 | E27: 7500 | G27: 46 | H27: 71 | I27: 3 | J27: A estimer
A28: LUVE | B28: LMC3N1540 | C28: 230 | D28: 37.2 | E28: 10800 | G28: 47 | H28: 72 | I28: 4 | J28: A estimer
A29: LUVE | B29: LMC3N1541 | C29: 230 | D29: 44 | E29: 10000 | G29: 47 | H29: 72 | I29: 4 | J29: A estimer
A30: LUVE | B30: LMC6R3528 | C30: 230 | D30: 49.6 | E30: 12400 | G30: 38 | H30: 68 | I30: 2 | J30: A estimer
A31: LUVE | B31: LMC5S2525 | C31: 400 | D31: 51.8 | E31: 10400 | G31: 45 | H31: 70 | I31: 2 | J31: A estimer
A32: LUVE | B32: SHVN54/8 | C32: 230 | D32: 55.2 | E32: 11600 | G32: 49 | H32: 74 | I32: 8 | J32: A estimer
A33: LUVE | B33: SAV5N5331 | C33: 400 | D33: 71.1 | E33: 17100 | G33: 48 | H33: 73 | I33: 3 | J33: A estimer
A34: LUVE | B34: LMC6S3527 | C34: 400 | D34: 69.4 | E34: 15400 | G34: 44 | H34: 70 | I34: 2 | J34: A estimer
A35: LUVE | B35: LMC5S2534 | C35: 400 | D35: 73.5 | E35: 16800 | G35: 46 | H35: 71 | I35: 3 | J35: A estimer
A36: LUVE | B36: LMC5S2535 | C36: 400 | D36: 77.7 | E36: 15600 | G36: 46 | H36: 71 | I36: 3 | J36: A estimer
A37: LUVE | B37: SAV5N4346 | C37: 400 | D37: 106.4 | E37: 27200 | G37: 54 | H37: 75 | I37: 4 | J37: A estimer
A38: LUVE | B38: SAV5N4465 | C38: 400 | D38: 101.4 | E38: 28200 | G38: 45 | H38: 70 | I38: 4 | J38: A estimer
A39: LUVE | B39: LMC6S3537 | C39: 400 | D39: 104.1 | E39: 23100 | G39: 45 | H39: 70 | I39: 3 | J39: A estimer
A40: LUVE | B40: SHVN5/4 | C40: 230 | D40: 5.7 | E40: 1700 | G40: 38 | H40: 67 | I40: 1 | J40: A estimer
A41: LUVE | B41: SHVN6/4 | C41: 230 | D41: 6.5 | E41: 1500 | G41: 38 | H41: 67 | I41: 1 | J41: A estimer
A42: LUVE | B42: SAV5N4466 | C42: 400 | D42: 116.4 | E42: 25800 | G42: 45 | H42: 70 | I42: 6 | J42: A estimer
A43: LUVE | B43: SAV6N6450 | C43: 400 | D43: 122.5 | E43: 33000 | G43: 40 | H43: 68 | I43: 5 | J43: A estimer
A44: LUVE | B44: SAV8S | C44: 400 | D44: 136 | E44: 34400 | G44: 50 | H44: 72 | I44: 2 | J44: A estimer
A45: LUVE | B45: SAV8T3130 | C45: 400 | D45: 141 | E45: 40200 | G45: 46 | H45: 71 | I45: 3 | J45: A estimer
A46: LUVE | B46: SAV8S | C46: 400 | D46: 150 | E46: 32200 | G46: 50 | H46: 72 | I46: 2 | J46: A estimer
A47: LUVE | B47: SAV8T3131 | C47: 400 | D47: 135 | E47: 28200 | G47: 40 | H47: 68 | I47: 3 | J47: A estimer
A48: LUVE | B48: SAV8T | C48: 400 | D48: 160 | E48: 42400 | G48: 41 | H48: 69 | I48: 4 | J48: A estimer
A49: LUVE | B49: SAV8T3131 | C49: 400 | D49: 168 | E49: 37800 | G49: 46 | H49: 71 | I49: 3 | J49: A estimer
A50: LUVE | B50: SAV8S2131 | C50: 400 | D50: 171 | E50: 39300 | G50: 46 | H50: 71 | I50: 3 | J50: A estimer | N50: R134a Centrifuge | O50: P | P50: P corrigé à DT10 | Q50: P | R50: Débit | S50: Vitesse | T50: dB à 10m | U50: Modèle | V50: Prix
A51: LUVE | B51: SAV8S2132 | C51: 400 | D51: 177 | E51: 35700 | G51: 46 | H51: 71 | I51: 3 | J51: A estimer | N51: CAC 143-8P-2 | O51: 26.71 | P51: =O51*(0.93*0.67*0.96*1) -> 15.97728096 | Q51: 15 | R51: 5000 | S51: 750 | T51: 44 | U51: =N51 -> CAC 143-8P-2 | V51: =(P51*150)*(1-$K$47) -> 2396.592144
A52: LUVE | B52: SAV8T | C52: 400 | D52: 180 | E52: 34000 | G52: 41 | H52: 67 | I52: 4 | J52: A estimer | N52: CAC 144-8P-2 | O52: 33.77 | P52: =O52*(0.93*0.67*0.96*1) -> 20.20040352 | Q52: 20 | R52: 6600 | S52: 750 | T52: 46 | U52: CAC 144-8P-2 | V52: =(P52*150)*(1-$K$47) -> 3030.060528
A53: LUVE | B53: SAV8T3220 | C53: 400 | D53: 188 | E53: 53600 | G53: 47 | H53: 72 | I53: 4 | J53: A estimer | N53: CAC 154-8P-2 | O53: 42.49 | P53: =O53*(0.93*0.67*0.96*1) -> 25.41649824 | Q53: 25 | R53: 7200 | S53: 750 | T53: 47 | U53: CAC 154-8P-2 | V53: 3812.474736
A54: LUVE | B54: SAV8S2131 | C54: 400 | D54: 204 | E54: 51600 | G54: 52 | H54: 74 | I54: 3 | J54: A estimer | N54: CAC 145-8P-2 | O54: 49.78 | P54: 29.77720128 | Q54: =CEILING(P54,5) -> 30 | R54: 10600 | S54: 750 | T54: 52 | U54: CAC 145-8P-2 | V54: 4466.580192
A55: LUVE | B55: SAV7N8466 | C55: 400 | D55: 207 | E55: 45000 | G55: 47 | H55: 72 | I55: 3 | J55: A estimer | N55: CAC 243-8P-2 | O55: 54.81 | P55: 32.78602656 | Q55: 35 | R55: 10000 | S55: 750 | T55: 47 | U55: CAC 243-8P-2 | V55: 4917.903984
A56: LUVE | B56: SAV7S8585 | C56: 400 | D56: 236 | E56: 64000 | G56: 46 | H56: 71 | I56: 3 | J56: A estimer | N56: CAC 155-8P-2 | O56: 61.52 | P56: 36.79978752 | Q56: 40 | R56: 11100 | S56: 750 | T56: 53 | U56: CAC 155-8P-2 | V56: 5519.968128
A57: LUVE | B57: SAV7S8586 | C57: 400 | D57: 272 | E57: 58400 | G57: 46 | H57: 71 | I57: 3 | J57: A estimer | N57: CAC 244-8P-3 | O57: 69.04 | P57: 41.29807104 | Q57: 45 | R57: 13200 | S57: 750 | T57: 49 | U57: CAC 244-8P-3 | V57: 6194.710656
A58: LUVE | B58: SAV8S2142 | C58: 400 | D58: 300 | E58: 64400 | G58: 53 | H58: 74 | I58: 4 | J58: A estimer | N58: CAC 254-8P-4 | O58: 86.32 | P58: 51.63455232 | Q58: 55 | R58: 14400 | S58: 750 | T58: 50 | U58: CAC 254-8P-4 | V58: 7745.182848
A59: LUVE | B59: SAV8S2151 | C59: 400 | D59: 340 | E59: 86000 | G59: 53 | H59: 74 | I59: 5 | J59: A estimer | N59: CAC 245-8P-5 | O59: 99.52 | P59: 59.53047552 | Q59: 60 | R59: 21200 | S59: 750 | T59: 55 | U59: CAC 245-8P-5 | V59: 8929.571328
A60: LUVE | B60: SAV8S2231 | C60: 400 | D60: 408 | E60: 103200 | G60: 54 | H60: 75 | I60: 6 | J60: A estimer | N60: CAC 255-8P-6 | O60: 124.4 | P60: 74.4130944 | Q60: 75 | R60: 22200 | S60: 750 | T60: 56 | U60: CAC 255-8P-6 | V60: 11161.96416
A61: LUVE | B61: SAV8S2241 | C61: 400 | D61: 456 | E61: 104800 | G61: 49 | H61: 72 | I61: 8 | J61: A estimer | N61: SHVS0 | O61: 141 | P61: 84.342816 | Q61: 85 | R61: 42000 | T61: 55 | U61: SHVS0 | V61: 12651.4224
A62: LUVE | B62: SAV8T3262 | C62: 400 | D62: 540 | E62: 112800 | G62: 45 | H62: 70 | I62: 12 | J62: A estimer | N62: SHVS0 | O62: 162 | P62: 96.904512 | Q62: 100 | R62: 54000 | T62: 61 | U62: SHVS0 | V62: 14535.6768
A63: LUVE | B63: SAV8T3271 | C63: 400 | D63: 630 | E63: 131600 | G63: 46 | H63: 71 | I63: 14 | J63: A estimer | N63: SHVT0 | O63: 207 | P63: 123.822432 | Q63: 125 | R63: 51600 | T63: 62 | U63: SHVT0 | V63: 18573.3648
A64: LUVE | B64: SAV8T3281 | C64: 400 | D64: 720 | E64: 150400 | G64: 46 | H64: 71 | I64: 16 | J64: A estimer | N64: SHVT0 | O64: 300 | P64: 179.4528 | Q64: 180 | R64: 77600 | T64: 65 | U64: SHVT0 | V64: 26917.92
A65: LUVE | B65: SAV8T3272 | C65: 400 | D65: 812 | E65: 162400 | G65: 52 | H65: 73 | I65: 14 | J65: A estimer | N65: SHVT0 | O65: 375 | P65: 224.316 | Q65: 225 | R65: 97000 | T65: 66 | U65: SHVT0 | V65: 33647.4
A66: LUVE | B66: SAV8T3271 | C66: 400 | D66: 784 | E66: 176400 | G66: 52 | H66: 73 | I66: 14 | J66: A estimer
A67: LUVE | B67: SAV8T3281 | C67: 400 | D67: 896 | E67: 201600 | G67: 52 | H67: 73 | I67: 16 | J67: A estimer
A68: LUVE | B68: SAV8T3282 | C68: 400 | D68: 928 | E68: 185600 | G68: 52 | H68: 73 | I68: 16 | J68: A estimer
A69: LUVE | B69: SAV8S2272 | C69: 400 | D69: 952 | E69: 240800 | G69: 58 | H69: 78 | I69: 14 | J69: A estimer
A70: LUVE | B70: SAV8S2272 | C70: 400 | D70: 1050 | E70: 225400 | G70: 58 | H70: 78 | I70: 14 | J70: A estimer
A71: LUVE | B71: SAV8S2281 | C71: 400 | D71: 1088 | E71: 275200 | G71: 58 | H71: 78 | I71: 16 | J71: A estimer
A72: LUVE | B72: SAV8S2282 | C72: 400 | D72: 1200 | E72: 257600 | G72: 58 | H72: 78 | I72: 16 | J72: A estimer

Sheet DATA (hidden)
B1: T INT | C1: HR INT | D1: T INTRO | E1: CP kcal/kg.K | F1: Déb INTRO | G1: Charge sol | H1: Chaleur respiration | I1: Dt évap
A2: VIANDES PRE EMBALLES | B2: 1e-06 | C2: 80 | D2: 7 | E2: 0.8 | F2: 50 | G2: 200 | H2: 0 | I2: 8
A3: VOLAILLES PREEMBALLEES | B3: 1e-06 | C3: 80 | D3: 7 | E3: 0.8 | F3: 50 | G3: 200 | H3: 0 | I3: 8
A4: CARCASSES | B4: 1e-06 | C4: 90 | D4: 7 | E4: 0.75 | F4: 100 | G4: 300 | H4: 0 | I4: 6
A5: CHARCUTERIE PREEMBALLE | B5: 2 | C5: 80 | D5: 10 | E5: 0.8 | F5: 60 | G5: 250 | H5: 0 | I5: 8
A6: TRAITEUR | B6: 2 | C6: 85 | D6: 10 | E6: 0.75 | F6: 75 | G6: 250 | H6: 0 | I6: 8
A7: CHARIOTS PLATS CUISINES | B7: 1e-07 | C7: 80 | D7: 10 | E7: 0.85 | F7: 75 | G7: 200 | H7: 0 | I7: 8
A8: PATISSERIE FRAICHE | B8: 1 | C8: 75 | D8: 25 | E8: 0.7 | F8: 50 | G8: 200 | H8: 0 | I8: 8
A9: POISSONS SUR GLACE | B9: 1e-06 | C9: 90 | D9: 4 | E9: 0.8 | F9: 75 | G9: 300 | H9: 0 | I9: 6
A10: FRUITS ET LEGUMES | B10: 6 | C10: 90 | D10: 25 | E10: 0.9 | F10: 100 | G10: 240 | H10: 150 | I10: 6
A11: BOF EMBALLES | B11: 4 | C11: 80 | D11: 10 | E11: 0.65 | F11: 100 | G11: 270 | H11: 0 | I11: 10
A12: FROMAGE | B12: 6 | C12: 85 | D12: 10 | E12: 0.7 | F12: 70 | G12: 240 | H12: 0 | I12: 8
A13: BOISSONS | B13: 6 | C13: 75 | D13: 25 | E13: 0.9 | F13: 100 | G13: 300 | H13: 0 | I13: 10
A14: POUBELLES GRASSES | B14: 4 | C14: 75 | D14: 25 | E14: 0.8 | F14: 80 | G14: 270 | H14: 0 | I14: 10
A15: SAS | B15: 6 | C15: 80 | D15: 15 | E15: 0.9 | F15: 100 | G15: 300 | H15: 0 | I15: 8
A16: PRODUITS SURGELES | B16: -25 | C16: 90 | D16: -15 | E16: 0.42 | F16: 90 | G16: 350 | H16: 0 | I16: 6
A17: CREMES GLACEES | B17: -25 | C17: 90 | D17: -18 | E17: 0.45 | F17: 90 | G17: 350 | H17: 0 | I17: 6
B18: T INT | C18: HR INT | D18: kW/m² | E18: Occupations | I18: DT EVAP
A19: LABO DECOUPE | B19: 8 | C19: 70 | D19: 0.06 | E19: 0.1 | I19: 12
A20: LABO DECOUPE EMBALLAGE | B20: 8 | C20: 70 | D20: 0.12 | E20: =1/8 -> 0.125 | I20: 12
A21: LABO EMBALLAGE | B21: 8 | C21: 70 | D21: 0.3 | E21: =1/6 -> 0.1666666667 | I21: 12
E23: =MAX(E2:E17) -> 0.9 | F23: =MAX(F2:F17) -> 100
A28: TRES FORT | B28: 5
A29: FORT | B29: 4
A30: MOYEN | B30: 3
A31: FAIBLE | B31: 2
B33: TEMPERATURE POSITIVE | G33: TEMPERATURE NEGATIVE
A34: VOLUME | B34: FAIBLE | C34: MOYEN | D34: FORT | E34: TRES FORT | F34: VOLUME | G34: FAIBLE | H34: MOYEN | I34: FORT | J34: TRES FORT
A35: 2 | B35: 53 | C35: 83 | D35: 132 | E35: 176 | F35: 2 | G35: 46 | H35: 76 | I35: 114 | J35: 152
A36: 3 | B36: 75 | C36: 125 | D36: 188 | E36: 250 | F36: 3 | G36: 65 | H36: 108 | I36: 162 | J36: 216
A37: 4 | B37: 95 | C37: 159 | D37: 235 | E37: 316 | F37: 4 | G37: 82 | H37: 137 | I37: 285 | J37: 274
A38: 5 | B38: 114 | C38: 190 | D38: 239 | E38: 380 | F38: 5 | G38: 97 | H38: 161 | I38: 242 | J38: 322
A39: 6 | B39: 130 | C39: 216 | D39: 324 | E39: 432 | F39: 6 | G39: 110 | H39: 184 | I39: 275 | J39: 368
A40: 7 | B40: 144 | C40: 240 | D40: 360 | E40: 480 | F40: 7 | G40: 121 | H40: 192 | I40: 303 | J40: 404
A41: 8 | B41: 157 | C41: 262 | D41: 392 | E41: 524 | F41: 8 | G41: 131 | H41: 218 | I41: 327 | J41: 436
A42: 9 | B42: 165 | C42: 280 | D42: 420 | E42: 560 | F42: 9 | G42: 139 | H42: 232 | I42: 348 | J42: 464
A43: 10 | B43: 178 | C43: 297 | D43: 446 | E43: 594 | F43: 10 | G43: 146 | H43: 243 | I43: 364 | J43: 486
A44: 11 | B44: 187 | C44: 311 | D44: 467 | E44: 622 | F44: 11 | G44: 152 | H44: 254 | I44: 381 | J44: 508
A45: 12 | B45: 195 | C45: 325 | D45: 488 | E45: 650 | F45: 12 | G45: 158 | H45: 264 | I45: 396 | J45: 528
A46: 13 | B46: 204 | C46: 339 | D46: 509 | E46: 678 | F46: 13 | G46: 165 | H46: 274 | I46: 411 | J46: 548
A47: 14 | B47: 210 | C47: 350 | D47: 525 | E47: 700 | F47: 14 | G47: 171 | H47: 284 | I47: 425 | J47: 568
A48: 15 | B48: 215 | C48: 360 | D48: 540 | E48: 720 | F48: 15 | G48: 176 | H48: 293 | I48: 439 | J48: 576
A49: 16 | B49: 222 | C49: 370 | D49: 554 | E49: 740 | F49: 16 | G49: 180 | H49: 300 | I49: 450 | J49: 600
A50: 17 | B50: 227 | C50: 378 | D50: 567 | E50: 756 | F50: 17 | G50: 185 | H50: 308 | I50: 462 | J50: 615
A51: 18 | B51: 232 | C51: 387 | D51: 581 | E51: 774 | F51: 18 | G51: 189 | H51: 315 | I51: 473 | J51: 630
A52: 19 | B52: 237 | C52: 394 | D52: 591 | E52: 788 | F52: 19 | G52: 193 | H52: 321 | I52: 482 | J52: 642
A53: 20 | B53: 243 | C53: 405 | D53: 608 | E53: 810 | F53: 20 | G53: 196 | H53: 326 | I53: 489 | J53: 652
A54: 21 | B54: 248 | C54: 414 | D54: 621 | E54: 828 | F54: 21 | G54: 198 | H54: 331 | I54: 496 | J54: 662
A55: 22 | B55: 254 | C55: 424 | D55: 635 | E55: 848 | F55: 22 | G55: 202 | H55: 337 | I55: 505 | J55: 674
A56: 23 | B56: 259 | C56: 431 | D56: 647 | E56: 862 | F56: 23 | G56: 206 | H56: 343 | I56: 514 | J56: 686
A57: 24 | B57: 265 | C57: 442 | D57: 662 | E57: 884 | F57: 24 | G57: 209 | H57: 348 | I57: 522 | J57: 696
A58: 25 | B58: 270 | C58: 450 | D58: 675 | E58: 900 | F58: 25 | G58: 214 | H58: 356 | I58: 534 | J58: 712
A59: 26 | B59: 276 | C59: 460 | D59: 690 | E59: 920 | F59: 26 | G59: 220 | H59: 367 | I59: 550 | J59: 734
A60: 27 | B60: 284 | C60: 473 | D60: 709 | E60: 946 | F60: 27 | G60: 224 | H60: 373 | I60: 559 | J60: 746
A61: 28 | B61: 289 | C61: 482 | D61: 722 | E61: 964 | F61: 28 | G61: 228 | H61: 381 | I61: 571 | J61: 762
A62: 29 | B62: 296 | C62: 493 | D62: 740 | E62: 986 | F62: 29 | G62: 235 | H62: 392 | I62: 587 | J62: 784
A63: 30 | B63: 302 | C63: 503 | D63: 754 | E63: 1006 | F63: 30 | G63: 239 | H63: 398 | I63: 596 | J63: 796
A64: 40 | B64: 348 | C64: 580 | D64: 870 | E64: 1160 | F64: 40 | G64: 271 | H64: 452 | I64: 678 | J64: 904
A65: 50 | B65: 375 | C65: 625 | D65: 938 | E65: 1250 | F65: 50 | G65: 300 | H65: 500 | I65: 750 | J65: 1000
A66: 75 | B66: 473 | C66: 788 | D66: 1181 | E66: 1576 | F66: 75 | G66: 360 | H66: 600 | I66: 900 | J66: 1200
A67: 100 | B67: 540 | C67: 900 | D67: 1350 | E67: 1800 | F67: 100 | G67: 408 | H67: 680 | I67: 1020 | J67: 1360
A68: 125 | B68: 600 | C68: 1000 | D68: 1500 | E68: 2000 | F68: 125 | G68: 450 | H68: 750 | I68: 1125 | J68: 1500
A69: 150 | B69: 630 | C69: 1050 | D69: 1575 | E69: 2100 | F69: 150 | G69: 486 | H69: 810 | I69: 1215 | J69: 1620
A70: 175 | B70: 683 | C70: 1138 | D70: 1706 | E70: 2276 | F70: 175 | G70: 515 | H70: 858 | I70: 1286 | J70: 1716
A71: 200 | B71: 720 | C71: 1200 | D71: 1800 | E71: 2400 | F71: 200 | G71: 552 | H71: 920 | I71: 1380 | J71: 1840
A72: 300 | B72: 864 | C72: 1440 | D72: 2160 | E72: 2880 | F72: 300 | G72: 666 | H72: 1110 | I72: 1665 | J72: 2220
A73: 400 | B73: 984 | C73: 1640 | D73: 2460 | E73: 3280 | F73: 400 | G73: 744 | H73: 1240 | I73: 1850 | J73: 2480
A74: 500 | B74: 1080 | C74: 1800 | D74: 2700 | E74: 3600 | F74: 500 | G74: 840 | H74: 1400 | I74: 2100 | J74: 2800
A75: 600 | B75: 1188 | C75: 1980 | D75: 2970 | E75: 3960 | F75: 600 | G75: 936 | H75: 1560 | I75: 2340 | J75: 3120
A76: 700 | B76: 1260 | C76: 2100 | D76: 3150 | E76: 4200 | F76: 700 | G76: 1008 | H76: 1680 | I76: 2520 | J76: 3360
A77: 800 | B77: 1344 | C77: 2240 | D77: 3360 | E77: 4480 | F77: 800 | G77: 1056 | H77: 1760 | I77: 2640 | J77: 3520
A78: 900 | B78: 1484 | C78: 2340 | D78: 3510 | E78: 4680 | F78: 900 | G78: 1080 | H78: 1800 | I78: 2700 | J78: 3600
A79: 1000 | B79: 1500 | C79: 2500 | D79: 3750 | E79: 5000 | F79: 1000 | G79: 1140 | H79: 1900 | I79: 2850 | J79: 3800
A80: 1250 | B80: 1720 | C80: 2870 | D80: 4305 | E80: 5740 | F80: 1250 | G80: 1278 | H80: 2130 | I80: 3195 | J80: 4260
A81: 1550 | B81: 1800 | C81: 3000 | D81: 4500 | E81: 6000 | F81: 1550 | G81: 1392 | H81: 2320 | I81: 3480 | J81: 4640
A82: 1750 | B82: 1945 | C82: 3240 | D82: 4860 | E82: 6480 | F82: 1750 | G82: 1554 | H82: 2590 | I82: 3885 | J82: 5180
A83: 2000 | B83: 2040 | C83: 3400 | D83: 5100 | E83: 6800 | F83: 2000 | G83: 1680 | H83: 2800 | I83: 4200 | J83: 5600
A84: 2500 | B84: 2250 | C84: 3750 | D84: 5625 | E84: 7500 | F84: 2500 | G84: 1860 | H84: 3100 | I84: 4650 | J84: 6200
A85: 3000 | B85: 2425 | C85: 4050 | D85: 6073 | E85: 8106 | F85: 3000 | G85: 1980 | H85: 3300 | I85: 4950 | J85: 6600
A91: DOUBLE FLUX COMMERCIAUX
A92: Type | C92: Débit d'air | E92: Nombre | H92: Dégivrage | K92: Puissance au R22
A93: désignation | B93: Taille | D93: Surface | E93: Nbre | F93: Puissance | G93: Intensité | H93: Puissance | I93: Intensité | J93: Taille | K93: DT | L93: Température d'évaporation | N93: -7 | O93: Taille | Q93: Taille
E94: moteur | F94: utile | G94: A | H94: utile | I94: A | K94: 6 | L94: 7 | M94: 8 | N94: 9 | P94: 10
A95: Ecartement des ailettes 3,5 mm - 1000 tr/mn
A96: DFC | B96: 14 | C96: 770 | D96: 9 | E96: 1 | F96: =25*E96 -> 25 | G96: =0.28*E96 -> 0.28 | H96: 600 | I96: 2.5 | J96: 14 | K96: =M96*0.75 -> 1327.5 | L96: =0.88*M96 -> 1557.6 | M96: 1770 | N96: =M96*1.12 -> 1982.4 | O96: 14 | P96: =M96*1.25 -> 2212.5 | Q96: 14
A97: DFC | B97: 24 | C97: 1540 | D97: 18 | E97: 2 | F97: =25*E97 -> 50 | G97: =0.28*E97 -> 0.56 | H97: 800 | I97: 3.4 | J97: 24 | K97: =M97*0.75 -> 2685 | L97: =0.88*M97 -> 3150.4 | M97: 3580 | N97: =M97*1.12 -> 4009.6 | O97: 24 | P97: =M97*1.25 -> 4475 | Q97: 24
A98: DFC | B98: 34 | C98: 2310 | D98: 27 | E98: 3 | F98: =25*E98 -> 75 | G98: =0.28*E98 -> 0.84 | H98: 1200 | I98: 5 | J98: 34 | K98: 4050 | L98: 4752 | M98: 5400 | N98: =M98*1.12 -> 6048 | O98: 34 | P98: =M98*1.25 -> 6750 | Q98: 34
A99: DFC | B99: 44 | C99: 3080 | D99: 36 | E99: 4 | F99: =25*E99 -> 100 | G99: =0.28*E99 -> 1.12 | H99: 1500 | I99: 6.3 | J99: 44 | K99: 5407.5 | L99: 6344.8 | M99: 7210 | N99: =M99*1.12 -> 8075.2 | O99: 44 | P99: =M99*1.25 -> 9012.5 | Q99: 44
A100: DFC | B100: 54 | C100: 3850 | D100: 45 | E100: 5 | F100: =25*E100 -> 125 | G100: =0.28*E100 -> 1.4 | H100: 2000 | I100: 8.4 | J100: 54 | K100: 6802.5 | L100: 7981.6 | M100: 9070 | N100: =M100*1.12 -> 10158.4 | O100: 54 | P100: =M100*1.25 -> 11337.5 | Q100: 54
A101: Ecartement des ailettes 3,5 mm - 1500 tr/mn
A102: DFC | B102: 14 | C102: 1000 | D102: 9 | E102: 1 | F102: =35*E102 -> 35 | G102: =0.95*E102 -> 0.95 | H102: 600 | I102: 2.5 | J102: 14 | K102: 1582.5 | L102: 1856.8 | M102: 2110 | N102: =M102*1.12 -> 2363.2 | O102: 14 | P102: =M102*1.25 -> 2637.5 | Q102: 14
A103: DFC | B103: 24 | C103: 2000 | D103: 18 | E103: 2 | F103: =35*E103 -> 70 | G103: =0.95*E103 -> 1.9 | H103: 800 | I103: 3.4 | J103: 24 | K103: 3225 | L103: 3784 | M103: 4300 | N103: =M103*1.12 -> 4816 | O103: 24 | P103: =M103*1.25 -> 5375 | Q103: 24
A104: DFC | B104: 34 | C104: 3000 | D104: 27 | E104: 3 | F104: =35*E104 -> 105 | G104: =0.95*E104 -> 2.85 | H104: 1200 | I104: 5 | J104: 34 | K104: 4867.5 | L104: 5711.2 | M104: 6490 | N104: =M104*1.12 -> 7268.8 | O104: 34 | P104: =M104*1.25 -> 8112.5 | Q104: 34
A105: DFC | B105: 44 | C105: 4000 | D105: 36 | E105: 4 | F105: =35*E105 -> 140 | G105: =0.95*E105 -> 3.8 | H105: 1500 | I105: 6.3 | J105: 44 | K105: 6525 | L105: 7656 | M105: 8700 | N105: =M105*1.12 -> 9744 | O105: 44 | P105: =M105*1.25 -> 10875 | Q105: 44
A106: DFC | B106: 54 | C106: 5000 | D106: 45 | E106: 5 | F106: =35*E106 -> 175 | G106: =0.95*E106 -> 4.75 | H106: 2000 | I106: 8.4 | J106: 54 | K106: 8025 | L106: 9416 | M106: 10700 | N106: =M106*1.12 -> 11984 | O106: 54 | P106: =M106*1.25 -> 13375 | Q106: 54
A107: Ecartement des ailettes 6,3 mm - 1000 tr/mn
A108: DFC | B108: 16 | C108: 810 | D108: 5.5 | E108: 1 | F108: =25*E108 -> 25 | G108: =0.28*E108 -> 0.28 | H108: 600 | I108: 2.5 | J108: 16 | K108: 1087.5 | L108: 1276 | M108: 1450 | N108: =M108*1.12 -> 1624 | O108: 16 | P108: =M108*1.25 -> 1812.5 | Q108: 16
A109: DFC | B109: 26 | C109: 1620 | D109: 11 | E109: 2 | F109: =25*E109 -> 50 | G109: =0.28*E109 -> 0.56 | H109: 800 | I109: 3.4 | J109: 26 | K109: 2197.5 | L109: 2578.4 | M109: 2930 | N109: =M109*1.12 -> 3281.6 | O109: 26 | P109: =M109*1.25 -> 3662.5 | Q109: 26
A110: DFC | B110: 36 | C110: 2430 | D110: 16.5 | E110: 3 | F110: =25*E110 -> 75 | G110: =0.28*E110 -> 0.84 | H110: 1200 | I110: 5 | J110: 36 | K110: 3315 | L110: 3889.6 | M110: 4420 | N110: =M110*1.12 -> 4950.4 | O110: 36 | P110: =M110*1.25 -> 5525 | Q110: 36
A111: DFC | B111: 46 | C111: 3240 | D111: 22 | E111: 4 | F111: =25*E111 -> 100 | G111: =0.28*E111 -> 1.12 | H111: 1500 | I111: 6.3 | J111: 46 | K111: 4530 | L111: 5315.2 | M111: 6040 | N111: =M111*1.12 -> 6764.8 | O111: 46 | P111: =M111*1.25 -> 7550 | Q111: 46
A112: DFC | B112: 56 | C112: 4050 | D112: 27.5 | E112: 5 | F112: =25*E112 -> 125 | G112: =0.28*E112 -> 1.4 | H112: 2000 | I112: 8.4 | J112: 56 | K112: 5640 | L112: 6617.6 | M112: 7520 | N112: =M112*1.12 -> 8422.4 | O112: 56 | P112: =M112*1.25 -> 9400 | Q112: 56
A113: Ecartement des ailettes 6,3 mm - 1500 tr/mn
A114: DFC | B114: 16 | C114: 1060 | D114: 5.5 | E114: 1 | F114: =35*E114 -> 35 | G114: =0.95*E114 -> 0.95 | H114: 600 | I114: 2.5 | J114: 16 | K114: 1290 | L114: 1513.6 | M114: 1720 | N114: =M114*1.12 -> 1926.4 | O114: 16 | P114: =M114*1.25 -> 2150 | Q114: 16
A115: DFC | B115: 26 | C115: 2120 | D115: 11 | E115: 2 | F115: =35*E115 -> 70 | G115: =0.95*E115 -> 1.9 | H115: 800 | I115: 3.4 | J115: 26 | K115: =M115*0.75 -> 2617.5 | L115: =0.88*M115 -> 3071.2 | M115: 3490 | N115: =M115*1.12 -> 3908.8 | O115: 26 | P115: =M115*1.25 -> 4362.5 | Q115: 26
A116: DFC | B116: 36 | C116: 3180 | D116: 16.5 | E116: 3 | F116: =35*E116 -> 105 | G116: =0.95*E116 -> 2.85 | H116: 1200 | I116: 5 | J116: 36 | K116: =M116*0.75 -> 3922.5 | L116: =0.88*M116 -> 4602.4 | M116: 5230 | N116: =M116*1.12 -> 5857.6 | O116: 36 | P116: =M116*1.25 -> 6537.5 | Q116: 36
A117: DFC | B117: 46 | C117: 4240 | D117: 22 | E117: 4 | F117: =35*E117 -> 140 | G117: =0.95*E117 -> 3.8 | H117: 1500 | I117: 6.3 | J117: 46 | K117: =M117*0.75 -> 5227.5 | L117: =0.88*M117 -> 6133.6 | M117: 6970 | N117: =M117*1.12 -> 7806.4 | O117: 46 | P117: =M117*1.25 -> 8712.5 | Q117: 46
A118: DFC | B118: 56 | C118: 5300 | D118: 27.5 | E118: 5 | F118: =35*E118 -> 175 | G118: =0.95*E118 -> 4.75 | H118: 2000 | I118: 8.4 | J118: 56 | K118: =M118*0.75 -> 6600 | L118: =0.88*M118 -> 7744 | M118: 8800 | N118: =M118*1.12 -> 9856 | O118: 56 | P118: =M118*1.25 -> 11000 | Q118: 56
A120: FRIGERST PLAFONNIER | B120: DT 6 Fg/h | C120: DT 6 K | D120: Pas | E120: Débit | F120: Nombre | G120: Puissance | H120: Surface | I120: KS | J120: K
A121: MP 120 | B121: 720 | C121: =B121*4.1855/3600*1000 -> 837.1 | D121: 6.35 | E121: 850 | F121: 1 | G121: 110 | H121: 5 | I121: =C121/6 -> 139.5166667 | J121: =I121/H121 -> 27.90333333
A122: MP 175 | B122: 1050 | C122: =B122*4.1855/3600*1000 -> 1220.770833 | D122: 6.35 | E122: 1150 | F122: 1 | G122: 110 | H122: 8 | I122: =C122/6 -> 203.4618056 | J122: =I122/H122 -> 25.43272569
A123: MP 220 | B123: 1315 | C123: 1528.870139 | D123: 6.35 | E123: 1720 | F123: 2 | G123: 220 | H123: 13 | I123: 254.8116898 | J123: 19.60089922
A124: MP 290 | B124: 1740 | C124: 2022.991667 | D124: 6.35 | E124: 2050 | F124: 2 | G124: 220 | H124: 18 | I124: 337.1652778 | J124: 18.73140432
A125: MP 330 | B125: 1980 | C125: 2302.025 | D125: 6.35 | E125: 2550 | F125: 2 | G125: 220 | H125: 20 | I125: 383.6708333 | J125: 19.18354167
A126: MP 440 | B126: 2625 | C126: 3051.927083 | D126: 6.35 | E126: 2750 | F126: 2 | G126: 220 | H126: 27 | I126: 508.6545139 | J126: 18.83905607
A127: MP 525 | B127: 3150 | C127: 3662.3125 | D127: 6.35 | E127: 4000 | F127: 3 | G127: 330 | H127: 31 | I127: 610.3854167 | J127: 19.68985215
A128: MP 725 | B128: 4350 | C128: 5057.479167 | D128: 6.35 | E128: 5900 | F128: 5 | G128: 550 | H128: 45 | I128: 842.9131944 | J128: 18.73140432

Sheet Decompo DB recup (hidden)
A1: DECOMPOSITION DES MEUBLES
A2: Longueur hors tout | B2: 75 | C2: 100 | D2: 125 | E2: 187.5 | F2: 250 | G2: 375
A3: =J3/100 -> 0.75 | B3: 1 | H3: =IF(B3=0,"",B3&" x 75 / ")&IF(C3=0,"",C3&" x 100 / ")&IF(D3=0,"",D3&" x 125 / ")&IF(E3=0,"",E3&" x 188 / ")&IF(F3=0,"",F3&" x 250 / ")&IF(G3=0,"",G3&" x 375 / ") -> 1 x 75 / | I3: =SUM(B3:G3) -> 1 | J3: =B3*$B$2+C3*$C$2+D3*$D$2+E3*$E$2+F3*$F$2+G3*$G$2 -> 75 | K3: =J3/100/A3 -> 1
A4: 1 | C4: 1 | H4: 1 x 100 / | I4: 1 | J4: 100 | K4: 1
A5: 1.25 | D5: 1 | H5: 1 x 125 / | I5: 1 | J5: 125 | K5: 1
A6: 1.5 | B6: 2 | H6: 2 x 75 / | I6: 2 | J6: 150 | K6: 1
A7: 1.75 | B7: 1 | C7: 1 | H7: 1 x 75 / 1 x 100 / | I7: 2 | J7: 175 | K7: 1
A8: 1.875 | E8: 1 | H8: 1 x 188 / | I8: 1 | J8: 187.5 | K8: 1
A9: 2.25 | C9: 1 | D9: 1 | H9: 1 x 100 / 1 x 125 / | I9: 2 | J9: 225 | K9: 1
A10: 2.5 | F10: 1 | H10: 1 x 250 / | I10: 1 | J10: 250 | K10: 1
A11: 2.625 | B11: 1 | E11: 1 | H11: 1 x 75 / 1 x 188 / | I11: 2 | J11: 262.5 | K11: 1
A12: 2.875 | C12: 1 | E12: 1 | H12: 1 x 100 / 1 x 188 / | I12: 2 | J12: 287.5 | K12: 1
A13: 3.125 | D13: 1 | E13: 1 | H13: 1 x 125 / 1 x 188 / | I13: 2 | J13: 312.5 | K13: 1
A14: 3.5 | C14: 1 | F14: 1 | H14: 1 x 100 / 1 x 250 / | I14: 2 | J14: 350 | K14: 1
A15: 3.75 | G15: 1 | H15: 1 x 375 / | I15: 1 | J15: 375 | K15: 1
A16: 4.125 | C16: 1 | D16: 1 | E16: 1 | H16: 1 x 100 / 1 x 125 / 1 x 188 / | I16: 3 | J16: 412.5 | K16: 1
A17: 4.375 | E17: 1 | F17: 1 | H17: 1 x 188 / 1 x 250 / | I17: 2 | J17: 437.5 | K17: 1
A18: 4.75 | C18: 1 | G18: 1 | H18: 1 x 100 / 1 x 375 / | I18: 2 | J18: 475 | K18: 1
A19: 5 | F19: 2 | H19: 2 x 250 / | I19: 2 | J19: 500 | K19: 1
A20: 5.375 | C20: 1 | E20: 1 | F20: 1 | H20: 1 x 100 / 1 x 188 / 1 x 250 / | I20: 3 | J20: 537.5 | K20: 1
A21: 5.625 | E21: 1 | G21: 1 | H21: 1 x 188 / 1 x 375 / | I21: 2 | J21: 562.5 | K21: 1
A22: 6 | C22: 1 | F22: 2 | H22: 1 x 100 / 2 x 250 / | I22: 3 | J22: 600 | K22: 1
A23: 6.25 | F23: 1 | G23: 1 | H23: 1 x 250 / 1 x 375 / | I23: 2 | J23: 625 | K23: 1
A24: 6.625 | C24: 1 | E24: 1 | G24: 1 | H24: 1 x 100 / 1 x 188 / 1 x 375 / | I24: 3 | J24: 662.5 | K24: 1
A25: 6.875 | E25: 1 | F25: 2 | H25: 1 x 188 / 2 x 250 / | I25: 3 | J25: 687.5 | K25: 1
A26: 7.25 | C26: 1 | F26: 1 | G26: 1 | H26: 1 x 100 / 1 x 250 / 1 x 375 / | I26: 3 | J26: 725 | K26: 1
A27: 7.5 | G27: 2 | H27: 2 x 375 / | I27: 2 | J27: 750 | K27: 1
A28: 7.875 | C28: 1 | E28: 1 | F28: 2 | H28: 1 x 100 / 1 x 188 / 2 x 250 / | I28: 4 | J28: 787.5 | K28: 1
A29: 8.125 | E29: 1 | F29: 1 | G29: 1 | H29: 1 x 188 / 1 x 250 / 1 x 375 / | I29: 3 | J29: 812.5 | K29: 1
A30: 8.5 | C30: 1 | G30: 2 | H30: 1 x 100 / 2 x 375 / | I30: 3 | J30: 850 | K30: 1
A31: 8.75 | F31: 2 | G31: 1 | H31: 2 x 250 / 1 x 375 / | I31: 3 | J31: 875 | K31: 1
A32: 9.125 | C32: 1 | E32: 1 | F32: 1 | G32: 1 | H32: 1 x 100 / 1 x 188 / 1 x 250 / 1 x 375 / | I32: 4 | J32: 912.5 | K32: 1
A33: 9.375 | E33: 1 | G33: 2 | H33: 1 x 188 / 2 x 375 / | I33: 3 | J33: 937.5 | K33: 1
A34: 9.75 | C34: 1 | F34: 2 | G34: 1 | H34: 1 x 100 / 2 x 250 / 1 x 375 / | I34: 4 | J34: 975 | K34: 1
A35: 10 | F35: 1 | G35: 2 | H35: 1 x 250 / 2 x 375 / | I35: 3 | J35: 1000 | K35: 1
A36: 10.375 | C36: 1 | E36: 1 | G36: 2 | H36: 1 x 100 / 1 x 188 / 2 x 375 / | I36: 4 | J36: 1037.5 | K36: 1
A37: 10.625 | E37: 1 | F37: 2 | G37: 1 | H37: 1 x 188 / 2 x 250 / 1 x 375 / | I37: 4 | J37: 1062.5 | K37: 1
A38: 11 | C38: 1 | F38: 1 | G38: 2 | H38: 1 x 100 / 1 x 250 / 2 x 375 / | I38: 4 | J38: 1100 | K38: 1
A39: 11.25 | G39: 3 | H39: 3 x 375 / | I39: 3 | J39: 1125 | K39: 1
A40: 11.625 | C40: 1 | D40: 1 | E40: 1 | G40: 2 | H40: 1 x 100 / 1 x 125 / 1 x 188 / 2 x 375 / | I40: 5 | J40: 1162.5 | K40: 1
A41: 11.875 | E41: 1 | F41: 1 | G41: 2 | H41: 1 x 188 / 1 x 250 / 2 x 375 / | I41: 4 | J41: 1187.5 | K41: 1
A42: 12.25 | C42: 1 | G42: 3 | H42: 1 x 100 / 3 x 375 / | I42: 4 | J42: 1225 | K42: 1
A43: 12.5 | F43: 2 | G43: 2 | H43: 2 x 250 / 2 x 375 / | I43: 4 | J43: 1250 | K43: 1 | M43: =12.5+0.625 -> 13.125
A44: 12.875 | C44: 1 | E44: 1 | F44: 1 | G44: 2 | H44: 1 x 100 / 1 x 188 / 1 x 250 / 2 x 375 / | I44: 5 | J44: 1287.5 | K44: 1
A45: 13.125 | E45: 1 | G45: 3 | H45: 1 x 188 / 3 x 375 / | I45: 4 | J45: 1312.5 | K45: 1
A46: 13.5 | C46: 1 | D46: 1 | G46: 3 | H46: 1 x 100 / 1 x 125 / 3 x 375 / | I46: 5 | J46: 1350 | K46: 1
A47: 13.75 | F47: 1 | G47: 3 | H47: 1 x 250 / 3 x 375 / | I47: 4 | J47: 1375 | K47: 1
A48: 14.125 | C48: 1 | E48: 1 | G48: 3 | H48: 1 x 100 / 1 x 188 / 3 x 375 / | I48: 5 | J48: 1412.5 | K48: 1
A49: 14.375 | E49: 1 | F49: 2 | G49: 2 | H49: 1 x 188 / 2 x 250 / 2 x 375 / | I49: 5 | J49: 1437.5 | K49: 1
A50: 14.75 | C50: 1 | F50: 1 | G50: 3 | H50: 1 x 100 / 1 x 250 / 3 x 375 / | I50: 5 | J50: 1475 | K50: 1 | M50: =12.5+0.75 -> 13.25
A51: 15 | G51: 4 | H51: 4 x 375 / | I51: 4 | J51: 1500 | K51: 1
A52: 15.375 | C52: 1 | D52: 1 | E52: 1 | G52: 3 | H52: 1 x 100 / 1 x 125 / 1 x 188 / 3 x 375 / | I52: 6 | J52: 1537.5 | K52: 1
A53: 15.625 | E53: 1 | F53: 1 | G53: 3 | H53: 1 x 188 / 1 x 250 / 3 x 375 / | I53: 5 | J53: 1562.5 | K53: 1
A54: 16 | C54: 1 | G54: 4 | H54: 1 x 100 / 4 x 375 / | I54: 5 | J54: 1600 | K54: 1
A55: 16.25 | F55: 2 | G55: 3 | H55: 2 x 250 / 3 x 375 / | I55: 5 | J55: 1625 | K55: 1
A56: 16.625 | C56: 1 | E56: 1 | F56: 1 | G56: 3 | H56: 1 x 100 / 1 x 188 / 1 x 250 / 3 x 375 / | I56: 6 | J56: 1662.5 | K56: 1
A57: 16.875 | E57: 1 | G57: 4 | H57: 1 x 188 / 4 x 375 / | I57: 5 | J57: 1687.5 | K57: 1
A58: 17.25 | C58: 1 | D58: 1 | G58: 4 | H58: 1 x 100 / 1 x 125 / 4 x 375 / | I58: 6 | J58: 1725 | K58: 1
A59: 17.5 | F59: 1 | G59: 4 | H59: 1 x 250 / 4 x 375 / | I59: 5 | J59: 1750 | K59: 1
A60: 17.625 | B60: 1 | E60: 1 | G60: 4 | H60: 1 x 75 / 1 x 188 / 4 x 375 / | I60: 6 | J60: 1762.5 | K60: 1
A61: 17.875 | C61: 1 | E61: 1 | G61: 4 | H61: 1 x 100 / 1 x 188 / 4 x 375 / | I61: 6 | J61: 1787.5 | K61: 1
A62: 18.125 | E62: 1 | F62: 2 | G62: 3 | H62: 1 x 188 / 2 x 250 / 3 x 375 / | I62: 6 | J62: 1812.5 | K62: 1
A63: 18.5 | C63: 1 | F63: 1 | G63: 4 | H63: 1 x 100 / 1 x 250 / 4 x 375 / | I63: 6 | J63: 1850 | K63: 1
A64: 18.75 | G64: 5 | H64: 5 x 375 / | I64: 5 | J64: 1875 | K64: 1
A65: 19.125 | C65: 1 | D65: 1 | E65: 1 | G65: 4 | H65: 1 x 100 / 1 x 125 / 1 x 188 / 4 x 375 / | I65: 7 | J65: 1912.5 | K65: 1
A66: 19.375 | E66: 1 | F66: 1 | G66: 4 | H66: 1 x 188 / 1 x 250 / 4 x 375 / | I66: 6 | J66: 1937.5 | K66: 1
A67: =J67/100 -> 19.75 | C67: 1 | G67: 5 | H67: =IF(B67=0,"",B67&" x 75 / ")&IF(C67=0,"",C67&" x 100 / ")&IF(D67=0,"",D67&" x 125 / ")&IF(E67=0,"",E67&" x 188 / ")&IF(F67=0,"",F67&" x 250 / ")&IF(G67=0,"",G67&" x 375 / ") -> 1 x 100 / 5 x 375 / | I67: =SUM(B67:G67) -> 6 | J67: =B67*$B$2+C67*$C$2+D67*$D$2+E67*$E$2+F67*$F$2+G67*$G$2 -> 1975 | K67: =J67/100/A67 -> 1
A68: 20 | F68: 2 | G68: 4 | H68: 2 x 250 / 4 x 375 / | I68: 6 | J68: 2000 | K68: 1
A69: 20.5 | B69: 1 | C69: 1 | G69: 5 | H69: 1 x 75 / 1 x 100 / 5 x 375 / | I69: 7 | J69: 2050 | K69: 1
A70: 20.625 | E70: 1 | G70: 5 | H70: 1 x 188 / 5 x 375 / | I70: 6 | J70: 2062.5 | K70: 1
A71: 22.5 | G71: 6 | H71: 6 x 375 / | I71: 6 | J71: 2250 | K71: 1
A72: 25 | F72: 1 | G72: 6 | H72: 1 x 250 / 6 x 375 / | I72: 7 | J72: 2500 | K72: 1

Sheet Table Meubles (hidden)
A1: meubles positifs | B1: Type | C1: Modele | D1: Concaténer | E1: Pfrigo Classe 3 | F1: HACCP | G1: THACCP | H1: T évap | I1: Ventilation | J1: Cordons chauffants | K1: Dégivrage | L1: Éclairage | M1: positif ou négatif
A2: ??? | B2: KOXKA SV LS | C2: SVS724 | D2: =CONCATENATE(B2,C2) -> KOXKA SV LSSVS724 | E2: 906 | H2: -8 | I2: 50 | J2: 15 | L2: 145 | M2: positif
A3: bac | B3: KOXKA bacpos | C3: VSS726 | D3: =CONCATENATE(B3," ",C3) -> KOXKA bacpos VSS726 | E3: 416 | H3: -8 | I3: 15 | J3: 55 | L3: 50 | M3: positif
A4: bac large | B4: ROTONDE POS | C4: 36 | D4: ROTONDE POS 36 | E4: 590 | F4: 0.9 | G4: 1 | H4: -10 | I4: 100 | J4: 95 | K4: 880 | L4: 1e-06 | M4: positif
A5: bac large | B5: ROTONDE POS | C5: 46 | D5: ROTONDE POS 46 | E5: 600 | F5: 0.9 | G5: 1 | H5: -10 | I5: 100 | J5: 95 | K5: 880 | L5: 1e-06 | M5: positif
A6: bac simple | B6: AGORAPOS | C6: 36 | D6: AGORAPOS 36 | E6: 295 | F6: 0.9 | G6: 1 | H6: -10 | M6: positif
A7: bac simple | B7: AGORAPOS | C7: 46 | D7: AGORAPOS 46 | E7: 300 | F7: 0.9 | G7: 1 | H7: -10 | M7: positif
A8: bacs doubles sans couvercles | B8: COSMOSPOS | C8: III | D8: COSMOSPOS III | E8: 540 | F8: 0.9 | G8: 1 | H8: -9 | I8: 70 | J8: 43 | M8: positif
A9: semi-vertical | B9: LOGIA | C9: 11 | D9: LOGIA 11 | E9: 1265 | F9: 0.9 | G9: 1 | H9: -10 | I9: 64 | J9: 28 | K9: 745 | L9: 213 | M9: positif
A10: semi-vertical | B10: LOGIA | C10: 12 | D10: LOGIA 12 | E10: 1370 | F10: 0.9 | G10: 1 | H10: -10 | I10: 64 | J10: 28 | K10: 745 | L10: 213 | M10: positif
A11: semi-vertical ouvert étroit | B11: AERIA | C11: EFFICIA | D11: AERIA EFFICIA | E11: 1260 | F11: 0.9 | G11: 1.5 | H11: -6 | I11: 8 | L11: 26 | M11: positif
A12: semi-vertical ouvert étroit | B12: AERIA | C12: II | D12: AERIA II | E12: 1800 | F12: 0.9 | G12: 1.5 | H12: -8 | I12: =240/3.75 -> 64 | J12: 25 | K12: =2550/3.75 -> 680 | L12: 148 | M12: positif
A13: semi-vertical ouvert étroit | B13: AERIA | C13: MODULAR | D13: AERIA MODULAR | E13: 1260 | F13: 0.9 | G13: 1.5 | H13: -6 | I13: 8 | L13: 26 | M13: positif
A14: semi-vertical ouvert étroit | B14: AERIA | C14: VOLUM | D14: AERIA VOLUM | E14: 1245 | F14: 0.9 | G14: 1.5 | H14: -6 | I14: 8 | L14: 26 | M14: positif
A15: semi-vertical ouvert large | B15: AMPHI | C15: 11 | D15: AMPHI 11 | E15: 1580 | F15: 0.9 | G15: 1 | H15: -10 | I15: 64 | J15: 28 | K15: 745 | L15: 213 | M15: positif
A16: semi-vertical ouvert large | B16: AMPHI | C16: 12 | D16: AMPHI 12 | E16: 1610 | F16: 0.9 | G16: 1 | H16: -10 | I16: 64 | J16: 28 | K16: 745 | L16: 213 | M16: positif
A17: semi-vertical ouvert? étroit? | B17: EMERAUDE | C17: EUS | D17: EMERAUDE EUS | E17: 1470 | F17: 0.9 | G17: 1.5 | H17: -7 | I17: =(0.21*220)/2.5 -> 18.48 | K17: =(4.8*380)/2.5 -> 729.6 | L17: =(0.9*220)/2.5 -> 79.2 | M17: positif
A18: trad | B18: MAXIMA | C18: LC2 | D18: MAXIMA LC2 | E18: 446 | F18: 0.9 | G18: 1 | H18: -9 | I18: 35 | J18: 35 | K18: 372 | L18: 42 | M18: positif
A19: trad | B19: MAXIMA | C19: LDCLS | D19: MAXIMA LDCLS | E19: 400 | F19: 0.9 | G19: 1 | H19: -8 | I19: 35 | J19: 35 | K19: 372 | L19: 42 | M19: positif
B20: MAXIMA | C20: MAREE | D20: MAXIMA MAREE | E20: 350 | F20: 0.9 | G20: 1 | H20: -11 | I20: 40 | K20: 310 | M20: positif
A21: trad | B21: MAXIMA | C21: MODULAR | D21: MAXIMA MODULAR | E21: 273 | F21: 0.9 | G21: 1 | H21: -6 | I21: 40 | K21: 571 | L21: 77 | M21: positif
A22: trad | B22: MAXIMA | C22: MODULARLS | D22: MAXIMA MODULARLS | E22: 387 | F22: 0.9 | G22: 1 | H22: -6 | I22: 40 | K22: 571 | L22: 77 | M22: positif
A23: trad | B23: MAXIMA | C23: MODULARSV | D23: MAXIMA MODULARSV | E23: 672 | F23: 0.9 | G23: 1 | H23: -7 | I23: 23 | K23: 278 | L23: 25 | M23: positif
A24: trad | B24: MAXIMA | C24: VOLUM | D24: MAXIMA VOLUM | E24: 314 | F24: 0.9 | G24: 1 | H24: -6 | I24: 40 | K24: 571 | L24: 77 | M24: positif
A25: trad | B25: MAXIMA | C25: VOLUMLS | D25: MAXIMA VOLUMLS | E25: 424 | F25: 0.9 | G25: 1 | H25: -6 | I25: 40 | K25: 571 | L25: 77 | M25: positif
A26: trad large | B26: ENVERGURE | C26: LS | D26: ENVERGURE LS | E26: 460 | F26: 0.9 | G26: 1 | H26: -10 | I26: 25.6 | J26: 85.1 | K26: 585 | L26: 67 | M26: positif
A27: trad large | B27: ENVERGURE | C27: VE | D27: ENVERGURE VE | E27: 420 | F27: 0.9 | G27: 1 | H27: -10 | I27: 25.6 | J27: 85.1 | K27: 585 | L27: 67 | M27: positif
A28: trad libre service | B28: AMARANTE | C28: LS | D28: AMARANTE LS | E28: 480 | F28: 0.9 | G28: 1 | H28: -10 | I28: 25.6 | J28: 85.1 | K28: 585 | L28: 67 | M28: positif
A29: trad libre service meuble bas | B29: DUO | C29: II | D29: DUO II | E29: 800 | F29: 0.9 | G29: 1 | H29: -8 | I29: 32 | J29: 40 | L29: 40 | M29: positif
A30: trad libre service meuble bas | B30: DUO | C30: MODULAR | D30: DUO MODULAR | E30: 330 | F30: 0.9 | G30: 1 | H30: -8 | I30: 68 | K30: 337 | L30: 47 | M30: positif
A31: trad service arrière | B31: AMARANTE | C31: VE | D31: AMARANTE VE | E31: 345 | F31: 0.9 | G31: 1 | H31: -10 | I31: 25.6 | J31: 85.1 | K31: 585 | L31: 67 | M31: positif
A32: trad service arrière | B32: TRADEO | C32: R | D32: TRADEO R | E32: =1745+175 -> 1920 | F32: 0.85 | G32: 1.5 | H32: -9 | I32: 15 | L32: 25 | M32: positif
A33: trad service arrière | B33: TRADEO | D33: TRADEO | E33: 1745 | F33: 0.85 | G33: 1.5 | H33: -9 | I33: 15 | L33: 25 | M33: positif
A34: trad service arrière | B34: TRIBUNE | C34: BR | D34: TRIBUNE BR | E34: 1785 | F34: 0.85 | G34: 1.5 | H34: -10 | I34: 100 | L34: 80 | M34: positif
A35: vertical | B35: FORUM | C35: B 09 DR | D35: FORUM B 09 DR | E35: 2035 | F35: 0.85 | G35: 1.5 | H35: -10 | I35: 96 | J35: 117 | K35: 855 | L35: 276 | M35: positif
A36: vertical | B36: FORUM | C36: B 09 RF | D36: FORUM B 09 RF | E36: 1485 | F36: 0.85 | G36: 1.5 | H36: -10 | I36: 96 | J36: 117 | K36: 855 | L36: 276 | M36: positif
A37: vertical | B37: FORUM | C37: B 10 DR | D37: FORUM B 10 DR | E37: 2035 | F37: 0.85 | G37: 1.5 | H37: -10 | I37: 96 | J37: 117 | K37: 855 | L37: 276 | M37: positif
A38: vertical | B38: FORUM | C38: B 10 RF | D38: FORUM B 10 RF | E38: 1485 | F38: 0.85 | G38: 1.5 | H38: -10 | I38: 96 | J38: 117 | K38: 855 | L38: 276 | M38: positif
A39: vertical | B39: FORUM | C39: B 11 DR | D39: FORUM B 11 DR | E39: 1890 | F39: 0.85 | G39: 1.5 | H39: -10 | I39: 96 | J39: 117 | K39: 855 | L39: 276 | M39: positif
A40: vertical | B40: FORUM | C40: B 11 RF | D40: FORUM B 11 RF | E40: 1490 | F40: 0.85 | G40: 1.5 | H40: -10 | I40: 96 | J40: 117 | K40: 855 | L40: 276 | M40: positif
A41: vertical | B41: FORUM | C41: M 09 DR | D41: FORUM M 09 DR | E41: 1795 | F41: 0.85 | G41: 1.5 | H41: -10 | I41: 96 | J41: 117 | K41: 855 | L41: 276 | M41: positif
A42: vertical | B42: FORUM | C42: M 09 RF | D42: FORUM M 09 RF | E42: 1330 | F42: 0.85 | G42: 1.5 | H42: -10 | I42: 96 | J42: 117 | K42: 855 | L42: 276 | M42: positif
A43: vertical | B43: FORUM | C43: M 10 DR | D43: FORUM M 10 DR | E43: 1795 | F43: 0.85 | G43: 1.5 | H43: -10 | I43: 96 | J43: 117 | K43: 855 | L43: 276 | M43: positif
A44: vertical | B44: FORUM | C44: M 10 RF | D44: FORUM M 10 RF | E44: 1330 | F44: 0.85 | G44: 1.5 | H44: -10 | I44: 96 | J44: 117 | K44: 855 | L44: 276 | M44: positif
A45: vertical | B45: FORUM | C45: M 11 DR | D45: FORUM M 11 DR | E45: 1795 | F45: 0.85 | G45: 1.5 | H45: -10 | I45: 96 | J45: 117 | K45: 855 | L45: 276 | M45: positif
A46: vertical | B46: FORUM | C46: M 11 RF | D46: FORUM M 11 RF | E46: 1330 | F46: 0.85 | G46: 1.5 | H46: -10 | I46: 96 | J46: 117 | K46: 855 | L46: 276 | M46: positif
A47: vertical | B47: PERLE | C47: EU | D47: PERLE EU | E47: 1000 | F47: 0.9 | G47: 1 | H47: -8 | I47: 91 | L47: 252 | M47: positif
A48: vertical | B48: PERLE | C48: XU.GD | D48: PERLE XU.GD | E48: 750 | F48: 0.9 | G48: 1 | H48: -8 | I48: 34 | J48: 32 | L48: 48 | M48: positif
A49: vertical libre service | B49: CORALIS | C49: EU | D49: CORALIS EU | E49: 1860 | F49: 0.9 | G49: 1 | H49: -10 | I49: 60.8 | K49: 320 | L49: 36 | M49: positif
A50: vertical libre service | B50: KOXKA Vertical LS | C50: MCD216 | D50: KOXKA Vertical LS MCD216 | E50: 1700 | H50: -8 | I50: 60 | L50: 50 | M50: positif
A51: vertical libre service | B51: KOXKA Vertical LS | C51: MCD226 | D51: KOXKA Vertical LS MCD226 | E51: 1556 | H51: -8 | I51: 85 | L51: 50 | M51: positif
A52: vertical libre service | B52: KOXKA Vertical LS | C52: MCP226 | D52: KOXKA Vertical LS MCP226 | E52: 1843 | H52: -8 | I52: 90 | L52: 195 | M52: positif
A53: vertical libre service 2,20m | B53: VISEO | C53: MODULAR | D53: VISEO MODULAR | E53: 1535 | F53: 0.9 | G53: 1 | H53: -6 | I53: 18 | L53: 49 | M53: positif
A54: vertical libre service 2,20m | B54: VISEO | C54: MODULARECO | D54: VISEO MODULARECO | E54: 840 | F54: 0.9 | G54: 1 | H54: -6 | I54: 18 | L54: 49 | M54: positif
A55: vertical libre service 2,20m | B55: VISEO | C55: RD5 | D55: VISEO RD5 | E55: 1700 | F55: 0.9 | G55: 1 | H55: -6 | I55: 100 | L55: 414 | M55: positif
A56: vertical libre service 2,20m | B56: VISEOL | C56: RD5 | D56: VISEOL RD5 | E56: 1830 | F56: 0.9 | G56: 1 | H56: -7 | I56: 100 | L56: 497 | M56: positif
A57: vertical libre service 2m | B57: PROXIMA | C57: EFFICIA | D57: PROXIMA EFFICIA | E57: 1504 | F57: 0.9 | G57: 1.5 | H57: -7 | I57: 14 | L57: 49 | M57: positif
A58: vertical libre service 2m | B58: PROXIMA | C58: MODULAR | D58: PROXIMA MODULAR | E58: 1370 | F58: 0.9 | G58: 1.5 | H58: -6 | I58: 18 | L58: 49 | M58: positif
B59: PROXIMA | C59: MODULARECO | D59: PROXIMA MODULARECO | E59: 750 | F59: 0.9 | G59: 1.5 | H59: -2 | I59: 13 | L59: 63 | M59: positif
A60: vertical libre service 2m | B60: PROXIMA | C60: PROXI | D60: PROXIMA PROXI | E60: 620 | F60: 1 | H60: -2 | I60: 13 | L60: 68 | M60: positif
A61: vertical libre service 2m | B61: PROXIMA | C61: RD | D61: PROXIMA RD | E61: 1655 | F61: 0.9 | G61: 1.5 | H61: -10 | I61: 96 | J61: 117 | K61: 855 | L61: 276 | M61: positif
A62: vertical libre service 2m | B62: PROXIMA | C62: RD5 | D62: PROXIMA RD5 | E62: 1940 | F62: 0.9 | G62: 1.5 | H62: -10 | I62: 96 | J62: 117 | K62: 855 | L62: 276 | M62: positif
A63: vertical libre service à portes | B63: AMPLEO | C63: POS | D63: AMPLEO POS | E63: 430 | F63: 0.9 | G63: 1 | H63: -7 | I63: 74 | J63: 311 | K63: 1347 | L63: 141 | M63: positif
A64: vertical libre service à portes | B64: AMPLEO | C64: POSECO | D64: AMPLEO POSECO | E64: 430 | F64: 0.9 | G64: 1 | H64: -7 | I64: 22 | J64: 76 | K64: 1347 | L64: 106 | M64: positif
A65: vertical libre service à portes | B65: AMPLEO | C65: POSECOR | D65: AMPLEO POSECOR | E65: 450 | F65: 0.9 | G65: 1 | H65: -7 | I65: 22 | J65: 83 | K65: 1347 | L65: 122 | M65: positif
A66: vertical libre service à portes | B66: AMPLEO | C66: POSR | D66: AMPLEO POSR | E66: 450 | F66: 0.9 | G66: 1 | H66: -7 | I66: 74 | J66: 335 | K66: 1347 | L66: 141 | M66: positif
A67: X ? | B67: AIS | C67: 46 | D67: =CONCATENATE(B67," ",C67) -> AIS 46 | E67: 560 | F67: 0.9 | G67: 1 | H67: -10 | I67: 30 | J67: 60 | K67: 640 | M67: positif
A68: X ? | B68: QUARTZ | C68: CVA | D68: QUARTZ CVA | E68: 340 | F68: 0.9 | G68: 1.5 | H68: -9 | I68: 25.6 | L68: 213 | M68: positif
A69: X trop vieux | B69: ARCHE | C69: B 09 DR | D69: ARCHE B 09 DR | E69: 2160 | F69: 0.85 | G69: 1.5 | H69: -10 | I69: 96 | J69: 117 | K69: 855 | L69: 276 | M69: positif
A70: X trop vieux | B70: ARCHE | C70: B 09 RF | D70: ARCHE B 09 RF | E70: 1840 | F70: 0.85 | G70: 1.5 | H70: -10 | I70: 96 | J70: 117 | K70: 855 | L70: 276 | M70: positif
A71: X trop vieux | B71: ARCHE | C71: B 10 DR | D71: ARCHE B 10 DR | E71: 2160 | F71: 0.85 | G71: 1.5 | H71: -10 | I71: 96 | J71: 117 | K71: 855 | L71: 276 | M71: positif
A72: X trop vieux | B72: ARCHE | C72: B 10 RF | D72: ARCHE B 10 RF | E72: 1700 | F72: 0.85 | G72: 1.5 | H72: -10 | I72: 96 | J72: 117 | K72: 855 | L72: 276 | M72: positif
A73: X trop vieux | B73: ARCHE | C73: B 11 DR | D73: ARCHE B 11 DR | E73: 2195 | F73: 0.85 | G73: 1.5 | H73: -10 | I73: 96 | J73: 117 | K73: 855 | L73: 276 | M73: positif
A74: X trop vieux | B74: ARCHE | C74: B 11 RF | D74: ARCHE B 11 RF | F74: 0.85 | G74: 1.5 | H74: -10 | I74: 96 | J74: 117 | K74: 855 | L74: 276 | M74: positif
A75: X trop vieux | B75: ARCHE | C75: M 09 DR | D75: ARCHE M 09 DR | E75: 2160 | F75: 0.85 | G75: 1.5 | H75: -10 | I75: 96 | J75: 117 | K75: 855 | L75: 276 | M75: positif
A76: X trop vieux | B76: ARCHE | C76: M 09 RF | D76: ARCHE M 09 RF | E76: 1520 | F76: 0.85 | G76: 1.5 | H76: -10 | I76: 96 | J76: 117 | K76: 855 | L76: 276 | M76: positif
A77: X trop vieux | B77: ARCHE | C77: M 10 DR | D77: ARCHE M 10 DR | E77: 2080 | F77: 0.85 | G77: 1.5 | H77: -10 | I77: 96 | J77: 117 | K77: 855 | L77: 276 | M77: positif
A78: X trop vieux | B78: ARCHE | C78: M 10 RF | D78: ARCHE M 10 RF | E78: 1520 | F78: 0.85 | G78: 1.5 | H78: -10 | I78: 96 | J78: 117 | K78: 855 | L78: 276 | M78: positif
A79: X trop vieux | B79: ARCHE | C79: M 11 DR | D79: ARCHE M 11 DR | E79: 2080 | F79: 0.85 | G79: 1.5 | H79: -10 | I79: 96 | J79: 117 | K79: 855 | L79: 276 | M79: positif
A80: X trop vieux | B80: ARCHE | C80: M 11 RF | D80: ARCHE M 11 RF | E80: 1520 | F80: 0.85 | G80: 1.5 | H80: -10 | I80: 96 | J80: 117 | K80: 855 | L80: 276 | M80: positif
A81: X trop vieux | B81: ARN | C81: 36 | D81: ARN 36 | E81: 1436 | F81: 0.9 | G81: 1.5 | H81: -9.5 | I81: 60 | L81: 250 | M81: positif
A82: X trop vieux | B82: ARN | C82: 46 | D82: ARN 46 | E82: 1342 | F82: 0.9 | G82: 1.5 | H82: -10.5 | I82: 35 | J82: 15 | K82: 320 | L82: 216 | M82: positif
A83: X trop vieux | B83: AZURII | C83: EUS | D83: AZURII EUS | E83: 1870 | F83: 0.9 | G83: 1.5 | H83: -9 | I83: 96 | J83: 117 | K83: 855 | L83: 276 | M83: positif
A84: X trop vieux | B84: AZURII | C84: MUS | D84: AZURII MUS | E84: 1950 | F84: 0.9 | G84: 1.5 | H84: -9 | I84: 96 | J84: 117 | K84: 855 | L84: 276 | M84: positif
A85: X trop vieux | B85: BERLINO | C85: MT | D85: BERLINO MT | E85: =2260/1.25 -> 1808 | F85: 1 | G85: 1.5 | H85: -10 | I85: =(3*55)/3.75 -> 44 | J85: =44/3.75 -> 11.73333333 | K85: =1612/3.75 -> 429.8666667 | L85: =5*(3*36)/3.75 -> 144 | M85: positif
A86: X trop vieux | B86: BERLINO | C86: SL | D86: BERLINO SL | E86: =2230/1.25 -> 1784 | F86: 1 | G86: 1.5 | H86: -6 | I86: =(3*55)/3.75 -> 44 | J86: =44/3.75 -> 11.73333333 | L86: =5*(3*36)/3.75 -> 144 | M86: positif
A87: X trop vieux | B87: DAFNE | C87: L | D87: DAFNE L | E87: 317 | F87: 0.85 | G87: 1.5 | H87: -11 | M87: positif
A88: X trop vieux | B88: NACRE | C88: TPP | D88: NACRE TPP | E88: 320 | F88: 0.9 | G88: 1 | H88: -10 | I88: 64 | J88: 28 | K88: 745 | M88: positif
A89: X trop vieux | B89: PATARA | C89: 800 | D89: PATARA 800 | E89: 960 | F89: 0.9 | G89: 1 | H89: -8 | I89: 38.3 | J89: 10 | K89: =K91 -> 745 | L89: 15.9 | M89: positif
A90: X trop vieux | B90: SAPHIR | C90: L | D90: SAPHIR L | E90: =3375/3.75 -> 900 | F90: 0.85 | G90: 1.5 | H90: -9 | I90: =(1.4*220)/3.75 -> 82.13333333 | J90: =(0.33*220)/3.75 -> 19.36 | K90: =(7.28*220)/3.75 -> 427.0933333 | L90: =(0.94*220*3)/3.75 -> 165.44 | M90: positif
A91: X trop vieux | B91: SAPHIR | C91: LMS | D91: SAPHIR LMS | E91: 1050 | F91: 0.85 | G91: 1 | H91: -9 | I91: 64 | J91: 28 | K91: 745 | L91: 213 | M91: positif
A92: X trop vieux | B92: TURQUOISE | C92: MMT | D92: TURQUOISE MMT | E92: 1926 | F92: 0.9 | G92: 1.5 | H92: -10 | I92: 100 | K92: 855 | L92: 276 | M92: positif
A93: meubles négatifs | B93: Type | C93: Modele | D93: Concaténer | E93: Classe 3 | F93: HACCP | G93: THACCP | H93: T évap | I93: Ventilation | J93: Cordons chauffants | K93: Dégivrage | L93: Éclairage | M93: positif ou négatif
A94: bac | B94: PERTH2 | C94: BAC | D94: =CONCATENATE(B94," ",C94) -> PERTH2 BAC | E94: =1800/3.75 -> 480 | F94: 0.9 | G94: 1 | H94: -35 | I94: =(4*33)/3.75 -> 35.2 | J94: =(77+155+110)/3.75 -> 91.2 | K94: =(3*1215+607)/3.75 -> 1133.866667 | L94: =(3*36)/3.75 -> 28.8 | M94: négatif
A95: bac + portes | B95: KOXKA SURGELE MIXTE | C95: CM446 | D95: KOXKA SURGELE MIXTE CM446 | E95: 906 | H95: -36 | I95: 45 | J95: 360 | K95: 2850 | L95: 105 | M95: négatif
A96: bac + portes | B96: PERTH2 | C96: BAC+PORTE | D96: PERTH2 BAC+PORTE | E96: 1100 | F96: 0.9 | G96: 1 | H96: -35 | I96: 60 | J96: 342 | K96: 2000 | L96: 91 | M96: négatif
A97: bac large | B97: ROTTONDE | C97: 36 | D97: ROTTONDE 36 | E97: 780 | F97: 0.9 | G97: 1 | H97: -35 | I97: 80 | J97: 196 | K97: 2640 | L97: 0 | M97: négatif
A98: bac large | B98: ROTTONDE | C98: 46 | D98: ROTTONDE 46 | E98: 800 | F98: 0.9 | G98: 1 | H98: -35 | I98: 80 | J98: 196 | K98: 2640 | L98: 0 | M98: négatif
A99: bac simple | B99: AGORA | C99: 36 | D99: AGORA 36 | E99: 390 | F99: 0.9 | G99: 1 | H99: -35 | M99: négatif
A100: bac simple | B100: AGORAII | C100: 36 | D100: AGORAII 36 | E100: 350 | F100: 0.9 | G100: 1 | H100: -35 | M100: négatif
A101: bac simple | B101: ELLIPSE | C101: 36 | D101: ELLIPSE 36 | E101: 490 | F101: 0.9 | G101: 1 | H101: -35 | I101: 75 | J101: 92 | K101: 1760 | L101: 0 | M101: négatif
A102: bac simple | B102: ELLIPSE | C102: 46 | D102: ELLIPSE 46 | E102: 490 | F102: 0.9 | G102: 1 | H102: -35 | I102: 75 | J102: 92 | K102: 1760 | L102: 0 | M102: négatif
A103: bacs doubles | B103: AGATE | C103: II | D103: AGATE II | E103: 650 | F103: 0.9 | G103: 1 | H103: -36 | I103: 146 | J103: 413 | K103: 1746 | L103: 264 | M103: négatif
A104: bacs doubles | B104: KOXKA SURGELEE BAC DOUBLE | C104: GH74 | D104: KOXKA SURGELEE BAC DOUBLE GH74 | E104: 980 | H104: -36 | I104: 20 | J104: 170 | K104: 2220 | M104: négatif
A105: bacs doubles sans couvercles | B105: COSMOS | C105: 36 | D105: COSMOS 36 | E105: 740 | F105: 0.9 | G105: 1 | H105: -35 | I105: 80 | J105: 196 | K105: 2640 | M105: négatif
A106: bacs doubles sans couvercles | B106: COSMOS | C106: III | D106: COSMOS III | E106: 800 | F106: 0.9 | G106: 1 | H106: -36 | I106: 70 | J106: 660 | K106: 1584 | M106: négatif
B107: COSMOS | C107: MODULAR COUVERCLE | D107: COSMOS MODULAR COUVERCLE | E107: 325 | F107: 0.9 | G107: 1 | H107: -36 | I107: 62 | J107: 95 | K107: 1500 | M107: négatif
A108: bacs doubles sans couvercles | B108: COSMOS | C108: MODULAR | D108: COSMOS MODULAR | E108: 750 | F108: 0.9 | G108: 1 | H108: -36 | I108: 62 | J108: 95 | K108: 1500 | M108: négatif
A109: vertical | B109: PERTH2 | C109: PORTE | D109: PERTH2 PORTE | E109: 614 | F109: 0.9 | G109: 1 | H109: -35 | I109: =(6*15)/3.75 -> 24 | J109: =(6*80+330+129)/3.75 -> 250.4 | K109: =(2*1400+450)/3.75 -> 866.6666667 | L109: =((3*36)+(7*18))/3.75 -> 62.4 | M109: négatif
A110: vertical libre service à portes | B110: AMPLEO | C110: NEG | D110: AMPLEO NEG | E110: 650 | F110: 0.9 | G110: 1 | H110: -30 | I110: 74 | J110: 311 | K110: 1347 | L110: 141 | M110: négatif
A111: vertical libre service à portes | B111: AMPLEO | C111: NEGECO | D111: AMPLEO NEGECO | E111: 650 | F111: 0.9 | G111: 1 | H111: -30 | I111: 22 | J111: 76 | K111: 1347 | L111: 106 | M111: négatif
A112: vertical libre service à portes | B112: AMPLEO | C112: NEGECOR | D112: AMPLEO NEGECOR | E112: 715 | F112: 0.9 | G112: 1 | H112: -30 | I112: 22 | J112: 83 | K112: 1347 | L112: 122 | M112: négatif
A113: vertical libre service à portes | B113: AMPLEO | C113: NEGR | D113: AMPLEO NEGR | E113: 715 | F113: 0.9 | G113: 1 | H113: -30 | I113: 74 | J113: 335 | K113: 1347 | L113: 141 | M113: négatif
A114: vertical libre service à portes | B114: AMPLEO | C114: R | D114: AMPLEO R | E114: 735 | F114: 0.9 | G114: 1 | H114: -34 | I114: 75 | J114: 333 | K114: 1341 | L114: 132 | M114: négatif
A115: X ? | B115: AIS | C115: 86 | D115: AIS 86 | E115: =2*396 -> 792 | F115: 0.9 | G115: 1.5 | H115: -33 | I115: 35 | J115: 130 | K115: =2*1120 -> 2240 | M115: négatif
A116: X ? | B116: COLISÉE | C116: BAC+PORTE | D116: COLISÉE BAC+PORTE | E116: 1100 | F116: 0.9 | G116: 1 | H116: -35 | I116: 132 | J116: 1072 | K116: 3960 | L116: 232 | M116: négatif
A117: X ? | B117: COLISEUM | C117: BAC | D117: COLISEUM BAC | E117: 415 | F117: 0.9 | G117: 1 | H117: -35 | I117: 66 | J117: 536 | K117: 1980 | L117: 116 | M117: négatif
A118: X ? | B118: COLISEUM | C118: II | D118: COLISEUM II | E118: 1100 | F118: 0.9 | G118: 1 | H118: -35 | I118: 132 | J118: 1072 | K118: 3960 | L118: 232 | M118: négatif
A119: X ? | B119: COLISEUM | C119: III | D119: COLISEUM III | E119: 900 | F119: 0.9 | G119: 1 | H119: -35 | I119: 40 | J119: 395 | K119: 1666 | L119: 215 | M119: négatif
A120: X ? | B120: COLISEUM | C120: MODULAR | D120: COLISEUM MODULAR | E120: 850 | F120: 0.9 | G120: 1 | H120: -35 | I120: 30 | J120: 350 | K120: 1650 | L120: 26 | M120: négatif
A121: X ? | B121: COLISEUM | C121: PLACARD | D121: COLISEUM PLACARD | E121: 645 | F121: 0.9 | G121: 1 | H121: -36 | I121: 66 | J121: 536 | K121: 1980 | L121: 116 | M121: négatif
A122: X ? | B122: COLISEUM-R | C122: PLACARD | D122: COLISEUM-R PLACARD | E122: 1040 | F122: 0.9 | G122: 1 | H122: -36 | I122: 66 | J122: 536 | K122: 1980 | L122: 116 | M122: négatif
A123: X trop vieux | B123: ARCADE | C123: R | D123: ARCADE R | E123: 2400 | F123: 0.95 | G123: 1 | H123: -35 | I123: 215 | J123: 789 | K123: 4200 | L123: 138 | M123: négatif
A124: X trop vieux | B124: ARCADE | C124: S | D124: ARCADE S | E124: 2200 | F124: 0.95 | G124: 1 | H124: -35 | I124: 215 | J124: 789 | K124: 4200 | L124: 138 | M124: négatif
A125: X trop vieux | B125: ATR | C125: 85 | D125: ATR 85 | E125: 800 | F125: 0.95 | G125: 1 | H125: -39 | I125: =180/3.75 -> 48 | J125: =1178/3.75 -> 314.1333333 | K125: =4650/3.75 -> 1240 | L125: 0 | M125: négatif
A126: X trop vieux | B126: DOME | C126: II | D126: DOME II | E126: 2420 | F126: 0.95 | G126: 1 | H126: -35 | I126: 215 | J126: 789 | K126: 4200 | L126: 138 | M126: négatif
A127: X trop vieux | B127: DOME | C127: R | D127: DOME R | E127: 2640 | F127: 0.95 | G127: 1 | H127: -35 | I127: 215 | J127: 789 | K127: 4200 | L127: 138 | M127: négatif
A128: X trop vieux | B128: GRENAT | C128: II | D128: GRENAT II | E128: 750 | F128: 0.9 | G128: 1 | H128: -37 | I128: 70 | J128: 380 | K128: 900 | L128: 270 | M128: négatif
A129: X trop vieux | B129: ONYX-F | C129: II | D129: ONYX-F II | E129: 750 | F129: 0.9 | G129: 1 | H129: -36 | I129: 146 | J129: 441 | K129: 1746 | L129: 368 | M129: négatif
A130: X trop vieux | B130: PATNOS | C130: F | D130: PATNOS F | E130: 680 | F130: 0.9 | G130: 1 | H130: -35 | M130: négatif
A131: X trop vieux | B131: SCPL | C131: S | D131: SCPL S | E131: 715 | F131: 0.95 | G131: 1 | H131: -35 | M131: négatif
A132: X trop vieux | B132: TOPAZE | C132: MPN | D132: TOPAZE MPN | E132: 920 | F132: 0.95 | G132: 1 | H132: -35 | I132: 80 | J132: 196 | K132: 2640 | L132: 0 | M132: négatif
A133: X trop vieux | B133: VELANDO | C133: SG | D133: VELANDO SG | E133: 697 | F133: 0.9 | G133: 1 | H133: -36 | I133: 41 | J133: 344 | K133: 872 | L133: 113 | M133: négatif
D134: GL | E134: 0 | F134: 0 | G134: 0 | H134: 0 | I134: 0 | J134: 0 | K134: 0 | L134: 0
D135: SANS OBJET S.O | E135: 0 | F135: 0 | G135: 0 | H135: 0 | I135: 0 | J135: 0 | K135: 0 | L135: 0
A138: NONNON | B138: PROXIMA | C138: MODULAR | D138: =CONCATENATE(B138,C138) -> PROXIMAMODULAR | E138: 1370 | F138: 0.9 | G138: 1.5 | H138: -6 | I138: 18 | L138: 49
A139: OUIOUI | B139: PROXIMA | C139: PROXI | D139: PROXIMAPROXI | E139: 620 | F139: 1 | H139: -2 | I139: 13 | L139: 68
A140: NONOUI | B140: PROXIMA | C140: RÉTROFITÉ | D140: PROXIMARÉTROFITÉ | E140: 960 | F140: 1 | H140: -2 | I140: 13 | L140: 68
D141: 0 | E141: 0

Sheet Table évap (hidden)
B4: R134a + | C4: P | D4: P | E4: P | F4: Débit | G4: Projection d'air | H4: Modèle | I4: Prix
B5: BP 70 | C5: 854 | D5: =C5*(0.93*0.8) -> 635.376 | E5: =CEILING(D5,5) -> 640 | F5: 500 | G5: 3 | H5: =B5 -> BP 70 | I5: =0.5*D5 -> 317.688
B6: BP 105 | C6: 1335 | D6: =C6*(0.93*0.8) -> 993.24 | E6: =CEILING(D6,5) -> 995 | F6: 1000 | G6: 4 | H6: BP 105 | I6: =0.5*D6 -> 496.62
B7: BP 145 | C7: 1665 | D7: 1238.76 | E7: 1240 | F7: 1000 | G7: 4 | H7: BP 145 | I7: 619.38
B8: BP 215 | C8: 2570 | D8: 1912.08 | E8: 1915 | F8: 1500 | G8: 4 | H8: BP 215 | I8: 956.04
B9: BP 290 | C9: 3590 | D9: 2670.96 | E9: 2675 | F9: 2000 | G9: 4 | H9: BP 290 | I9: 1335.48
B10: BP 415 | C10: 5520 | D10: 4106.88 | E10: 4110 | F10: 3000 | G10: 5 | H10: BP 415 | I10: 2053.44
B11: CAN-CAE 3364 | C11: 7600 | D11: 5654.4 | E11: 5655 | F11: 3600 | G11: 10 | H11: CAN-CAE 3364 | I11: 2827.2
B12: CAN-CAE3464 | C12: 10100 | D12: 7514.4 | E12: 7515 | F12: 4800 | G12: 10 | H12: CAN-CAE3464 | I12: 3757.2
B13: CAN-CAE3564 | C13: 12500 | D13: 9300 | E13: 9300 | F13: 6000 | G13: 10 | H13: CAN-CAE3564 | I13: 4650
B14: CAN-CAE-3664 | C14: 15400 | D14: 11457.6 | E14: 11460 | F14: 7200 | G14: 10 | H14: CAN-CAE-3664 | I14: 5728.8
B15: CAN-CAE4364 | C15: 20900 | D15: 15549.6 | E15: 15550 | F15: 9300 | G15: 14 | H15: CAN-CAE4364 | I15: 7774.8
B16: CAN-CAE4464 | C16: 28000 | D16: 20832 | E16: 20835 | F16: 12400 | G16: 14 | H16: CAN-CAE4464 | I16: 10416
B19: R407F - | C19: P | D19: P | F19: Débit | G19: Projection d'air | H19: Modèle | I19: Prix
B20: CAB 3167 | C20: 1600 | D20: =C20*(0.85*(6/7)) -> 1165.714286 | E20: =CEILING(D20,5) -> 1170 | F20: 1200 | G20: 10 | H20: =B20 -> CAB 3167 | I20: =0.8*D20 -> 932.5714286
B21: CAB 3267 | C21: 3200 | D21: =C21*(0.85*(6/7)) -> 2331.428571 | E21: =CEILING(D21,5) -> 2335 | F21: 2400 | G21: 10 | H21: CAB 3267 | I21: =0.8*D21 -> 1865.142857
B22: CAB 3367 | C22: 4900 | D22: 3570 | E22: 3570 | F22: 3600 | G22: 10 | H22: CAB 3367 | I22: 2856
B23: CAB 3467 | C23: 6700 | D23: 4881.428571 | E23: 4885 | F23: 4800 | G23: 10 | H23: CAB 3467 | I23: 3905.142857
B24: CAB 3567 | C24: 8100 | D24: 5901.428571 | E24: 5905 | F24: 6350 | G24: 10 | H24: CAB 3567 | I24: 4721.142857
B25: CAB 3667 | C25: 9500 | D25: =C25*(0.85*(6/7)) -> 6921.428571 | E25: =CEILING(D25,5) -> 6925 | F25: 7620 | G25: 10 | H25: CAB 3667 | I25: =0.8*D25 -> 5537.142857
B26: CAB 4367 | C26: 12100 | D26: =C26*(0.85*(6/7)) -> 8815.714286 | E26: =CEILING(D26,5) -> 8820 | F26: 9750 | G26: 14 | H26: CAB 4367 | I26: =0.8*D26 -> 7052.571429
B27: CAB 4467 | C27: 16400 | D27: =C27*(0.85*(6/7)) -> 11948.57143 | E27: =CEILING(D27,5) -> 11950 | F27: 13000 | G27: 14 | H27: CAB 4467 | I27: =0.8*D27 -> 9558.857143
B28: CAB 5367 | C28: 22600 | D28: =C28*(0.85*(6/7)) -> 16465.71429 | E28: =CEILING(D28,5) -> 16470 | F28: 18300 | G28: 20 | H28: CAB 5367 | I28: =0.8*D28 -> 13172.57143
B30: BP 290 | C30: 3590 | D30: 2670.96 | E30: 2675 | F30: 2000 | G30: 4 | H30: BP 290 | I30: 1335.48

Sheet Decompo DB (hidden)
A1: DECOMPOSITION DES MEUBLES
A2: Longueur hors tout | B2: 75 | C2: 100 | D2: 125 | E2: 187.5 | F2: 250 | G2: 375
A3: =J3/100 -> 0.75 | B3: 1 | C3: 0 | D3: 0 | E3: 0 | F3: 0 | H3: =IF(B3=0,"",B3&" x 75 / ")&IF(C3=0,"",C3&" x 100 / ")&IF(D3=0,"",D3&" x 125 / ")&IF(E3=0,"",E3&" x 200 / ")&IF(F3=0,"",F3&" x 250 / ")&IF(G3=0,"",G3&" x 375 / ") -> 1 x 75 / | I3: =SUM(B3:G3) -> 1 | J3: =B3*$B$2+C3*$C$2+D3*$D$2+E3*$E$2+F3*$F$2+G3*$G$2 -> 75 | K3: =J3/100/A3 -> 1
A4: =J4/100 -> 1 | C4: 1 | H4: 1 x 100 / | I4: 1 | J4: 100 | K4: 1
A5: 1.25 | D5: 1 | H5: 1 x 125 / | I5: 1 | J5: 125 | K5: 1
A6: 1.5 | B6: 2 | H6: 2 x 75 / | I6: 2 | J6: 150 | K6: 1
A7: 1.75 | B7: 1 | C7: 1 | H7: 1 x 75 / 1 x 100 / | I7: 2 | J7: 175 | K7: 1
A8: 1.875 | E8: 1 | H8: =IF(B8=0,"",B8&" x 75 / ")&IF(C8=0,"",C8&" x 100 / ")&IF(D8=0,"",D8&" x 125 / ")&IF(E8=0,"",E8&" x 188 / ")&IF(F8=0,"",F8&" x 250 / ")&IF(G8=0,"",G8&" x 375 / ") -> 1 x 188 / | I8: 1 | J8: 187.5 | K8: 1
A9: 2.25 | C9: 1 | D9: 1 | H9: 1 x 100 / 1 x 125 / | I9: 2 | J9: 225 | K9: 1
A10: 2.5 | F10: 1 | H10: 1 x 250 / | I10: 1 | J10: 250 | K10: 1
A11: 2.625 | B11: 1 | E11: 1 | H11: =IF(B11=0,"",B11&" x 75 / ")&IF(C11=0,"",C11&" x 100 / ")&IF(D11=0,"",D11&" x 125 / ")&IF(E11=0,"",E11&" x 188 / ")&IF(F11=0,"",F11&" x 250 / ")&IF(G11=0,"",G11&" x 375 / ") -> 1 x 75 / 1 x 188 / | I11: 2 | J11: 262.5 | K11: 1
A12: 2.875 | C12: 1 | E12: 1 | H12: =IF(B12=0,"",B12&" x 75 / ")&IF(C12=0,"",C12&" x 100 / ")&IF(D12=0,"",D12&" x 125 / ")&IF(E12=0,"",E12&" x 188 / ")&IF(F12=0,"",F12&" x 250 / ")&IF(G12=0,"",G12&" x 375 / ") -> 1 x 100 / 1 x 188 / | I12: 2 | J12: 287.5 | K12: 1
A13: 3.125 | D13: 1 | E13: 1 | H13: 1 x 125 / 1 x 200 / | I13: 2 | J13: 312.5 | K13: 1
A14: 3.5 | C14: 1 | F14: 1 | H14: 1 x 100 / 1 x 250 / | I14: 2 | J14: 350 | K14: 1
A15: 3.75 | G15: 1 | H15: 1 x 375 / | I15: 1 | J15: 375 | K15: 1
A16: 4.125 | C16: 1 | D16: 1 | E16: 1 | H16: 1 x 100 / 1 x 125 / 1 x 200 / | I16: 3 | J16: 412.5 | K16: 1
A17: 4.375 | E17: 1 | F17: 1 | H17: 1 x 200 / 1 x 250 / | I17: 2 | J17: 437.5 | K17: 1
A18: 4.75 | C18: 1 | G18: 1 | H18: 1 x 100 / 1 x 375 / | I18: 2 | J18: 475 | K18: 1
A19: 5 | F19: 2 | H19: 2 x 250 / | I19: 2 | J19: 500 | K19: 1
A20: 5.375 | C20: 1 | E20: 1 | F20: 1 | H20: 1 x 100 / 1 x 200 / 1 x 250 / | I20: 3 | J20: 537.5 | K20: 1
A21: 5.625 | E21: 1 | G21: 1 | H21: 1 x 200 / 1 x 375 / | I21: 2 | J21: 562.5 | K21: 1
A22: 6 | C22: 1 | F22: 2 | H22: 1 x 100 / 2 x 250 / | I22: 3 | J22: 600 | K22: 1
A23: 6.25 | F23: 1 | G23: 1 | H23: 1 x 250 / 1 x 375 / | I23: 2 | J23: 625 | K23: 1
A24: 6.625 | C24: 1 | E24: 1 | G24: 1 | H24: 1 x 100 / 1 x 200 / 1 x 375 / | I24: 3 | J24: 662.5 | K24: 1
A25: 6.875 | E25: 1 | F25: 2 | H25: 1 x 200 / 2 x 250 / | I25: 3 | J25: 687.5 | K25: 1
A26: 7.25 | C26: 1 | F26: 1 | G26: 1 | H26: 1 x 100 / 1 x 250 / 1 x 375 / | I26: 3 | J26: 725 | K26: 1
A27: 7.5 | G27: 2 | H27: 2 x 375 / | I27: 2 | J27: 750 | K27: 1
A28: 7.875 | C28: 1 | E28: 1 | F28: 2 | H28: 1 x 100 / 1 x 200 / 2 x 250 / | I28: 4 | J28: 787.5 | K28: 1
A29: 8.125 | E29: 1 | F29: 1 | G29: 1 | H29: 1 x 200 / 1 x 250 / 1 x 375 / | I29: 3 | J29: 812.5 | K29: 1
A30: 8.5 | C30: 1 | G30: 2 | H30: 1 x 100 / 2 x 375 / | I30: 3 | J30: 850 | K30: 1
A31: 8.75 | F31: 2 | G31: 1 | H31: 2 x 250 / 1 x 375 / | I31: 3 | J31: 875 | K31: 1
A32: 9.125 | C32: 1 | E32: 1 | F32: 1 | G32: 1 | H32: 1 x 100 / 1 x 200 / 1 x 250 / 1 x 375 / | I32: 4 | J32: 912.5 | K32: 1
A33: 9.375 | E33: 1 | G33: 2 | H33: 1 x 200 / 2 x 375 / | I33: 3 | J33: 937.5 | K33: 1
A34: 9.75 | C34: 1 | F34: 2 | G34: 1 | H34: 1 x 100 / 2 x 250 / 1 x 375 / | I34: 4 | J34: 975 | K34: 1
A35: 10 | F35: 1 | G35: 2 | H35: 1 x 250 / 2 x 375 / | I35: 3 | J35: 1000 | K35: 1
A36: 10.375 | C36: 1 | E36: 1 | G36: 2 | H36: 1 x 100 / 1 x 200 / 2 x 375 / | I36: 4 | J36: 1037.5 | K36: 1
A37: 10.625 | E37: 1 | F37: 2 | G37: 1 | H37: 1 x 200 / 2 x 250 / 1 x 375 / | I37: 4 | J37: 1062.5 | K37: 1
A38: 11 | C38: 1 | F38: 1 | G38: 2 | H38: 1 x 100 / 1 x 250 / 2 x 375 / | I38: 4 | J38: 1100 | K38: 1
A39: 11.25 | G39: 3 | H39: 3 x 375 / | I39: 3 | J39: 1125 | K39: 1
A40: 11.625 | C40: 1 | D40: 1 | E40: 1 | G40: 2 | H40: 1 x 100 / 1 x 125 / 1 x 200 / 2 x 375 / | I40: 5 | J40: 1162.5 | K40: 1
A41: 11.875 | E41: 1 | F41: 1 | G41: 2 | H41: 1 x 200 / 1 x 250 / 2 x 375 / | I41: 4 | J41: 1187.5 | K41: 1
A42: 12.25 | C42: 1 | G42: 3 | H42: 1 x 100 / 3 x 375 / | I42: 4 | J42: 1225 | K42: 1
A43: 12.5 | F43: 2 | G43: 2 | H43: 2 x 250 / 2 x 375 / | I43: 4 | J43: 1250 | K43: 1 | M43: =12.5+0.625 -> 13.125
A44: 12.875 | C44: 1 | E44: 1 | F44: 1 | G44: 2 | H44: 1 x 100 / 1 x 200 / 1 x 250 / 2 x 375 / | I44: 5 | J44: 1287.5 | K44: 1
A45: 13.125 | E45: 1 | G45: 3 | H45: =IF(B45=0,"",B45&" x 75 / ")&IF(C45=0,"",C45&" x 100 / ")&IF(D45=0,"",D45&" x 125 / ")&IF(E45=0,"",E45&" x 200 / ")&IF(F45=0,"",F45&" x 250 / ")&IF(G45=0,"",G45&" x 375 / ") -> 1 x 200 / 3 x 375 / | I45: =SUM(B45:G45) -> 4 | J45: =B45*$B$2+C45*$C$2+D45*$D$2+E45*$E$2+F45*$F$2+G45*$G$2 -> 1312.5 | K45: =J45/100/A45 -> 1
A46: 13.5 | C46: 1 | D46: 1 | G46: 3 | H46: 1 x 100 / 1 x 125 / 3 x 375 / | I46: 5 | J46: 1350 | K46: 1
A47: 13.75 | F47: 1 | G47: 3 | H47: 1 x 250 / 3 x 375 / | I47: 4 | J47: 1375 | K47: 1
A48: 14.125 | C48: 1 | E48: 1 | G48: 3 | H48: 1 x 100 / 1 x 200 / 3 x 375 / | I48: 5 | J48: 1412.5 | K48: 1
A49: 14.375 | E49: 1 | F49: 2 | G49: 2 | H49: 1 x 200 / 2 x 250 / 2 x 375 / | I49: 5 | J49: 1437.5 | K49: 1
A50: 14.75 | C50: 1 | F50: 1 | G50: 3 | H50: 1 x 100 / 1 x 250 / 3 x 375 / | I50: 5 | J50: 1475 | K50: 1 | M50: =12.5+0.75 -> 13.25
A51: 15 | G51: 4 | H51: 4 x 375 / | I51: 4 | J51: 1500 | K51: 1
A52: 15.375 | C52: 1 | D52: 1 | E52: 1 | G52: 3 | H52: 1 x 100 / 1 x 125 / 1 x 200 / 3 x 375 / | I52: 6 | J52: 1537.5 | K52: 1
A53: 15.625 | E53: 1 | F53: 1 | G53: 3 | H53: 1 x 200 / 1 x 250 / 3 x 375 / | I53: 5 | J53: 1562.5 | K53: 1
A54: 16 | C54: 1 | G54: 4 | H54: 1 x 100 / 4 x 375 / | I54: 5 | J54: 1600 | K54: 1
A55: 16.25 | F55: 2 | G55: 3 | H55: 2 x 250 / 3 x 375 / | I55: 5 | J55: 1625 | K55: 1
A56: 16.625 | C56: 1 | E56: 1 | F56: 1 | G56: 3 | H56: 1 x 100 / 1 x 200 / 1 x 250 / 3 x 375 / | I56: 6 | J56: 1662.5 | K56: 1
A57: 16.875 | E57: 1 | G57: 4 | H57: 1 x 200 / 4 x 375 / | I57: 5 | J57: 1687.5 | K57: 1
A58: 17.25 | C58: 1 | D58: 1 | G58: 4 | H58: 1 x 100 / 1 x 125 / 4 x 375 / | I58: 6 | J58: 1725 | K58: 1
A59: 17.5 | F59: 1 | G59: 4 | H59: 1 x 250 / 4 x 375 / | I59: 5 | J59: 1750 | K59: 1
A60: 17.625 | B60: 1 | E60: 1 | G60: 4 | H60: 1 x 75 / 1 x 200 / 4 x 375 / | I60: 6 | J60: 1762.5 | K60: 1
A61: 17.875 | C61: 1 | E61: 1 | G61: 4 | H61: 1 x 100 / 1 x 200 / 4 x 375 / | I61: 6 | J61: 1787.5 | K61: 1
A62: 18.125 | E62: 1 | F62: 2 | G62: 3 | H62: 1 x 200 / 2 x 250 / 3 x 375 / | I62: 6 | J62: 1812.5 | K62: 1
A63: 18.5 | C63: 1 | F63: 1 | G63: 4 | H63: 1 x 100 / 1 x 250 / 4 x 375 / | I63: 6 | J63: 1850 | K63: 1
A64: 18.75 | G64: 5 | H64: 5 x 375 / | I64: 5 | J64: 1875 | K64: 1
A65: 19.125 | C65: 1 | D65: 1 | E65: 1 | G65: 4 | H65: 1 x 100 / 1 x 125 / 1 x 200 / 4 x 375 / | I65: 7 | J65: 1912.5 | K65: 1
A66: 19.375 | E66: 1 | F66: 1 | G66: 4 | H66: 1 x 200 / 1 x 250 / 4 x 375 / | I66: 6 | J66: 1937.5 | K66: 1
A67: 19.75 | C67: 1 | G67: 5 | H67: =IF(B67=0,"",B67&" x 75 / ")&IF(C67=0,"",C67&" x 100 / ")&IF(D67=0,"",D67&" x 125 / ")&IF(E67=0,"",E67&" x 200 / ")&IF(F67=0,"",F67&" x 250 / ")&IF(G67=0,"",G67&" x 375 / ") -> 1 x 100 / 5 x 375 / | I67: =SUM(B67:G67) -> 6 | J67: =B67*$B$2+C67*$C$2+D67*$D$2+E67*$E$2+F67*$F$2+G67*$G$2 -> 1975 | K67: =J67/100/A67 -> 1
A68: =J68/100 -> 20 | F68: 2 | G68: 4 | H68: 2 x 250 / 4 x 375 / | I68: 6 | J68: 2000 | K68: 1
A69: 20.5 | B69: 1 | C69: 1 | G69: 5 | H69: 1 x 75 / 1 x 100 / 5 x 375 / | I69: 7 | J69: 2050 | K69: 1
A70: 20.625 | E70: 1 | G70: 5 | H70: 1 x 200 / 5 x 375 / | I70: 6 | J70: 2062.5 | K70: 1

Sheet Puissance unitaire (hidden)
B1: Type | C1: Modele | D1: Concaténer | E1: Classe 3 | F1: HACCP | G1: THACCP | H1: T évap | I1: Ventilation | J1: Cordons chauffants | K1: Dégivrage | L1: Éclairage
B2: AERIA | C2: EFFICIA | D2: =CONCATENATE(B2,C2) -> AERIAEFFICIA | E2: 1260 | F2: 0.9 | G2: 1.5 | H2: -6 | I2: 8 | L2: 26
B3: AERIA | C3: II | D3: AERIAII | E3: 1800 | F3: 0.9 | G3: 1.5 | H3: -8 | I3: =240/3.75 -> 64 | J3: 25 | K3: =2550/3.75 -> 680 | L3: 148
B4: AERIA | C4: MODULAR | D4: AERIAMODULAR | E4: 1260 | F4: 0.9 | G4: 1.5 | H4: -6 | I4: 8 | L4: 26
B5: AERIA | C5: VOLUM | D5: AERIAVOLUM | E5: 1245 | F5: 0.9 | G5: 1.5 | H5: -6 | I5: 8 | L5: 26
B6: AGATE | C6: II | D6: AGATEII | E6: 650 | F6: 0.9 | G6: 1 | H6: -36 | I6: 146 | J6: 413 | K6: 1746 | L6: 264
B7: AGORA | C7: 36 | D7: AGORA36 | E7: 390 | F7: 0.9 | G7: 1 | H7: -35
B8: AGORAII | C8: 36 | D8: AGORAII36 | E8: 350 | F8: 0.9 | G8: 1 | H8: -35
B9: AGORAPOS | C9: 36 | D9: AGORAPOS36 | E9: 295 | F9: 0.9 | G9: 1 | H9: -10
B10: AGORAPOS | C10: 46 | D10: AGORAPOS46 | E10: 300 | F10: 0.9 | G10: 1 | H10: -10
B11: AIS | C11: 46 | D11: AIS46 | E11: 560 | F11: 0.9 | G11: 1 | H11: -10 | I11: 30 | J11: 60 | K11: 640
B12: AIS | C12: 86 | D12: AIS86 | E12: =2*396 -> 792 | F12: 0.9 | G12: 1.5 | H12: -33 | I12: 35 | J12: 130 | K12: =2*1120 -> 2240
B13: AMARANTE | C13: LS | D13: AMARANTELS | E13: 480 | F13: 0.9 | G13: 1 | H13: -10 | I13: 25.6 | J13: 85.1 | K13: 585 | L13: 67
B14: AMARANTE | C14: VE | D14: AMARANTEVE | E14: 345 | F14: 0.9 | G14: 1 | H14: -10 | I14: 25.6 | J14: 85.1 | K14: 585 | L14: 67
B15: AMPHI | C15: 11 | D15: AMPHI11 | E15: 1580 | F15: 0.9 | G15: 1 | H15: -10 | I15: 64 | J15: 28 | K15: 745 | L15: 213
B16: AMPHI | C16: 12 | D16: AMPHI12 | E16: 1610 | F16: 0.9 | G16: 1 | H16: -10 | I16: 64 | J16: 28 | K16: 745 | L16: 213
B17: AMPLEO | C17: NEG | D17: AMPLEONEG | E17: 650 | F17: 0.9 | G17: 1 | H17: -30 | I17: 74 | J17: 311 | K17: 1347 | L17: 141
B18: AMPLEO | C18: NEGECO | D18: AMPLEONEGECO | E18: 650 | F18: 0.9 | G18: 1 | H18: -30 | I18: 22 | J18: 76 | K18: 1347 | L18: 106
B19: AMPLEO | C19: NEGECOR | D19: AMPLEONEGECOR | E19: 715 | F19: 0.9 | G19: 1 | H19: -30 | I19: 22 | J19: 83 | K19: 1347 | L19: 122
B20: AMPLEO | C20: NEGR | D20: AMPLEONEGR | E20: 715 | F20: 0.9 | G20: 1 | H20: -30 | I20: 74 | J20: 335 | K20: 1347 | L20: 141
B21: AMPLEO | C21: POS | D21: AMPLEOPOS | E21: 430 | F21: 0.9 | G21: 1 | H21: -7 | I21: 74 | J21: 311 | K21: 1347 | L21: 141
B22: AMPLEO | C22: POSECO | D22: AMPLEOPOSECO | E22: 430 | F22: 0.9 | G22: 1 | H22: -7 | I22: 22 | J22: 76 | K22: 1347 | L22: 106
B23: AMPLEO | C23: POSECOR | D23: AMPLEOPOSECOR | E23: 450 | F23: 0.9 | G23: 1 | H23: -7 | I23: 22 | J23: 83 | K23: 1347 | L23: 122
B24: AMPLEO | C24: POSR | D24: AMPLEOPOSR | E24: 450 | F24: 0.9 | G24: 1 | H24: -7 | I24: 74 | J24: 335 | K24: 1347 | L24: 141
B25: AMPLEO | C25: R | D25: AMPLEOR | E25: 735 | F25: 0.9 | G25: 1 | H25: -34 | I25: 75 | J25: 333 | K25: 1341 | L25: 132
B26: ARCADE | C26: R | D26: ARCADER | E26: 2400 | F26: 0.95 | G26: 1 | H26: -35 | I26: 215 | J26: 789 | K26: 4200 | L26: 138
B27: ARCADE | C27: S | D27: ARCADES | E27: 2200 | F27: 0.95 | G27: 1 | H27: -35 | I27: 215 | J27: 789 | K27: 4200 | L27: 138
B28: ARCHE | C28: B 09 DR | D28: ARCHEB 09 DR | E28: 2160 | F28: 0.85 | G28: 1.5 | H28: -10 | I28: 96 | J28: 117 | K28: 855 | L28: 276
B29: ARCHE | C29: B 09 RF | D29: ARCHEB 09 RF | E29: 1840 | F29: 0.85 | G29: 1.5 | H29: -10 | I29: 96 | J29: 117 | K29: 855 | L29: 276
B30: ARCHE | C30: B 10 DR | D30: ARCHEB 10 DR | E30: 2160 | F30: 0.85 | G30: 1.5 | H30: -10 | I30: 96 | J30: 117 | K30: 855 | L30: 276
B31: ARCHE | C31: B 10 RF | D31: ARCHEB 10 RF | E31: 1700 | F31: 0.85 | G31: 1.5 | H31: -10 | I31: 96 | J31: 117 | K31: 855 | L31: 276
B32: ARCHE | C32: B 11 DR | D32: ARCHEB 11 DR | E32: 2195 | F32: 0.85 | G32: 1.5 | H32: -10 | I32: 96 | J32: 117 | K32: 855 | L32: 276
B33: ARCHE | C33: B 11 RF | D33: ARCHEB 11 RF | F33: 0.85 | G33: 1.5 | H33: -10 | I33: 96 | J33: 117 | K33: 855 | L33: 276
B34: ARCHE | C34: M 09 DR | D34: ARCHEM 09 DR | E34: 2160 | F34: 0.85 | G34: 1.5 | H34: -10 | I34: 96 | J34: 117 | K34: 855 | L34: 276
B35: ARCHE | C35: M 09 RF | D35: ARCHEM 09 RF | E35: 1520 | F35: 0.85 | G35: 1.5 | H35: -10 | I35: 96 | J35: 117 | K35: 855 | L35: 276
B36: ARCHE | C36: M 10 DR | D36: ARCHEM 10 DR | E36: 2080 | F36: 0.85 | G36: 1.5 | H36: -10 | I36: 96 | J36: 117 | K36: 855 | L36: 276
B37: ARCHE | C37: M 10 RF | D37: ARCHEM 10 RF | E37: 1520 | F37: 0.85 | G37: 1.5 | H37: -10 | I37: 96 | J37: 117 | K37: 855 | L37: 276
B38: ARCHE | C38: M 11 DR | D38: ARCHEM 11 DR | E38: 2080 | F38: 0.85 | G38: 1.5 | H38: -10 | I38: 96 | J38: 117 | K38: 855 | L38: 276
B39: ARCHE | C39: M 11 RF | D39: ARCHEM 11 RF | E39: 1520 | F39: 0.85 | G39: 1.5 | H39: -10 | I39: 96 | J39: 117 | K39: 855 | L39: 276
B40: ARN | C40: 36 | D40: ARN36 | E40: 1436 | F40: 0.9 | G40: 1.5 | H40: -9.5 | I40: 60 | L40: 250
B41: ARN | C41: 46 | D41: ARN46 | E41: 1342 | F41: 0.9 | G41: 1.5 | H41: -10.5 | I41: 35 | J41: 15 | K41: 320 | L41: 216
B42: ATR | C42: 85 | D42: ATR85 | E42: 800 | F42: 0.95 | G42: 1 | H42: -39 | I42: =180/3.75 -> 48 | J42: =1178/3.75 -> 314.1333333 | K42: =4650/3.75 -> 1240 | L42: 0
B43: AZURII | C43: EUS | D43: AZURIIEUS | E43: 1870 | F43: 0.9 | G43: 1.5 | H43: -9 | I43: 96 | J43: 117 | K43: 855 | L43: 276
B44: AZURII | C44: MUS | D44: AZURIIMUS | E44: 1950 | F44: 0.9 | G44: 1.5 | H44: -9 | I44: 96 | J44: 117 | K44: 855 | L44: 276
B45: BERLINO | C45: MT | D45: BERLINOMT | E45: =2260/1.25 -> 1808 | F45: 1 | G45: 1.5 | H45: -10 | I45: =(3*55)/3.75 -> 44 | J45: =44/3.75 -> 11.73333333 | K45: =1612/3.75 -> 429.8666667 | L45: =5*(3*36)/3.75 -> 144
B46: BERLINO | C46: SL | D46: BERLINOSL | E46: =2230/1.25 -> 1784 | F46: 1 | G46: 1.5 | H46: -6 | I46: =(3*55)/3.75 -> 44 | J46: =44/3.75 -> 11.73333333 | L46: =5*(3*36)/3.75 -> 144
B47: COLISÉE | C47: BAC+PORTE | D47: COLISÉEBAC+PORTE | E47: 1100 | F47: 0.9 | G47: 1 | H47: -35 | I47: 132 | J47: 1072 | K47: 3960 | L47: 232
B48: COLISEUM | C48: BAC | D48: COLISEUMBAC | E48: 415 | F48: 0.9 | G48: 1 | H48: -35 | I48: 66 | J48: 536 | K48: 1980 | L48: 116
B49: COLISEUM | C49: II | D49: COLISEUMII | E49: 1100 | F49: 0.9 | G49: 1 | H49: -35 | I49: 132 | J49: 1072 | K49: 3960 | L49: 232
B50: COLISEUM | C50: III | D50: COLISEUMIII | E50: 900 | F50: 0.9 | G50: 1 | H50: -35 | I50: 40 | J50: 395 | K50: 1666 | L50: 215
B51: COLISEUM | C51: MODULAR | D51: COLISEUMMODULAR | E51: 850 | F51: 0.9 | G51: 1 | H51: -35 | I51: 30 | J51: 350 | K51: 1650 | L51: 26
B52: COLISEUM | C52: PLACARD | D52: COLISEUMPLACARD | E52: 645 | F52: 0.9 | G52: 1 | H52: -36 | I52: 66 | J52: 536 | K52: 1980 | L52: 116
B53: COLISEUM-R | C53: PLACARD | D53: COLISEUM-RPLACARD | E53: 1040 | F53: 0.9 | G53: 1 | H53: -36 | I53: 66 | J53: 536 | K53: 1980 | L53: 116
B54: CORALIS | C54: EU | D54: CORALISEU | E54: 1860 | F54: 0.9 | G54: 1 | H54: -10 | I54: 60.8 | K54: 320 | L54: 36
B55: COSMOS | C55: 36 | D55: COSMOS36 | E55: 740 | F55: 0.9 | G55: 1 | H55: -35 | I55: 80 | J55: 196 | K55: 2640
B56: COSMOS | C56: III | D56: COSMOSIII | E56: 800 | F56: 0.9 | G56: 1 | H56: -36 | I56: 70 | J56: 660 | K56: 1584
B57: COSMOS | C57: MODULAR | D57: COSMOSMODULAR | E57: 750 | F57: 0.9 | G57: 1 | H57: -36 | I57: 62 | J57: 95 | K57: 1500
B58: COSMOSPOS | C58: III | D58: COSMOSPOSIII | E58: 540 | F58: 0.9 | G58: 1 | H58: -9 | I58: 70 | J58: 43
B59: DAFNE | C59: L | D59: DAFNEL | E59: 317 | F59: 0.85 | G59: 1.5 | H59: -11
B60: DOME | C60: II | D60: DOMEII | E60: 2420 | F60: 0.95 | G60: 1 | H60: -35 | I60: 215 | J60: 789 | K60: 4200 | L60: 138
B61: DOME | C61: R | D61: DOMER | E61: 2640 | F61: 0.95 | G61: 1 | H61: -35 | I61: 215 | J61: 789 | K61: 4200 | L61: 138
B62: DUO | C62: II | D62: DUOII | E62: 800 | F62: 0.9 | G62: 1 | H62: -8 | I62: 32 | J62: 40 | L62: 40
B63: DUO | C63: MODULAR | D63: DUOMODULAR | E63: 330 | F63: 0.9 | G63: 1 | H63: -8 | I63: 68 | K63: 337 | L63: 47
B64: ELLIPSE | C64: 36 | D64: ELLIPSE36 | E64: 490 | F64: 0.9 | G64: 1 | H64: -35 | I64: 75 | J64: 92 | K64: 1760 | L64: 0
B65: ELLIPSE | C65: 46 | D65: ELLIPSE46 | E65: 490 | F65: 0.9 | G65: 1 | H65: -35 | I65: 75 | J65: 92 | K65: 1760 | L65: 0
B66: EMERAUDE | C66: EUS | D66: =CONCATENATE(B66,C66) -> EMERAUDEEUS | E66: 1470 | F66: 0.9 | G66: 1.5 | H66: -7 | I66: =(0.21*220)/2.5 -> 18.48 | K66: =(4.8*380)/2.5 -> 729.6 | L66: =(0.9*220)/2.5 -> 79.2
B67: ENVERGURE | C67: LS | D67: ENVERGURELS | E67: 460 | F67: 0.9 | G67: 1 | H67: -10 | I67: 25.6 | J67: 85.1 | K67: 585 | L67: 67
B68: ENVERGURE | C68: VE | D68: ENVERGUREVE | E68: 420 | F68: 0.9 | G68: 1 | H68: -10 | I68: 25.6 | J68: 85.1 | K68: 585 | L68: 67
B69: FORUM | C69: B 09 DR | D69: FORUMB 09 DR | E69: 2035 | F69: 0.85 | G69: 1.5 | H69: -10 | I69: 96 | J69: 117 | K69: 855 | L69: 276
B70: FORUM | C70: B 09 RF | D70: FORUMB 09 RF | E70: 1485 | F70: 0.85 | G70: 1.5 | H70: -10 | I70: 96 | J70: 117 | K70: 855 | L70: 276
B71: FORUM | C71: B 10 DR | D71: FORUMB 10 DR | E71: 2035 | F71: 0.85 | G71: 1.5 | H71: -10 | I71: 96 | J71: 117 | K71: 855 | L71: 276
B72: FORUM | C72: B 10 RF | D72: FORUMB 10 RF | E72: 1485 | F72: 0.85 | G72: 1.5 | H72: -10 | I72: 96 | J72: 117 | K72: 855 | L72: 276
B73: FORUM | C73: B 11 DR | D73: FORUMB 11 DR | E73: 1890 | F73: 0.85 | G73: 1.5 | H73: -10 | I73: 96 | J73: 117 | K73: 855 | L73: 276
B74: FORUM | C74: B 11 RF | D74: FORUMB 11 RF | E74: 1490 | F74: 0.85 | G74: 1.5 | H74: -10 | I74: 96 | J74: 117 | K74: 855 | L74: 276
B75: FORUM | C75: M 09 DR | D75: FORUMM 09 DR | E75: 1795 | F75: 0.85 | G75: 1.5 | H75: -10 | I75: 96 | J75: 117 | K75: 855 | L75: 276
B76: FORUM | C76: M 09 RF | D76: FORUMM 09 RF | E76: 1330 | F76: 0.85 | G76: 1.5 | H76: -10 | I76: 96 | J76: 117 | K76: 855 | L76: 276
B77: FORUM | C77: M 10 DR | D77: FORUMM 10 DR | E77: 1795 | F77: 0.85 | G77: 1.5 | H77: -10 | I77: 96 | J77: 117 | K77: 855 | L77: 276
B78: FORUM | C78: M 10 RF | D78: FORUMM 10 RF | E78: 1330 | F78: 0.85 | G78: 1.5 | H78: -10 | I78: 96 | J78: 117 | K78: 855 | L78: 276
B79: FORUM | C79: M 11 DR | D79: FORUMM 11 DR | E79: 1795 | F79: 0.85 | G79: 1.5 | H79: -10 | I79: 96 | J79: 117 | K79: 855 | L79: 276
B80: FORUM | C80: M 11 RF | D80: FORUMM 11 RF | E80: 1330 | F80: 0.85 | G80: 1.5 | H80: -10 | I80: 96 | J80: 117 | K80: 855 | L80: 276
A81: GRENAT | B81: GRENAT | C81: II | D81: GRENATII | E81: 750 | F81: 0.9 | G81: 1 | H81: -37 | I81: 70 | J81: 380 | K81: 900 | L81: 270
B82: KOXKA bacpos | C82: VSS726 | D82: KOXKA bacposVSS726 | E82: 416 | H82: -8 | I82: 15 | J82: 55 | L82: 50
B83: KOXKA SURGELE MIXTE | C83: CM446 | D83: KOXKA SURGELE MIXTECM446 | E83: 906 | H83: -36 | I83: 45 | J83: 360 | K83: 2850 | L83: 105
B84: KOXKA SURGELEE BAC DOUBLE | C84: GH74 | D84: KOXKA SURGELEE BAC DOUBLEGH74 | E84: 980 | H84: -36 | I84: 20 | J84: 170 | K84: 2220
B85: KOXKA SV LS | C85: SVS724 | D85: KOXKA SV LSSVS724 | E85: 906 | H85: -8 | I85: 50 | J85: 15 | L85: 145
B86: KOXKA Vertical LS | C86: MCD216 | D86: KOXKA Vertical LSMCD216 | E86: 1700 | H86: -8 | I86: 60 | L86: 50
B87: KOXKA Vertical LS | C87: MCD226 | D87: KOXKA Vertical LSMCD226 | E87: 1556 | H87: -8 | I87: 85 | L87: 50
B88: KOXKA Vertical LS | C88: MCP226 | D88: KOXKA Vertical LSMCP226 | E88: 1843 | H88: -8 | I88: 90 | L88: 195
B89: LOGIA | C89: 11 | D89: LOGIA11 | E89: 1265 | F89: 0.9 | G89: 1 | H89: -10 | I89: 64 | J89: 28 | K89: 745 | L89: 213
B90: LOGIA | C90: 12 | D90: LOGIA12 | E90: 1370 | F90: 0.9 | G90: 1 | H90: -10 | I90: 64 | J90: 28 | K90: 745 | L90: 213
B91: MAXIMA | C91: LC2 | D91: MAXIMALC2 | E91: 446 | F91: 0.9 | G91: 1 | H91: -9 | I91: 35 | J91: 35 | K91: 372 | L91: 42
B92: MAXIMA | C92: LDCLS | D92: MAXIMALDCLS | E92: 400 | F92: 0.9 | G92: 1 | H92: -8 | I92: 35 | J92: 35 | K92: 372 | L92: 42
B93: MAXIMA | C93: MODULAR | D93: MAXIMAMODULAR | E93: 273 | F93: 0.9 | G93: 1 | H93: -6 | I93: 40 | K93: 571 | L93: 77
B94: MAXIMA | C94: MODULARLS | D94: MAXIMAMODULARLS | E94: 387 | F94: 0.9 | G94: 1 | H94: -6 | I94: 40 | K94: 571 | L94: 77
B95: MAXIMA | C95: MODULARSV | D95: MAXIMAMODULARSV | E95: 672 | F95: 0.9 | G95: 1 | H95: -7 | I95: 23 | K95: 278 | L95: 25
B96: MAXIMA | C96: VOLUM | D96: MAXIMAVOLUM | E96: 314 | F96: 0.9 | G96: 1 | H96: -6 | I96: 40 | K96: 571 | L96: 77
B97: MAXIMA | C97: VOLUMLS | D97: MAXIMAVOLUMLS | E97: 424 | F97: 0.9 | G97: 1 | H97: -6 | I97: 40 | K97: 571 | L97: 77
B98: NACRE | C98: TPP | D98: NACRETPP | E98: 320 | F98: 0.9 | G98: 1 | H98: -10 | I98: 64 | J98: 28 | K98: 745
B99: ONYX-F | C99: II | D99: ONYX-FII | E99: 750 | F99: 0.9 | G99: 1 | H99: -36 | I99: 146 | J99: 441 | K99: 1746 | L99: 368
B100: PATARA | C100: 800 | D100: =CONCATENATE(B100,C100) -> PATARA800 | E100: 960 | F100: 0.9 | G100: 1 | H100: -8 | I100: 38.3 | J100: 10 | K100: =K102 -> 0 | L100: 15.9
B101: PATNOS | C101: F | D101: =CONCATENATE(B101,C101) -> PATNOSF | E101: 680 | F101: 0.9 | G101: 1 | H101: -35
B102: PERLE | C102: EU | D102: PERLEEU | E102: 1000 | F102: 0.9 | G102: 1 | H102: -8 | I102: 91 | L102: 252
A103: PERLE | B103: PERLE | C103: XU.GD | D103: PERLEXU.GD | E103: 750 | F103: 0.9 | G103: 1 | H103: -8 | I103: 34 | J103: 32 | L103: 48
B104: PERTH2 | C104: BAC | D104: PERTH2BAC | E104: =1800/3.75 -> 480 | F104: 0.9 | G104: 1 | H104: -35 | I104: =(4*33)/3.75 -> 35.2 | J104: =(77+155+110)/3.75 -> 91.2 | K104: =(3*1215+607)/3.75 -> 1133.866667 | L104: =(3*36)/3.75 -> 28.8
B105: PERTH2 | C105: BAC+PORTE | D105: PERTH2BAC+PORTE | E105: 1100 | F105: 0.9 | G105: 1 | H105: -35 | I105: 60 | J105: 342 | K105: 2000 | L105: 91
B106: PERTH2 | C106: PORTE | D106: PERTH2PORTE | E106: 614 | F106: 0.9 | G106: 1 | H106: -35 | I106: =(6*15)/3.75 -> 24 | J106: =(6*80+330+129)/3.75 -> 250.4 | K106: =(2*1400+450)/3.75 -> 866.6666667 | L106: =((3*36)+(7*18))/3.75 -> 62.4
B107: PROXIMA | C107: EFFICIA | D107: PROXIMAEFFICIA | E107: 1504 | F107: 0.9 | G107: 1.5 | H107: -7 | I107: 14 | L107: 49
B108: PROXIMA | C108: MODULAR | D108: PROXIMAMODULAR | E108: 1370 | F108: 0.9 | G108: 1.5 | H108: -6 | I108: 18 | L108: 49
B109: PROXIMA | C109: PROXI | D109: =CONCATENATE(B109,C109) -> PROXIMAPROXI | E109: =550*1.15 -> 632.5 | F109: 0.9 | G109: 0 | H109: -6 | I109: 13 | L109: 68
B110: PROXIMA | C110: RD | D110: PROXIMARD | E110: 1655 | F110: 0.9 | G110: 1.5 | H110: -10 | I110: 96 | J110: 117 | K110: 855 | L110: 276
B111: PROXIMA | C111: RD5 | D111: PROXIMARD5 | E111: 1940 | F111: 0.9 | G111: 1.5 | H111: -10 | I111: 96 | J111: 117 | K111: 855 | L111: 276
B112: QUARTZ | C112: CVA | D112: QUARTZCVA | E112: 340 | F112: 0.9 | G112: 1.5 | H112: -9 | I112: 25.6 | L112: 213
B113: ROTONDE POS | C113: 36 | D113: ROTONDE POS36 | E113: 590 | F113: 0.9 | G113: 1 | H113: -10 | I113: 100 | J113: 95 | K113: 880 | L113: 1e-06
B114: ROTONDE POS | C114: 46 | D114: ROTONDE POS46 | E114: 600 | F114: 0.9 | G114: 1 | H114: -10 | I114: 100 | J114: 95 | K114: 880 | L114: 1e-06
B115: ROTTONDE | C115: 36 | D115: ROTTONDE36 | E115: 780 | F115: 0.9 | G115: 1 | H115: -35 | I115: 80 | J115: 196 | K115: 2640 | L115: 0
B116: ROTTONDE | C116: 46 | D116: ROTTONDE46 | E116: 800 | F116: 0.9 | G116: 1 | H116: -35 | I116: 80 | J116: 196 | K116: 2640 | L116: 0
B117: SAPHIR | C117: L | D117: SAPHIRL | E117: =3375/3.75 -> 900 | F117: 0.85 | G117: 1.5 | H117: -9 | I117: =(1.4*220)/3.75 -> 82.13333333 | J117: =(0.33*220)/3.75 -> 19.36 | K117: =(7.28*220)/3.75 -> 427.0933333 | L117: =(0.94*220*3)/3.75 -> 165.44
B118: SAPHIR | C118: LMS | D118: SAPHIRLMS | E118: 1050 | F118: 0.85 | G118: 1 | H118: -9 | I118: 64 | J118: 28 | K118: 745 | L118: 213
B119: SCPL | C119: S | D119: SCPLS | E119: 715 | F119: 0.95 | G119: 1 | H119: -35
B120: TOPAZE | C120: MPN | D120: TOPAZEMPN | E120: 920 | F120: 0.95 | G120: 1 | H120: -35 | I120: 80 | J120: 196 | K120: 2640 | L120: 0
B121: TRADEO | C121: R | D121: TRADEOR | E121: =1745+175 -> 1920 | F121: 0.85 | G121: 1.5 | H121: -9 | I121: 15 | L121: 25
B122: TRADEO | D122: TRADEO | E122: 1745 | F122: 0.85 | G122: 1.5 | H122: -9 | I122: 15 | L122: 25
B123: TRIBUNE | C123: BR | D123: TRIBUNEBR | E123: 1785 | F123: 0.85 | G123: 1.5 | H123: -10 | I123: 100 | L123: 80
B124: TURQUOISE | C124: MMT | D124: TURQUOISEMMT | E124: 1926 | F124: 0.9 | G124: 1.5 | H124: -10 | I124: 100 | K124: 855 | L124: 276
B125: VELANDO | C125: SG | D125: VELANDOSG | E125: 697 | F125: 0.9 | G125: 1 | H125: -36 | I125: 41 | J125: 344 | K125: 872 | L125: 113
B126: VISEO | C126: MODULAR | D126: VISEOMODULAR | E126: 1535 | F126: 0.9 | G126: 1 | H126: -6 | I126: 18 | L126: 49
B127: VISEO | C127: RD5 | D127: VISEORD5 | E127: 1700 | F127: 0.9 | G127: 1 | H127: -6 | I127: 100 | L127: 414
B128: VISEOL | C128: RD5 | D128: VISEOLRD5 | E128: 1830 | F128: 0.9 | G128: 1 | H128: -7 | I128: 100 | L128: 497

Sheet Selection compresseurs (hidden)
O2: P Frigo (KW) Calculé | P2: Principe | Q2: Variateur | R2: Fluide | S2: Marque | T2: Régime T°C | U2: Fréquence de variation | V2: P Frigo compresseur sélectionné (KW) | W2: P abs compresseur sélectionné (KW) | X2: Modèle | Y2: Prix | Z2: Rejet de Chaleur (KW) | AA2: COP | AC2: POSITIF ET NEGATIF MELANGE
O3: =('Besoins frigo'!E19/1000)+('Besoins frigo'!E35/1000) -> 0 | P3: =INDEX($C$5:$C$23,MATCH($V$3,$I$5:$I$23,0)) ->  | Q3: =INDEX($D$5:$D$23,MATCH($V$3,$I$5:$I$23,0)) ->  | R3: =INDEX($E$5:$E$23,MATCH($V$3,$I$5:$I$23,0)) ->  | S3: =INDEX($F$5:$F$23,MATCH($V$3,$I$5:$I$23,0)) ->  | T3: =INDEX($G$5:$G$23,MATCH($V$3,$I$5:$I$23,0)) ->  | U3: =INDEX($H$5:$H$23,MATCH($V$3,$I$5:$I$23,0)) ->  | V3: =MIN(IF($I$5:$I$23>O3,$I$5:$I$23)) -> 0 | W3: =INDEX($J$5:$J$23,MATCH($V$3,$I$5:$I$23,0)) ->  | X3: =DGET($C$5:$L$23,#REF!,$P$2:$W$3) ->  | Y3: =DGET($C$5:$L$23,#REF!,$P$2:$X$3) ->  | AA3: =$V$3/$W$3 -> 
O6: P Frigo (KW) Calculé | P6: Principe | Q6: Variateur | R6: Fluide | S6: Marque | T6: Régime T°C | U6: Fréquence de variation | V6: P Frigo compresseur sélectionné (KW) | W6: P abs compresseur sélectionné (KW) | X6: Modèle | Y6: Prix | Z6: Rejet de Chaleur (KW) | AA6: COP | AC6: Centrales POSITIVES
O7: 60 | P7: =INDEX($C$72:$C$297,MATCH($V$7,$I$72:$I$297,0)) -> Semi-hermétique | Q7: =INDEX($D$72:$D$297,MATCH($V$7,$I$72:$I$297,0)) -> Non | R7: =INDEX($E$72:$E$297,MATCH($V$7,$I$72:$I$297,0)) -> R407F | S7: =INDEX($F$72:$F$297,MATCH($V$7,$I$72:$I$297,0)) -> COPELAND | T7: =INDEX($G$72:$G$297,MATCH($V$7,$I$72:$I$297,0)) -> -10/+45°C | U7: =INDEX($H$72:$H$297,MATCH($V$7,$I$72:$I$297,0)) -> Pas de variation | V7: =MIN(IF($I$73:$I$297>O7,$I$73:$I$297)) -> 61.5 | W7: =INDEX($J$72:$J$297,MATCH($V$7,$I$72:$I$297,0)) -> 25.9 | X7: =DGET($C$72:$L$297,$K$72,$P$6:$W$7) -> 6MI1-40X | Y7: =DGET($C$72:$L$297,$L$72,$P$6:$X$7) -> 11270 | Z7: =INDEX($M$72:$M$297,MATCH($V$7,$I$72:$I$297,0)) -> 87.4 | AA7: =V7/W7 -> 2.374517375
O11: P Frigo (KW) Calculé | P11: Principe | Q11: Variateur | R11: Fluide | S11: Marque | T11: Régime T°C | U11: Fréquence de variation | V11: P Frigo compresseur sélectionné (KW) | W11: P abs compresseur sélectionné (KW) | X11: Modèle | Y11: Prix | Z11: Rejet de Chaleur (KW) | AA11: COP | AC11: Centrales NEGATIVES
O12: ='Besoins frigo'!E35/1000 -> 0 | P12: =INDEX($C$27:$C$71,MATCH(V12,$I$27:$I$71,0)) -> Scroll | Q12: =INDEX($D$27:$D$71,MATCH(V12,$I$27:$I$71,0)) -> Non | R12: =INDEX($E$27:$E$71,MATCH(V12,$I$27:$I$71,0)) -> R134A | S12: =INDEX($F$27:$F$71,MATCH(V12,$I$27:$I$71,0)) -> COPELAND | T12: =INDEX($G$27:$G$71,MATCH(V12,$I$27:$I$71,0)) -> -5/-36°C | U12: =INDEX($H$27:$H$71,MATCH(V12,$I$27:$I$71,0)) -> Pas de variation | V12: =MIN(IF(I28:I71>O12,I28:I71)) -> 2.5 | W12: =INDEX($J$27:$J$71,MATCH(V12,$I$27:$I$71,0)) -> 1 | X12: =DGET($C$27:$L$71,$K$27,$P$11:$W$12) -> ZR18 K3E PFJ 522 | Y12: =DGET($C$27:$L$71,$L$27,$P$11:$X$12) -> 1418 | Z12: =INDEX($M$27:$M$71,MATCH(V12,$I$27:$I$71,0)) -> 3.5 | AA12: =V12/W12 -> 2.5
S14: POSITIF | X14: NEGATIF
S16: CONDITIONS DE SÉLECTION | X16: CONDITIONS DE SÉLECTION
S17: Évaporation | U17: : | V17: -10 | X17: Évaporation | Z17: : | AA17: -5
S18: Condensation | U18: : | V18: 45 | X18: Condensation | Z18: : | AA18: -36
S19: Sous-refroisidissement | U19: : | V19: 3 | X19: Sous-refroisidissement | Z19: : | AA19: 0
S20: Surchauffe totale | U20: : | V20: 10 | X20: Surchauffe totale | Z20: : | AA20: 10
S22: Surface utile | U22: : | V22: 6 | X22: Surface utile | Z22: : | AA22: 6
E24: Compresseurs (+ & - RANGÉ)
C27: Principe | D27: Variateur | E27: Fluide | F27: Marque | G27: Régime T°C | H27: Fréquence de variation | I27: P Frigo compresseur sélectionné (KW) | J27: P abs compresseur sélectionné (KW) | K27: Modèle | L27: Prix | M27: Rejet de Chaleur (KW)
C28: Scroll | D28: Non | E28: R134A | F28: COPELAND | G28: -5/-36°C | H28: Pas de variation | I28: 2.5 | J28: 1 | K28: ZR18 K3E PFJ 522 | L28: 1418 | M28: =I28+J28 -> 3.5
C29: Scroll | D29: Non | E29: R134A | F29: COPELAND | G29: -5/-36°C | H29: Pas de variation | I29: 3.1 | J29: 1.12 | K29: ZR22 K3E PFJ 522 | L29: 1504 | M29: =I29+J29 -> 4.22
C30: Scroll | D30: Non | E30: R134A | F30: COPELAND | G30: -5/-36°C | H30: Pas de variation | I30: 4.11 | J30: 1.41 | K30: ZR28 K3E PFJ 522 | L30: 1589 | M30: 5.52
C31: Scroll | D31: Non | E31: R134A | F31: COPELAND | G31: -5/-36°C | H31: Pas de variation | I31: 4.91 | J31: 1.6 | K31: ZR34 K3E PFJ 522 | L31: 1662 | M31: 6.51
C32: Scroll | D32: Non | E32: R134A | F32: COPELAND | G32: -5/-36°C | H32: Pas de variation | I32: 5.71 | J32: 2 | K32: ZR40 K3E PFJ 522 | L32: 1779 | M32: 7.71
C33: Scroll | D33: Non | E33: R134A | F33: COPELAND | G33: -5/-36°C | H33: Pas de variation | I33: 7.2 | J33: 2.5 | K33: ZR48 K3E PFJ 522 | L33: 1949 | M33: 9.7
C34: Scroll | D34: Non | E34: R134A | F34: COPELAND | G34: -5/-36°C | H34: Pas de variation | I34: 8.81 | J34: 2.73 | K34: ZR61 KCE PFZ 522 | L34: 2188 | M34: 11.54
C35: Scroll | D35: Non | E35: R134A | F35: COPELAND | G35: -5/-36°C | H35: Pas de variation | I35: 3.2 | J35: 1.1 | K35: ZR22 K3E TFD 522 | L35: 1564 | M35: 4.3
C36: Scroll | D36: Non | E36: R134A | F36: COPELAND | G36: -5/-36°C | H36: Pas de variation | I36: 4.2 | J36: 1.4 | K36: ZR28 K3E TFD 522 | L36: 1612 | M36: 5.6
C37: Scroll | D37: Non | E37: R134A | F37: COPELAND | G37: -5/-36°C | H37: Pas de variation | I37: 4.9 | J37: 1.7 | K37: ZR34 K3E TFD 522 | L37: 1725 | M37: 6.6
C38: Scroll | D38: Non | E38: R134A | F38: COPELAND | G38: -5/-36°C | H38: Pas de variation | I38: 5.7 | J38: 1.9 | K38: ZR40 K3E TFD 522 | L38: 2093 | M38: 7.6
C39: Scroll | D39: Non | E39: R134A | F39: COPELAND | G39: -5/-36°C | H39: Pas de variation | I39: 6.8 | J39: 2.3 | K39: ZR48 K3E TFD 522 | L39: 2026 | M39: 9.1
C40: Scroll | D40: Non | E40: R134A | F40: COPELAND | G40: -5/-36°C | H40: Pas de variation | I40: 8.85 | J40: 2.71 | K40: ZR61 KSE TFM 522 | L40: 2254 | M40: 11.56
C41: Scroll | D41: Non | E41: R134A | F41: COPELAND | G41: -5/-36°C | H41: Pas de variation | I41: 8.8 | J41: 2.7 | K41: ZR61 KCE TFD 522 | L41: 2291 | M41: 11.5
C42: Scroll | D42: Non | E42: R134A | F42: COPELAND | G42: -5/-36°C | H42: Pas de variation | I42: 10.5 | J42: 3.2 | K42: ZR72 KCE TFD 522 | L42: 2585 | M42: 13.7
C43: Scroll | D43: Non | E43: R134A | F43: COPELAND | G43: -5/-36°C | H43: Pas de variation | I43: 11.8 | J43: 3.6 | K43: ZR81 KCE TFD 522 | L43: 2944 | M43: 15.4
C44: Scroll | D44: Non | E44: R134A | F44: COPELAND | G44: -5/-36°C | H44: Pas de variation | I44: 12.8 | J44: 4.2 | K44: ZR90 K3E TWD 961 | L44: 5260 | M44: 17
C45: Scroll | D45: Non | E45: R134A | F45: COPELAND | G45: -5/-36°C | H45: Pas de variation | I45: 12.3 | J45: 4.3 | K45: ZR94 KCE TFD 455 | L45: 3609 | M45: 16.6
C46: Scroll | D46: Non | E46: R134A | F46: COPELAND | G46: -5/-36°C | H46: Pas de variation | I46: 14.1 | J46: 4.8 | K46: ZR108 KCE TFD 455 | L46: 4473 | M46: 18.9
C47: Scroll | D47: Non | E47: R134A | F47: COPELAND | G47: -5/-36°C | H47: Pas de variation | I47: 15.8 | J47: 5.1 | K47: ZR11 M3E TWD 961 | L47: 6480 | M47: 20.9
C48: Scroll | D48: Non | E48: R134A | F48: COPELAND | G48: -5/-36°C | H48: Pas de variation | I48: 18.3 | J48: 5.9 | K48: ZR12 M3E TWD 961 | L48: 7050 | M48: 24.2
C49: Scroll | D49: Non | E49: R134A | F49: COPELAND | G49: -5/-36°C | H49: Pas de variation | I49: 16.2 | J49: 5.6 | K49: ZR125 KCE TFD 455 | L49: 4893 | M49: 21.8
C50: Scroll | D50: Non | E50: R134A | F50: COPELAND | G50: -5/-36°C | H50: Pas de variation | I50: 20.9 | J50: 6.3 | K50: ZR144 KCE TFD 455 | L50: 5250 | M50: 27.2
C51: Scroll | D51: Non | E51: R134A | F51: COPELAND | G51: -5/-36°C | H51: Pas de variation | I51: 22.4 | J51: 7.2 | K51: ZR16 M3E TWD 961 | L51: 7960 | M51: 29.6
C52: Scroll | D52: Non | E52: R134A | F52: COPELAND | G52: -5/-36°C | H52: Pas de variation | I52: 22.8 | J52: 6.9 | K52: ZR160 K-E TFD 455 | L52: 5570 | M52: 29.7
C53: Scroll | D53: Non | E53: R134A | F53: COPELAND | G53: -5/-36°C | H53: Pas de variation | I53: 26.8 | J53: 8.6 | K53: ZR19 M3E TWD 961 | L53: 8700 | M53: 35.4
C54: Scroll | D54: Non | E54: R134A | F54: COPELAND | G54: -5/-36°C | H54: Pas de variation | I54: 27.2 | J54: 8.4 | K54: ZR190 KCE TFD 455 | L54: 6060 | M54: 35.6
C55: Scroll | D55: Non | E55: R134A | F55: COPELAND | G55: -5/-36°C | H55: Pas de variation | I55: 35.4 | J55: 1.21 | K55: ZR250 KCE TWD 522 | L55: 9970 | M55: 36.61
C56: Scroll | D56: Non | E56: R134A | F56: COPELAND | G56: -5/-36°C | H56: Pas de variation | I56: 45 | J56: 14.5 | K56: ZR310 KCE TWD 522 | L56: 11060 | M56: 59.5
C57: Scroll | D57: Non | E57: R134A | F57: COPELAND | G57: -5/-36°C | H57: Pas de variation | I57: 55.4 | J57: 17.1 | K57: ZR380 KCE TWD 522 | L57: 12610 | M57: 72.5
C58: Semi-hermétique | D58: Non | E58: R407F | F58: COPELAND | G58: -5/+36°C | H58: Pas de variation | I58: 10.25 | J58: 2.78 | K58: 2DC-50X | L58: 2800 | M58: 13.03
C59: Semi-hermétique | D59: Non | E59: R407F | F59: COPELAND | G59: -5/+36°C | H59: Pas de variation | I59: 11.95 | J59: 3.22 | K59: 2DD-50X | L59: 2960 | M59: 15.17
C60: Semi-hermétique | D60: Non | E60: R407F | F60: COPELAND | G60: -5/+36°C | H60: Pas de variation | I60: 14.75 | J60: 3.99 | K60: 2DL-75X | L60: 3682 | M60: 18.74
C61: Semi-hermétique | D61: Non | E61: R407F | F61: COPELAND | G61: -5/+36°C | H61: Pas de variation | I61: 17.85 | J61: 4.81 | K61: 2DB-75X | L61: 6830 | M61: 22.66
C62: Semi-hermétique | D62: Non | E62: R407F | F62: COPELAND | G62: -5/+36°C | H62: Pas de variation | I62: 20.8 | J62: 5.56 | K62: 3DA-75X | L62: 6950 | M62: 26.36
C63: Semi-hermétique | D63: Non | E63: R407F | F63: COPELAND | G63: -5/+36°C | H63: Pas de variation | I63: 24.7 | J63: 6.52 | K63: 3DC-100X | L63: 7470 | M63: 31.22
C64: Semi-hermétique | D64: Non | E64: R407F | F64: COPELAND | G64: -5/+36°C | H64: Pas de variation | I64: 32.6 | J64: 8.84 | K64: 3DS-150X | L64: 8630 | M64: 41.44
C65: Semi-hermétique | D65: Non | E65: R407F | F65: COPELAND | G65: -5/+36°C | H65: Pas de variation | I65: 94.2 | J65: 27 | K65: 8DH-500X | L65: 21260 | M65: 121.2
C66: Semi-hermétique | D66: Non | E66: R407F | F66: COPELAND | G66: -5/+36°C | H66: Pas de variation | I66: 113 | J66: 32.8 | K66: 8DJ-600X | L66: 25290 | M66: 145.8
C67: Scroll | D67: Non | E67: R407F | F67: COPELAND | G67: -5/+36°C | H67: Pas de variation | I67: 11.5 | J67: 3.31 | K67: ZF13KVE | L67: 3366 | M67: 14.81
C68: Scroll | D68: Non | E68: R407F | F68: COPELAND | G68: -5/+36°C | H68: Pas de variation | I68: 16 | J68: 4.7 | K68: ZF18KVE | L68: 4212 | M68: 20.7
C69: Scroll | D69: Non | E69: R407F | F69: COPELAND | G69: -5/+36°C | H69: Pas de variation | I69: 19.1 | J69: 5.8 | K69: ZF25K5E | L69: A estimer | M69: 24.9
C70: Scroll | D70: Non | E70: R407F | F70: COPELAND | G70: -5/+36°C | H70: Pas de variation | I70: 25.4 | J70: 6.8 | K70: ZF34K5E | L70: A estimer | M70: 32.2
C71: Scroll | D71: Non | E71: R407F | F71: COPELAND | G71: -5/+36°C | H71: Pas de variation | I71: 21.2 | J71: 8.41 | K71: ZF41K5E | L71: A estimer | M71: 29.61
C72: Principe | D72: Variateur | E72: Fluide | F72: Marque | G72: Régime T°C | H72: Fréquence de variation | I72: P Frigo compresseur sélectionné (KW) | J72: P abs compresseur sélectionné (KW) | K72: Modèle | L72: Prix | M72: Rejet de Chaleur (KW)
C73: Semi-hermétique | D73: Non | E73: R134A | F73: BITZER | G73: -10/+45°C | H73: Pas de variation | I73: 1 | J73: 0.53 | K73: 2KES-05Y | L73: 1791 | M73: =I73+J73 -> 1.53
C74: Semi-hermétique | D74: Non | E74: R134A | F74: BITZER | G74: -10/+45°C | H74: Pas de variation | I74: 1.27 | J74: 0.69 | K74: 2JES-07Y | L74: 1818 | M74: =I74+J74 -> 1.96
C75: Semi-hermétique | D75: Non | E75: R134A | F75: BITZER | G75: -10/+45°C | H75: Pas de variation | I75: 1.83 | J75: 0.87 | K75: 2HES-1Y | L75: 1845 | M75: 2.7
C76: Semi-hermétique | D76: Non | E76: R134A | F76: BITZER | G76: -10/+45°C | H76: Pas de variation | I76: 1.81 | J76: 0.88 | K76: 2HES-2Y | L76: 1875 | M76: 2.69
C77: Semi-hermétique | D77: Non | E77: R134A | F77: BITZER | G77: -10/+45°C | H77: Pas de variation | I77: 2.16 | J77: 1.02 | K77: 2GES-2Y | L77: 1883 | M77: 3.18
C78: Semi-hermétique | D78: Non | E78: R134A | F78: BITZER | G78: -10/+45°C | H78: Pas de variation | I78: 2.68 | J78: 1.2 | K78: 2FES-2Y | L78: 2120 | M78: 3.88
C79: Semi-hermétique | D79: Non | E79: R134A | F79: BITZER | G79: -10/+45°C | H79: Pas de variation | I79: 2.67 | J79: 1.29 | K79: 2FES-3Y | L79: 2224 | M79: 3.96
C80: Semi-hermétique | D80: Non | E80: R134A | F80: BITZER | G80: -10/+45°C | H80: Pas de variation | I80: 3.31 | J80: 1.39 | K80: 2EES-2Y | L80: 2756 | M80: 4.7
C81: Semi-hermétique | D81: Non | E81: R134A | F81: BITZER | G81: -10/+45°C | H81: Pas de variation | I81: 3.32 | J81: 1.43 | K81: 2EES-3Y | L81: 2944 | M81: 4.75
C82: Semi-hermétique | D82: Non | E82: R134A | F82: BITZER | G82: -10/+45°C | H82: Pas de variation | I82: 3.98 | J82: 1.73 | K82: 2DES-2Y | L82: 2872 | M82: 5.71
C83: Semi-hermétique | D83: Non | E83: R134A | F83: BITZER | G83: -10/+45°C | H83: Pas de variation | I83: 3.99 | J83: 1.69 | K83: 2DES-3Y | L83: 2993 | M83: 5.68
C84: Semi-hermétique | D84: Non | E84: R134A | F84: BITZER | G84: -10/+45°C | H84: Pas de variation | I84: 4.95 | J84: 2.11 | K84: 2CES-3Y | L84: 3074 | M84: 7.06
C85: Semi-hermétique | D85: Non | E85: R134A | F85: BITZER | G85: -10/+45°C | H85: Pas de variation | I85: 4.96 | J85: 2.09 | K85: 2CES-4Y | L85: 3113 | M85: 7.05
C86: Semi-hermétique | D86: Non | E86: R134A | F86: BITZER | G86: -10/+45°C | H86: Pas de variation | I86: 5.08 | J86: 2.14 | K86: 4FES-3Y | L86: 3319 | M86: 7.22
C87: Semi-hermétique | D87: Non | E87: R134A | F87: BITZER | G87: -10/+45°C | H87: Pas de variation | I87: 5.07 | J87: 2.15 | K87: 4FES-5Y | L87: 3934 | M87: 7.22
C88: Semi-hermétique | D88: Non | E88: R134A | F88: BITZER | G88: -10/+45°C | H88: Pas de variation | I88: 6.79 | J88: 2.8 | K88: 4EES-4Y | L88: 3498 | M88: 9.59
C89: Semi-hermétique | D89: Non | E89: R134A | F89: BITZER | G89: -10/+45°C | H89: Pas de variation | I89: 6.77 | J89: 2.82 | K89: 4EES-6Y | L89: 3840 | M89: 9.59
C90: Semi-hermétique | D90: Non | E90: R134A | F90: BITZER | G90: -10/+45°C | H90: Pas de variation | I90: 7.82 | J90: 3.24 | K90: 4DES-5Y | L90: 4400 | M90: 11.06
C91: Semi-hermétique | D91: Non | E91: R134A | F91: BITZER | G91: -10/+45°C | H91: Pas de variation | I91: 7.83 | J91: 3.25 | K91: 4DES-7Y | L91: 4414 | M91: 11.08
C92: Semi-hermétique | D92: Non | E92: R134A | F92: BITZER | G92: -10/+45°C | H92: Pas de variation | I92: 9.73 | J92: 4.01 | K92: 4CES-6Y | L92: 4830 | M92: 13.74
C93: Semi-hermétique | D93: Non | E93: R134A | F93: BITZER | G93: -10/+45°C | H93: Pas de variation | I93: 9.71 | J93: 4.02 | K93: 4CES-9Y | L93: 4801 | M93: 13.73
C94: Semi-hermétique | D94: Non | E94: R134A | F94: BITZER | G94: -10/+45°C | H94: Pas de variation | I94: 10.09 | J94: 3.98 | K94: 4VES-7Y | L94: 5760 | M94: 14.07
C95: Semi-hermétique | D95: Non | E95: R134A | F95: BITZER | G95: -10/+45°C | H95: Pas de variation | I95: 9.88 | J95: 3.97 | K95: 4VES-10Y | L95: 5710 | M95: 13.85
C96: Semi-hermétique | D96: Non | E96: R134A | F96: BITZER | G96: -10/+45°C | H96: Pas de variation | I96: 12.06 | J96: 4.86 | K96: 4TES-12Y | L96: 5780 | M96: 16.92
C97: Semi-hermétique | D97: Non | E97: R134A | F97: BITZER | G97: -10/+45°C | H97: Pas de variation | I97: 13.56 | J97: 5.44 | K97: 4PES-15Y | L97: 6400 | M97: 19
C98: Semi-hermétique | D98: Non | E98: R134A | F98: BITZER | G98: -10/+45°C | H98: Pas de variation | I98: 16.46 | J98: 6.58 | K98: 4NES-20Y | L98: 7040 | M98: 23.04
C99: Semi-hermétique | D99: Non | E99: R134A | F99: BITZER | G99: -10/+45°C | H99: Pas de variation | I99: 18.82 | J99: 7.42 | K99: 4JE-22Y | L99: 9960 | M99: 26.24
C100: Semi-hermétique | D100: Non | E100: R134A | F100: BITZER | G100: -10/+45°C | H100: Pas de variation | I100: 22.5 | J100: 8.88 | K100: 4HE-25Y | L100: 10010 | M100: 31.38
C101: Semi-hermétique | D101: Non | E101: R134A | F101: BITZER | G101: -10/+45°C | H101: Pas de variation | I101: 26.3 | J101: 10.33 | K101: 4GE-30Y | L101: 11110 | M101: 36.63
C102: Semi-hermétique | D102: Non | E102: R134A | F102: BITZER | G102: -10/+45°C | H102: Pas de variation | I102: 31.1 | J102: 12.29 | K102: 4FE-35Y | L102: 11010 | M102: 43.39
C103: Semi-hermétique | D103: Non | E103: R134A | F103: BITZER | G103: -10/+45°C | H103: Pas de variation | I103: 28.4 | J103: 11.12 | K103: 6JE-33Y.2Y | L103: 12970 | M103: 39.52
C104: Semi-hermétique | D104: Non | E104: R134A | F104: BITZER | G104: -10/+45°C | H104: Pas de variation | I104: 32.9 | J104: 12.96 | K104: 6HE-35Y | L104: 13350 | M104: 45.86
C105: Semi-hermétique | D105: Non | E105: R134A | F105: BITZER | G105: -10/+45°C | H105: Pas de variation | I105: 38.8 | J105: 15.6 | K105: 6GE-40Y | L105: 14390 | M105: 54.4
C106: Semi-hermétique | D106: Non | E106: R134A | F106: BITZER | G106: -10/+45°C | H106: Pas de variation | I106: 45.7 | J106: 18.74 | K106: 6FE-50Y | L106: 16590 | M106: 64.44
C107: Semi-hermétique | D107: Non | E107: R407F | F107: BITZER | G107: -10/+45°C | H107: Pas de variation | I107: 1.91 | J107: 0.85 | K107: 2KES-05Y | L107: 1791 | M107: 2.76
C108: Semi-hermétique | D108: Non | E108: R407F | F108: BITZER | G108: -10/+45°C | H108: Pas de variation | I108: 2.57 | J108: 1.15 | K108: 2JES-07Y | L108: 1818 | M108: 3.72
C109: Semi-hermétique | D109: Non | E109: R407F | F109: BITZER | G109: -10/+45°C | H109: Pas de variation | I109: 3.3 | J109: 1.47 | K109: 2HES-1Y | L109: 1845 | M109: 4.77
C110: Semi-hermétique | D110: Non | E110: R407F | F110: BITZER | G110: -10/+45°C | H110: Pas de variation | I110: 3.29 | J110: 1.45 | K110: 2HES-2Y | L110: 1875 | M110: 4.74
C111: Semi-hermétique | D111: Non | E111: R407F | F111: BITZER | G111: -10/+45°C | H111: Pas de variation | I111: 3.88 | J111: 1.72 | K111: 2GES-2Y | L111: 1883 | M111: 5.6
C112: Semi-hermétique | D112: Non | E112: R407F | F112: BITZER | G112: -10/+45°C | H112: Pas de variation | I112: 4.92 | J112: 2.21 | K112: 2FES-2Y | L112: 2120 | M112: 7.13
C113: Semi-hermétique | D113: Non | E113: R407F | F113: BITZER | G113: -10/+45°C | H113: Pas de variation | I113: 4.91 | J113: 2.17 | K113: 2FES-3Y | L113: 2224 | M113: 7.08
C114: Semi-hermétique | D114: Non | E114: R407F | F114: BITZER | G114: -10/+45°C | H114: Pas de variation | I114: 5.56 | J114: 2.37 | K114: 2EES-2Y | L114: 2756 | M114: 7.93
C115: Semi-hermétique | D115: Non | E115: R407F | F115: BITZER | G115: -10/+45°C | H115: Pas de variation | I115: 5.57 | J115: 2.36 | K115: 2EES-3Y | L115: 2944 | M115: 7.93
C116: Semi-hermétique | D116: Non | E116: R407F | F116: BITZER | G116: -10/+45°C | H116: Pas de variation | I116: 6.67 | J116: 2.93 | K116: 2DES-2Y | L116: 2872 | M116: 9.6
C117: Semi-hermétique | D117: Non | E117: R407F | F117: BITZER | G117: -10/+45°C | H117: Pas de variation | I117: 6.69 | J117: 2.87 | K117: 2DES-3Y | L117: 2993 | M117: 9.56
C118: Semi-hermétique | D118: Non | E118: R407F | F118: BITZER | G118: -10/+45°C | H118: Pas de variation | I118: 8.26 | J118: 3.6 | K118: 2CES-3Y | L118: 3074 | M118: 11.86
C119: Semi-hermétique | D119: Non | E119: R407F | F119: BITZER | G119: -10/+45°C | H119: Pas de variation | I119: 8.27 | J119: 3.54 | K119: 2CES-4Y | L119: 3113 | M119: 11.81
C120: Semi-hermétique | D120: Non | E120: R407F | F120: BITZER | G120: -10/+45°C | H120: Pas de variation | I120: 9.05 | J120: 3.91 | K120: 4FES-3Y | L120: 3319 | M120: 12.96
C121: Semi-hermétique | D121: Non | E121: R407F | F121: BITZER | G121: -10/+45°C | H121: Pas de variation | I121: 9.06 | J121: 3.83 | K121: 4FES-5Y | L121: 3934 | M121: 12.89
C122: Semi-hermétique | D122: Non | E122: R407F | F122: BITZER | G122: -10/+45°C | H122: Pas de variation | I122: 11.33 | J122: 4.91 | K122: 4EES-4Y | L122: 3498 | M122: 16.24
C123: Semi-hermétique | D123: Non | E123: R407F | F123: BITZER | G123: -10/+45°C | H123: Pas de variation | I123: 11.32 | J123: 4.83 | K123: 4EES-6Y | L123: 3840 | M123: 16.15
C124: Semi-hermétique | D124: Non | E124: R407F | F124: BITZER | G124: -10/+45°C | H124: Pas de variation | I124: 13.31 | J124: 5.71 | K124: 4DES-5Y | L124: 4400 | M124: 19.02
C125: Semi-hermétique | D125: Non | E125: R407F | F125: BITZER | G125: -10/+45°C | H125: Pas de variation | I125: 13.32 | J125: 5.59 | K125: 4DES-7Y | L125: 4414 | M125: 18.91
C126: Semi-hermétique | D126: Non | E126: R407F | F126: BITZER | G126: -10/+45°C | H126: Pas de variation | I126: 16.5 | J126: 7.01 | K126: 4CES-6Y | L126: 4830 | M126: 23.51
C127: Semi-hermétique | D127: Non | E127: R407F | F127: BITZER | G127: -10/+45°C | H127: Pas de variation | I127: 16.51 | J127: 7 | K127: 4CES-9Y | L127: 4801 | M127: 23.51
C128: Semi-hermétique | D128: Non | E128: R407F | F128: BITZER | G128: -10/+45°C | H128: Pas de variation | I128: 16.71 | J128: 6.99 | K128: 4VES-7Y | L128: 5760 | M128: 23.7
C129: Semi-hermétique | D129: Non | E129: R407F | F129: BITZER | G129: -10/+45°C | H129: Pas de variation | I129: 16.7 | J129: 6.78 | K129: 4VES-10Y | L129: 5710 | M129: 23.48
C130: Semi-hermétique | D130: Non | E130: R407F | F130: BITZER | G130: -10/+45°C | H130: Pas de variation | I130: 20.4 | J130: 8.34 | K130: 4TES-12Y | L130: 5780 | M130: 28.74
C131: Semi-hermétique | D131: Non | E131: R407F | F131: BITZER | G131: -10/+45°C | H131: Pas de variation | I131: 23.2 | J131: 9.39 | K131: 4PES-15Y | L131: 6400 | M131: 32.59
C132: Semi-hermétique | D132: Non | E132: R407F | F132: BITZER | G132: -10/+45°C | H132: Pas de variation | I132: 27.7 | J132: 11.13 | K132: 4NES-20Y | L132: 7040 | M132: 38.83
C133: Semi-hermétique | D133: Non | E133: R407F | F133: BITZER | G133: -10/+45°C | H133: Pas de variation | I133: 31.4 | J133: 12.63 | K133: 4JE-22Y | L133: 9960 | M133: 44.03
C134: Semi-hermétique | D134: Non | E134: R407F | F134: BITZER | G134: -10/+45°C | H134: Pas de variation | I134: 37.4 | J134: 15.06 | K134: 4HE-25Y | L134: 10010 | M134: 52.46
C135: Semi-hermétique | D135: Non | E135: R407F | F135: BITZER | G135: -10/+45°C | H135: Pas de variation | I135: 43.3 | J135: 17.28 | K135: 4GE-30Y | L135: 11110 | M135: 60.58
C136: Semi-hermétique | D136: Non | E136: R407F | F136: BITZER | G136: -10/+45°C | H136: Pas de variation | I136: 51.8 | J136: 20.8 | K136: 4FE-35Y | L136: 11010 | M136: 72.6
C137: Semi-hermétique | D137: Non | E137: R407F | F137: BITZER | G137: -10/+45°C | H137: Pas de variation | I137: 46.9 | J137: 18.79 | K137: 6JE-33Y.2Y | L137: 12970 | M137: 65.69
C138: Semi-hermétique | D138: Non | E138: R407F | F138: BITZER | G138: -10/+45°C | H138: Pas de variation | I138: 56 | J138: 22.5 | K138: 6HE-35Y | L138: 13350 | M138: =I138+J138 -> 78.5
C139: Semi-hermétique | D139: Non | E139: R407F | F139: BITZER | G139: -10/+45°C | H139: Pas de variation | I139: 64.8 | J139: 26 | K139: 6GE-40Y | L139: 14390 | M139: 90.8
C140: Semi-hermétique | D140: Non | E140: R407F | F140: BITZER | G140: -10/+45°C | H140: Pas de variation | I140: 77.5 | J140: 31.2 | K140: 6FE-50Y | L140: 16590 | M140: 108.7
C141: Semi-hermétique | D141: Oui | E141: R134A | F141: BITZER | G141: -10/+45°C | H141: Pas de variation | I141: 3.6 | J141: 1.26 | K141: 2DES-3.F1Y 40S | L141: 8190 | M141: 4.86
C142: Semi-hermétique | D142: Oui | E142: R134A | F142: BITZER | G142: -10/+45°C | H142: Pas de variation | I142: 3.82 | J142: 1.31 | K142: 4FES-5.F1Y+BCP 40S | L142: 9510 | M142: 5.13
C143: Semi-hermétique | D143: Oui | E143: R134A | F143: BITZER | G143: -10/+45°C | H143: Pas de variation | I143: 4.94 | J143: 1.68 | K143: 4EES-6.F1Y+BCP 40S | L143: 10440 | M143: 6.62
C144: Semi-hermétique | D144: Oui | E144: R134A | F144: BITZER | G144: -10/+45°C | H144: Pas de variation | I144: 5.82 | J144: 1.97 | K144: 4DES-7.F3Y+BCP 40S | L144: 11070 | M144: 7.79
C145: Semi-hermétique | D145: Oui | E145: R134A | F145: BITZER | G145: -10/+45°C | H145: Pas de variation | I145: 7.17 | J145: 2.42 | K145: 4CES-9.F3Y+BCP 40S | L145: A estimer | M145: 9.59
C146: Semi-hermétique | D146: Oui | E146: R134A | F146: BITZER | G146: -10/+45°C | H146: Pas de variation | I146: 7.44 | J146: 2.45 | K146: 4VES-10.F4Y 40S | L146: 14180 | M146: 9.89
C147: Semi-hermétique | D147: Oui | E147: R134A | F147: BITZER | G147: -10/+45°C | H147: Pas de variation | I147: 9 | J147: 2.99 | K147: 4TES-12.F4Y 40S | L147: 14410 | M147: 11.99
C148: Semi-hermétique | D148: Oui | E148: R134A | F148: BITZER | G148: -10/+45°C | H148: Pas de variation | I148: 10.28 | J148: 3.38 | K148: 4PES-15.F4Y 40S | L148: 15030 | M148: 13.66
C149: Semi-hermétique | D149: Oui | E149: R134A | F149: BITZER | G149: -10/+45°C | H149: Pas de variation | I149: 12.28 | J149: 4.04 | K149: 4NES-20.F4Y 40S | L149: 16190 | M149: 16.32
C150: Semi-hermétique | D150: Oui | E150: R134A | F150: BITZER | G150: -10/+45°C | H150: Pas de variation | I150: 10.49 | J150: 4 | K150: 2DES-3.F1Y 40S | L150: 8190 | M150: 14.49
C151: Semi-hermétique | D151: Oui | E151: R134A | F151: BITZER | G151: -10/+45°C | H151: Pas de variation | I151: 13.61 | J151: 5.13 | K151: 4FES-5.F1Y+BCP 40S | L151: 9510 | M151: 18.74
C152: Semi-hermétique | D152: Oui | E152: R134A | F152: BITZER | G152: -10/+45°C | H152: Pas de variation | I152: 17.59 | J152: 6.61 | K152: 4EES-6.F1Y+BCP 40S | L152: 10440 | M152: 24.2
C153: Semi-hermétique | D153: Oui | E153: R134A | F153: BITZER | G153: -10/+45°C | H153: Pas de variation | I153: 20.7 | J153: 7.7 | K153: 4DES-7.F3Y+BCP 40S | L153: 11070 | M153: 28.4
C154: Semi-hermétique | D154: Oui | E154: R134A | F154: BITZER | G154: -10/+45°C | H154: Pas de variation | I154: 25.6 | J154: 9.46 | K154: 4CES-9.F3Y+BCP 40S | L154: A estimer | M154: 35.06
C155: Semi-hermétique | D155: Oui | E155: R134A | F155: BITZER | G155: -10/+45°C | H155: Pas de variation | I155: 26.5 | J155: 9.55 | K155: 4VES-10.F4Y 40S | L155: 14180 | M155: 36.05
C156: Semi-hermétique | D156: Oui | E156: R134A | F156: BITZER | G156: -10/+45°C | H156: Pas de variation | I156: 32.1 | J156: 11.67 | K156: 4TES-12.F4Y 40S | L156: 14410 | M156: 43.77
C157: Semi-hermétique | D157: Oui | E157: R134A | F157: BITZER | G157: -10/+45°C | H157: Pas de variation | I157: 36.6 | J157: 13.2 | K157: 4PES-15.F4Y 40S | L157: 15030 | M157: 49.8
C158: Semi-hermétique | D158: Oui | E158: R134A | F158: BITZER | G158: -10/+45°C | H158: Pas de variation | I158: 43.7 | J158: 15.79 | K158: 4NES-20.F4Y 40S | L158: 16190 | M158: 59.49
C159: Semi-hermétique | D159: Non | E159: R134A | F159: COPELAND | G159: -10/+45°C | H159: Pas de variation | I159: 4.25 | J159: 2.01 | K159: 2DC-50X | L159: 5230 | M159: 6.26
C160: Semi-hermétique | D160: Non | E160: R134A | F160: COPELAND | G160: -10/+45°C | H160: Pas de variation | I160: 5.27 | J160: 2.38 | K160: 2DD-50X | L160: 5250 | M160: 7.65
C161: Semi-hermétique | D161: Non | E161: R134A | F161: COPELAND | G161: -10/+45°C | H161: Pas de variation | I161: 6.2 | J161: 2.96 | K161: 2DL-40X | L161: 4878 | M161: 9.16
C162: Semi-hermétique | D162: Non | E162: R134A | F162: COPELAND | G162: -10/+45°C | H162: Pas de variation | I162: 6.19 | J162: 2.79 | K162: 2DL-75X | L162: 5870 | M162: 8.98
C163: Semi-hermétique | D163: Non | E163: R134A | F163: COPELAND | G163: -10/+45°C | H163: Pas de variation | I163: 7.93 | J163: 3.45 | K163: 2DB-50X | L163: 6250 | M163: 11.38
C164: Semi-hermétique | D164: Non | E164: R134A | F164: COPELAND | G164: -10/+45°C | H164: Pas de variation | I164: 7.51 | J164: 3.37 | K164: 2DB-75X | L164: 6280 | M164: 10.88
C165: Semi-hermétique | D165: Non | E165: R134A | F165: COPELAND | G165: -10/+45°C | H165: Pas de variation | I165: 8.93 | J165: 3.88 | K165: 3DA-50X | L165: 6410 | M165: 12.81
C166: Semi-hermétique | D166: Non | E166: R134A | F166: COPELAND | G166: -10/+45°C | H166: Pas de variation | I166: 8.74 | J166: 3.9 | K166: 3DA-75X | L166: 6950 | M166: 12.64
C167: Semi-hermétique | D167: Non | E167: R134A | F167: COPELAND | G167: -10/+45°C | H167: Pas de variation | I167: 11.05 | J167: 4.69 | K167: 3DC-100X | L167: 7470 | M167: 15.74
C168: Semi-hermétique | D168: Non | E168: R134A | F168: COPELAND | G168: -10/+45°C | H168: Pas de variation | I168: 10.95 | J168: 4.73 | K168: 3DC-75X | L168: 7280 | M168: 15.68
C169: Semi-hermétique | D169: Non | E169: R134A | F169: COPELAND | G169: -10/+45°C | H169: Pas de variation | I169: 14.4 | J169: 6.22 | K169: 3DS-100X | L169: 8660 | M169: 20.62
C170: Semi-hermétique | D170: Non | E170: R134A | F170: COPELAND | G170: -10/+45°C | H170: Pas de variation | I170: 15.17 | J170: 6.38 | K170: 3DS-150X | L170: 8630 | M170: 21.55
C171: Semi-hermétique | D171: Non | E171: R134A | F171: COPELAND | G171: -10/+45°C | H171: Pas de variation | I171: 16.8 | J171: 6.96 | K171: 4DF-100X | L171: 8780 | M171: 23.76
C172: Semi-hermétique | D172: Non | E172: R134A | F172: COPELAND | G172: -10/+45°C | H172: Pas de variation | I172: 17.2 | J172: 6.72 | K172: 4DA-200X | L172: 9290 | M172: 23.92
C173: Semi-hermétique | D173: Non | E173: R134A | F173: COPELAND | G173: -10/+45°C | H173: Pas de variation | I173: 21.81 | J173: 9.12 | K173: 4DL-150X | L173: 9860 | M173: 30.93
C174: Semi-hermétique | D174: Non | E174: R134A | F174: COPELAND | G174: -10/+45°C | H174: Pas de variation | I174: 21.1 | J174: 9.1 | K174: 4DH-250X | L174: 11610 | M174: 30.2
C175: Semi-hermétique | D175: Non | E175: R134A | F175: COPELAND | G175: -10/+45°C | H175: Pas de variation | I175: 26.61 | J175: 11.11 | K175: 4DT-220X | L175: 11250 | M175: 37.72
C176: Semi-hermétique | D176: Non | E176: R134A | F176: COPELAND | G176: -10/+45°C | H176: Pas de variation | I176: 25.7 | J176: 10.85 | K176: 4DJ-300X | L176: 13050 | M176: 36.55
C177: Semi-hermétique | D177: Non | E177: R134A | F177: COPELAND | G177: -10/+45°C | H177: Pas de variation | I177: 30.9 | J177: 13.5 | K177: 6DH-350X | L177: 15650 | M177: 44.4
C178: Semi-hermétique | D178: Non | E178: R134A | F178: COPELAND | G178: -10/+45°C | H178: Pas de variation | I178: 31.7 | J178: 13.15 | K178: 6DL-270X | L178: 13920 | M178: 44.85
C179: Semi-hermétique | D179: Non | E179: R134A | F179: COPELAND | G179: -10/+45°C | H179: Pas de variation | I179: 37.6 | J179: 16 | K179: 6DJ-400X | L179: 17650 | M179: 53.6
C180: Semi-hermétique | D180: Non | E180: R134A | F180: COPELAND | G180: -10/+45°C | H180: Pas de variation | I180: 38.5 | J180: 16.4 | K180: 6DT-320X | L180: 16370 | M180: 54.9
C181: Semi-hermétique | D181: Non | E181: R134A | F181: COPELAND | G181: -10/+45°C | H181: Pas de variation | I181: 44.4 | J181: 19.75 | K181: 8DH-500X | L181: 21260 | M181: 64.15
C182: Semi-hermétique | D182: Non | E182: R134A | F182: COPELAND | G182: -10/+45°C | H182: Pas de variation | I182: 46 | J182: 19.42 | K182: 8DL-370X | L182: 19410 | M182: 65.42
C183: Semi-hermétique | D183: Non | E183: R134A | F183: COPELAND | G183: -10/+45°C | H183: Pas de variation | I183: 53.3 | J183: 23.3 | K183: 8DJ-600X | L183: 25290 | M183: 76.6
C184: Semi-hermétique | D184: Non | E184: R134A | F184: COPELAND | G184: -10/+45°C | H184: Pas de variation | I184: 55.5 | J184: 23.71 | K184: 8DT-450X | L184: 24500 | M184: 79.21
C185: Semi-hermétique | D185: Non | E185: R134A | F185: COPELAND | G185: -10/+45°C | H185: Pas de variation | I185: 18.65 | J185: 7.64 | K185: 4MA1-22X | L185: 10910 | M185: 26.29
C186: Semi-hermétique | D186: Non | E186: R134A | F186: COPELAND | G186: -10/+45°C | H186: Pas de variation | I186: 17.95 | J186: 7.6 | K186: 4MF1-13X | L186: 8790 | M186: 25.55
C187: Semi-hermétique | D187: Non | E187: R134A | F187: COPELAND | G187: -10/+45°C | H187: Pas de variation | I187: 21.5 | J187: 9.09 | K187: 4MH1-25X | L187: 11180 | M187: 30.59
C188: Semi-hermétique | D188: Non | E188: R134A | F188: COPELAND | G188: -10/+45°C | H188: Pas de variation | I188: 21.8 | J188: 8.53 | K188: 4ML1-15X | L188: 11180 | M188: 30.33
C189: Semi-hermétique | D189: Non | E189: R134A | F189: COPELAND | G189: -10/+45°C | H189: Pas de variation | I189: 23.8 | J189: 9.88 | K189: 4MI1-30X | L189: 8920 | M189: 33.68
C190: Semi-hermétique | D190: Non | E190: R134A | F190: COPELAND | G190: -10/+45°C | H190: Pas de variation | I190: 24.2 | J190: 9.92 | K190: 4MM1-20X | L190: 10780 | M190: 34.12
C191: Semi-hermétique | D191: Non | E191: R134A | F191: COPELAND | G191: -10/+45°C | H191: Pas de variation | I191: 26.6 | J191: 11.1 | K191: 4MJ1-33X | L191: 9840 | M191: 37.7
C192: Semi-hermétique | D192: Non | E192: R134A | F192: COPELAND | G192: -10/+45°C | H192: Pas de variation | I192: 27.4 | J192: 11.32 | K192: 4MT1-22X | L192: 12180 | M192: 38.72
C193: Semi-hermétique | D193: Non | E193: R134A | F193: COPELAND | G193: -10/+45°C | H193: Pas de variation | I193: 29.8 | J193: 12.6 | K193: 4MK1-35X | L193: 10840 | M193: 42.4
C194: Semi-hermétique | D194: Non | E194: R134A | F194: COPELAND | G194: -10/+45°C | H194: Pas de variation | I194: 30.2 | J194: 12.8 | K194: 4MU1-25X | L194: 13420 | M194: 43
C195: Semi-hermétique | D195: Non | E195: R134A | F195: COPELAND | G195: -10/+45°C | H195: Pas de variation | I195: 35 | J195: 15.29 | K195: 6MI1-40X | L195: 11270 | M195: 50.29
C196: Semi-hermétique | D196: Non | E196: R134A | F196: COPELAND | G196: -10/+45°C | H196: Pas de variation | I196: 36.4 | J196: 15.21 | K196: 6MM1-30X | L196: 14050 | M196: 51.61
C197: Semi-hermétique | D197: Non | E197: R134A | F197: COPELAND | G197: -10/+45°C | H197: Pas de variation | I197: 39.7 | J197: 16.8 | K197: 6MJ1-45X | L197: 12820 | M197: 56.5
C198: Semi-hermétique | D198: Non | E198: R134A | F198: COPELAND | G198: -10/+45°C | H198: Pas de variation | I198: 41.1 | J198: 17.3 | K198: 6MT1-35X | L198: 15650 | M198: 58.4
C199: Semi-hermétique | D199: Non | E199: R134A | F199: COPELAND | G199: -10/+45°C | H199: Pas de variation | I199: 42.5 | J199: 19.52 | K199: 6MK1-50X | L199: 15680 | M199: 62.02
C200: Semi-hermétique | D200: Non | E200: R134A | F200: COPELAND | G200: -10/+45°C | H200: Pas de variation | I200: 44.9 | J200: 19.3 | K200: 6MU1-40X | L200: 17250 | M200: 64.2
C201: Semi-hermétique | D201: Non | E201: R407F | F201: COPELAND | G201: -10/+45°C | H201: Pas de variation | I201: 3.39 | J201: 13.1 | K201: 4MA1-22X | L201: 10910 | M201: 16.49
C202: Semi-hermétique | D202: Non | E202: R407F | F202: COPELAND | G202: -10/+45°C | H202: Pas de variation | I202: 29.1 | J202: 13.21 | K202: 4MF1-13X | L202: 8790 | M202: =I202+J202 -> 42.31
C203: Semi-hermétique | D203: Non | E203: R407F | F203: COPELAND | G203: -10/+45°C | H203: Pas de variation | I203: 36.5 | J203: 15.3 | K203: 4MH1-25X | L203: 11180 | M203: 51.8
C204: Semi-hermétique | D204: Non | E204: R407F | F204: COPELAND | G204: -10/+45°C | H204: Pas de variation | I204: 36 | J204: 15.5 | K204: 4ML1-15X | L204: 11180 | M204: 51.5
C205: Semi-hermétique | D205: Non | E205: R407F | F205: COPELAND | G205: -10/+45°C | H205: Pas de variation | I205: 40.2 | J205: 16.75 | K205: 4MI1-30X | L205: 8920 | M205: 56.95
C206: Semi-hermétique | D206: Non | E206: R407F | F206: COPELAND | G206: -10/+45°C | H206: Pas de variation | I206: 39.4 | J206: 17.05 | K206: 4MM1-20X | L206: 10780 | M206: 56.45
C207: Semi-hermétique | D207: Non | E207: R407F | F207: COPELAND | G207: -10/+45°C | H207: Pas de variation | I207: 44.8 | J207: 18.9 | K207: 4MJ1-33X | L207: 9840 | M207: 63.7
C208: Semi-hermétique | D208: Non | E208: R407F | F208: COPELAND | G208: -10/+45°C | H208: Pas de variation | I208: 43.8 | J208: 19.5 | K208: 4MT1-22X | L208: 12180 | M208: 63.3
C209: Semi-hermétique | D209: Non | E209: R407F | F209: COPELAND | G209: -10/+45°C | H209: Pas de variation | I209: 50 | J209: 21.6 | K209: 4MK1-35X | L209: 10840 | M209: 71.6
C210: Semi-hermétique | D210: Non | E210: R407F | F210: COPELAND | G210: -10/+45°C | H210: Pas de variation | I210: 49.2 | J210: 22.3 | K210: 4MU1-25X | L210: 13420 | M210: 71.5
C211: Semi-hermétique | D211: Non | E211: R407F | F211: COPELAND | G211: -10/+45°C | H211: Pas de variation | I211: 61.5 | J211: 25.9 | K211: 6MI1-40X | L211: 11270 | M211: 87.4
C212: Semi-hermétique | D212: Non | E212: R407F | F212: COPELAND | G212: -10/+45°C | H212: Pas de variation | I212: 59.9 | J212: 26.3 | K212: 6MM1-30X | L212: 14050 | M212: 86.2
... 85 more rows

Sheet Récap centrale (hidden)
C1: Positif
C2: Solution 1 | E2: Solution 2 | G2: Solution 3 | J2: Cette feuille n'est ici que pour récupérer les valeurs de la sélection multiple des compresseurs (+ & -) elle permet de donner la somme des puissance et des prix. NE PAS LA SUPPRIMER
C3: puissance | D3: Prix | E3: puissance | F3: Prix | G3: puissance | H3: Prix
B4: compresseur 1 | C4: ='Centrale +'!B26 ->  | D4: ='Centrale +'!B27 ->  | E4: ='Centrale +'!C26 ->  | F4: ='Centrale +'!C27 ->  | G4: ='Centrale +'!D26 ->  | H4: ='Centrale +'!D27 -> 
B5: compresseur 2 | C5: ='Centrale +'!B30 ->  | D5: ='Centrale +'!B31 ->  | E5: ='Centrale +'!C30 ->  | F5: ='Centrale +'!C31 ->  | G5: ='Centrale +'!D30 ->  | H5: ='Centrale +'!D31 -> 
B6: compresseur 3 | C6: ='Centrale +'!B34 ->  | D6: ='Centrale +'!B35 ->  | E6: ='Centrale +'!C34 ->  | F6: ='Centrale +'!C35 ->  | G6: ='Centrale +'!D34 ->  | H6: ='Centrale +'!D35 -> 
B7: Compresseur 4 | C7: ='Centrale +'!B38 ->  | D7: ='Centrale +'!B39 ->  | E7: ='Centrale +'!C38 ->  | F7: ='Centrale +'!C39 ->  | G7: ='Centrale +'!D38 ->  | H7: ='Centrale +'!D39 -> 
C10: négatif
C11: Solution 1 | E11: Solution 2 | G11: Solution 3
C12: puissance | D12: Prix | E12: puissance | F12: Prix | G12: puissance | H12: Prix
B13: compresseur 1 | C13: ='Centrale -'!B26 ->  | D13: ='Centrale -'!B27 ->  | E13: ='Centrale -'!C26 ->  | F13: ='Centrale -'!C27 ->  | G13: ='Centrale -'!D26 ->  | H13: ='Centrale -'!D27 -> 
B14: compresseur 2 | C14: ='Centrale -'!B30 ->  | D14: ='Centrale -'!B31 ->  | E14: ='Centrale -'!C30 ->  | F14: ='Centrale -'!C31 ->  | G14: ='Centrale -'!D30 ->  | H14: ='Centrale -'!D31 -> 
B15: compresseur 3 | C15: ='Centrale -'!B34 ->  | D15: ='Centrale -'!B35 ->  | E15: ='Centrale -'!C34 ->  | F15: ='Centrale -'!C35 ->  | G15: ='Centrale -'!D34 ->  | H15: ='Centrale -'!D35 -> 
B16: Compresseur 4 | C16: ='Centrale -'!B38 ->  | D16: ='Centrale -'!B39 ->  | E16: ='Centrale -'!C38 ->  | F16: ='Centrale -'!C39 ->  | G16: ='Centrale -'!D38 ->  | H16: ='Centrale -'!D39 -> 

Sheet Besoins frigo (hidden)
A1: Besoins frigorifiques
A3: Récapitulatif de vos besoins frigorifiques
A5: Centrale POSITIVE
B7: Centrale (+)
B8: Puissance meubles frigorifiques de ventes | E8: ='Puissances MFV'!O94 -> 0
B9: Puissance chambre froide n°1 | E9: ='Chambres positives'!E18 -> 
B10: Puissance chambre froide n°2 | E10: ='Chambres positives'!F18 -> 
B11: Puissance chambre froide n°3 | E11: ='Chambres positives'!G18 -> 
B12: Puissance chambre froide n°4 | E12: ='Chambres positives'!H18 -> 
B13: Puissance chambre froide n°5 | E13: ='Chambres positives'!I18 -> 
B14: Puissance chambre froide n°6 | E14: ='Chambres positives'!J18 -> 
B15: Puissance chambre froide n°7 | E15: ='Chambres positives'!K18 -> 
B16: Puissance chambre froide n°8 | E16: ='Chambres positives'!L18 -> 
B17: Puissance de déshumidification
B18: Puissance de rafraîchissement
B19: TOTAL | E19: =SUM(E8:E18) -> 0
A21: Centrale NÉGATIVE
B23: Centrale (-)
B24: Puissance meubles frigorifiques de ventes | E24: ='Puissances MFV'!O116 -> 0
B25: Puissance chambre froide n°1 | E25: ='Chambres négative'!E18 -> 
B26: Puissance chambre froide n°2 | E26: ='Chambres négative'!F18 -> 
B27: Puissance chambre froide n°3 | E27: ='Chambres négative'!G18 -> 
B28: Puissance chambre froide n°4 | E28: ='Chambres négative'!H18 -> 
B29: Puissance chambre froide n°5 | E29: ='Chambres négative'!I18 -> 
B30: Puissance chambre froide n°6 | E30: ='Chambres négative'!J18 -> 
B31: Puissance chambre froide n°7 | E31: ='Chambres négative'!K18 -> 
B32: Puissance chambre froide n°8 | E32: ='Chambres négative'!L18 -> 
B33: Puissance de déshumidification
B34: Puissance de rafraîchissement
B35: TOTAL | E35: =SUM(E24:E34) -> 0

Sheet Centrale - (hidden)
A1: Composition de votre centrale négative
A3: Compresseur(s)
A5: Si un seul compresseur
A7: Puissance nécessaire | C7: ='Besoins frigo'!E35/1000 -> 0
A9: Compresseur (positif)
A10: Appel de puissance
A11: Marque sélectionné
A12: Modèle corrrespondant
A13: Principe de fonctionement
A14: Fluide utilisé
A15: Température de condensation
A16: Rejet de chaleur
A19: Sélection multiple de compresseur
A21: Puissance nécessaire | C21: ='Besoins frigo'!E35/1000 -> 0
B23: Solution 1 | C23: Solution 2 | D23: Solution 3
A24: Compresseurs 1 | B24: ='Tableau synthèse'!C4 ->  | C24: ='Tableau synthèse'!D4 ->  | D24: ='Tableau synthèse'!E4 -> 
A25: Marque | B25: =INDEX('Selection compresseurs'!$F$27:$F$71,MATCH(B24,'Selection compresseurs'!$K$27:$K$71,0)) ->  | C25: =INDEX('Selection compresseurs'!$F$27:$F$71,MATCH(C24,'Selection compresseurs'!$K$27:$K$71,0)) ->  | D25: =INDEX('Selection compresseurs'!$F$27:$F$71,MATCH(D24,'Selection compresseurs'!$K$27:$K$71,0)) -> 
A26: Puissance | B26: =INDEX('Selection compresseurs'!$I$27:$I$71,MATCH($B$24,'Selection compresseurs'!$K$27:$K$71,0)) ->  | C26: =INDEX('Selection compresseurs'!$I$27:$I$71,MATCH($C$24,'Selection compresseurs'!$K$27:$K$71,0)) ->  | D26: =INDEX('Selection compresseurs'!$I$27:$I$71,MATCH($D$24,'Selection compresseurs'!$K$27:$K$71,0)) -> 
A27: Prix | B27: =INDEX('Selection compresseurs'!$L$27:$L$71,MATCH($B$24,'Selection compresseurs'!$K$27:$K$71,0)) ->  | C27: =INDEX('Selection compresseurs'!$L$27:$L$71,MATCH($C$24,'Selection compresseurs'!$K$27:$K$71,0)) ->  | D27: =INDEX('Selection compresseurs'!$L$27:$L$71,MATCH($D$24,'Selection compresseurs'!$K$27:$K$71,0)) -> 
A28: Compresseurs 2 | B28: ='Tableau synthèse'!C5 ->  | C28: ='Tableau synthèse'!D5 ->  | D28: ='Tableau synthèse'!E5 -> 
A29: Marque | B29: =INDEX('Selection compresseurs'!$F$27:$F$71,MATCH(B28,'Selection compresseurs'!$K$27:$K$71,0)) ->  | C29: =INDEX('Selection compresseurs'!$F$27:$F$71,MATCH(C28,'Selection compresseurs'!$K$27:$K$71,0)) ->  | D29: =INDEX('Selection compresseurs'!$F$27:$F$71,MATCH(D28,'Selection compresseurs'!$K$27:$K$71,0)) -> 
A30: Puissance | B30: =INDEX('Selection compresseurs'!$I$27:$I$71,MATCH(B28,'Selection compresseurs'!$K$27:$K$71,0)) ->  | C30: =INDEX('Selection compresseurs'!$I$27:$I$71,MATCH(C28,'Selection compresseurs'!$K$27:$K$71,0)) ->  | D30: =INDEX('Selection compresseurs'!$I$27:$I$71,MATCH(D28,'Selection compresseurs'!$K$27:$K$71,0)) -> 
A31: Prix | B31: =INDEX('Selection compresseurs'!$L$27:$L$71,MATCH(B28,'Selection compresseurs'!$K$27:$K$71,0)) ->  | C31: =INDEX('Selection compresseurs'!$L$27:$L$71,MATCH(C28,'Selection compresseurs'!$K$27:$K$71,0)) ->  | D31: =INDEX('Selection compresseurs'!$L$27:$L$71,MATCH(D28,'Selection compresseurs'!$K$27:$K$71,0)) -> 
A32: Compresseurs 3 | B32: ='Tableau synthèse'!C6 ->  | C32: ='Tableau synthèse'!D6 ->  | D32: ='Tableau synthèse'!E6 -> 
A33: Marque | B33: =INDEX('Selection compresseurs'!$F$27:$F$71,MATCH(B32,'Selection compresseurs'!$K$27:$K$71,0)) ->  | C33: =INDEX('Selection compresseurs'!$F$27:$F$71,MATCH(C32,'Selection compresseurs'!$K$27:$K$71,0)) ->  | D33: =INDEX('Selection compresseurs'!$F$27:$F$71,MATCH(D32,'Selection compresseurs'!$K$27:$K$71,0)) -> 
A34: Puissance | B34: =INDEX('Selection compresseurs'!$I$27:$I$71,MATCH(B32,'Selection compresseurs'!$K$27:$K$71,0)) ->  | C34: =INDEX('Selection compresseurs'!$I$27:$I$71,MATCH(C32,'Selection compresseurs'!$K$27:$K$71,0)) ->  | D34: =INDEX('Selection compresseurs'!$I$27:$I$71,MATCH(D32,'Selection compresseurs'!$K$27:$K$71,0)) -> 
A35: Prix | B35: =INDEX('Selection compresseurs'!$L$27:$L$71,MATCH(B32,'Selection compresseurs'!$K$27:$K$71,0)) ->  | C35: =INDEX('Selection compresseurs'!$L$27:$L$71,MATCH(C32,'Selection compresseurs'!$K$27:$K$71,0)) ->  | D35: =INDEX('Selection compresseurs'!$L$27:$L$71,MATCH(D32,'Selection compresseurs'!$K$27:$K$71,0)) -> 
A36: Compresseurs 4 | B36: ='Tableau synthèse'!C7 ->  | C36: ='Tableau synthèse'!D7 ->  | D36: ='Tableau synthèse'!E7 -> 
A37: Marque | B37: =INDEX('Selection compresseurs'!$F$27:$F$71,MATCH(B36,'Selection compresseurs'!$K$27:$K$71,0)) ->  | C37: =INDEX('Selection compresseurs'!$F$27:$F$71,MATCH(C36,'Selection compresseurs'!$K$27:$K$71,0)) ->  | D37: =INDEX('Selection compresseurs'!$F$27:$F$71,MATCH(D36,'Selection compresseurs'!$K$27:$K$71,0)) -> 
A38: Puissance | B38: =INDEX('Selection compresseurs'!$I$27:$I$71,MATCH(B36,'Selection compresseurs'!$K$27:$K$71,0)) ->  | C38: =INDEX('Selection compresseurs'!$I$27:$I$71,MATCH(C36,'Selection compresseurs'!$K$27:$K$71,0)) ->  | D38: =INDEX('Selection compresseurs'!$I$27:$I$71,MATCH(D36,'Selection compresseurs'!$K$27:$K$71,0)) -> 
A39: Prix | B39: =INDEX('Selection compresseurs'!$L$27:$L$71,MATCH(B36,'Selection compresseurs'!$K$27:$K$71,0)) ->  | C39: =INDEX('Selection compresseurs'!$L$27:$L$71,MATCH(C36,'Selection compresseurs'!$K$27:$K$71,0)) ->  | D39: =INDEX('Selection compresseurs'!$L$27:$L$71,MATCH(D36,'Selection compresseurs'!$K$27:$K$71,0)) -> 
A40: Puissance (KW) | B40: =SUMIF('Récap centrale '!C13:C16,"<>#N/A") -> 0 | C40: =SUMIF('Récap centrale '!E13:E16,"<>#N/A") -> 0 | D40: =SUMIF('Récap centrale '!G13:G16,"<>#N/A") -> 0
A41: Prix total | B41: =SUMIF('Récap centrale '!D13:D16,"<>#N/A") -> 0 | C41: =SUMIF('Récap centrale '!F13:F16,"<>#N/A") -> 0 | D41: =SUMIF('Récap centrale '!H13:H16,"<>#N/A") -> 0
A48: Évaporateur(s) : Chambre(s) froide
B50: Chambre froide 1 | C50: Chambre froide 2 | D50: Chambre froide 3 | E50: Chambre froide 4
A51: Puissance | B51: ='Chambres négative'!E18 ->  | C51: ='Chambres négative'!F18 ->  | D51: ='Chambres négative'!G18 ->  | E51: ='Chambres négative'!H18 ->  | F51: =IF(F36="oui",'Table CFP 2'!$K$82,"") ->  | G51: =IF(G36="oui",'Table CFP 3'!$K$82,"") ->  | H51: =IF(H36="oui",'Table CFP 4'!$K$82,"") -> 
A52: Modèle | B52: ='Chambres négative'!E21 ->  | C52: ='Chambres négative'!F21 ->  | D52: ='Chambres négative'!G21 ->  | E52: ='Chambres négative'!H21 -> 
A53: Budget | B53: ='Chambres négative'!E23 ->  | C53: ='Chambres négative'!F23 ->  | D53: ='Chambres négative'!G23 ->  | E53: ='Chambres négative'!H23 -> 
B55: Chambre froide 5 | C55: Chambre froide 6 | D55: Chambre froide 7 | E55: Chambre froide 8
A56: Puissance | B56: ='Chambres négative'!I18 ->  | C56: ='Chambres négative'!J18 ->  | D56: ='Chambres négative'!K18 ->  | E56: ='Chambres négative'!L18 -> 
A57: Modèle | B57: ='Chambres négative'!I21 ->  | C57: ='Chambres négative'!J21 ->  | D57: ='Chambres négative'!K21 ->  | E57: ='Chambres négative'!L21 -> 
A58: Budget | B58: ='Chambres négative'!I23 ->  | C58: ='Chambres négative'!J23 ->  | D58: ='Chambres négative'!K23 ->  | E58: ='Chambres négative'!L23 -> 
A61: Condenseur(s)
A63: Puissance de sélection | C63: ='Production négative'!H20 -> 3.5
A64: Équipement retenu | C64: ='Production négative'!H17 -> 
A65: Spécificité | C65: ='Production négative'!H19 -> 
A66: Modèle | C66: ='Production négative'!H21 -> 
A67: Prix | C67: ='Production négative'!H22 -> 

Sheet Centrale + (hidden)
A1: Composition de votre centrale positive
A3: Compresseur(s)
A5: Si un seul compresseur
A7: Puissance nécessaire : | C7: ='Besoins frigo'!E19/1000 -> 0
A9: Compresseur (Positif)
A10: Appel de puissance
A11: Marque sélectionné
A12: Modèle corrrespondant
A13: Principe de fonctionement
A14: Fluide utilisé
A15: Température de condensation
A16: Rejet de chaleur
A19: Sélection multiple de compresseur
A21: Puissance nécessaire : | C21: ='Besoins frigo'!E19/1000 -> 0
B23: Solution 1 | C23: Solution 2 | D23: Solution 3
A24: Compresseurs 1 | B24: ='Tableau synthèse (2)'!C4 ->  | C24: ='Tableau synthèse (2)'!D4 ->  | D24: ='Tableau synthèse (2)'!E4 -> 
A25: Marque | B25: =INDEX('Selection compresseurs'!$F$72:$F$297,MATCH(B24,'Selection compresseurs'!$K$72:$K$297,0)) ->  | C25: =INDEX('Selection compresseurs'!$F$72:$F$297,MATCH(C24,'Selection compresseurs'!$K$72:$K$297,0)) ->  | D25: =INDEX('Selection compresseurs'!$F$72:$F$297,MATCH(D24,'Selection compresseurs'!$K$72:$K$297,0)) -> 
A26: Puissance | B26: =INDEX('Selection compresseurs'!$I$72:$I$297,MATCH($B$24,'Selection compresseurs'!$K$72:$K$297,0)) ->  | C26: =INDEX('Selection compresseurs'!$I$72:$I$297,MATCH($C$24,'Selection compresseurs'!$K$72:$K$297,0)) ->  | D26: =INDEX('Selection compresseurs'!$I$72:$I$297,MATCH($D$24,'Selection compresseurs'!$K$72:$K$297,0)) -> 
A27: Prix | B27: =INDEX('Selection compresseurs'!$L$72:$L$297,MATCH($B$24,'Selection compresseurs'!$K$72:$K$297,0)) ->  | C27: =INDEX('Selection compresseurs'!$L$72:$L$297,MATCH($C$24,'Selection compresseurs'!$K$72:$K$297,0)) ->  | D27: =INDEX('Selection compresseurs'!$L$72:$L$297,MATCH($D$24,'Selection compresseurs'!$K$72:$K$297,0)) -> 
A28: Compresseurs 2 | B28: ='Tableau synthèse (2)'!C5 ->  | C28: ='Tableau synthèse (2)'!D5 ->  | D28: ='Tableau synthèse (2)'!E5 -> 
A29: Marque | B29: =INDEX('Selection compresseurs'!$F$72:$F$297,MATCH(B28,'Selection compresseurs'!$K$72:$K$297,0)) ->  | C29: =INDEX('Selection compresseurs'!$F$72:$F$297,MATCH(C28,'Selection compresseurs'!$K$72:$K$297,0)) ->  | D29: =INDEX('Selection compresseurs'!$F$72:$F$297,MATCH(D28,'Selection compresseurs'!$K$72:$K$297,0)) -> 
A30: Puissance | B30: =INDEX('Selection compresseurs'!$I$72:$I$297,MATCH($B$28,'Selection compresseurs'!$K$72:$K$297,0)) ->  | C30: =INDEX('Selection compresseurs'!$I$72:$I$297,MATCH($C$28,'Selection compresseurs'!$K$72:$K$297,0)) ->  | D30: =INDEX('Selection compresseurs'!$I$72:$I$297,MATCH($D$28,'Selection compresseurs'!$K$72:$K$297,0)) -> 
A31: Prix | B31: =INDEX('Selection compresseurs'!$L$72:$L$297,MATCH($B$28,'Selection compresseurs'!$K$72:$K$297,0)) ->  | C31: =INDEX('Selection compresseurs'!$L$72:$L$297,MATCH($C$28,'Selection compresseurs'!$K$72:$K$297,0)) ->  | D31: =INDEX('Selection compresseurs'!$L$72:$L$297,MATCH($D$28,'Selection compresseurs'!$K$72:$K$297,0)) -> 
A32: Compresseurs 3 | B32: ='Tableau synthèse (2)'!C6 ->  | C32: ='Tableau synthèse (2)'!D6 ->  | D32: ='Tableau synthèse (2)'!E6 -> 
A33: Marque | B33: =INDEX('Selection compresseurs'!$F$72:$F$297,MATCH(B32,'Selection compresseurs'!$K$72:$K$297,0)) ->  | C33: =INDEX('Selection compresseurs'!$F$72:$F$297,MATCH(C32,'Selection compresseurs'!$K$72:$K$297,0)) ->  | D33: =INDEX('Selection compresseurs'!$F$72:$F$297,MATCH(D32,'Selection compresseurs'!$K$72:$K$297,0)) -> 
A34: Puissance | B34: =INDEX('Selection compresseurs'!$I$72:$I$297,MATCH($B$32,'Selection compresseurs'!$K$72:$K$297,0)) ->  | C34: =INDEX('Selection compresseurs'!$I$72:$I$297,MATCH($C$32,'Selection compresseurs'!$K$72:$K$297,0)) ->  | D34: =INDEX('Selection compresseurs'!$I$72:$I$297,MATCH($D$32,'Selection compresseurs'!$K$72:$K$297,0)) -> 
A35: Prix | B35: =INDEX('Selection compresseurs'!$L$72:$L$297,MATCH($B$32,'Selection compresseurs'!$K$72:$K$297,0)) ->  | C35: =INDEX('Selection compresseurs'!$L$72:$L$297,MATCH($C$32,'Selection compresseurs'!$K$72:$K$297,0)) ->  | D35: =INDEX('Selection compresseurs'!$L$72:$L$297,MATCH($D$32,'Selection compresseurs'!$K$72:$K$297,0)) -> 
A36: Compresseurs 4 | B36: ='Tableau synthèse (2)'!C7 ->  | C36: ='Tableau synthèse (2)'!D7 ->  | D36: ='Tableau synthèse (2)'!E7 -> 
A37: Marque | B37: =INDEX('Selection compresseurs'!$F$72:$F$297,MATCH(B36,'Selection compresseurs'!$K$72:$K$297,0)) ->  | C37: =INDEX('Selection compresseurs'!$F$72:$F$297,MATCH(C36,'Selection compresseurs'!$K$72:$K$297,0)) ->  | D37: =INDEX('Selection compresseurs'!$F$72:$F$297,MATCH(D36,'Selection compresseurs'!$K$72:$K$297,0)) -> 
A38: Puissance | B38: =INDEX('Selection compresseurs'!$I$72:$I$297,MATCH($B$36,'Selection compresseurs'!$K$72:$K$297,0)) ->  | C38: =INDEX('Selection compresseurs'!$I$72:$I$297,MATCH($C$36,'Selection compresseurs'!$K$72:$K$297,0)) ->  | D38: =INDEX('Selection compresseurs'!$I$72:$I$297,MATCH($D$36,'Selection compresseurs'!$K$72:$K$297,0)) -> 
A39: Prix | B39: =INDEX('Selection compresseurs'!$L$72:$L$297,MATCH(B36,'Selection compresseurs'!$K$72:$K$297,0)) ->  | C39: =INDEX('Selection compresseurs'!$L$72:$L$297,MATCH(C36,'Selection compresseurs'!$K$72:$K$297,0)) ->  | D39: =INDEX('Selection compresseurs'!$L$72:$L$297,MATCH(D36,'Selection compresseurs'!$K$72:$K$297,0)) -> 
A40: Puissance (KW) | B40: =SUMIF('Récap centrale '!C4:C7,"<>#N/A") -> 0 | C40: =SUMIF('Récap centrale '!E4:E7,"<>#N/A") -> 0 | D40: =SUMIF('Récap centrale '!G4:G7,"<>#N/A") -> 0
A41: Prix total | B41: =SUMIF('Récap centrale '!D4:D7,"<>#N/A") -> 0 | C41: =SUMIF('Récap centrale '!F4:F7,"<>#N/A") -> 0 | D41: =SUMIF('Récap centrale '!H4:H7,"<>#N/A") -> 0
A48: Évaporateur(s) : Chambre(s) froide
B50: Chambre froide 1 | C50: Chambre froide 2 | D50: Chambre froide 3 | E50: Chambre froide 4
A51: Puissance | B51: ='Chambres positives'!E18 ->  | C51: ='Chambres positives'!F18 ->  | D51: ='Chambres positives'!G18 ->  | E51: ='Chambres positives'!H18 ->  | F51: =IF(F36="oui",'Table CFP 2'!$K$82,"") ->  | G51: =IF(G36="oui",'Table CFP 3'!$K$82,"") ->  | H51: =IF(H36="oui",'Table CFP 4'!$K$82,"") -> 
A52: Modèle | B52: ='Chambres positives'!E21 ->  | C52: ='Chambres positives'!F21 ->  | D52: ='Chambres positives'!G21 ->  | E52: ='Chambres positives'!H21 -> 
A53: Prix | B53: ='Chambres positives'!E23 ->  | C53: ='Chambres positives'!F23 ->  | D53: ='Chambres positives'!G23 ->  | E53: ='Chambres positives'!H23 -> 
B55: Chambre froide 5 | C55: Chambre froide 6 | D55: Chambre froide 7 | E55: Chambre froide 8
A56: Puissance | B56: ='Chambres positives'!I18 ->  | C56: ='Chambres positives'!J18 ->  | D56: ='Chambres positives'!K18 ->  | E56: ='Chambres positives'!L18 -> 
A57: Modèle | B57: ='Chambres positives'!I21 ->  | C57: ='Chambres positives'!J21 ->  | D57: ='Chambres positives'!K21 ->  | E57: ='Chambres positives'!L21 -> 
A58: Prix | B58: ='Chambres positives'!I23 ->  | C58: ='Chambres positives'!J23 ->  | D58: ='Chambres positives'!K23 ->  | E58: ='Chambres positives'!L23 -> 
A61: Condenseur(s)
A63: Puissance de sélection | C63: ='Production positive'!I20 -> 1.53
A64: Équipement retenu | C64: ='Production positive'!I17 -> 
A65: Spécificité | C65: ='Production positive'!I19 -> 
A66: Modèle | C66: ='Production positive'!I21 -> 
A67: Prix | C67: ='Production positive'!I22 -> 

Sheet Table CFP 1 (hidden)
A1: ENTREES | B1: CALCULS | C1: CHAMBRE FROIDE | D1: CFP 01 | E1: FRAIS LS | F1: PRODUITS TRAITES | H1: ='Chambres positives'!E5 -> 0
C2: Largeur | E2: ='Chambres positives'!E8 -> 0 | F2: TEMPERATURE | G2: =Informations!G25 ->  | H2: EXT | I2: REP
C3: Longueur | E3: ='Chambres positives'!E9 -> 0 | F3: HUMIDITE | G3: 50 | I3: COEF TRANSMISSION | K3: 0.3
C4: Hauteur sous plafond | E4: ='Chambres positives'!E10 -> 0 | F4: TEMPERATURE | G4: 1e-06 | H4: INT | I4: TEMPERATURE | J4: 10 | K4: SAS | M4: CHARGEMENT | N4: CHARGEMENT | O4: NUIT
C5: Surface | E5: =E3*E2 -> 0 | F5: HUMIDITE | G5: 80 | I5: HUMIDITE | J5: 60 | M5: 0.5 | N5: 0.75 | O5: Activité 0
C6: Volume | E6: =E5*E4 -> 0 | F6: CAPACITE CF | G6: 6000 | H6: LABO | I6: NON | K6: NON
C7: BILAN | F7: Text | G7: T in | H7: k | I7: Apport | J7: Apport
C8: Déperditions | E8: m2 | F8: °C | G8: °C | H8: W/m2/K | I8: W | J8: kJ/24h
C9: Mur droit | D9: S1 | E9: =E2*E4 -> 0 | F9: 35 | G9: =$G$4 -> 1e-06 | H9: =$K$3 -> 0.3 | I9: =H9*E9*(F9-G9) -> 0 | J9: =I9*3600*24/1000 -> 0 | O9: =H9*(F9-5-G9)*E9 -> 0
C10: Mur gauche | D10: S2 | E10: =+E9 -> 0 | F10: 35 | G10: 1e-06 | H10: =$K$3 -> 0.3 | I10: 0 | J10: 0 | O10: =H10*(F10-5-G10)*E10 -> 0
C11: Mur fond | D11: S3 | E11: =E3*E4 -> 0 | F11: 15 | G11: 1e-06 | H11: =$K$3 -> 0.3 | I11: 0 | J11: 0 | O11: =H11*(F11-5-G11)*E11 -> 0
C12: Mur avant | D12: S4 | E12: =E11 -> 0 | F12: 35 | G12: 1e-06 | H12: 0.5 | I12: 0 | J12: 0 | O12: =H12*(F12-5-G12)*E12 -> 0
C13: Plafond | D13: S5 | E13: =E5 -> 0 | F13: 35 | G13: 1e-06 | H13: =$K$3 -> 0.3 | I13: 0 | J13: 0 | O13: =H13*(F13-5-G13)*E13 -> 0
C14: Plancher | D14: S6 | E14: =E5 -> 0 | F14: 15 | G14: 1e-06 | H14: 0.2 | I14: 0 | J14: 0 | O14: =H14*(F14-G14)*E14 -> 0
C15: Linéïques | D15: 0.1 | I15: =D15*SUM(I9:I14) -> 0 | J15: =D15*SUM(J9:J14) -> 0
C16: Sous total | I16: =SUM(I9:I15) -> 0 | J16: =I16*24*3.6 -> 0 | K16: =J16/$J$48 ->  | M16: =J16 -> 0 | N16: =J16 -> 0 | O16: =SUM(O9:O15)*24*3.6 -> 0
C18: Entrés | D18: % de charge | E18: kg/jour | F18: T entrée | G18: T stockage | H18: Cp | I18: Apport | J18: Apport
C19: Surcharge kg/jour | E19: Débit | F19: °C | G19: °C | H19: kJ/kg/K | I19: W | J19: kJ/24h
C20: 0 | D20: 0.25 | E20: 1500 | F20: 7 | G20: =G4 -> 1e-06 | H20: 3.3484 | I20: =H20*(E20+C20 )*(F20-G20)/3600/12*1000 -> 813.847106 | J20: =(C20+E20)*H20*(F20-G20) -> 35158.19498 | K20: =J20/$J$48 ->  | M20: =IF(LABO="non",J20/E20*G6*$M$5,0) -> 70316.38995 | N20: =IF(LABO="non",J20/E20*G6*$N$5,0) -> 105474.5849 | O20: 0
C21: Chaleur respiration | E21: Capacité | H21: Chaleur respiration | I21: Apport | J21: Apport
C22: =H1 -> 0 | E22: Chambre | H22: kJ/kg en 24 h | I22: W | J22: kJ/24h
C23: 0 | E23: =capacité -> 6000 | H23: =C23 -> 0 | I23: =J23/24/3600 -> 0 | J23: =H23*E23 -> 0 | K23: =J23/$J$48 ->  | M23: =+J23 -> 0 | N23: =J23 -> 0 | O23: =J23 -> 0
C25: Travail ventilateurs | E25: Volume chambre | F25: Taux de brassage | G25: Débit air brassé | H25: Puissance ventilateur | I25: Apport | J25: Apport
E26: m3 | F26: sd | G26: m3 | H26: W | I26: W | J26: kJ/24h
E27: =volume -> 0 | F27: 30 | G27: =F27*E6 -> 0 | H27: =I27 -> 0 | I27: =G27*0.1 -> 0 | J27: =I27/1000*24*3600 -> 0 | K27: =J27/$J$48 ->  | M27: =J27 -> 0 | N27: =J27 -> 0 | O27: =J27 -> 0
C29: Air neuf | E29: Renouvellement | F29: Vol massique | G29: Enthalpie Ext | H29: Enthalpie Int | I29: Apport | J29: Apport
C30: Activité chambre | E30: m3/24h | F30: m3/kg | G30: kJ/kg | H30: kJ/kg | I30: W | J30: kJ/24h
C31: FORT | E31: 1181 | F31: =IF(K6="NON",H69,J69) ->  | G31: =IF(K6="NON",H72,J72) ->  | H31: =I72 -> 7.587690099 | I31: =(G31-H31)/F31*E31/(24*3600)*1000 ->  | J31: =(G31-H31)/F31*E31 ->  | K31: =J31/$J$48 ->  | M31: =J31 ->  | N31: =J31 ->  | O31: 0
C32: Taux de renouvellement | D32: =E31/volume ->  | E32: Vol/jour | F32: =D32/24 ->  | G32: Vol/h
C34: Eclairage | E34: Surface | F34: Ratio | G34: Nb heures fonction | I34: Apport | J34: Apport
E35: m2 | F35: W/m2 | G35: h | I35: W | J35: kJ/24h
E36: =surface -> 0 | F36: =IF(LABO="oui",0,10) -> 10 | G36: 4 | I36: =F36*E36 -> 0 | J36: =I36*3600*G36/1000 -> 0 | K36: =J36/$J$48 ->  | M36: =J36 -> 0 | N36: =J36 -> 0 | O36: .
C38: Personnel
E39: Nombre | F39: Ratio | G39: Nb heures fonction | I39: Apport | J39: Apport
E40: personne | F40: W/p | G40: h | I40: W | J40: kJ/24h
E41: 0 | F41: 400 | G41: 4 | I41: =F41*E41 -> 0 | J41: =I41*3600*G41/1000 -> 0 | K41: =J41/$J$48 ->  | M41: =J41 -> 0 | N41: =J41 -> 0 | O41: 0
C43: Machines | F43: Nb heures fonction | I43: Apport | J43: Apport
E44: W | F44: h | I44: W | J44: kJ/24h
E45: 0 | F45: =IF(I6="OUI",10,0) -> 0 | I45: =E45 -> 0 | J45: =I45*3600*F45/1000 -> 0 | K45: =J45/$J$48 ->  | M45: =J45 -> 0 | N45: =J45 -> 0 | O45: =J45 -> 0
C46: Divers | E46: 0 | I46: =E46 -> 0 | J46: =I46*3600*24/1000 -> 0 | K46: =J46/$J$48 ->  | M46: =J46 -> 0 | N46: =J46 -> 0 | O46: =J46 -> 0
C48: TOTAL | I48: =I16+I20+I23+I27+I31+I36+I41+I45+I46 ->  | J48: =SUM(J16:J46) ->  | K48: =SUM(K16:K46) ->  | M48: =SUM(M16:M46) ->  | N48: =SUM(N16:N46) ->  | O48: =SUM(O16:O46) -> 0
E50: Nombres d'heures de fonctionnement groupes h/jour | I50: Bilan Chaleur Latente kW | J50: Bilan production kW | M50: Bilan production kW | N50: Bilan production kW | O50: Bilan production kW
C51: PRODUCTION | E51: 18 | F51: Ratio | G51: =J51*1000/E14 ->  | H51: W/m2 | I51: =IF(K6="oui",2501*(J67-I67)*E31/F31/E51/3600,2500.8*(H67-I67)*E31/F31/E51/3600) ->  | J51: =J48/$E$51/3600 ->  | M51: =M48/$E$51/3600 ->  | N51: =N48/$E$51/3600 ->  | O51: =O48/$E$51/3600 -> 0
C52: EMISSION | E52: 16 | G52: =J52*1000/E14 ->  | I52: =I51/J51 ->  | J52: =J48/$E$52/3600 ->  | K52: =J52/J51-1 ->  | M52: =M48/$E$52/3600 ->  | N52: =N48/$E$52/3600 ->  | O52: =O48/$E$52/3600 -> 0
H55: 500 | I55: 500 | J55: 500
C56: VIANDES PRE EMBALLES | E56: TRES FORT | F56: ALTITUDE DU SITE (m) | H56: 50 | I56: 50 | J56: 50
C57: VOLAILLES PREEMBALLEES | E57: FORT | F57: PRESSION TOTALE P (Pa) | H57: =1.19745*10^-8*(288.15-0.0065*H56)^5.25588 -> 100726.0397 | I57: =1.19745*10^-8*(288.15-0.0065*I56)^5.25588 -> 100726.0397 | J57: =1.19745*10^-8*(288.15-0.0065*J56)^5.25588 -> 100726.0397
C58: CARCASSES | E58: MOYEN | F58: POINT | H58: EXT | I58: INT | J58: SAS
C59: CHARCUTERIE PREEMBALLE | E59: FAIBLE | F59: t | G59: Température sèche | H59: =G2 ->  | I59: =G4 -> 1e-06 | J59: =J4 -> 10
C60: TRAITEUR | F60: F ( % ) | G60: Humidité relatice | H60: 50 | I60: =G5 -> 80 | J60: =J5 -> 60
C61: CHARIOTS PLATS CUISINES | F61: T | G61: Température absolue | H61: =H59+273.15 ->  | I61: =I59+273.15 -> 273.150001 | J61: =J59+273.15 -> 283.15
C62: PATISSERIE FRAICHE | E62: OUI | G62: Pvs si t<0°C | H62: =EXP(-5674.359/H61+6.3925247-0.009677843*H61+0.00000062215701*H61^2+0.0000000020747825*H61^3-0.0000000000009484024*H61^4+4.1635019*LN(H61)) ->  | I62: =EXP(-5674.359/I61+6.3925247-0.009677843*I61+0.00000062215701*I61^2+0.0000000020747825*I61^3-0.0000000000009484024*I61^4+4.1635019*LN(I61)) -> 611.5495505 | J62: =EXP(-5674.359/J61+6.3925247-0.009677843*J61+0.00000062215701*J61^2+0.0000000020747825*J61^3-0.0000000000009484024*J61^4+4.1635019*LN(J61)) -> 1352.955492
C63: POISSONS SUR GLACE | E63: NON | G63: Pvs si t>0°C | H63: =EXP(-5800.2206/H61+1.3914993-0.048640239*H61+0.000041764768*H61^2-0.000000014452093*H61^3+6.5459673*LN(H61)) ->  | I63: =EXP(-5800.2206/I61+1.3914993-0.048640239*I61+0.000041764768*I61^2-0.000000014452093*I61^3+6.5459673*LN(I61)) -> 611.2129119 | J63: =EXP(-5800.2206/J61+1.3914993-0.048640239*J61+0.000041764768*J61^2-0.000000014452093*J61^3+6.5459673*LN(J61)) -> 1227.995275
C64: FRUITS ET LEGUMES | F64: Pws | G64: Pression partielle de vapeur à saturation | H64: =IF(H61<273.15,H62,H63) ->  | I64: =IF(I61<273.15,I62,I63) -> 611.2129119 | J64: =IF(J61<273.15,J62,J63) -> 1227.995275
C65: BOF EMBALLES | F65: Pv | G65: Pression partielle de vapeur non saturé | H65: =H64*H60/100 ->  | I65: =I64*I60/100 -> 488.9703295 | J65: =J64*J60/100 -> 736.7971653
C66: FROMAGE | F66: Pa | G66: Pression partielle de l'air sec | H66: =$H$57-H65 ->  | I66: =$H$57-I65 -> 100237.0694 | J66: =$H$57-J65 -> 99989.24256
C67: BOISSONS | F67: w | G67: Humidité absolue non saturée | H67: =0.62198*H65/($H$57-H65) ->  | I67: =0.62198*I65/($H$57-I65) -> 0.003034104722 | J67: =0.62198*J65/($H$57-J65) -> 0.004583224046
C68: POUBELLES GRASSES | F68: ws | G68: Humidité absolue à saturation | H68: =0.62198*H64/($H$57-H64) ->  | I68: =0.62198*I64/($H$57-I64) -> 0.003797261795 | J68: =0.62198*J64/($H$57-J64) -> 0.007676417217
C69: PRODUITS SURGELES | F69: RO | G69: Masse volumique de l'air sec | H69: =(1+H67)/H70 ->  | I69: =(1+I67)/I70 -> 1.28206375 | J69: =(1+J67)/J70 -> 1.235632662
C70: CREMES GLACEES | F70: v' | G70: Volume massique de l'air humide | H70: =0.2871*H61*(1+1.6078*H67)/$H$57*1000 ->  | I70: =0.2871*I61*(1+1.6078*I67)/$H$57*1000 -> 0.7823589932 | J70: =0.2871*J61*(1+1.6078*J67)/$H$57*1000 -> 0.8130112248
C71: SAS
C72: LABO DECOUPE | F72: h | G72: Enthalpie | H72: =1.006*H59+H67*(2500.8+1.805*H59) ->  | I72: =1.006*I59+I67*(2500.8+1.805*I59) -> 7.587690099 | J72: =1.006*J59+J67*(2500.8+1.805*J59) -> 21.60445389
C73: LABO DECOUPE EMBALLAGE
C74: LABO EMBALLAGE
C79: Désignation | D79: Température | E79: Dimensions | J79: Evaporateurs
E80: Hygrométrie | F80: Longeur | G80: largeur | H80: Surface | I80: hauteur | J80: Volume | K80: Puissance minimum requise | L80: ="à "&ROUND(D20,0)*100 &" % de charge en surface" -> à 0 % de charge en surface | M80: Maximum de charge 50 % | N80: Minimum de charge | O80: DT de sélection | P80: Nbre | Q80: Type | R80: Vitesse ventilation | S80: Dégivrage
B82: =D1 -> CFP 01 | C82: =E1 -> FRAIS LS | D82: =G4 -> 1e-06 | E82: =G5 -> 80 | F82: =E2 -> 0 | G82: =E3 -> 0 | H82: =surface -> 0 | I82: =hauteur -> 0 | J82: =volume -> 0 | K82: =J52*1000 ->  | L82: =J51*1000 ->  | M82: =N52*1000 ->  | N82: =O52*1000 -> 0 | P82: 1 | Q82: =IF(OR(LABO="oui",H1="SAS"),"DOUBLE FLUX",IF(K82<2000,"PLAFONNIER",IF(AND(G5<80,K82<7000),"PLAFONNIER","CUBIQUE"))) ->  | R82: =IF(AND(Q82="DOUBLE FLUX",LABO="OUI"),1000,1500) ->  | S82: =IF(D82>1,"Naturel","Electrique") -> Electrique
K85: =K82/H82 -> 

Sheet Table CFP 2 (hidden)
A1: ENTREES | B1: CALCULS | C1: CHAMBRE FROIDE | D1: CFP 01 | E1: FRAIS LS | F1: PRODUITS TRAITES | H1: ='Chambres positives'!F5 -> 0
C2: Largeur | E2: ='Chambres positives'!F8 -> 0 | F2: TEMPERATURE | G2: =Informations!G25 ->  | H2: EXT | I2: REP
C3: Longueur | E3: ='Chambres positives'!F9 -> 0 | F3: HUMIDITE | G3: 50 | I3: COEF TRANSMISSION | K3: 0.3
C4: Hauteur sous plafond | E4: ='Chambres positives'!F10 -> 0 | F4: TEMPERATURE | G4: 1e-06 | H4: INT | I4: TEMPERATURE | J4: 10 | K4: SAS | M4: CHARGEMENT | N4: CHARGEMENT | O4: NUIT
C5: Surface | E5: =E3*E2 -> 0 | F5: HUMIDITE | G5: 80 | I5: HUMIDITE | J5: 60 | M5: 0.5 | N5: 0.75 | O5: Activité 0
C6: Volume | E6: =E5*E4 -> 0 | F6: CAPACITE CF | G6: 8000 | H6: LABO | I6: NON | K6: NON
C7: BILAN | F7: Text | G7: T in | H7: k | I7: Apport | J7: Apport
C8: Déperditions | E8: m2 | F8: °C | G8: °C | H8: W/m2/K | I8: W | J8: kJ/24h
C9: Mur droit | D9: S1 | E9: =E2*E4 -> 0 | F9: 35 | G9: =$G$4 -> 1e-06 | H9: =$K$3 -> 0.3 | I9: =H9*E9*(F9-G9) -> 0 | J9: =I9*3600*24/1000 -> 0 | O9: =H9*(F9-5-G9)*E9 -> 0
C10: Mur gauche | D10: S2 | E10: =+E9 -> 0 | F10: 35 | G10: 1e-06 | H10: =$K$3 -> 0.3 | I10: 0 | J10: 0 | O10: =H10*(F10-5-G10)*E10 -> 0
C11: Mur fond | D11: S3 | E11: =E3*E4 -> 0 | F11: 15 | G11: 1e-06 | H11: =$K$3 -> 0.3 | I11: 0 | J11: 0 | O11: =H11*(F11-5-G11)*E11 -> 0
C12: Mur avant | D12: S4 | E12: =E11 -> 0 | F12: 35 | G12: 1e-06 | H12: 0.5 | I12: 0 | J12: 0 | O12: =H12*(F12-5-G12)*E12 -> 0
C13: Plafond | D13: S5 | E13: =E5 -> 0 | F13: 35 | G13: 1e-06 | H13: =$K$3 -> 0.3 | I13: 0 | J13: 0 | O13: =H13*(F13-5-G13)*E13 -> 0
C14: Plancher | D14: S6 | E14: =E5 -> 0 | F14: 15 | G14: 1e-06 | H14: 0.2 | I14: 0 | J14: 0 | O14: =H14*(F14-G14)*E14 -> 0
C15: Linéïques | D15: 0.1 | I15: =D15*SUM(I9:I14) -> 0 | J15: =D15*SUM(J9:J14) -> 0
C16: Sous total | I16: =SUM(I9:I15) -> 0 | J16: =I16*24*3.6 -> 0 | K16: =J16/$J$48 ->  | M16: =J16 -> 0 | N16: =J16 -> 0 | O16: =SUM(O9:O15)*24*3.6 -> 0
C18: Entrés | D18: % de charge | E18: kg/jour | F18: T entrée | G18: T stockage | H18: Cp | I18: Apport | J18: Apport
C19: Surcharge kg/jour | E19: Débit | F19: °C | G19: °C | H19: kJ/kg/K | I19: W | J19: kJ/24h
C20: 0 | D20: 0.25 | E20: 2000 | F20: 7 | G20: =G4 -> 1e-06 | H20: 3.3484 | I20: =H20*(E20+C20 )*(F20-G20)/3600/12*1000 -> 1085.129475 | J20: =(C20+E20)*H20*(F20-G20) -> 46877.5933 | K20: =J20/$J$48 ->  | M20: =IF(LABO="non",J20/E20*G6*$M$5,0) -> 93755.18661 | N20: =IF(LABO="non",J20/E20*G6*$N$5,0) -> 140632.7799 | O20: 0
C21: Chaleur respiration | E21: Capacité | H21: Chaleur respiration | I21: Apport | J21: Apport
C22: =H1 -> 0 | E22: Chambre | H22: kJ/kg en 24 h | I22: W | J22: kJ/24h
C23: 0 | E23: =capacité -> 8000 | H23: =C23 -> 0 | I23: =J23/24/3600 -> 0 | J23: =H23*E23 -> 0 | K23: =J23/$J$48 ->  | M23: =+J23 -> 0 | N23: =J23 -> 0 | O23: =J23 -> 0
C25: Travail ventilateurs | E25: Volume chambre | F25: Taux de brassage | G25: Débit air brassé | H25: Puissance ventilateur | I25: Apport | J25: Apport
E26: m3 | F26: sd | G26: m3 | H26: W | I26: W | J26: kJ/24h
E27: =volume -> 0 | F27: 30 | G27: =F27*E6 -> 0 | H27: =I27 -> 0 | I27: =G27*0.1 -> 0 | J27: =I27/1000*24*3600 -> 0 | K27: =J27/$J$48 ->  | M27: =J27 -> 0 | N27: =J27 -> 0 | O27: =J27 -> 0
C29: Air neuf | E29: Renouvellement | F29: Vol massique | G29: Enthalpie Ext | H29: Enthalpie Int | I29: Apport | J29: Apport
C30: Activité chambre | E30: m3/24h | F30: m3/kg | G30: kJ/kg | H30: kJ/kg | I30: W | J30: kJ/24h
C31: FORT | E31: 1350 | F31: =IF(K6="NON",H69,J69) ->  | G31: =IF(K6="NON",H72,J72) ->  | H31: =I72 -> 7.587690099 | I31: =(G31-H31)/F31*E31/(24*3600)*1000 ->  | J31: =(G31-H31)/F31*E31 ->  | K31: =J31/$J$48 ->  | M31: =J31 ->  | N31: =J31 ->  | O31: 0
C32: Taux de renouvellement | D32: =E31/volume ->  | E32: Vol/jour | F32: =D32/24 ->  | G32: Vol/h
C34: Eclairage | E34: Surface | F34: Ratio | G34: Nb heures fonction | I34: Apport | J34: Apport
E35: m2 | F35: W/m2 | G35: h | I35: W | J35: kJ/24h
E36: =surface -> 0 | F36: =IF(LABO="oui",0,10) -> 10 | G36: 4 | I36: =F36*E36 -> 0 | J36: =I36*3600*G36/1000 -> 0 | K36: =J36/$J$48 ->  | M36: =J36 -> 0 | N36: =J36 -> 0 | O36: .
C38: Personnel
E39: Nombre | F39: Ratio | G39: Nb heures fonction | I39: Apport | J39: Apport
E40: personne | F40: W/p | G40: h | I40: W | J40: kJ/24h
E41: 0 | F41: 400 | G41: 4 | I41: =F41*E41 -> 0 | J41: =I41*3600*G41/1000 -> 0 | K41: =J41/$J$48 ->  | M41: =J41 -> 0 | N41: =J41 -> 0 | O41: 0
C43: Machines | F43: Nb heures fonction | I43: Apport | J43: Apport
E44: W | F44: h | I44: W | J44: kJ/24h
E45: 0 | F45: =IF(I6="OUI",10,0) -> 0 | I45: =E45 -> 0 | J45: =I45*3600*F45/1000 -> 0 | K45: =J45/$J$48 ->  | M45: =J45 -> 0 | N45: =J45 -> 0 | O45: =J45 -> 0
C46: Divers | E46: 0 | I46: =E46 -> 0 | J46: =I46*3600*24/1000 -> 0 | K46: =J46/$J$48 ->  | M46: =J46 -> 0 | N46: =J46 -> 0 | O46: =J46 -> 0
C48: TOTAL | I48: =I16+I20+I23+I27+I31+I36+I41+I45+I46 ->  | J48: =SUM(J16:J46) ->  | K48: =SUM(K16:K46) ->  | M48: =SUM(M16:M46) ->  | N48: =SUM(N16:N46) ->  | O48: =SUM(O16:O46) -> 0
E50: Nombres d'heures de fonctionnement groupes h/jour | I50: Bilan Chaleur Latente kW | J50: Bilan production kW | M50: Bilan production kW | N50: Bilan production kW | O50: Bilan production kW
C51: PRODUCTION | E51: 18 | F51: Ratio | G51: =J51*1000/E14 ->  | H51: W/m2 | I51: =IF(K6="oui",2501*(J67-I67)*E31/F31/E51/3600,2500.8*(H67-I67)*E31/F31/E51/3600) ->  | J51: =J48/$E$51/3600 ->  | M51: =M48/$E$51/3600 ->  | N51: =N48/$E$51/3600 ->  | O51: =O48/$E$51/3600 -> 0
C52: EMISSION | E52: 16 | G52: =J52*1000/E14 ->  | I52: =I51/J51 ->  | J52: =J48/$E$52/3600 ->  | K52: =J52/J51-1 ->  | M52: =M48/$E$52/3600 ->  | N52: =N48/$E$52/3600 ->  | O52: =O48/$E$52/3600 -> 0
H55: 500 | I55: 500 | J55: 500
C56: VIANDES PRE EMBALLES | E56: TRES FORT | F56: ALTITUDE DU SITE (m) | H56: 50 | I56: 50 | J56: 50
C57: VOLAILLES PREEMBALLEES | E57: FORT | F57: PRESSION TOTALE P (Pa) | H57: =1.19745*10^-8*(288.15-0.0065*H56)^5.25588 -> 100726.0397 | I57: =1.19745*10^-8*(288.15-0.0065*I56)^5.25588 -> 100726.0397 | J57: =1.19745*10^-8*(288.15-0.0065*J56)^5.25588 -> 100726.0397
C58: CARCASSES | E58: MOYEN | F58: POINT | H58: EXT | I58: INT | J58: SAS
C59: CHARCUTERIE PREEMBALLE | E59: FAIBLE | F59: t | G59: Température sèche | H59: =G2 ->  | I59: =G4 -> 1e-06 | J59: =J4 -> 10
C60: TRAITEUR | F60: F ( % ) | G60: Humidité relatice | H60: 50 | I60: =G5 -> 80 | J60: =J5 -> 60
C61: CHARIOTS PLATS CUISINES | F61: T | G61: Température absolue | H61: =H59+273.15 ->  | I61: =I59+273.15 -> 273.150001 | J61: =J59+273.15 -> 283.15
C62: PATISSERIE FRAICHE | E62: OUI | G62: Pvs si t<0°C | H62: =EXP(-5674.359/H61+6.3925247-0.009677843*H61+0.00000062215701*H61^2+0.0000000020747825*H61^3-0.0000000000009484024*H61^4+4.1635019*LN(H61)) ->  | I62: =EXP(-5674.359/I61+6.3925247-0.009677843*I61+0.00000062215701*I61^2+0.0000000020747825*I61^3-0.0000000000009484024*I61^4+4.1635019*LN(I61)) -> 611.5495505 | J62: =EXP(-5674.359/J61+6.3925247-0.009677843*J61+0.00000062215701*J61^2+0.0000000020747825*J61^3-0.0000000000009484024*J61^4+4.1635019*LN(J61)) -> 1352.955492
C63: POISSONS SUR GLACE | E63: NON | G63: Pvs si t>0°C | H63: =EXP(-5800.2206/H61+1.3914993-0.048640239*H61+0.000041764768*H61^2-0.000000014452093*H61^3+6.5459673*LN(H61)) ->  | I63: =EXP(-5800.2206/I61+1.3914993-0.048640239*I61+0.000041764768*I61^2-0.000000014452093*I61^3+6.5459673*LN(I61)) -> 611.2129119 | J63: =EXP(-5800.2206/J61+1.3914993-0.048640239*J61+0.000041764768*J61^2-0.000000014452093*J61^3+6.5459673*LN(J61)) -> 1227.995275
C64: FRUITS ET LEGUMES | F64: Pws | G64: Pression partielle de vapeur à saturation | H64: =IF(H61<273.15,H62,H63) ->  | I64: =IF(I61<273.15,I62,I63) -> 611.2129119 | J64: =IF(J61<273.15,J62,J63) -> 1227.995275
C65: BOF EMBALLES | F65: Pv | G65: Pression partielle de vapeur non saturé | H65: =H64*H60/100 ->  | I65: =I64*I60/100 -> 488.9703295 | J65: =J64*J60/100 -> 736.7971653
C66: FROMAGE | F66: Pa | G66: Pression partielle de l'air sec | H66: =$H$57-H65 ->  | I66: =$H$57-I65 -> 100237.0694 | J66: =$H$57-J65 -> 99989.24256
C67: BOISSONS | F67: w | G67: Humidité absolue non saturée | H67: =0.62198*H65/($H$57-H65) ->  | I67: =0.62198*I65/($H$57-I65) -> 0.003034104722 | J67: =0.62198*J65/($H$57-J65) -> 0.004583224046
C68: POUBELLES GRASSES | F68: ws | G68: Humidité absolue à saturation | H68: =0.62198*H64/($H$57-H64) ->  | I68: =0.62198*I64/($H$57-I64) -> 0.003797261795 | J68: =0.62198*J64/($H$57-J64) -> 0.007676417217
C69: PRODUITS SURGELES | F69: RO | G69: Masse volumique de l'air sec | H69: =(1+H67)/H70 ->  | I69: =(1+I67)/I70 -> 1.28206375 | J69: =(1+J67)/J70 -> 1.235632662
C70: CREMES GLACEES | F70: v' | G70: Volume massique de l'air humide | H70: =0.2871*H61*(1+1.6078*H67)/$H$57*1000 ->  | I70: =0.2871*I61*(1+1.6078*I67)/$H$57*1000 -> 0.7823589932 | J70: =0.2871*J61*(1+1.6078*J67)/$H$57*1000 -> 0.8130112248
C71: SAS
C72: LABO DECOUPE | F72: h | G72: Enthalpie | H72: =1.006*H59+H67*(2500.8+1.805*H59) ->  | I72: =1.006*I59+I67*(2500.8+1.805*I59) -> 7.587690099 | J72: =1.006*J59+J67*(2500.8+1.805*J59) -> 21.60445389
C73: LABO DECOUPE EMBALLAGE
C74: LABO EMBALLAGE
C79: Désignation | D79: Température | E79: Dimensions | J79: Evaporateurs
E80: Hygrométrie | F80: Longeur | G80: largeur | H80: Surface | I80: hauteur | J80: Volume | K80: Puissance minimum requise | L80: ="à "&ROUND(D20,0)*100 &" % de charge en surface" -> à 0 % de charge en surface | M80: Maximum de charge 50 % | N80: Minimum de charge | O80: DT de sélection | P80: Nbre | Q80: Type | R80: Vitesse ventilation | S80: Dégivrage
B82: =D1 -> CFP 01 | C82: =E1 -> FRAIS LS | D82: =G4 -> 1e-06 | E82: =G5 -> 80 | F82: =E2 -> 0 | G82: =E3 -> 0 | H82: =surface -> 0 | I82: =hauteur -> 0 | J82: =volume -> 0 | K82: =J52*1000 ->  | L82: =J51*1000 ->  | M82: =N52*1000 ->  | N82: =O52*1000 -> 0 | P82: 1 | Q82: =IF(OR(LABO="oui",H1="SAS"),"DOUBLE FLUX",IF(K82<2000,"PLAFONNIER",IF(AND(G5<80,K82<7000),"PLAFONNIER","CUBIQUE"))) ->  | R82: =IF(AND(Q82="DOUBLE FLUX",LABO="OUI"),1000,1500) ->  | S82: =IF(D82>1,"Naturel","Electrique") -> Electrique
K85: =K82/H82 -> 

Sheet Table CFP 3 (hidden)
A1: ENTREES | B1: CALCULS | C1: CHAMBRE FROIDE | D1: CFP 01 | E1: FRAIS LS | F1: PRODUITS TRAITES | H1: ='Chambres positives'!G5 -> 0
C2: Largeur | E2: ='Chambres positives'!G8 -> 0 | F2: TEMPERATURE | G2: =Informations!G25 ->  | H2: EXT | I2: REP
C3: Longueur | E3: ='Chambres positives'!G9 -> 0 | F3: HUMIDITE | G3: 50 | I3: COEF TRANSMISSION | K3: 0.3
C4: Hauteur sous plafond | E4: ='Chambres positives'!G10 -> 0 | F4: TEMPERATURE | G4: 1e-06 | H4: INT | I4: TEMPERATURE | J4: 10 | K4: SAS | M4: CHARGEMENT | N4: CHARGEMENT | O4: NUIT
C5: Surface | E5: =E3*E2 -> 0 | F5: HUMIDITE | G5: 80 | I5: HUMIDITE | J5: 60 | M5: 0.5 | N5: 0.75 | O5: Activité 0
C6: Volume | E6: =E5*E4 -> 0 | F6: CAPACITE CF | G6: 8400 | H6: LABO | I6: NON | K6: NON
C7: BILAN | F7: Text | G7: T in | H7: k | I7: Apport | J7: Apport
C8: Déperditions | E8: m2 | F8: °C | G8: °C | H8: W/m2/K | I8: W | J8: kJ/24h
C9: Mur droit | D9: S1 | E9: =E2*E4 -> 0 | F9: 35 | G9: =$G$4 -> 1e-06 | H9: =$K$3 -> 0.3 | I9: =H9*E9*(F9-G9) -> 0 | J9: =I9*3600*24/1000 -> 0 | O9: =H9*(F9-5-G9)*E9 -> 0
C10: Mur gauche | D10: S2 | E10: =+E9 -> 0 | F10: 35 | G10: 1e-06 | H10: =$K$3 -> 0.3 | I10: 0 | J10: 0 | O10: =H10*(F10-5-G10)*E10 -> 0
C11: Mur fond | D11: S3 | E11: =E3*E4 -> 0 | F11: 15 | G11: 1e-06 | H11: =$K$3 -> 0.3 | I11: 0 | J11: 0 | O11: =H11*(F11-5-G11)*E11 -> 0
C12: Mur avant | D12: S4 | E12: =E11 -> 0 | F12: 35 | G12: 1e-06 | H12: 0.5 | I12: 0 | J12: 0 | O12: =H12*(F12-5-G12)*E12 -> 0
C13: Plafond | D13: S5 | E13: =E5 -> 0 | F13: 35 | G13: 1e-06 | H13: =$K$3 -> 0.3 | I13: 0 | J13: 0 | O13: =H13*(F13-5-G13)*E13 -> 0
C14: Plancher | D14: S6 | E14: =E5 -> 0 | F14: 15 | G14: 1e-06 | H14: 0.2 | I14: 0 | J14: 0 | O14: =H14*(F14-G14)*E14 -> 0
C15: Linéïques | D15: 0.1 | I15: =D15*SUM(I9:I14) -> 0 | J15: =D15*SUM(J9:J14) -> 0
C16: Sous total | I16: =SUM(I9:I15) -> 0 | J16: =I16*24*3.6 -> 0 | K16: =J16/$J$48 ->  | M16: =J16 -> 0 | N16: =J16 -> 0 | O16: =SUM(O9:O15)*24*3.6 -> 0
C18: Entrés | D18: % de charge | E18: kg/jour | F18: T entrée | G18: T stockage | H18: Cp | I18: Apport | J18: Apport
C19: Surcharge kg/jour | E19: Débit | F19: °C | G19: °C | H19: kJ/kg/K | I19: W | J19: kJ/24h
C20: 0 | D20: 0.25 | E20: 2100 | F20: 7 | G20: =G4 -> 1e-06 | H20: 3.3484 | I20: =H20*(E20+C20 )*(F20-G20)/3600/12*1000 -> 1139.385948 | J20: =(C20+E20)*H20*(F20-G20) -> 49221.47297 | K20: =J20/$J$48 ->  | M20: =IF(LABO="non",J20/E20*G6*$M$5,0) -> 98442.94594 | N20: =IF(LABO="non",J20/E20*G6*$N$5,0) -> 147664.4189 | O20: 0
C21: Chaleur respiration | E21: Capacité | H21: Chaleur respiration | I21: Apport | J21: Apport
C22: =H1 -> 0 | E22: Chambre | H22: kJ/kg en 24 h | I22: W | J22: kJ/24h
C23: 0 | E23: =capacité -> 8400 | H23: =C23 -> 0 | I23: =J23/24/3600 -> 0 | J23: =H23*E23 -> 0 | K23: =J23/$J$48 ->  | M23: =+J23 -> 0 | N23: =J23 -> 0 | O23: =J23 -> 0
C25: Travail ventilateurs | E25: Volume chambre | F25: Taux de brassage | G25: Débit air brassé | H25: Puissance ventilateur | I25: Apport | J25: Apport
E26: m3 | F26: sd | G26: m3 | H26: W | I26: W | J26: kJ/24h
E27: =volume -> 0 | F27: 30 | G27: =F27*E6 -> 0 | H27: =I27 -> 0 | I27: =G27*0.1 -> 0 | J27: =I27/1000*24*3600 -> 0 | K27: =J27/$J$48 ->  | M27: =J27 -> 0 | N27: =J27 -> 0 | O27: =J27 -> 0
C29: Air neuf | E29: Renouvellement | F29: Vol massique | G29: Enthalpie Ext | H29: Enthalpie Int | I29: Apport | J29: Apport
C30: Activité chambre | E30: m3/24h | F30: m3/kg | G30: kJ/kg | H30: kJ/kg | I30: W | J30: kJ/24h
C31: FORT | E31: 1500 | F31: =IF(K6="NON",H69,J69) ->  | G31: =IF(K6="NON",H72,J72) ->  | H31: =I72 -> 7.587690099 | I31: =(G31-H31)/F31*E31/(24*3600)*1000 ->  | J31: =(G31-H31)/F31*E31 ->  | K31: =J31/$J$48 ->  | M31: =J31 ->  | N31: =J31 ->  | O31: 0
C32: Taux de renouvellement | D32: =E31/volume ->  | E32: Vol/jour | F32: =D32/24 ->  | G32: Vol/h
C34: Eclairage | E34: Surface | F34: Ratio | G34: Nb heures fonction | I34: Apport | J34: Apport
E35: m2 | F35: W/m2 | G35: h | I35: W | J35: kJ/24h
E36: =surface -> 0 | F36: =IF(LABO="oui",0,10) -> 10 | G36: 4 | I36: =F36*E36 -> 0 | J36: =I36*3600*G36/1000 -> 0 | K36: =J36/$J$48 ->  | M36: =J36 -> 0 | N36: =J36 -> 0 | O36: .
C38: Personnel
E39: Nombre | F39: Ratio | G39: Nb heures fonction | I39: Apport | J39: Apport
E40: personne | F40: W/p | G40: h | I40: W | J40: kJ/24h
E41: 0 | F41: 400 | G41: 4 | I41: =F41*E41 -> 0 | J41: =I41*3600*G41/1000 -> 0 | K41: =J41/$J$48 ->  | M41: =J41 -> 0 | N41: =J41 -> 0 | O41: 0
C43: Machines | F43: Nb heures fonction | I43: Apport | J43: Apport
E44: W | F44: h | I44: W | J44: kJ/24h
E45: 0 | F45: =IF(I6="OUI",10,0) -> 0 | I45: =E45 -> 0 | J45: =I45*3600*F45/1000 -> 0 | K45: =J45/$J$48 ->  | M45: =J45 -> 0 | N45: =J45 -> 0 | O45: =J45 -> 0
C46: Divers | E46: 0 | I46: =E46 -> 0 | J46: =I46*3600*24/1000 -> 0 | K46: =J46/$J$48 ->  | M46: =J46 -> 0 | N46: =J46 -> 0 | O46: =J46 -> 0
C48: TOTAL | I48: =I16+I20+I23+I27+I31+I36+I41+I45+I46 ->  | J48: =SUM(J16:J46) ->  | K48: =SUM(K16:K46) ->  | M48: =SUM(M16:M46) ->  | N48: =SUM(N16:N46) ->  | O48: =SUM(O16:O46) -> 0
E50: Nombres d'heures de fonctionnement groupes h/jour | I50: Bilan Chaleur Latente kW | J50: Bilan production kW | M50: Bilan production kW | N50: Bilan production kW | O50: Bilan production kW
C51: PRODUCTION | E51: 18 | F51: Ratio | G51: =J51*1000/E14 ->  | H51: W/m2 | I51: =IF(K6="oui",2501*(J67-I67)*E31/F31/E51/3600,2500.8*(H67-I67)*E31/F31/E51/3600) ->  | J51: =J48/$E$51/3600 ->  | M51: =M48/$E$51/3600 ->  | N51: =N48/$E$51/3600 ->  | O51: =O48/$E$51/3600 -> 0
C52: EMISSION | E52: 16 | G52: =J52*1000/E14 ->  | I52: =I51/J51 ->  | J52: =J48/$E$52/3600 ->  | K52: =J52/J51-1 ->  | M52: =M48/$E$52/3600 ->  | N52: =N48/$E$52/3600 ->  | O52: =O48/$E$52/3600 -> 0
H55: 500 | I55: 500 | J55: 500
C56: VIANDES PRE EMBALLES | E56: TRES FORT | F56: ALTITUDE DU SITE (m) | H56: 50 | I56: 50 | J56: 50
C57: VOLAILLES PREEMBALLEES | E57: FORT | F57: PRESSION TOTALE P (Pa) | H57: =1.19745*10^-8*(288.15-0.0065*H56)^5.25588 -> 100726.0397 | I57: =1.19745*10^-8*(288.15-0.0065*I56)^5.25588 -> 100726.0397 | J57: =1.19745*10^-8*(288.15-0.0065*J56)^5.25588 -> 100726.0397
C58: CARCASSES | E58: MOYEN | F58: POINT | H58: EXT | I58: INT | J58: SAS
C59: CHARCUTERIE PREEMBALLE | E59: FAIBLE | F59: t | G59: Température sèche | H59: =G2 ->  | I59: =G4 -> 1e-06 | J59: =J4 -> 10
C60: TRAITEUR | F60: F ( % ) | G60: Humidité relatice | H60: 50 | I60: =G5 -> 80 | J60: =J5 -> 60
C61: CHARIOTS PLATS CUISINES | F61: T | G61: Température absolue | H61: =H59+273.15 ->  | I61: =I59+273.15 -> 273.150001 | J61: =J59+273.15 -> 283.15
C62: PATISSERIE FRAICHE | E62: OUI | G62: Pvs si t<0°C | H62: =EXP(-5674.359/H61+6.3925247-0.009677843*H61+0.00000062215701*H61^2+0.0000000020747825*H61^3-0.0000000000009484024*H61^4+4.1635019*LN(H61)) ->  | I62: =EXP(-5674.359/I61+6.3925247-0.009677843*I61+0.00000062215701*I61^2+0.0000000020747825*I61^3-0.0000000000009484024*I61^4+4.1635019*LN(I61)) -> 611.5495505 | J62: =EXP(-5674.359/J61+6.3925247-0.009677843*J61+0.00000062215701*J61^2+0.0000000020747825*J61^3-0.0000000000009484024*J61^4+4.1635019*LN(J61)) -> 1352.955492
C63: POISSONS SUR GLACE | E63: NON | G63: Pvs si t>0°C | H63: =EXP(-5800.2206/H61+1.3914993-0.048640239*H61+0.000041764768*H61^2-0.000000014452093*H61^3+6.5459673*LN(H61)) ->  | I63: =EXP(-5800.2206/I61+1.3914993-0.048640239*I61+0.000041764768*I61^2-0.000000014452093*I61^3+6.5459673*LN(I61)) -> 611.2129119 | J63: =EXP(-5800.2206/J61+1.3914993-0.048640239*J61+0.000041764768*J61^2-0.000000014452093*J61^3+6.5459673*LN(J61)) -> 1227.995275
C64: FRUITS ET LEGUMES | F64: Pws | G64: Pression partielle de vapeur à saturation | H64: =IF(H61<273.15,H62,H63) ->  | I64: =IF(I61<273.15,I62,I63) -> 611.2129119 | J64: =IF(J61<273.15,J62,J63) -> 1227.995275
C65: BOF EMBALLES | F65: Pv | G65: Pression partielle de vapeur non saturé | H65: =H64*H60/100 ->  | I65: =I64*I60/100 -> 488.9703295 | J65: =J64*J60/100 -> 736.7971653
C66: FROMAGE | F66: Pa | G66: Pression partielle de l'air sec | H66: =$H$57-H65 ->  | I66: =$H$57-I65 -> 100237.0694 | J66: =$H$57-J65 -> 99989.24256
C67: BOISSONS | F67: w | G67: Humidité absolue non saturée | H67: =0.62198*H65/($H$57-H65) ->  | I67: =0.62198*I65/($H$57-I65) -> 0.003034104722 | J67: =0.62198*J65/($H$57-J65) -> 0.004583224046
C68: POUBELLES GRASSES | F68: ws | G68: Humidité absolue à saturation | H68: =0.62198*H64/($H$57-H64) ->  | I68: =0.62198*I64/($H$57-I64) -> 0.003797261795 | J68: =0.62198*J64/($H$57-J64) -> 0.007676417217
C69: PRODUITS SURGELES | F69: RO | G69: Masse volumique de l'air sec | H69: =(1+H67)/H70 ->  | I69: =(1+I67)/I70 -> 1.28206375 | J69: =(1+J67)/J70 -> 1.235632662
C70: CREMES GLACEES | F70: v' | G70: Volume massique de l'air humide | H70: =0.2871*H61*(1+1.6078*H67)/$H$57*1000 ->  | I70: =0.2871*I61*(1+1.6078*I67)/$H$57*1000 -> 0.7823589932 | J70: =0.2871*J61*(1+1.6078*J67)/$H$57*1000 -> 0.8130112248
C71: SAS
C72: LABO DECOUPE | F72: h | G72: Enthalpie | H72: =1.006*H59+H67*(2500.8+1.805*H59) ->  | I72: =1.006*I59+I67*(2500.8+1.805*I59) -> 7.587690099 | J72: =1.006*J59+J67*(2500.8+1.805*J59) -> 21.60445389
C73: LABO DECOUPE EMBALLAGE
C74: LABO EMBALLAGE
C79: Désignation | D79: Température | E79: Dimensions | J79: Evaporateurs
E80: Hygrométrie | F80: Longeur | G80: largeur | H80: Surface | I80: hauteur | J80: Volume | K80: Puissance minimum requise | L80: ="à "&ROUND(D20,0)*100 &" % de charge en surface" -> à 0 % de charge en surface | M80: Maximum de charge 50 % | N80: Minimum de charge | O80: DT de sélection | P80: Nbre | Q80: Type | R80: Vitesse ventilation | S80: Dégivrage
B82: =D1 -> CFP 01 | C82: =E1 -> FRAIS LS | D82: =G4 -> 1e-06 | E82: =G5 -> 80 | F82: =E2 -> 0 | G82: =E3 -> 0 | H82: =surface -> 0 | I82: =hauteur -> 0 | J82: =volume -> 0 | K82: =J52*1000 ->  | L82: =J51*1000 ->  | M82: =N52*1000 ->  | N82: =O52*1000 -> 0 | P82: 1 | Q82: =IF(OR(LABO="oui",H1="SAS"),"DOUBLE FLUX",IF(K82<2000,"PLAFONNIER",IF(AND(G5<80,K82<7000),"PLAFONNIER","CUBIQUE"))) ->  | R82: =IF(AND(Q82="DOUBLE FLUX",LABO="OUI"),1000,1500) ->  | S82: =IF(D82>1,"Naturel","Electrique") -> Electrique
K85: =K82/H82 -> 

Sheet Table CFP 4 (hidden)
A1: ENTREES | B1: CALCULS | C1: CHAMBRE FROIDE | D1: CFP 01 | E1: FRAIS LS | F1: PRODUITS TRAITES | H1: ='Chambres positives'!H5 -> 0
C2: Largeur | E2: ='Chambres positives'!H8 -> 0 | F2: TEMPERATURE | G2: =Informations!G25 ->  | H2: EXT | I2: REP
C3: Longueur | E3: ='Chambres positives'!H9 -> 0 | F3: HUMIDITE | G3: 50 | I3: COEF TRANSMISSION | K3: 0.3
C4: Hauteur sous plafond | E4: ='Chambres positives'!H10 -> 0 | F4: TEMPERATURE | G4: 1e-06 | H4: INT | I4: TEMPERATURE | J4: 10 | K4: SAS | M4: CHARGEMENT | N4: CHARGEMENT | O4: NUIT
C5: Surface | E5: =E3*E2 -> 0 | F5: HUMIDITE | G5: 90 | I5: HUMIDITE | J5: 60 | M5: 0.5 | N5: 0.75 | O5: Activité 0
C6: Volume | E6: =E5*E4 -> 0 | F6: CAPACITE CF | G6: 8400 | H6: LABO | I6: NON | K6: NON
C7: BILAN | F7: Text | G7: T in | H7: k | I7: Apport | J7: Apport
C8: Déperditions | E8: m2 | F8: °C | G8: °C | H8: W/m2/K | I8: W | J8: kJ/24h
C9: Mur droit | D9: S1 | E9: =E2*E4 -> 0 | F9: 35 | G9: =$G$4 -> 1e-06 | H9: =$K$3 -> 0.3 | I9: =H9*E9*(F9-G9) -> 0 | J9: =I9*3600*24/1000 -> 0 | O9: =H9*(F9-5-G9)*E9 -> 0
C10: Mur gauche | D10: S2 | E10: =+E9 -> 0 | F10: 35 | G10: 1e-06 | H10: =$K$3 -> 0.3 | I10: 0 | J10: 0 | O10: =H10*(F10-5-G10)*E10 -> 0
C11: Mur fond | D11: S3 | E11: =E3*E4 -> 0 | F11: 15 | G11: 1e-06 | H11: =$K$3 -> 0.3 | I11: 0 | J11: 0 | O11: =H11*(F11-5-G11)*E11 -> 0
C12: Mur avant | D12: S4 | E12: =E11 -> 0 | F12: 35 | G12: 1e-06 | H12: 0.5 | I12: 0 | J12: 0 | O12: =H12*(F12-5-G12)*E12 -> 0
C13: Plafond | D13: S5 | E13: =E5 -> 0 | F13: 35 | G13: 1e-06 | H13: =$K$3 -> 0.3 | I13: 0 | J13: 0 | O13: =H13*(F13-5-G13)*E13 -> 0
C14: Plancher | D14: S6 | E14: =E5 -> 0 | F14: 15 | G14: 1e-06 | H14: 0.2 | I14: 0 | J14: 0 | O14: =H14*(F14-G14)*E14 -> 0
C15: Linéïques | D15: 0.1 | I15: =D15*SUM(I9:I14) -> 0 | J15: =D15*SUM(J9:J14) -> 0
C16: Sous total | I16: =SUM(I9:I15) -> 0 | J16: =I16*24*3.6 -> 0 | K16: =J16/$J$48 ->  | M16: =J16 -> 0 | N16: =J16 -> 0 | O16: =SUM(O9:O15)*24*3.6 -> 0
C18: Entrés | D18: % de charge | E18: kg/jour | F18: T entrée | G18: T stockage | H18: Cp | I18: Apport | J18: Apport
C19: Surcharge kg/jour | E19: Débit | F19: °C | G19: °C | H19: kJ/kg/K | I19: W | J19: kJ/24h
C20: 0 | D20: 0.3333333333 | E20: 2800 | F20: 7 | G20: =G4 -> 1e-06 | H20: 3.139125 | I20: =H20*(E20+C20 )*(F20-G20)/3600/12*1000 -> 1424.232435 | J20: =(C20+E20)*H20*(F20-G20) -> 61526.84121 | K20: =J20/$J$48 ->  | M20: =IF(LABO="non",J20/E20*G6*$M$5,0) -> 92290.26182 | N20: =IF(LABO="non",J20/E20*G6*$N$5,0) -> 138435.3927 | O20: 0
C21: Chaleur respiration | E21: Capacité | H21: Chaleur respiration | I21: Apport | J21: Apport
C22: =H1 -> 0 | E22: Chambre | H22: kJ/kg en 24 h | I22: W | J22: kJ/24h
C23: 0 | E23: =capacité -> 8400 | H23: =C23 -> 0 | I23: =J23/24/3600 -> 0 | J23: =H23*E23 -> 0 | K23: =J23/$J$48 ->  | M23: =+J23 -> 0 | N23: =J23 -> 0 | O23: =J23 -> 0
C25: Travail ventilateurs | E25: Volume chambre | F25: Taux de brassage | G25: Débit air brassé | H25: Puissance ventilateur | I25: Apport | J25: Apport
E26: m3 | F26: sd | G26: m3 | H26: W | I26: W | J26: kJ/24h
E27: =volume -> 0 | F27: 30 | G27: =F27*E6 -> 0 | H27: =I27 -> 0 | I27: =G27*0.1 -> 0 | J27: =I27/1000*24*3600 -> 0 | K27: =J27/$J$48 ->  | M27: =J27 -> 0 | N27: =J27 -> 0 | O27: =J27 -> 0
C29: Air neuf | E29: Renouvellement | F29: Vol massique | G29: Enthalpie Ext | H29: Enthalpie Int | I29: Apport | J29: Apport
C30: Activité chambre | E30: m3/24h | F30: m3/kg | G30: kJ/kg | H30: kJ/kg | I30: W | J30: kJ/24h
C31: FORT | E31: 938 | F31: =IF(K6="NON",H69,J69) ->  | G31: =IF(K6="NON",H72,J72) ->  | H31: =I72 -> 8.541359478 | I31: =(G31-H31)/F31*E31/(24*3600)*1000 ->  | J31: =(G31-H31)/F31*E31 ->  | K31: =J31/$J$48 ->  | M31: =J31 ->  | N31: =J31 ->  | O31: 0
C32: Taux de renouvellement | D32: =E31/volume ->  | E32: Vol/jour | F32: =D32/24 ->  | G32: Vol/h
C34: Eclairage | E34: Surface | F34: Ratio | G34: Nb heures fonction | I34: Apport | J34: Apport
E35: m2 | F35: W/m2 | G35: h | I35: W | J35: kJ/24h
E36: =surface -> 0 | F36: =IF(LABO="oui",0,10) -> 10 | G36: 4 | I36: =F36*E36 -> 0 | J36: =I36*3600*G36/1000 -> 0 | K36: =J36/$J$48 ->  | M36: =J36 -> 0 | N36: =J36 -> 0 | O36: .
C38: Personnel
E39: Nombre | F39: Ratio | G39: Nb heures fonction | I39: Apport | J39: Apport
E40: personne | F40: W/p | G40: h | I40: W | J40: kJ/24h
E41: 0 | F41: 400 | G41: 4 | I41: =F41*E41 -> 0 | J41: =I41*3600*G41/1000 -> 0 | K41: =J41/$J$48 ->  | M41: =J41 -> 0 | N41: =J41 -> 0 | O41: 0
C43: Machines | F43: Nb heures fonction | I43: Apport | J43: Apport
E44: W | F44: h | I44: W | J44: kJ/24h
E45: 0 | F45: =IF(I6="OUI",10,0) -> 0 | I45: =E45 -> 0 | J45: =I45*3600*F45/1000 -> 0 | K45: =J45/$J$48 ->  | M45: =J45 -> 0 | N45: =J45 -> 0 | O45: =J45 -> 0
C46: Divers | E46: 0 | I46: =E46 -> 0 | J46: =I46*3600*24/1000 -> 0 | K46: =J46/$J$48 ->  | M46: =J46 -> 0 | N46: =J46 -> 0 | O46: =J46 -> 0
C48: TOTAL | I48: =I16+I20+I23+I27+I31+I36+I41+I45+I46 ->  | J48: =SUM(J16:J46) ->  | K48: =SUM(K16:K46) ->  | M48: =SUM(M16:M46) ->  | N48: =SUM(N16:N46) ->  | O48: =SUM(O16:O46) -> 0
E50: Nombres d'heures de fonctionnement groupes h/jour | I50: Bilan Chaleur Latente kW | J50: Bilan production kW | M50: Bilan production kW | N50: Bilan production kW | O50: Bilan production kW
C51: PRODUCTION | E51: 18 | F51: Ratio | G51: =J51*1000/E14 ->  | H51: W/m2 | I51: =IF(K6="oui",2501*(J67-I67)*E31/F31/E51/3600,2500.8*(H67-I67)*E31/F31/E51/3600) ->  | J51: =J48/$E$51/3600 ->  | M51: =M48/$E$51/3600 ->  | N51: =N48/$E$51/3600 ->  | O51: =O48/$E$51/3600 -> 0
C52: EMISSION | E52: 16 | G52: =J52*1000/E14 ->  | I52: =I51/J51 ->  | J52: =J48/$E$52/3600 ->  | K52: =J52/J51-1 ->  | M52: =M48/$E$52/3600 ->  | N52: =N48/$E$52/3600 ->  | O52: =O48/$E$52/3600 -> 0
H55: 500 | I55: 500 | J55: 500
C56: VIANDES PRE EMBALLES | E56: TRES FORT | F56: ALTITUDE DU SITE (m) | H56: 50 | I56: 50 | J56: 50
C57: VOLAILLES PREEMBALLEES | E57: FORT | F57: PRESSION TOTALE P (Pa) | H57: =1.19745*10^-8*(288.15-0.0065*H56)^5.25588 -> 100726.0397 | I57: =1.19745*10^-8*(288.15-0.0065*I56)^5.25588 -> 100726.0397 | J57: =1.19745*10^-8*(288.15-0.0065*J56)^5.25588 -> 100726.0397
C58: CARCASSES | E58: MOYEN | F58: POINT | H58: EXT | I58: INT | J58: SAS
C59: CHARCUTERIE PREEMBALLE | E59: FAIBLE | F59: t | G59: Température sèche | H59: =G2 ->  | I59: =G4 -> 1e-06 | J59: =J4 -> 10
C60: TRAITEUR | F60: F ( % ) | G60: Humidité relatice | H60: 50 | I60: =G5 -> 90 | J60: =J5 -> 60
C61: CHARIOTS PLATS CUISINES | F61: T | G61: Température absolue | H61: =H59+273.15 ->  | I61: =I59+273.15 -> 273.150001 | J61: =J59+273.15 -> 283.15
C62: PATISSERIE FRAICHE | E62: OUI | G62: Pvs si t<0°C | H62: =EXP(-5674.359/H61+6.3925247-0.009677843*H61+0.00000062215701*H61^2+0.0000000020747825*H61^3-0.0000000000009484024*H61^4+4.1635019*LN(H61)) ->  | I62: =EXP(-5674.359/I61+6.3925247-0.009677843*I61+0.00000062215701*I61^2+0.0000000020747825*I61^3-0.0000000000009484024*I61^4+4.1635019*LN(I61)) -> 611.5495505 | J62: =EXP(-5674.359/J61+6.3925247-0.009677843*J61+0.00000062215701*J61^2+0.0000000020747825*J61^3-0.0000000000009484024*J61^4+4.1635019*LN(J61)) -> 1352.955492
C63: POISSONS SUR GLACE | E63: NON | G63: Pvs si t>0°C | H63: =EXP(-5800.2206/H61+1.3914993-0.048640239*H61+0.000041764768*H61^2-0.000000014452093*H61^3+6.5459673*LN(H61)) ->  | I63: =EXP(-5800.2206/I61+1.3914993-0.048640239*I61+0.000041764768*I61^2-0.000000014452093*I61^3+6.5459673*LN(I61)) -> 611.2129119 | J63: =EXP(-5800.2206/J61+1.3914993-0.048640239*J61+0.000041764768*J61^2-0.000000014452093*J61^3+6.5459673*LN(J61)) -> 1227.995275
C64: FRUITS ET LEGUMES | F64: Pws | G64: Pression partielle de vapeur à saturation | H64: =IF(H61<273.15,H62,H63) ->  | I64: =IF(I61<273.15,I62,I63) -> 611.2129119 | J64: =IF(J61<273.15,J62,J63) -> 1227.995275
C65: BOF EMBALLES | F65: Pv | G65: Pression partielle de vapeur non saturé | H65: =H64*H60/100 ->  | I65: =I64*I60/100 -> 550.0916207 | J65: =J64*J60/100 -> 736.7971653
C66: FROMAGE | F66: Pa | G66: Pression partielle de l'air sec | H66: =$H$57-H65 ->  | I66: =$H$57-I65 -> 100175.9481 | J66: =$H$57-J65 -> 99989.24256
C67: BOISSONS | F67: w | G67: Humidité absolue non saturée | H67: =0.62198*H65/($H$57-H65) ->  | I67: =0.62198*I65/($H$57-I65) -> 0.003415450442 | J67: =0.62198*J65/($H$57-J65) -> 0.004583224046
C68: POUBELLES GRASSES | F68: ws | G68: Humidité absolue à saturation | H68: =0.62198*H64/($H$57-H64) ->  | I68: =0.62198*I64/($H$57-I64) -> 0.003797261795 | J68: =0.62198*J64/($H$57-J64) -> 0.007676417217
C69: PRODUITS SURGELES | F69: RO | G69: Masse volumique de l'air sec | H69: =(1+H67)/H70 ->  | I69: =(1+I67)/I70 -> 1.281769108 | J69: =(1+J67)/J70 -> 1.235632662
C70: CREMES GLACEES | F70: v' | G70: Volume massique de l'air humide | H70: =0.2871*H61*(1+1.6078*H67)/$H$57*1000 ->  | I70: =0.2871*I61*(1+1.6078*I67)/$H$57*1000 -> 0.7828363505 | J70: =0.2871*J61*(1+1.6078*J67)/$H$57*1000 -> 0.8130112248
C71: SAS
C72: LABO DECOUPE | F72: h | G72: Enthalpie | H72: =1.006*H59+H67*(2500.8+1.805*H59) ->  | I72: =1.006*I59+I67*(2500.8+1.805*I59) -> 8.541359478 | J72: =1.006*J59+J67*(2500.8+1.805*J59) -> 21.60445389
C73: LABO DECOUPE EMBALLAGE
C74: LABO EMBALLAGE
C79: Désignation | D79: Température | E79: Dimensions | J79: Evaporateurs
E80: Hygrométrie | F80: Longeur | G80: largeur | H80: Surface | I80: hauteur | J80: Volume | K80: Puissance minimum requise | L80: ="à "&ROUND(D20,0)*100 &" % de charge en surface" -> à 0 % de charge en surface | M80: Maximum de charge 50 % | N80: Minimum de charge | O80: DT de sélection | P80: Nbre | Q80: Type | R80: Vitesse ventilation | S80: Dégivrage
B82: =D1 -> CFP 01 | C82: =E1 -> FRAIS LS | D82: =G4 -> 1e-06 | E82: =G5 -> 90 | F82: =E2 -> 0 | G82: =E3 -> 0 | H82: =surface -> 0 | I82: =hauteur -> 0 | J82: =volume -> 0 | K82: =J52*1000 ->  | L82: =J51*1000 ->  | M82: =N52*1000 ->  | N82: =O52*1000 -> 0 | P82: 1 | Q82: =IF(OR(LABO="oui",H1="SAS"),"DOUBLE FLUX",IF(K82<2000,"PLAFONNIER",IF(AND(G5<80,K82<7000),"PLAFONNIER","CUBIQUE"))) ->  | R82: =IF(AND(Q82="DOUBLE FLUX",LABO="OUI"),1000,1500) ->  | S82: =IF(D82>1,"Naturel","Electrique") -> Electrique
K85: =K82/H82 -> 

Sheet Table CFP 5 (hidden)
A1: ENTREES | B1: CALCULS | C1: CHAMBRE FROIDE | D1: CFP 01 | E1: FRAIS LS | F1: PRODUITS TRAITES | H1: ='Chambres positives'!I5 -> 0
C2: Largeur | E2: ='Chambres positives'!I8 -> 0 | F2: TEMPERATURE | G2: =Informations!G25 ->  | H2: EXT | I2: REP
C3: Longueur | E3: ='Chambres positives'!I9 -> 0 | F3: HUMIDITE | G3: 50 | I3: COEF TRANSMISSION | K3: 0.3
C4: Hauteur sous plafond | E4: ='Chambres positives'!I10 -> 0 | F4: TEMPERATURE | G4: 2 | H4: INT | I4: TEMPERATURE | J4: 10 | K4: SAS | M4: CHARGEMENT | N4: CHARGEMENT | O4: NUIT
C5: Surface | E5: =E3*E2 -> 0 | F5: HUMIDITE | G5: 85 | I5: HUMIDITE | J5: 60 | M5: 0.5 | N5: 0.75 | O5: Activité 0
C6: Volume | E6: =E5*E4 -> 0 | F6: CAPACITE CF | G6: 0 | H6: LABO | I6: NON | K6: NON
C7: BILAN | F7: Text | G7: T in | H7: k | I7: Apport | J7: Apport
C8: Déperditions | E8: m2 | F8: °C | G8: °C | H8: W/m2/K | I8: W | J8: kJ/24h
C9: Mur droit | D9: S1 | E9: =E2*E4 -> 0 | F9: 35 | G9: =$G$4 -> 2 | H9: =$K$3 -> 0.3 | I9: =H9*E9*(F9-G9) -> 0 | J9: =I9*3600*24/1000 -> 0 | O9: =H9*(F9-5-G9)*E9 -> 0
C10: Mur gauche | D10: S2 | E10: =+E9 -> 0 | F10: 35 | G10: 2 | H10: =$K$3 -> 0.3 | I10: 0 | J10: 0 | O10: =H10*(F10-5-G10)*E10 -> 0
C11: Mur fond | D11: S3 | E11: =E3*E4 -> 0 | F11: 15 | G11: 2 | H11: =$K$3 -> 0.3 | I11: 0 | J11: 0 | O11: =H11*(F11-5-G11)*E11 -> 0
C12: Mur avant | D12: S4 | E12: =E11 -> 0 | F12: 35 | G12: 2 | H12: 0.5 | I12: 0 | J12: 0 | O12: =H12*(F12-5-G12)*E12 -> 0
C13: Plafond | D13: S5 | E13: =E5 -> 0 | F13: 35 | G13: 2 | H13: =$K$3 -> 0.3 | I13: 0 | J13: 0 | O13: =H13*(F13-5-G13)*E13 -> 0
C14: Plancher | D14: S6 | E14: =E5 -> 0 | F14: 15 | G14: 2 | H14: 0.2 | I14: 0 | J14: 0 | O14: =H14*(F14-G14)*E14 -> 0
C15: Linéïques | D15: 0.1 | I15: =D15*SUM(I9:I14) -> 0 | J15: =D15*SUM(J9:J14) -> 0
C16: Sous total | I16: =SUM(I9:I15) -> 0 | J16: =I16*24*3.6 -> 0 | K16: =J16/$J$48 ->  | M16: =J16 -> 0 | N16: =J16 -> 0 | O16: =SUM(O9:O15)*24*3.6 -> 0
C18: Entrés | D18: % de charge | E18: kg/jour | F18: T entrée | G18: T stockage | H18: Cp | I18: Apport | J18: Apport
C19: Surcharge kg/jour | E19: Débit | F19: °C | G19: °C | H19: kJ/kg/K | I19: W | J19: kJ/24h
C20: 0 | E20: 0 | F20: 10 | G20: =G4 -> 2 | H20: 3.139125 | I20: =H20*(E20+C20 )*(F20-G20)/3600/12*1000 -> 0 | J20: =(C20+E20)*H20*(F20-G20) -> 0 | K20: =J20/$J$48 ->  | M20: =IF(LABO="non",J20/E20*G6*$M$5,0) ->  | N20: =IF(LABO="non",J20/E20*G6*$N$5,0) ->  | O20: 0
C21: Chaleur respiration | E21: Capacité | H21: Chaleur respiration | I21: Apport | J21: Apport
C22: =H1 -> 0 | E22: Chambre | H22: kJ/kg en 24 h | I22: W | J22: kJ/24h
C23: 0 | E23: =capacité -> 0 | H23: =C23 -> 0 | I23: =J23/24/3600 -> 0 | J23: =H23*E23 -> 0 | K23: =J23/$J$48 ->  | M23: =+J23 -> 0 | N23: =J23 -> 0 | O23: =J23 -> 0
C25: Travail ventilateurs | E25: Volume chambre | F25: Taux de brassage | G25: Débit air brassé | H25: Puissance ventilateur | I25: Apport | J25: Apport
E26: m3 | F26: sd | G26: m3 | H26: W | I26: W | J26: kJ/24h
E27: =volume -> 0 | F27: 30 | G27: =F27*E6 -> 0 | H27: =I27 -> 0 | I27: =G27*0.1 -> 0 | J27: =I27/1000*24*3600 -> 0 | K27: =J27/$J$48 ->  | M27: =J27 -> 0 | N27: =J27 -> 0 | O27: =J27 -> 0
C29: Air neuf | E29: Renouvellement | F29: Vol massique | G29: Enthalpie Ext | H29: Enthalpie Int | I29: Apport | J29: Apport
C30: Activité chambre | E30: m3/24h | F30: m3/kg | G30: kJ/kg | H30: kJ/kg | I30: W | J30: kJ/24h
C31: FORT | F31: =IF(K6="NON",H69,J69) ->  | G31: =IF(K6="NON",H72,J72) ->  | H31: =I72 -> 11.34735155 | I31: =(G31-H31)/F31*E31/(24*3600)*1000 ->  | J31: =(G31-H31)/F31*E31 ->  | K31: =J31/$J$48 ->  | M31: =J31 ->  | N31: =J31 ->  | O31: 0
C32: Taux de renouvellement | D32: =E31/volume ->  | E32: Vol/jour | F32: =D32/24 ->  | G32: Vol/h
C34: Eclairage | E34: Surface | F34: Ratio | G34: Nb heures fonction | I34: Apport | J34: Apport
E35: m2 | F35: W/m2 | G35: h | I35: W | J35: kJ/24h
E36: =surface -> 0 | F36: =IF(LABO="oui",0,10) -> 10 | G36: 4 | I36: =F36*E36 -> 0 | J36: =I36*3600*G36/1000 -> 0 | K36: =J36/$J$48 ->  | M36: =J36 -> 0 | N36: =J36 -> 0 | O36: .
C38: Personnel
E39: Nombre | F39: Ratio | G39: Nb heures fonction | I39: Apport | J39: Apport
E40: personne | F40: W/p | G40: h | I40: W | J40: kJ/24h
E41: 0 | F41: 400 | G41: 4 | I41: =F41*E41 -> 0 | J41: =I41*3600*G41/1000 -> 0 | K41: =J41/$J$48 ->  | M41: =J41 -> 0 | N41: =J41 -> 0 | O41: 0
C43: Machines | F43: Nb heures fonction | I43: Apport | J43: Apport
E44: W | F44: h | I44: W | J44: kJ/24h
E45: 0 | F45: =IF(I6="OUI",10,0) -> 0 | I45: =E45 -> 0 | J45: =I45*3600*F45/1000 -> 0 | K45: =J45/$J$48 ->  | M45: =J45 -> 0 | N45: =J45 -> 0 | O45: =J45 -> 0
C46: Divers | E46: 0 | I46: =E46 -> 0 | J46: =I46*3600*24/1000 -> 0 | K46: =J46/$J$48 ->  | M46: =J46 -> 0 | N46: =J46 -> 0 | O46: =J46 -> 0
C48: TOTAL | I48: =I16+I20+I23+I27+I31+I36+I41+I45+I46 ->  | J48: =SUM(J16:J46) ->  | K48: =SUM(K16:K46) ->  | M48: =SUM(M16:M46) ->  | N48: =SUM(N16:N46) ->  | O48: =SUM(O16:O46) -> 0
E50: Nombres d'heures de fonctionnement groupes h/jour | I50: Bilan Chaleur Latente kW | J50: Bilan production kW | M50: Bilan production kW | N50: Bilan production kW | O50: Bilan production kW
C51: PRODUCTION | E51: 18 | F51: Ratio | G51: =J51*1000/E14 ->  | H51: W/m2 | I51: =IF(K6="oui",2501*(J67-I67)*E31/F31/E51/3600,2500.8*(H67-I67)*E31/F31/E51/3600) ->  | J51: =J48/$E$51/3600 ->  | M51: =M48/$E$51/3600 ->  | N51: =N48/$E$51/3600 ->  | O51: =O48/$E$51/3600 -> 0
C52: EMISSION | E52: 16 | G52: =J52*1000/E14 ->  | I52: =I51/J51 ->  | J52: =J48/$E$52/3600 ->  | K52: =J52/J51-1 ->  | M52: =M48/$E$52/3600 ->  | N52: =N48/$E$52/3600 ->  | O52: =O48/$E$52/3600 -> 0
H55: 500 | I55: 500 | J55: 500
C56: VIANDES PRE EMBALLES | E56: TRES FORT | F56: ALTITUDE DU SITE (m) | H56: 50 | I56: 50 | J56: 50
C57: VOLAILLES PREEMBALLEES | E57: FORT | F57: PRESSION TOTALE P (Pa) | H57: =1.19745*10^-8*(288.15-0.0065*H56)^5.25588 -> 100726.0397 | I57: =1.19745*10^-8*(288.15-0.0065*I56)^5.25588 -> 100726.0397 | J57: =1.19745*10^-8*(288.15-0.0065*J56)^5.25588 -> 100726.0397
C58: CARCASSES | E58: MOYEN | F58: POINT | H58: EXT | I58: INT | J58: SAS
C59: CHARCUTERIE PREEMBALLE | E59: FAIBLE | F59: t | G59: Température sèche | H59: =G2 ->  | I59: =G4 -> 2 | J59: =J4 -> 10
C60: TRAITEUR | F60: F ( % ) | G60: Humidité relatice | H60: 50 | I60: =G5 -> 85 | J60: =J5 -> 60
C61: CHARIOTS PLATS CUISINES | F61: T | G61: Température absolue | H61: =H59+273.15 ->  | I61: =I59+273.15 -> 275.15 | J61: =J59+273.15 -> 283.15
C62: PATISSERIE FRAICHE | E62: OUI | G62: Pvs si t<0°C | H62: =EXP(-5674.359/H61+6.3925247-0.009677843*H61+0.00000062215701*H61^2+0.0000000020747825*H61^3-0.0000000000009484024*H61^4+4.1635019*LN(H61)) ->  | I62: =EXP(-5674.359/I61+6.3925247-0.009677843*I61+0.00000062215701*I61^2+0.0000000020747825*I61^3-0.0000000000009484024*I61^4+4.1635019*LN(I61)) -> 720.1615018 | J62: =EXP(-5674.359/J61+6.3925247-0.009677843*J61+0.00000062215701*J61^2+0.0000000020747825*J61^3-0.0000000000009484024*J61^4+4.1635019*LN(J61)) -> 1352.955492
C63: POISSONS SUR GLACE | E63: NON | G63: Pvs si t>0°C | H63: =EXP(-5800.2206/H61+1.3914993-0.048640239*H61+0.000041764768*H61^2-0.000000014452093*H61^3+6.5459673*LN(H61)) ->  | I63: =EXP(-5800.2206/I61+1.3914993-0.048640239*I61+0.000041764768*I61^2-0.000000014452093*I61^3+6.5459673*LN(I61)) -> 705.9544421 | J63: =EXP(-5800.2206/J61+1.3914993-0.048640239*J61+0.000041764768*J61^2-0.000000014452093*J61^3+6.5459673*LN(J61)) -> 1227.995275
C64: FRUITS ET LEGUMES | F64: Pws | G64: Pression partielle de vapeur à saturation | H64: =IF(H61<273.15,H62,H63) ->  | I64: =IF(I61<273.15,I62,I63) -> 705.9544421 | J64: =IF(J61<273.15,J62,J63) -> 1227.995275
C65: BOF EMBALLES | F65: Pv | G65: Pression partielle de vapeur non saturé | H65: =H64*H60/100 ->  | I65: =I64*I60/100 -> 600.0612758 | J65: =J64*J60/100 -> 736.7971653
C66: FROMAGE | F66: Pa | G66: Pression partielle de l'air sec | H66: =$H$57-H65 ->  | I66: =$H$57-I65 -> 100125.9784 | J66: =$H$57-J65 -> 99989.24256
C67: BOISSONS | F67: w | G67: Humidité absolue non saturée | H67: =0.62198*H65/($H$57-H65) ->  | I67: =0.62198*I65/($H$57-I65) -> 0.003727565195 | J67: =0.62198*J65/($H$57-J65) -> 0.004583224046
C68: POUBELLES GRASSES | F68: ws | G68: Humidité absolue à saturation | H68: =0.62198*H64/($H$57-H64) ->  | I68: =0.62198*I64/($H$57-I64) -> 0.004390013693 | J68: =0.62198*J64/($H$57-J64) -> 0.007676417217
C69: PRODUITS SURGELES | F69: RO | G69: Masse volumique de l'air sec | H69: =(1+H67)/H70 ->  | I69: =(1+I67)/I70 -> 1.272213104 | J69: =(1+J67)/J70 -> 1.235632662
C70: CREMES GLACEES | F70: v' | G70: Volume massique de l'air humide | H70: =0.2871*H61*(1+1.6078*H67)/$H$57*1000 ->  | I70: =0.2871*I61*(1+1.6078*I67)/$H$57*1000 -> 0.7889618197 | J70: =0.2871*J61*(1+1.6078*J67)/$H$57*1000 -> 0.8130112248
C71: SAS
C72: LABO DECOUPE | F72: h | G72: Enthalpie | H72: =1.006*H59+H67*(2500.8+1.805*H59) ->  | I72: =1.006*I59+I67*(2500.8+1.805*I59) -> 11.34735155 | J72: =1.006*J59+J67*(2500.8+1.805*J59) -> 21.60445389
C73: LABO DECOUPE EMBALLAGE
C74: LABO EMBALLAGE
C79: Désignation | D79: Température | E79: Dimensions | J79: Evaporateurs
E80: Hygrométrie | F80: Longeur | G80: largeur | H80: Surface | I80: hauteur | J80: Volume | K80: Puissance minimum requise | L80: ="à "&ROUND(D20,0)*100 &" % de charge en surface" ->  | M80: Maximum de charge 50 % | N80: Minimum de charge | O80: DT de sélection | P80: Nbre | Q80: Type | R80: Vitesse ventilation | S80: Dégivrage
B82: =D1 -> CFP 01 | C82: =E1 -> FRAIS LS | D82: =G4 -> 2 | E82: =G5 -> 85 | F82: =E2 -> 0 | G82: =E3 -> 0 | H82: =surface -> 0 | I82: =hauteur -> 0 | J82: =volume -> 0 | K82: =J52*1000 ->  | L82: =J51*1000 ->  | M82: =N52*1000 ->  | N82: =O52*1000 -> 0 | P82: 1 | Q82: =IF(OR(LABO="oui",H1="SAS"),"DOUBLE FLUX",IF(K82<2000,"PLAFONNIER",IF(AND(G5<80,K82<7000),"PLAFONNIER","CUBIQUE"))) ->  | R82: =IF(AND(Q82="DOUBLE FLUX",LABO="OUI"),1000,1500) ->  | S82: =IF(D82>1,"Naturel","Electrique") -> Naturel
K85: =K82/H82 -> 

Sheet Table CFP 6 (hidden)
A1: ENTREES | B1: CALCULS | C1: CHAMBRE FROIDE | D1: CFP 01 | E1: FRAIS LS | F1: PRODUITS TRAITES | H1: ='Chambres positives'!J5 -> 0
C2: Largeur | E2: ='Chambres positives'!J8 -> 0 | F2: TEMPERATURE | G2: =Informations!G25 ->  | H2: EXT | I2: REP
C3: Longueur | E3: ='Chambres positives'!J9 -> 0 | F3: HUMIDITE | G3: 50 | I3: COEF TRANSMISSION | K3: 0.3
C4: Hauteur sous plafond | E4: ='Chambres positives'!J10 -> 0 | F4: TEMPERATURE | G4: 1 | H4: INT | I4: TEMPERATURE | J4: 10 | K4: SAS | M4: CHARGEMENT | N4: CHARGEMENT | O4: NUIT
C5: Surface | E5: =E3*E2 -> 0 | F5: HUMIDITE | G5: 75 | I5: HUMIDITE | J5: 60 | M5: 0.5 | N5: 0.75 | O5: Activité 0
C6: Volume | E6: =E5*E4 -> 0 | F6: CAPACITE CF | G6: 0 | H6: LABO | I6: NON | K6: NON
C7: BILAN | F7: Text | G7: T in | H7: k | I7: Apport | J7: Apport
C8: Déperditions | E8: m2 | F8: °C | G8: °C | H8: W/m2/K | I8: W | J8: kJ/24h
C9: Mur droit | D9: S1 | E9: =E2*E4 -> 0 | F9: 35 | G9: =$G$4 -> 1 | H9: =$K$3 -> 0.3 | I9: =H9*E9*(F9-G9) -> 0 | J9: =I9*3600*24/1000 -> 0 | O9: =H9*(F9-5-G9)*E9 -> 0
C10: Mur gauche | D10: S2 | E10: =+E9 -> 0 | F10: 35 | G10: 1 | H10: =$K$3 -> 0.3 | I10: 0 | J10: 0 | O10: =H10*(F10-5-G10)*E10 -> 0
C11: Mur fond | D11: S3 | E11: =E3*E4 -> 0 | F11: 15 | G11: 1 | H11: =$K$3 -> 0.3 | I11: 0 | J11: 0 | O11: =H11*(F11-5-G11)*E11 -> 0
C12: Mur avant | D12: S4 | E12: =E11 -> 0 | F12: 35 | G12: 1 | H12: 0.5 | I12: 0 | J12: 0 | O12: =H12*(F12-5-G12)*E12 -> 0
C13: Plafond | D13: S5 | E13: =E5 -> 0 | F13: 35 | G13: 1 | H13: =$K$3 -> 0.3 | I13: 0 | J13: 0 | O13: =H13*(F13-5-G13)*E13 -> 0
C14: Plancher | D14: S6 | E14: =E5 -> 0 | F14: 15 | G14: 1 | H14: 0.2 | I14: 0 | J14: 0 | O14: =H14*(F14-G14)*E14 -> 0
C15: Linéïques | D15: 0.1 | I15: =D15*SUM(I9:I14) -> 0 | J15: =D15*SUM(J9:J14) -> 0
C16: Sous total | I16: =SUM(I9:I15) -> 0 | J16: =I16*24*3.6 -> 0 | K16: =J16/$J$48 ->  | M16: =J16 -> 0 | N16: =J16 -> 0 | O16: =SUM(O9:O15)*24*3.6 -> 0
C18: Entrés | D18: % de charge | E18: kg/jour | F18: T entrée | G18: T stockage | H18: Cp | I18: Apport | J18: Apport
C19: Surcharge kg/jour | E19: Débit | F19: °C | G19: °C | H19: kJ/kg/K | I19: W | J19: kJ/24h
C20: 0 | E20: 0 | F20: 25 | G20: =G4 -> 1 | H20: 2.92985 | I20: =H20*(E20+C20 )*(F20-G20)/3600/12*1000 -> 0 | J20: =(C20+E20)*H20*(F20-G20) -> 0 | K20: =J20/$J$48 ->  | M20: =IF(LABO="non",J20/E20*G6*$M$5,0) ->  | N20: =IF(LABO="non",J20/E20*G6*$N$5,0) ->  | O20: 0
C21: Chaleur respiration | E21: Capacité | H21: Chaleur respiration | I21: Apport | J21: Apport
C22: =H1 -> 0 | E22: Chambre | H22: kJ/kg en 24 h | I22: W | J22: kJ/24h
C23: 0 | E23: =capacité -> 0 | H23: =C23 -> 0 | I23: =J23/24/3600 -> 0 | J23: =H23*E23 -> 0 | K23: =J23/$J$48 ->  | M23: =+J23 -> 0 | N23: =J23 -> 0 | O23: =J23 -> 0
C25: Travail ventilateurs | E25: Volume chambre | F25: Taux de brassage | G25: Débit air brassé | H25: Puissance ventilateur | I25: Apport | J25: Apport
E26: m3 | F26: sd | G26: m3 | H26: W | I26: W | J26: kJ/24h
E27: =volume -> 0 | F27: 30 | G27: =F27*E6 -> 0 | H27: =I27 -> 0 | I27: =G27*0.1 -> 0 | J27: =I27/1000*24*3600 -> 0 | K27: =J27/$J$48 ->  | M27: =J27 -> 0 | N27: =J27 -> 0 | O27: =J27 -> 0
C29: Air neuf | E29: Renouvellement | F29: Vol massique | G29: Enthalpie Ext | H29: Enthalpie Int | I29: Apport | J29: Apport
C30: Activité chambre | E30: m3/24h | F30: m3/kg | G30: kJ/kg | H30: kJ/kg | I30: W | J30: kJ/24h
C31: FORT | F31: =IF(K6="NON",H69,J69) ->  | G31: =IF(K6="NON",H72,J72) ->  | H31: =I72 -> 8.658987684 | I31: =(G31-H31)/F31*E31/(24*3600)*1000 ->  | J31: =(G31-H31)/F31*E31 ->  | K31: =J31/$J$48 ->  | M31: =J31 ->  | N31: =J31 ->  | O31: 0
C32: Taux de renouvellement | D32: =E31/volume ->  | E32: Vol/jour | F32: =D32/24 ->  | G32: Vol/h
C34: Eclairage | E34: Surface | F34: Ratio | G34: Nb heures fonction | I34: Apport | J34: Apport
E35: m2 | F35: W/m2 | G35: h | I35: W | J35: kJ/24h
E36: =surface -> 0 | F36: =IF(LABO="oui",0,10) -> 10 | G36: 4 | I36: =F36*E36 -> 0 | J36: =I36*3600*G36/1000 -> 0 | K36: =J36/$J$48 ->  | M36: =J36 -> 0 | N36: =J36 -> 0 | O36: .
C38: Personnel
E39: Nombre | F39: Ratio | G39: Nb heures fonction | I39: Apport | J39: Apport
E40: personne | F40: W/p | G40: h | I40: W | J40: kJ/24h
E41: 0 | F41: 400 | G41: 4 | I41: =F41*E41 -> 0 | J41: =I41*3600*G41/1000 -> 0 | K41: =J41/$J$48 ->  | M41: =J41 -> 0 | N41: =J41 -> 0 | O41: 0
C43: Machines | F43: Nb heures fonction | I43: Apport | J43: Apport
E44: W | F44: h | I44: W | J44: kJ/24h
E45: 0 | F45: =IF(I6="OUI",10,0) -> 0 | I45: =E45 -> 0 | J45: =I45*3600*F45/1000 -> 0 | K45: =J45/$J$48 ->  | M45: =J45 -> 0 | N45: =J45 -> 0 | O45: =J45 -> 0
C46: Divers | E46: 0 | I46: =E46 -> 0 | J46: =I46*3600*24/1000 -> 0 | K46: =J46/$J$48 ->  | M46: =J46 -> 0 | N46: =J46 -> 0 | O46: =J46 -> 0
C48: TOTAL | I48: =I16+I20+I23+I27+I31+I36+I41+I45+I46 ->  | J48: =SUM(J16:J46) ->  | K48: =SUM(K16:K46) ->  | M48: =SUM(M16:M46) ->  | N48: =SUM(N16:N46) ->  | O48: =SUM(O16:O46) -> 0
E50: Nombres d'heures de fonctionnement groupes h/jour | I50: Bilan Chaleur Latente kW | J50: Bilan production kW | M50: Bilan production kW | N50: Bilan production kW | O50: Bilan production kW
C51: PRODUCTION | E51: 18 | F51: Ratio | G51: =J51*1000/E14 ->  | H51: W/m2 | I51: =IF(K6="oui",2501*(J67-I67)*E31/F31/E51/3600,2500.8*(H67-I67)*E31/F31/E51/3600) ->  | J51: =J48/$E$51/3600 ->  | M51: =M48/$E$51/3600 ->  | N51: =N48/$E$51/3600 ->  | O51: =O48/$E$51/3600 -> 0
C52: EMISSION | E52: 16 | G52: =J52*1000/E14 ->  | I52: =I51/J51 ->  | J52: =J48/$E$52/3600 ->  | K52: =J52/J51-1 ->  | M52: =M48/$E$52/3600 ->  | N52: =N48/$E$52/3600 ->  | O52: =O48/$E$52/3600 -> 0
H55: 500 | I55: 500 | J55: 500
C56: VIANDES PRE EMBALLES | E56: TRES FORT | F56: ALTITUDE DU SITE (m) | H56: 50 | I56: 50 | J56: 50
C57: VOLAILLES PREEMBALLEES | E57: FORT | F57: PRESSION TOTALE P (Pa) | H57: =1.19745*10^-8*(288.15-0.0065*H56)^5.25588 -> 100726.0397 | I57: =1.19745*10^-8*(288.15-0.0065*I56)^5.25588 -> 100726.0397 | J57: =1.19745*10^-8*(288.15-0.0065*J56)^5.25588 -> 100726.0397
C58: CARCASSES | E58: MOYEN | F58: POINT | H58: EXT | I58: INT | J58: SAS
C59: CHARCUTERIE PREEMBALLE | E59: FAIBLE | F59: t | G59: Température sèche | H59: =G2 ->  | I59: =G4 -> 1 | J59: =J4 -> 10
C60: TRAITEUR | F60: F ( % ) | G60: Humidité relatice | H60: 50 | I60: =G5 -> 75 | J60: =J5 -> 60
C61: CHARIOTS PLATS CUISINES | F61: T | G61: Température absolue | H61: =H59+273.15 ->  | I61: =I59+273.15 -> 274.15 | J61: =J59+273.15 -> 283.15
C62: PATISSERIE FRAICHE | E62: OUI | G62: Pvs si t<0°C | H62: =EXP(-5674.359/H61+6.3925247-0.009677843*H61+0.00000062215701*H61^2+0.0000000020747825*H61^3-0.0000000000009484024*H61^4+4.1635019*LN(H61)) ->  | I62: =EXP(-5674.359/I61+6.3925247-0.009677843*I61+0.00000062215701*I61^2+0.0000000020747825*I61^3-0.0000000000009484024*I61^4+4.1635019*LN(I61)) -> 663.8371686 | J62: =EXP(-5674.359/J61+6.3925247-0.009677843*J61+0.00000062215701*J61^2+0.0000000020747825*J61^3-0.0000000000009484024*J61^4+4.1635019*LN(J61)) -> 1352.955492
C63: POISSONS SUR GLACE | E63: NON | G63: Pvs si t>0°C | H63: =EXP(-5800.2206/H61+1.3914993-0.048640239*H61+0.000041764768*H61^2-0.000000014452093*H61^3+6.5459673*LN(H61)) ->  | I63: =EXP(-5800.2206/I61+1.3914993-0.048640239*I61+0.000041764768*I61^2-0.000000014452093*I61^3+6.5459673*LN(I61)) -> 657.071718 | J63: =EXP(-5800.2206/J61+1.3914993-0.048640239*J61+0.000041764768*J61^2-0.000000014452093*J61^3+6.5459673*LN(J61)) -> 1227.995275
C64: FRUITS ET LEGUMES | F64: Pws | G64: Pression partielle de vapeur à saturation | H64: =IF(H61<273.15,H62,H63) ->  | I64: =IF(I61<273.15,I62,I63) -> 657.071718 | J64: =IF(J61<273.15,J62,J63) -> 1227.995275
C65: BOF EMBALLES | F65: Pv | G65: Pression partielle de vapeur non saturé | H65: =H64*H60/100 ->  | I65: =I64*I60/100 -> 492.8037885 | J65: =J64*J60/100 -> 736.7971653
C66: FROMAGE | F66: Pa | G66: Pression partielle de l'air sec | H66: =$H$57-H65 ->  | I66: =$H$57-I65 -> 100233.2359 | J66: =$H$57-J65 -> 99989.24256
C67: BOISSONS | F67: w | G67: Humidité absolue non saturée | H67: =0.62198*H65/($H$57-H65) ->  | I67: =0.62198*I65/($H$57-I65) -> 0.003058008629 | J67: =0.62198*J65/($H$57-J65) -> 0.004583224046
C68: POUBELLES GRASSES | F68: ws | G68: Humidité absolue à saturation | H68: =0.62198*H64/($H$57-H64) ->  | I68: =0.62198*I64/($H$57-I64) -> 0.004084037992 | J68: =0.62198*J64/($H$57-J64) -> 0.007676417217
C69: PRODUITS SURGELES | F69: RO | G69: Masse volumique de l'air sec | H69: =(1+H67)/H70 ->  | I69: =(1+I67)/I70 -> 1.277368838 | J69: =(1+J67)/J70 -> 1.235632662
C70: CREMES GLACEES | F70: v' | G70: Volume massique de l'air humide | H70: =0.2871*H61*(1+1.6078*H67)/$H$57*1000 ->  | I70: =0.2871*I61*(1+1.6078*I67)/$H$57*1000 -> 0.7852532322 | J70: =0.2871*J61*(1+1.6078*J67)/$H$57*1000 -> 0.8130112248
C71: SAS
C72: LABO DECOUPE | F72: h | G72: Enthalpie | H72: =1.006*H59+H67*(2500.8+1.805*H59) ->  | I72: =1.006*I59+I67*(2500.8+1.805*I59) -> 8.658987684 | J72: =1.006*J59+J67*(2500.8+1.805*J59) -> 21.60445389
C73: LABO DECOUPE EMBALLAGE
C74: LABO EMBALLAGE
C79: Désignation | D79: Température | E79: Dimensions | J79: Evaporateurs
E80: Hygrométrie | F80: Longeur | G80: largeur | H80: Surface | I80: hauteur | J80: Volume | K80: Puissance minimum requise | L80: ="à "&ROUND(D20,0)*100 &" % de charge en surface" ->  | M80: Maximum de charge 50 % | N80: Minimum de charge | O80: DT de sélection | P80: Nbre | Q80: Type | R80: Vitesse ventilation | S80: Dégivrage
B82: =D1 -> CFP 01 | C82: =E1 -> FRAIS LS | D82: =G4 -> 1 | E82: =G5 -> 75 | F82: =E2 -> 0 | G82: =E3 -> 0 | H82: =surface -> 0 | I82: =hauteur -> 0 | J82: =volume -> 0 | K82: =J52*1000 ->  | L82: =J51*1000 ->  | M82: =N52*1000 ->  | N82: =O52*1000 -> 0 | P82: 1 | Q82: =IF(OR(LABO="oui",H1="SAS"),"DOUBLE FLUX",IF(K82<2000,"PLAFONNIER",IF(AND(G5<80,K82<7000),"PLAFONNIER","CUBIQUE"))) ->  | R82: =IF(AND(Q82="DOUBLE FLUX",LABO="OUI"),1000,1500) ->  | S82: =IF(D82>1,"Naturel","Electrique") -> Electrique
K85: =K82/H82 -> 

Sheet Table CFP 7 (hidden)
A1: ENTREES | B1: CALCULS | C1: CHAMBRE FROIDE | D1: CFP 01 | E1: FRAIS LS | F1: PRODUITS TRAITES | H1: ='Chambres positives'!K5 -> 0
C2: Largeur | E2: ='Chambres positives'!K8 -> 0 | F2: TEMPERATURE | G2: =Informations!G25 ->  | H2: EXT | I2: REP
C3: Longueur | E3: ='Chambres positives'!K9 -> 0 | F3: HUMIDITE | G3: 50 | I3: COEF TRANSMISSION | K3: 0.3
C4: Hauteur sous plafond | E4: ='Chambres positives'!K10 -> 0 | F4: TEMPERATURE | G4: 1e-06 | H4: INT | I4: TEMPERATURE | J4: 10 | K4: SAS | M4: CHARGEMENT | N4: CHARGEMENT | O4: NUIT
C5: Surface | E5: =E3*E2 -> 0 | F5: HUMIDITE | G5: 80 | I5: HUMIDITE | J5: 60 | M5: 0.5 | N5: 0.75 | O5: Activité 0
C6: Volume | E6: =E5*E4 -> 0 | F6: CAPACITE CF | G6: 0 | H6: LABO | I6: NON | K6: NON
C7: BILAN | F7: Text | G7: T in | H7: k | I7: Apport | J7: Apport
C8: Déperditions | E8: m2 | F8: °C | G8: °C | H8: W/m2/K | I8: W | J8: kJ/24h
C9: Mur droit | D9: S1 | E9: =E2*E4 -> 0 | F9: 35 | G9: =$G$4 -> 1e-06 | H9: =$K$3 -> 0.3 | I9: =H9*E9*(F9-G9) -> 0 | J9: =I9*3600*24/1000 -> 0 | O9: =H9*(F9-5-G9)*E9 -> 0
C10: Mur gauche | D10: S2 | E10: =+E9 -> 0 | F10: 35 | G10: 1e-06 | H10: =$K$3 -> 0.3 | I10: 0 | J10: 0 | O10: =H10*(F10-5-G10)*E10 -> 0
C11: Mur fond | D11: S3 | E11: =E3*E4 -> 0 | F11: 15 | G11: 1e-06 | H11: =$K$3 -> 0.3 | I11: 0 | J11: 0 | O11: =H11*(F11-5-G11)*E11 -> 0
C12: Mur avant | D12: S4 | E12: =E11 -> 0 | F12: 35 | G12: 1e-06 | H12: 0.5 | I12: 0 | J12: 0 | O12: =H12*(F12-5-G12)*E12 -> 0
C13: Plafond | D13: S5 | E13: =E5 -> 0 | F13: 35 | G13: 1e-06 | H13: =$K$3 -> 0.3 | I13: 0 | J13: 0 | O13: =H13*(F13-5-G13)*E13 -> 0
C14: Plancher | D14: S6 | E14: =E5 -> 0 | F14: 15 | G14: 1e-06 | H14: 0.2 | I14: 0 | J14: 0 | O14: =H14*(F14-G14)*E14 -> 0
C15: Linéïques | D15: 0.1 | I15: =D15*SUM(I9:I14) -> 0 | J15: =D15*SUM(J9:J14) -> 0
C16: Sous total | I16: =SUM(I9:I15) -> 0 | J16: =I16*24*3.6 -> 0 | K16: =J16/$J$48 ->  | M16: =J16 -> 0 | N16: =J16 -> 0 | O16: =SUM(O9:O15)*24*3.6 -> 0
C18: Entrés | D18: % de charge | E18: kg/jour | F18: T entrée | G18: T stockage | H18: Cp | I18: Apport | J18: Apport
C19: Surcharge kg/jour | E19: Débit | F19: °C | G19: °C | H19: kJ/kg/K | I19: W | J19: kJ/24h
C20: 0 | E20: 0 | F20: 7 | G20: =G4 -> 1e-06 | H20: 3.3484 | I20: =H20*(E20+C20 )*(F20-G20)/3600/12*1000 -> 0 | J20: =(C20+E20)*H20*(F20-G20) -> 0 | K20: =J20/$J$48 ->  | M20: =IF(LABO="non",J20/E20*G6*$M$5,0) ->  | N20: =IF(LABO="non",J20/E20*G6*$N$5,0) ->  | O20: 0
C21: Chaleur respiration | E21: Capacité | H21: Chaleur respiration | I21: Apport | J21: Apport
C22: =H1 -> 0 | E22: Chambre | H22: kJ/kg en 24 h | I22: W | J22: kJ/24h
C23: 0 | E23: =capacité -> 0 | H23: =C23 -> 0 | I23: =J23/24/3600 -> 0 | J23: =H23*E23 -> 0 | K23: =J23/$J$48 ->  | M23: =+J23 -> 0 | N23: =J23 -> 0 | O23: =J23 -> 0
C25: Travail ventilateurs | E25: Volume chambre | F25: Taux de brassage | G25: Débit air brassé | H25: Puissance ventilateur | I25: Apport | J25: Apport
E26: m3 | F26: sd | G26: m3 | H26: W | I26: W | J26: kJ/24h
E27: =volume -> 0 | F27: 30 | G27: =F27*E6 -> 0 | H27: =I27 -> 0 | I27: =G27*0.1 -> 0 | J27: =I27/1000*24*3600 -> 0 | K27: =J27/$J$48 ->  | M27: =J27 -> 0 | N27: =J27 -> 0 | O27: =J27 -> 0
C29: Air neuf | E29: Renouvellement | F29: Vol massique | G29: Enthalpie Ext | H29: Enthalpie Int | I29: Apport | J29: Apport
C30: Activité chambre | E30: m3/24h | F30: m3/kg | G30: kJ/kg | H30: kJ/kg | I30: W | J30: kJ/24h
C31: FORT | F31: =IF(K6="NON",H69,J69) ->  | G31: =IF(K6="NON",H72,J72) ->  | H31: =I72 -> 7.587690099 | I31: =(G31-H31)/F31*E31/(24*3600)*1000 ->  | J31: =(G31-H31)/F31*E31 ->  | K31: =J31/$J$48 ->  | M31: =J31 ->  | N31: =J31 ->  | O31: 0
C32: Taux de renouvellement | D32: =E31/volume ->  | E32: Vol/jour | F32: =D32/24 ->  | G32: Vol/h
C34: Eclairage | E34: Surface | F34: Ratio | G34: Nb heures fonction | I34: Apport | J34: Apport
E35: m2 | F35: W/m2 | G35: h | I35: W | J35: kJ/24h
E36: =surface -> 0 | F36: =IF(LABO="oui",0,10) -> 10 | G36: 4 | I36: =F36*E36 -> 0 | J36: =I36*3600*G36/1000 -> 0 | K36: =J36/$J$48 ->  | M36: =J36 -> 0 | N36: =J36 -> 0 | O36: .
C38: Personnel
E39: Nombre | F39: Ratio | G39: Nb heures fonction | I39: Apport | J39: Apport
E40: personne | F40: W/p | G40: h | I40: W | J40: kJ/24h
E41: 0 | F41: 400 | G41: 4 | I41: =F41*E41 -> 0 | J41: =I41*3600*G41/1000 -> 0 | K41: =J41/$J$48 ->  | M41: =J41 -> 0 | N41: =J41 -> 0 | O41: 0
C43: Machines | F43: Nb heures fonction | I43: Apport | J43: Apport
E44: W | F44: h | I44: W | J44: kJ/24h
E45: 0 | F45: =IF(I6="OUI",10,0) -> 0 | I45: =E45 -> 0 | J45: =I45*3600*F45/1000 -> 0 | K45: =J45/$J$48 ->  | M45: =J45 -> 0 | N45: =J45 -> 0 | O45: =J45 -> 0
C46: Divers | E46: 0 | I46: =E46 -> 0 | J46: =I46*3600*24/1000 -> 0 | K46: =J46/$J$48 ->  | M46: =J46 -> 0 | N46: =J46 -> 0 | O46: =J46 -> 0
C48: TOTAL | I48: =I16+I20+I23+I27+I31+I36+I41+I45+I46 ->  | J48: =SUM(J16:J46) ->  | K48: =SUM(K16:K46) ->  | M48: =SUM(M16:M46) ->  | N48: =SUM(N16:N46) ->  | O48: =SUM(O16:O46) -> 0
E50: Nombres d'heures de fonctionnement groupes h/jour | I50: Bilan Chaleur Latente kW | J50: Bilan production kW | M50: Bilan production kW | N50: Bilan production kW | O50: Bilan production kW
C51: PRODUCTION | E51: 18 | F51: Ratio | G51: =J51*1000/E14 ->  | H51: W/m2 | I51: =IF(K6="oui",2501*(J67-I67)*E31/F31/E51/3600,2500.8*(H67-I67)*E31/F31/E51/3600) ->  | J51: =J48/$E$51/3600 ->  | M51: =M48/$E$51/3600 ->  | N51: =N48/$E$51/3600 ->  | O51: =O48/$E$51/3600 -> 0
C52: EMISSION | E52: 16 | G52: =J52*1000/E14 ->  | I52: =I51/J51 ->  | J52: =J48/$E$52/3600 ->  | K52: =J52/J51-1 ->  | M52: =M48/$E$52/3600 ->  | N52: =N48/$E$52/3600 ->  | O52: =O48/$E$52/3600 -> 0
H55: 500 | I55: 500 | J55: 500
C56: VIANDES PRE EMBALLES | E56: TRES FORT | F56: ALTITUDE DU SITE (m) | H56: 50 | I56: 50 | J56: 50
C57: VOLAILLES PREEMBALLEES | E57: FORT | F57: PRESSION TOTALE P (Pa) | H57: =1.19745*10^-8*(288.15-0.0065*H56)^5.25588 -> 100726.0397 | I57: =1.19745*10^-8*(288.15-0.0065*I56)^5.25588 -> 100726.0397 | J57: =1.19745*10^-8*(288.15-0.0065*J56)^5.25588 -> 100726.0397
C58: CARCASSES | E58: MOYEN | F58: POINT | H58: EXT | I58: INT | J58: SAS
C59: CHARCUTERIE PREEMBALLE | E59: FAIBLE | F59: t | G59: Température sèche | H59: =G2 ->  | I59: =G4 -> 1e-06 | J59: =J4 -> 10
C60: TRAITEUR | F60: F ( % ) | G60: Humidité relatice | H60: 50 | I60: =G5 -> 80 | J60: =J5 -> 60
C61: CHARIOTS PLATS CUISINES | F61: T | G61: Température absolue | H61: =H59+273.15 ->  | I61: =I59+273.15 -> 273.150001 | J61: =J59+273.15 -> 283.15
C62: PATISSERIE FRAICHE | E62: OUI | G62: Pvs si t<0°C | H62: =EXP(-5674.359/H61+6.3925247-0.009677843*H61+0.00000062215701*H61^2+0.0000000020747825*H61^3-0.0000000000009484024*H61^4+4.1635019*LN(H61)) ->  | I62: =EXP(-5674.359/I61+6.3925247-0.009677843*I61+0.00000062215701*I61^2+0.0000000020747825*I61^3-0.0000000000009484024*I61^4+4.1635019*LN(I61)) -> 611.5495505 | J62: =EXP(-5674.359/J61+6.3925247-0.009677843*J61+0.00000062215701*J61^2+0.0000000020747825*J61^3-0.0000000000009484024*J61^4+4.1635019*LN(J61)) -> 1352.955492
C63: POISSONS SUR GLACE | E63: NON | G63: Pvs si t>0°C | H63: =EXP(-5800.2206/H61+1.3914993-0.048640239*H61+0.000041764768*H61^2-0.000000014452093*H61^3+6.5459673*LN(H61)) ->  | I63: =EXP(-5800.2206/I61+1.3914993-0.048640239*I61+0.000041764768*I61^2-0.000000014452093*I61^3+6.5459673*LN(I61)) -> 611.2129119 | J63: =EXP(-5800.2206/J61+1.3914993-0.048640239*J61+0.000041764768*J61^2-0.000000014452093*J61^3+6.5459673*LN(J61)) -> 1227.995275
C64: FRUITS ET LEGUMES | F64: Pws | G64: Pression partielle de vapeur à saturation | H64: =IF(H61<273.15,H62,H63) ->  | I64: =IF(I61<273.15,I62,I63) -> 611.2129119 | J64: =IF(J61<273.15,J62,J63) -> 1227.995275
C65: BOF EMBALLES | F65: Pv | G65: Pression partielle de vapeur non saturé | H65: =H64*H60/100 ->  | I65: =I64*I60/100 -> 488.9703295 | J65: =J64*J60/100 -> 736.7971653
C66: FROMAGE | F66: Pa | G66: Pression partielle de l'air sec | H66: =$H$57-H65 ->  | I66: =$H$57-I65 -> 100237.0694 | J66: =$H$57-J65 -> 99989.24256
C67: BOISSONS | F67: w | G67: Humidité absolue non saturée | H67: =0.62198*H65/($H$57-H65) ->  | I67: =0.62198*I65/($H$57-I65) -> 0.003034104722 | J67: =0.62198*J65/($H$57-J65) -> 0.004583224046
C68: POUBELLES GRASSES | F68: ws | G68: Humidité absolue à saturation | H68: =0.62198*H64/($H$57-H64) ->  | I68: =0.62198*I64/($H$57-I64) -> 0.003797261795 | J68: =0.62198*J64/($H$57-J64) -> 0.007676417217
C69: PRODUITS SURGELES | F69: RO | G69: Masse volumique de l'air sec | H69: =(1+H67)/H70 ->  | I69: =(1+I67)/I70 -> 1.28206375 | J69: =(1+J67)/J70 -> 1.235632662
C70: CREMES GLACEES | F70: v' | G70: Volume massique de l'air humide | H70: =0.2871*H61*(1+1.6078*H67)/$H$57*1000 ->  | I70: =0.2871*I61*(1+1.6078*I67)/$H$57*1000 -> 0.7823589932 | J70: =0.2871*J61*(1+1.6078*J67)/$H$57*1000 -> 0.8130112248
C71: SAS
C72: LABO DECOUPE | F72: h | G72: Enthalpie | H72: =1.006*H59+H67*(2500.8+1.805*H59) ->  | I72: =1.006*I59+I67*(2500.8+1.805*I59) -> 7.587690099 | J72: =1.006*J59+J67*(2500.8+1.805*J59) -> 21.60445389
C73: LABO DECOUPE EMBALLAGE
C74: LABO EMBALLAGE
C79: Désignation | D79: Température | E79: Dimensions | J79: Evaporateurs
E80: Hygrométrie | F80: Longeur | G80: largeur | H80: Surface | I80: hauteur | J80: Volume | K80: Puissance minimum requise | L80: ="à "&ROUND(D20,0)*100 &" % de charge en surface" ->  | M80: Maximum de charge 50 % | N80: Minimum de charge | O80: DT de sélection | P80: Nbre | Q80: Type | R80: Vitesse ventilation | S80: Dégivrage
B82: =D1 -> CFP 01 | C82: =E1 -> FRAIS LS | D82: =G4 -> 1e-06 | E82: =G5 -> 80 | F82: =E2 -> 0 | G82: =E3 -> 0 | H82: =surface -> 0 | I82: =hauteur -> 0 | J82: =volume -> 0 | K82: =J52*1000 ->  | L82: =J51*1000 ->  | M82: =N52*1000 ->  | N82: =O52*1000 -> 0 | P82: 1 | Q82: =IF(OR(LABO="oui",H1="SAS"),"DOUBLE FLUX",IF(K82<2000,"PLAFONNIER",IF(AND(G5<80,K82<7000),"PLAFONNIER","CUBIQUE"))) ->  | R82: =IF(AND(Q82="DOUBLE FLUX",LABO="OUI"),1000,1500) ->  | S82: =IF(D82>1,"Naturel","Electrique") -> Electrique
K85: =K82/H82 -> 

Sheet Table CFP 8 (hidden)
A1: ENTREES | B1: CALCULS | C1: CHAMBRE FROIDE | D1: CFP 01 | E1: FRAIS LS | F1: PRODUITS TRAITES | H1: ='Chambres positives'!L5 -> 0
C2: Largeur | E2: ='Chambres positives'!L8 -> 0 | F2: TEMPERATURE | G2: =Informations!G25 ->  | H2: EXT | I2: REP
C3: Longueur | E3: ='Chambres positives'!L9 -> 0 | F3: HUMIDITE | G3: 50 | I3: COEF TRANSMISSION | K3: 0.3
C4: Hauteur sous plafond | E4: ='Chambres positives'!L10 -> 0 | F4: TEMPERATURE | G4: 1e-06 | H4: INT | I4: TEMPERATURE | J4: 10 | K4: SAS | M4: CHARGEMENT | N4: CHARGEMENT | O4: NUIT
C5: Surface | E5: =E3*E2 -> 0 | F5: HUMIDITE | G5: 90 | I5: HUMIDITE | J5: 60 | M5: 0.5 | N5: 0.75 | O5: Activité 0
C6: Volume | E6: =E5*E4 -> 0 | F6: CAPACITE CF | G6: 0 | H6: LABO | I6: NON | K6: NON
C7: BILAN | F7: Text | G7: T in | H7: k | I7: Apport | J7: Apport
C8: Déperditions | E8: m2 | F8: °C | G8: °C | H8: W/m2/K | I8: W | J8: kJ/24h
C9: Mur droit | D9: S1 | E9: =E2*E4 -> 0 | F9: 35 | G9: =$G$4 -> 1e-06 | H9: =$K$3 -> 0.3 | I9: =H9*E9*(F9-G9) -> 0 | J9: =I9*3600*24/1000 -> 0 | O9: =H9*(F9-5-G9)*E9 -> 0
C10: Mur gauche | D10: S2 | E10: =+E9 -> 0 | F10: 35 | G10: 1e-06 | H10: =$K$3 -> 0.3 | I10: 0 | J10: 0 | O10: =H10*(F10-5-G10)*E10 -> 0
C11: Mur fond | D11: S3 | E11: =E3*E4 -> 0 | F11: 15 | G11: 1e-06 | H11: =$K$3 -> 0.3 | I11: 0 | J11: 0 | O11: =H11*(F11-5-G11)*E11 -> 0
C12: Mur avant | D12: S4 | E12: =E11 -> 0 | F12: 35 | G12: 1e-06 | H12: 0.5 | I12: 0 | J12: 0 | O12: =H12*(F12-5-G12)*E12 -> 0
C13: Plafond | D13: S5 | E13: =E5 -> 0 | F13: 35 | G13: 1e-06 | H13: =$K$3 -> 0.3 | I13: 0 | J13: 0 | O13: =H13*(F13-5-G13)*E13 -> 0
C14: Plancher | D14: S6 | E14: =E5 -> 0 | F14: 15 | G14: 1e-06 | H14: 0.2 | I14: 0 | J14: 0 | O14: =H14*(F14-G14)*E14 -> 0
C15: Linéïques | D15: 0.1 | I15: =D15*SUM(I9:I14) -> 0 | J15: =D15*SUM(J9:J14) -> 0
C16: Sous total | I16: =SUM(I9:I15) -> 0 | J16: =I16*24*3.6 -> 0 | K16: =J16/$J$48 ->  | M16: =J16 -> 0 | N16: =J16 -> 0 | O16: =SUM(O9:O15)*24*3.6 -> 0
C18: Entrés | D18: % de charge | E18: kg/jour | F18: T entrée | G18: T stockage | H18: Cp | I18: Apport | J18: Apport
C19: Surcharge kg/jour | E19: Débit | F19: °C | G19: °C | H19: kJ/kg/K | I19: W | J19: kJ/24h
C20: 0 | E20: 0 | F20: 4 | G20: =G4 -> 1e-06 | H20: 3.3484 | I20: =H20*(E20+C20 )*(F20-G20)/3600/12*1000 -> 0 | J20: =(C20+E20)*H20*(F20-G20) -> 0 | K20: =J20/$J$48 ->  | M20: =IF(LABO="non",J20/E20*G6*$M$5,0) ->  | N20: =IF(LABO="non",J20/E20*G6*$N$5,0) ->  | O20: 0
C21: Chaleur respiration | E21: Capacité | H21: Chaleur respiration | I21: Apport | J21: Apport
C22: =H1 -> 0 | E22: Chambre | H22: kJ/kg en 24 h | I22: W | J22: kJ/24h
C23: 0 | E23: =capacité -> 0 | H23: =C23 -> 0 | I23: =J23/24/3600 -> 0 | J23: =H23*E23 -> 0 | K23: =J23/$J$48 ->  | M23: =+J23 -> 0 | N23: =J23 -> 0 | O23: =J23 -> 0
C25: Travail ventilateurs | E25: Volume chambre | F25: Taux de brassage | G25: Débit air brassé | H25: Puissance ventilateur | I25: Apport | J25: Apport
E26: m3 | F26: sd | G26: m3 | H26: W | I26: W | J26: kJ/24h
E27: =volume -> 0 | F27: 30 | G27: =F27*E6 -> 0 | H27: =I27 -> 0 | I27: =G27*0.1 -> 0 | J27: =I27/1000*24*3600 -> 0 | K27: =J27/$J$48 ->  | M27: =J27 -> 0 | N27: =J27 -> 0 | O27: =J27 -> 0
C29: Air neuf | E29: Renouvellement | F29: Vol massique | G29: Enthalpie Ext | H29: Enthalpie Int | I29: Apport | J29: Apport
C30: Activité chambre | E30: m3/24h | F30: m3/kg | G30: kJ/kg | H30: kJ/kg | I30: W | J30: kJ/24h
C31: FORT | F31: =IF(K6="NON",H69,J69) ->  | G31: =IF(K6="NON",H72,J72) ->  | H31: =I72 -> 8.541359478 | I31: =(G31-H31)/F31*E31/(24*3600)*1000 ->  | J31: =(G31-H31)/F31*E31 ->  | K31: =J31/$J$48 ->  | M31: =J31 ->  | N31: =J31 ->  | O31: 0
C32: Taux de renouvellement | D32: =E31/volume ->  | E32: Vol/jour | F32: =D32/24 ->  | G32: Vol/h
C34: Eclairage | E34: Surface | F34: Ratio | G34: Nb heures fonction | I34: Apport | J34: Apport
E35: m2 | F35: W/m2 | G35: h | I35: W | J35: kJ/24h
E36: =surface -> 0 | F36: =IF(LABO="oui",0,10) -> 10 | G36: 4 | I36: =F36*E36 -> 0 | J36: =I36*3600*G36/1000 -> 0 | K36: =J36/$J$48 ->  | M36: =J36 -> 0 | N36: =J36 -> 0 | O36: .
C38: Personnel
E39: Nombre | F39: Ratio | G39: Nb heures fonction | I39: Apport | J39: Apport
E40: personne | F40: W/p | G40: h | I40: W | J40: kJ/24h
E41: 0 | F41: 400 | G41: 4 | I41: =F41*E41 -> 0 | J41: =I41*3600*G41/1000 -> 0 | K41: =J41/$J$48 ->  | M41: =J41 -> 0 | N41: =J41 -> 0 | O41: 0
C43: Machines | F43: Nb heures fonction | I43: Apport | J43: Apport
E44: W | F44: h | I44: W | J44: kJ/24h
E45: 0 | F45: =IF(I6="OUI",10,0) -> 0 | I45: =E45 -> 0 | J45: =I45*3600*F45/1000 -> 0 | K45: =J45/$J$48 ->  | M45: =J45 -> 0 | N45: =J45 -> 0 | O45: =J45 -> 0
C46: Divers | E46: 0 | I46: =E46 -> 0 | J46: =I46*3600*24/1000 -> 0 | K46: =J46/$J$48 ->  | M46: =J46 -> 0 | N46: =J46 -> 0 | O46: =J46 -> 0
C48: TOTAL | I48: =I16+I20+I23+I27+I31+I36+I41+I45+I46 ->  | J48: =SUM(J16:J46) ->  | K48: =SUM(K16:K46) ->  | M48: =SUM(M16:M46) ->  | N48: =SUM(N16:N46) ->  | O48: =SUM(O16:O46) -> 0
E50: Nombres d'heures de fonctionnement groupes h/jour | I50: Bilan Chaleur Latente kW | J50: Bilan production kW | M50: Bilan production kW | N50: Bilan production kW | O50: Bilan production kW
C51: PRODUCTION | E51: 18 | F51: Ratio | G51: =J51*1000/E14 ->  | H51: W/m2 | I51: =IF(K6="oui",2501*(J67-I67)*E31/F31/E51/3600,2500.8*(H67-I67)*E31/F31/E51/3600) ->  | J51: =J48/$E$51/3600 ->  | M51: =M48/$E$51/3600 ->  | N51: =N48/$E$51/3600 ->  | O51: =O48/$E$51/3600 -> 0
C52: EMISSION | E52: 16 | G52: =J52*1000/E14 ->  | I52: =I51/J51 ->  | J52: =J48/$E$52/3600 ->  | K52: =J52/J51-1 ->  | M52: =M48/$E$52/3600 ->  | N52: =N48/$E$52/3600 ->  | O52: =O48/$E$52/3600 -> 0
H55: 500 | I55: 500 | J55: 500
C56: VIANDES PRE EMBALLES | E56: TRES FORT | F56: ALTITUDE DU SITE (m) | H56: 50 | I56: 50 | J56: 50
C57: VOLAILLES PREEMBALLEES | E57: FORT | F57: PRESSION TOTALE P (Pa) | H57: =1.19745*10^-8*(288.15-0.0065*H56)^5.25588 -> 100726.0397 | I57: =1.19745*10^-8*(288.15-0.0065*I56)^5.25588 -> 100726.0397 | J57: =1.19745*10^-8*(288.15-0.0065*J56)^5.25588 -> 100726.0397
C58: CARCASSES | E58: MOYEN | F58: POINT | H58: EXT | I58: INT | J58: SAS
C59: CHARCUTERIE PREEMBALLE | E59: FAIBLE | F59: t | G59: Température sèche | H59: =G2 ->  | I59: =G4 -> 1e-06 | J59: =J4 -> 10
C60: TRAITEUR | F60: F ( % ) | G60: Humidité relatice | H60: 50 | I60: =G5 -> 90 | J60: =J5 -> 60
C61: CHARIOTS PLATS CUISINES | F61: T | G61: Température absolue | H61: =H59+273.15 ->  | I61: =I59+273.15 -> 273.150001 | J61: =J59+273.15 -> 283.15
C62: PATISSERIE FRAICHE | E62: OUI | G62: Pvs si t<0°C | H62: =EXP(-5674.359/H61+6.3925247-0.009677843*H61+0.00000062215701*H61^2+0.0000000020747825*H61^3-0.0000000000009484024*H61^4+4.1635019*LN(H61)) ->  | I62: =EXP(-5674.359/I61+6.3925247-0.009677843*I61+0.00000062215701*I61^2+0.0000000020747825*I61^3-0.0000000000009484024*I61^4+4.1635019*LN(I61)) -> 611.5495505 | J62: =EXP(-5674.359/J61+6.3925247-0.009677843*J61+0.00000062215701*J61^2+0.0000000020747825*J61^3-0.0000000000009484024*J61^4+4.1635019*LN(J61)) -> 1352.955492
C63: POISSONS SUR GLACE | E63: NON | G63: Pvs si t>0°C | H63: =EXP(-5800.2206/H61+1.3914993-0.048640239*H61+0.000041764768*H61^2-0.000000014452093*H61^3+6.5459673*LN(H61)) ->  | I63: =EXP(-5800.2206/I61+1.3914993-0.048640239*I61+0.000041764768*I61^2-0.000000014452093*I61^3+6.5459673*LN(I61)) -> 611.2129119 | J63: =EXP(-5800.2206/J61+1.3914993-0.048640239*J61+0.000041764768*J61^2-0.000000014452093*J61^3+6.5459673*LN(J61)) -> 1227.995275
C64: FRUITS ET LEGUMES | F64: Pws | G64: Pression partielle de vapeur à saturation | H64: =IF(H61<273.15,H62,H63) ->  | I64: =IF(I61<273.15,I62,I63) -> 611.2129119 | J64: =IF(J61<273.15,J62,J63) -> 1227.995275
C65: BOF EMBALLES | F65: Pv | G65: Pression partielle de vapeur non saturé | H65: =H64*H60/100 ->  | I65: =I64*I60/100 -> 550.0916207 | J65: =J64*J60/100 -> 736.7971653
C66: FROMAGE | F66: Pa | G66: Pression partielle de l'air sec | H66: =$H$57-H65 ->  | I66: =$H$57-I65 -> 100175.9481 | J66: =$H$57-J65 -> 99989.24256
C67: BOISSONS | F67: w | G67: Humidité absolue non saturée | H67: =0.62198*H65/($H$57-H65) ->  | I67: =0.62198*I65/($H$57-I65) -> 0.003415450442 | J67: =0.62198*J65/($H$57-J65) -> 0.004583224046
